Workbook

Sheet ACS_Notes (hidden)
A1: NOTES:
A4: Data are based on a sample and are subject to sampling variability. The degree of uncertainty for an estimate arising from sampling variability is represented through the use of a margin of error. The value shown here is the 90 percent margin of error. The margin of error can be interpreted roughly as providing a 90 percent probability that the interval defined by the estimate minus the margin of error and the estimate plus the margin of error (the lower and upper confidence bounds) contains the true value. In addition to sampling variability, the ACS estimates are subject to nonsampling error (for a discussion of nonsampling variability, see Accuracy of the Data). The effect of nonsampling error is not represented in these tables.
A8: In addition to sampling variability, the ACS estimates are subject to nonsampling error (for a discussion of nonsampling variability, see Accuracy of the Data. The link is located at the end of this worksheet.). The effect of nonsampling error is not represented in these tables.
A11: While the 2005-2009 American Community Survey (ACS) data generally reflect the November 2008 Office of Management and Budget (OMB) definitions of metropolitan and micropolitan statistical areas; in certain instances the names, codes, and boundaries of the principal cities shown in ACS tables may differ from the OMB definitions due to differences in the effective dates of the geographic entities.
A15: Estimates of urban and rural population, housing units, and characteristics reflect boundaries of urban areas defined based on Census 2000 data. Boundaries for urban areas have not been updated since Census 2000. As a result, data for urban and rural areas from the ACS do not necessarily reflect the results of ongoing urbanization.
A17: Explanation of Symbols:
A19: 1. An '**' entry in the margin of error column indicates that either no sample observations or too few sample observations were available to compute a standard error and thus the margin of error. A statistical test is not appropriate.
A21: 2. An '-' entry in the estimate column indicates that either no sample observations or too few sample observations were available to compute an estimate, or a ratio of medians cannot be calculated because one or both of the median estimates falls in the lowest interval or upper interval of an open-ended distribution.
A23: 3. An '-' following a median estimate means the median falls in the lowest interval of an open-ended distribution.
A24: 4. An '+' following a median estimate means the median falls in the upper interval of an open-ended distribution.
A25: 5. An '***' entry in the margin of error column indicates that the median falls in the lowest interval or upper interval of an open-ended distribution. A statistical test is not appropriate.
A26: 6. An '*****' entry in the margin of error column indicates that the estimate is controlled. A statistical test for sampling variability is not appropriate.
A28: Accuracy of Data

Sheet StartInstruction
A1: Demographic Profiles for Municipalities in Carroll County
A3: To view or print a Demographic Profile follow the steps below
A6: Step 1. | C6: Select the municipality you wish to view
C7: from the drop down box below.
A12: Step 2. | C12: Click one of the profile topic buttons below to review or print
C13: the information for the selected geography.
C14: Don't forget to adjust the axis on charts as necessary.
N28: Updated: | P28: 2024-07-18
N31: Next Update: | P31: Spring 2024 Annual Employment Date

Sheet ACS_Table_B08303 (hidden)
B1: B08303: TRAVEL TIME TO WORK
B2: Universe: Workers 16 years and over who did not work at home
B3: Data Set: 2014-2018 American Community Survey 5-Year Estimates
C5: Albany | E5: Bartlett | G5: Brookfield | I5: Chatham | K5: Conway | M5: Eaton | O5: Effingham | Q5: Freedom | S5: Hale's location | U5: Hart's Location | W5: Jackson | Y5: Madison | AA5: Moultonborough | AC5: Ossipee | AE5: Sandwich | AG5: Tamworth | AI5: Tuftonboro | AK5: Wakefield | AM5: Wolfeboro
C6: Estimates | D6: Margin Of Error | E6: Estimates | F6: Margin Of Error | G6: Estimates | H6: Margin Of Error | I6: Estimates | J6: Margin Of Error | K6: Estimates | L6: Margin Of Error | M6: Estimates | N6: Margin Of Error | O6: Estimates | P6: Margin Of Error | Q6: Estimates | R6: Margin Of Error | S6: Estimates | T6: Margin Of Error | U6: Estimates | V6: Margin Of Error | W6: Estimates | X6: Margin Of Error | Y6: Estimates | Z6: Margin Of Error | AA6: Estimates | AB6: Margin Of Error | AC6: Estimates | AD6: Margin Of Error | AE6: Estimates | AF6: Margin Of Error | AG6: Estimates | AH6: Margin Of Error | AI6: Estimates | AJ6: Margin Of Error | AK6: Estimates | AL6: Margin Of Error | AM6: Estimates | AN6: Margin Of Error
B7: Population Older than 16 not working at hom | C7: 288 | D7: 63 | E7: 1256 | F7: 211 | G7: 339 | H7: 74 | I7: 167 | J7: 64 | K7: 4817 | L7: 421 | M7: 135 | N7: 46 | O7: 672 | P7: 137 | Q7: 522 | R7: 104 | S7: 33 | T7: 17 | U7: 38 | V7: 26 | W7: 466 | X7: 136 | Y7: 1192 | Z7: 132 | AA7: 1692 | AB7: 190 | AC7: 1715 | AD7: 258 | AE7: 557 | AF7: 117 | AG7: 1553 | AH7: 208 | AI7: 858 | AJ7: 136 | AK7: 2401 | AL7: 303 | AM7: 2626 | AN7: 333
B8: Less than 5 minutes | C8: 15 | D8: 15 | E8: 141 | F8: 97 | G8: 19 | H8: 17 | I8: 0 | J8: 11 | K8: 659 | L8: 279 | M8: 12 | N8: 10 | O8: 17 | P8: 11 | Q8: 14 | R8: 19 | S8: 0 | T8: 11 | U8: 5 | V8: 5 | W8: 50 | X8: 40 | Y8: 28 | Z8: 20 | AA8: 131 | AB8: 104 | AC8: 86 | AD8: 83 | AE8: 20 | AF8: 12 | AG8: 192 | AH8: 124 | AI8: 62 | AJ8: 41 | AK8: 121 | AL8: 97 | AM8: 259 | AN8: 188
B9: 5 to 9 minutes | C9: 10 | D9: 7 | E9: 189 | F9: 93 | G9: 10 | H9: 12 | I9: 5 | J9: 8 | K9: 1314 | L9: 392 | M9: 0 | N9: 11 | O9: 23 | P9: 26 | Q9: 23 | R9: 19 | S9: 15 | T9: 13 | U9: 9 | V9: 10 | W9: 107 | X9: 56 | Y9: 81 | Z9: 51 | AA9: 166 | AB9: 78 | AC9: 127 | AD9: 63 | AE9: 45 | AF9: 31 | AG9: 258 | AH9: 156 | AI9: 85 | AJ9: 58 | AK9: 145 | AL9: 126 | AM9: 243 | AN9: 127
B10: 10 to 14 minutes | C10: 34 | D10: 19 | E10: 238 | F10: 119 | G10: 22 | H10: 13 | I10: 0 | J10: 11 | K10: 1007 | L10: 283 | M10: 26 | N10: 20 | O10: 44 | P10: 29 | Q10: 93 | R10: 50 | S10: 6 | T10: 7 | U10: 4 | V10: 7 | W10: 37 | X10: 30 | Y10: 68 | Z10: 42 | AA10: 244 | AB10: 87 | AC10: 167 | AD10: 105 | AE10: 48 | AF10: 31 | AG10: 203 | AH10: 103 | AI10: 64 | AJ10: 31 | AK10: 159 | AL10: 127 | AM10: 721 | AN10: 269
B11: 15 to 19 minutes | C11: 87 | D11: 38 | E11: 254 | F11: 170 | G11: 27 | H11: 19 | I11: 9 | J11: 7 | K11: 863 | L11: 220 | M11: 22 | N11: 20 | O11: 96 | P11: 45 | Q11: 77 | R11: 31 | S11: 2 | T11: 3 | U11: 2 | V11: 3 | W11: 95 | X11: 39 | Y11: 134 | Z11: 54 | AA11: 202 | AB11: 75 | AC11: 158 | AD11: 71 | AE11: 69 | AF11: 41 | AG11: 93 | AH11: 68 | AI11: 198 | AJ11: 74 | AK11: 202 | AL11: 161 | AM11: 236 | AN11: 147
B12: 20 to 24 minutes | C12: 34 | D12: 15 | E12: 264 | F12: 128 | G12: 60 | H12: 27 | I12: 19 | J12: 14 | K12: 323 | L12: 137 | M12: 21 | N12: 16 | O12: 135 | P12: 47 | Q12: 64 | R12: 28 | S12: 4 | T12: 6 | U12: 2 | V12: 3 | W12: 44 | X12: 35 | Y12: 254 | Z12: 72 | AA12: 167 | AB12: 88 | AC12: 107 | AD12: 65 | AE12: 44 | AF12: 22 | AG12: 242 | AH12: 148 | AI12: 107 | AJ12: 34 | AK12: 238 | AL12: 163 | AM12: 190 | AN12: 154
B13: 25 to 29 minutes | C13: 13 | D13: 15 | E13: 0 | F13: 11 | G13: 16 | H13: 10 | I13: 11 | J13: 10 | K13: 76 | L13: 52 | M13: 10 | N13: 8 | O13: 32 | P13: 25 | Q13: 41 | R13: 27 | S13: 0 | T13: 11 | U13: 6 | V13: 8 | W13: 13 | X13: 21 | Y13: 200 | Z13: 85 | AA13: 90 | AB13: 53 | AC13: 140 | AD13: 76 | AE13: 38 | AF13: 23 | AG13: 61 | AH13: 75 | AI13: 27 | AJ13: 23 | AK13: 151 | AL13: 106 | AM13: 85 | AN13: 76
B14: 30 to 34 minutes | C14: 33 | D14: 21 | E14: 26 | F14: 29 | G14: 22 | H14: 13 | I14: 62 | J14: 43 | K14: 157 | L14: 68 | M14: 7 | N14: 9 | O14: 104 | P14: 41 | Q14: 60 | R14: 31 | S14: 0 | T14: 11 | U14: 4 | V14: 6 | W14: 89 | X14: 61 | Y14: 137 | Z14: 71 | AA14: 160 | AB14: 80 | AC14: 201 | AD14: 116 | AE14: 74 | AF14: 33 | AG14: 197 | AH14: 126 | AI14: 76 | AJ14: 34 | AK14: 174 | AL14: 99 | AM14: 121 | AN14: 98
B15: 35 to 39 minutes | C15: 5 | D15: 6 | E15: 0 | F15: 11 | G15: 10 | H15: 9 | I15: 9 | J15: 7 | K15: 9 | L15: 14 | M15: 3 | N15: 4 | O15: 19 | P15: 13 | Q15: 51 | R15: 38 | S15: 0 | T15: 11 | U15: 0 | V15: 11 | W15: 9 | X15: 14 | Y15: 38 | Z15: 33 | AA15: 113 | AB15: 74 | AC15: 9 | AD15: 18 | AE15: 27 | AF15: 25 | AG15: 59 | AH15: 67 | AI15: 0 | AJ15: 11 | AK15: 159 | AL15: 114 | AM15: 13 | AN15: 21
B16: 40 to 44 minutes | C16: 20 | D16: 16 | E16: 0 | F16: 11 | G16: 19 | H16: 16 | I16: 15 | J16: 12 | K16: 97 | L16: 90 | M16: 5 | N16: 5 | O16: 15 | P16: 10 | Q16: 16 | R16: 12 | S16: 0 | T16: 11 | U16: 0 | V16: 11 | W16: 0 | X16: 11 | Y16: 76 | Z16: 42 | AA16: 146 | AB16: 68 | AC16: 132 | AD16: 71 | AE16: 45 | AF16: 31 | AG16: 25 | AH16: 37 | AI16: 44 | AJ16: 28 | AK16: 116 | AL16: 94 | AM16: 241 | AN16: 131
B17: 45 to 59 minutes | C17: 22 | D17: 15 | E17: 64 | F17: 69 | G17: 49 | H17: 21 | I17: 23 | J17: 15 | K17: 132 | L17: 103 | M17: 1 | N17: 3 | O17: 93 | P17: 39 | Q17: 42 | R17: 23 | S17: 2 | T17: 3 | U17: 0 | V17: 11 | W17: 13 | X17: 19 | Y17: 58 | Z17: 44 | AA17: 68 | AB17: 43 | AC17: 280 | AD17: 173 | AE17: 63 | AF17: 32 | AG17: 159 | AH17: 106 | AI17: 75 | AJ17: 69 | AK17: 398 | AL17: 174 | AM17: 126 | AN17: 92
B18: 60 to 89 minutes | C18: 13 | D18: 12 | E18: 68 | F18: 67 | G18: 45 | H18: 21 | I18: 13 | J18: 10 | K18: 49 | L18: 40 | M18: 9 | N18: 9 | O18: 85 | P18: 38 | Q18: 19 | R18: 13 | S18: 0 | T18: 11 | U18: 6 | V18: 9 | W18: 9 | X18: 14 | Y18: 63 | Z18: 39 | AA18: 106 | AB18: 59 | AC18: 216 | AD18: 85 | AE18: 64 | AF18: 29 | AG18: 34 | AH18: 47 | AI18: 73 | AJ18: 39 | AK18: 402 | AL18: 187 | AM18: 291 | AN18: 177
B19: 90 or more minutes | C19: 2 | D19: 4 | E19: 12 | F19: 17 | G19: 40 | H19: 23 | I19: 1 | J19: 2 | K19: 131 | L19: 89 | M19: 19 | N19: 16 | O19: 9 | P19: 9 | Q19: 22 | R19: 21 | S19: 4 | T19: 5 | U19: 0 | V19: 11 | W19: 0 | X19: 11 | Y19: 55 | Z19: 37 | AA19: 99 | AB19: 79 | AC19: 92 | AD19: 74 | AE19: 20 | AF19: 13 | AG19: 30 | AH19: 30 | AI19: 47 | AJ19: 42 | AK19: 136 | AL19: 74 | AM19: 100 | AN19: 81
C39: 479 | D39: 109 | E39: 1383 | F39: 187 | G39: 316 | H39: 81 | I39: 203 | J39: 78 | K39: 4975 | L39: 456 | M39: 229 | N39: 75 | O39: 572 | P39: 103 | Q39: 445 | R39: 82 | S39: 13 | T39: 11 | U39: 31 | V39: 20 | W39: 283 | X39: 85 | Y39: 1144 | Z39: 142 | AA39: 1801 | AB39: 227 | AC39: 1775 | AD39: 226 | AE39: 655 | AF39: 96 | AG39: 1347 | AH39: 153 | AI39: 961 | AJ39: 152 | AK39: 2323 | AL39: 283 | AM39: 2760 | AN39: 296
C40: 25 | D40: 28 | E40: 101 | F40: 73 | G40: 6 | H40: 8 | I40: 10 | J40: 12 | K40: 413 | L40: 207 | M40: 29 | N40: 29 | O40: 6 | P40: 9 | Q40: 47 | R40: 37 | S40: 0 | T40: 114 | U40: 13 | V40: 12 | W40: 35 | X40: 20 | Y40: 78 | Z40: 42 | AA40: 80 | AB40: 77 | AC40: 110 | AD40: 81 | AE40: 19 | AF40: 12 | AG40: 117 | AH40: 60 | AI40: 100 | AJ40: 58 | AK40: 86 | AL40: 59 | AM40: 167 | AN40: 101
C41: 77 | D41: 36 | E41: 225 | F41: 107 | G41: 30 | H41: 24 | I41: 5 | J41: 11 | K41: 1118 | L41: 252 | M41: 9 | N41: 9 | O41: 67 | P41: 39 | Q41: 45 | R41: 25 | S41: 0 | T41: 114 | U41: 0 | V41: 114 | W41: 64 | X41: 34 | Y41: 10 | Z41: 17 | AA41: 308 | AB41: 103 | AC41: 193 | AD41: 92 | AE41: 51 | AF41: 26 | AG41: 201 | AH41: 103 | AI41: 44 | AJ41: 45 | AK41: 330 | AL41: 137 | AM41: 601 | AN41: 208
C42: 53 | D42: 39 | E42: 353 | F42: 132 | G42: 21 | H42: 18 | I42: 1 | J42: 5 | K42: 1009 | L42: 246 | M42: 4 | N42: 7 | O42: 54 | P42: 27 | Q42: 59 | R42: 35 | S42: 7 | T42: 9 | U42: 0 | V42: 114 | W42: 27 | X42: 19 | Y42: 177 | Z42: 101 | AA42: 194 | AB42: 89 | AC42: 201 | AD42: 88 | AE42: 68 | AF42: 32 | AG42: 141 | AH42: 81 | AI42: 153 | AJ42: 88 | AK42: 157 | AL42: 112 | AM42: 652 | AN42: 220
C43: 79 | D43: 34 | E43: 243 | F43: 90 | G43: 34 | H43: 22 | I43: 13 | J43: 15 | K43: 914 | L43: 250 | M43: 46 | N43: 21 | O43: 55 | P43: 29 | Q43: 52 | R43: 26 | S43: 2 | T43: 4 | U43: 0 | V43: 114 | W43: 68 | X43: 38 | Y43: 261 | Z43: 102 | AA43: 226 | AB43: 101 | AC43: 314 | AD43: 125 | AE43: 101 | AF43: 41 | AG43: 170 | AH43: 90 | AI43: 194 | AJ43: 75 | AK43: 129 | AL43: 89 | AM43: 344 | AN43: 161
C44: 107 | D44: 43 | E44: 270 | F44: 158 | G44: 50 | H44: 23 | I44: 37 | J44: 28 | K44: 682 | L44: 217 | M44: 64 | N44: 37 | O44: 133 | P44: 77 | Q44: 57 | R44: 29 | S44: 0 | T44: 114 | U44: 7 | V44: 8 | W44: 28 | X44: 18 | Y44: 226 | Z44: 83 | AA44: 381 | AB44: 142 | AC44: 142 | AD44: 63 | AE44: 105 | AF44: 32 | AG44: 156 | AH44: 64 | AI44: 143 | AJ44: 62 | AK44: 297 | AL44: 151 | AM44: 201 | AN44: 104
C45: 43 | D45: 35 | E45: 62 | F45: 49 | G45: 19 | H45: 20 | I45: 7 | J45: 13 | K45: 90 | L45: 74 | M45: 16 | N45: 15 | O45: 15 | P45: 20 | Q45: 22 | R45: 15 | S45: 0 | T45: 114 | U45: 0 | V45: 114 | W45: 0 | X45: 114 | Y45: 70 | Z45: 46 | AA45: 28 | AB45: 25 | AC45: 145 | AD45: 86 | AE45: 32 | AF45: 17 | AG45: 95 | AH45: 50 | AI45: 23 | AJ45: 18 | AK45: 158 | AL45: 104 | AM45: 64 | AN45: 65
C46: 40 | D46: 48 | E46: 77 | F46: 61 | G46: 34 | H46: 23 | I46: 24 | J46: 18 | K46: 269 | L46: 144 | M46: 24 | N46: 18 | O46: 115 | P46: 58 | Q46: 45 | R46: 18 | S46: 0 | T46: 114 | U46: 2 | V46: 3 | W46: 21 | X46: 23 | Y46: 156 | Z46: 81 | AA46: 173 | AB46: 97 | AC46: 202 | AD46: 127 | AE46: 47 | AF46: 27 | AG46: 267 | AH46: 97 | AI46: 88 | AJ46: 60 | AK46: 438 | AL46: 156 | AM46: 26 | AN46: 32
C47: 3 | D47: 5 | E47: 0 | F47: 114 | G47: 26 | H47: 24 | I47: 10 | J47: 10 | K47: 80 | L47: 72 | M47: 7 | N47: 11 | O47: 7 | P47: 7 | Q47: 18 | R47: 14 | S47: 0 | T47: 114 | U47: 0 | V47: 114 | W47: 5 | X47: 9 | Y47: 0 | Z47: 114 | AA47: 8 | AB47: 13 | AC47: 55 | AD47: 45 | AE47: 40 | AF47: 29 | AG47: 40 | AH47: 32 | AI47: 20 | AJ47: 24 | AK47: 118 | AL47: 96 | AM47: 40 | AN47: 49
C48: 9 | D48: 15 | E48: 0 | F48: 114 | G48: 19 | H48: 17 | I48: 46 | J48: 33 | K48: 35 | L48: 40 | M48: 8 | N48: 9 | O48: 31 | P48: 20 | Q48: 19 | R48: 16 | S48: 0 | T48: 114 | U48: 0 | V48: 114 | W48: 17 | X48: 16 | Y48: 46 | Z48: 42 | AA48: 52 | AB48: 46 | AC48: 10 | AD48: 17 | AE48: 36 | AF48: 23 | AG48: 22 | AH48: 18 | AI48: 30 | AJ48: 30 | AK48: 59 | AL48: 58 | AM48: 90 | AN48: 82
C49: 11 | D49: 12 | E49: 11 | F49: 17 | G49: 22 | H49: 21 | I49: 4 | J49: 6 | K49: 69 | L49: 58 | M49: 15 | N49: 16 | O49: 39 | P49: 23 | Q49: 24 | R49: 20 | S49: 0 | T49: 114 | U49: 0 | V49: 114 | W49: 0 | X49: 114 | Y49: 67 | Z49: 46 | AA49: 106 | AB49: 78 | AC49: 152 | AD49: 101 | AE49: 87 | AF49: 30 | AG49: 85 | AH49: 40 | AI49: 37 | AJ49: 33 | AK49: 135 | AL49: 79 | AM49: 355 | AN49: 190
C50: 29 | D50: 21 | E50: 12 | F50: 19 | G50: 32 | H50: 36 | I50: 35 | J50: 33 | K50: 87 | L50: 57 | M50: 4 | N50: 4 | O50: 41 | P50: 22 | Q50: 53 | R50: 27 | S50: 4 | T50: 6 | U50: 0 | V50: 114 | W50: 7 | X50: 11 | Y50: 29 | Z50: 35 | AA50: 86 | AB50: 92 | AC50: 103 | AD50: 57 | AE50: 57 | AF50: 25 | AG50: 20 | AH50: 18 | AI50: 109 | AJ50: 65 | AK50: 197 | AL50: 127 | AM50: 148 | AN50: 78
C51: 3 | D51: 5 | E51: 29 | F51: 33 | G51: 23 | H51: 15 | I51: 11 | J51: 14 | K51: 209 | L51: 131 | M51: 3 | N51: 6 | O51: 9 | P51: 10 | Q51: 4 | R51: 6 | S51: 0 | T51: 114 | U51: 9 | V51: 15 | W51: 11 | X51: 13 | Y51: 24 | Z51: 23 | AA51: 159 | AB51: 91 | AC51: 148 | AD51: 84 | AE51: 12 | AF51: 11 | AG51: 33 | AH51: 26 | AI51: 20 | AJ51: 18 | AK51: 219 | AL51: 117 | AM51: 72 | AN51: 55

Sheet PopulationCharacteristics (hidden)
B2: =CntyDataLink!$A35 -> Wolfeboro
G3: Land Area: | H3: =((CntyDataLink!$F35*10.764)/43560)/640 -> 48.30770874 | K3: Water Area: | L3: 0.5212152247 | M3: =((CntyDataLink!$G35*10.764)/43560)/640 -> 10.18082065
B4: POPULATION CHARACTERISTICS
B19: Population | C19: ="Source: US Census; Office of Planning and Development, NH BEA; "& L20&", "&P20&", and "&S20&" American Community Survey Table B01001" -> Source: US Census; Office of Planning and Development, NH BEA; 2008-2012, 2013-2017, and 2018-2022 American Community Survey Table B01001 | N19: Population by Age | P19: ="Source: "& L20&", "&P20&", and "&S20&" American Community Survey Tables B01001 and B01002" -> Source: 2008-2012, 2013-2017, and 2018-2022 American Community Survey Tables B01001 and B01002
L20: 2008-2012 | P20: 2013-2017 | S20: 2018-2022
C21: 1990 | D21: 2000 | E21: 2010 | F21: 2020 | G21: 2018-2022 | H21: 2025 | I21: 2030 | L21: Estimate | N21: Margin of Error | O21: Percent Change | P21: Estimate | Q21: Margin of Error | R21: Percent Change | S21: Estimate | T21: Margin of Error | V21: Percent Change | W21: Statistically Significant Change
C22: =CntyDataLink!$F$20 -> 4807 | D22: =CntyDataLink!$G$20 -> 6083 | E22: =CntyDataLink!$H$20 -> 6269 | F22: =CntyDataLink!$I$20 -> 6416 | G22: =CntyDataLink!$B$132 -> 6484 | H22: =CntyDataLink!$J$20 -> 6696 | I22: =CntyDataLink!$K$20 -> 6917 | K22: Under 15 yrs. | L22: =CntyDataLinkPrior10YearEstimate!$D$132 -> 1105 | N22: =CntyDataLinkPrior10YearEstimate!$E$132 -> 230.9588708 | O22: =L22/SUM($L$22:$L$29) -> 0.1757874642 | P22: =CntyDataLinkPrior5YearEstimates!$D$132 -> 585 | Q22: =CntyDataLinkPrior5YearEstimates!$E$132 -> 197.0862755 | R22: =P22/SUM($P$22:$P$29) -> 0.09382518043 | S22: =CntyDataLink!$D$132 -> 514 | T22: =CntyDataLink!$E$132 -> 144.9103171 | U22: =S22/SUM($S$22:$S$29) -> 0.07927205429 | V22: =(S22-P22)/P22 -> -0.1213675214 | W22: =StatisticallySignificantCalcs!$A3 -> Y
K23: 15 to 24 yrs. | L23: =CntyDataLinkPrior10YearEstimate!$F$132 -> 576 | N23: =CntyDataLinkPrior10YearEstimate!$G$132 -> 175.9204366 | O23: =L23/SUM($L$22:$L$29) -> 0.09163219854 | P23: =CntyDataLinkPrior5YearEstimates!$F$132 -> 538 | Q23: =CntyDataLinkPrior5YearEstimates!$G$132 -> 201.5762883 | R23: 0.08628708901 | S23: =CntyDataLink!$F$132 -> 727 | T23: =CntyDataLink!$G$132 -> 256.6437219 | U23: 0.1121221468 | V23: 0.3513011152 | W23: =StatisticallySignificantCalcs!$A4 -> Y
B24: Percent Change | K24: 25 to 34 yrs. | L24: =CntyDataLinkPrior10YearEstimate!$H$132 -> 433 | N24: =CntyDataLinkPrior10YearEstimate!$I$132 -> 142.9510406 | O24: =L24/SUM($L$22:$L$29) -> 0.06888323258 | P24: =CntyDataLinkPrior5YearEstimates!$H$132 -> 451 | Q24: =CntyDataLinkPrior5YearEstimates!$I$132 -> 184.4071582 | R24: 0.07233360064 | S24: =CntyDataLink!$H$132 -> 259 | T24: =CntyDataLink!$I$132 -> 147.3702819 | U24: 0.03994447872 | V24: -0.4257206208 | W24: =StatisticallySignificantCalcs!$A5 -> Y
D25: =C21&"-2020" -> 1990-2020 | E25: =D21&"-2020" -> 2000-2020 | F25: =E21&"-2020" -> 2010-2020 | G25: =F21&"-2030" -> 2020-2030 | H25: =G21&"-"&H21 -> 2018-2022-2025 | I25: =H21&"-"&I21 -> 2025-2030 | K25: 35 to 44 yrs. | L25: =CntyDataLinkPrior10YearEstimate!$J$132 -> 449 | N25: =CntyDataLinkPrior10YearEstimate!$K$132 -> 151.2249979 | O25: 0.07142857143 | P25: =CntyDataLinkPrior5YearEstimates!$J$132 -> 619 | Q25: =CntyDataLinkPrior5YearEstimates!$K$132 -> 167.0808188 | R25: 0.09927826784 | S25: =CntyDataLink!$J$132 -> 717 | T25: =CntyDataLink!$K$132 -> 247.3277178 | U25: 0.110579889 | V25: 0.1583198708 | W25: =StatisticallySignificantCalcs!$A6 -> Y
D26: =(D22-C22)/C22 -> 0.2654462243 | E26: 0.03057701792 | F26: 0.0234487159 | G26: 0.01059850374 | H26: 0.03269586675 | I26: 0.03300477897 | K26: 45 to 54 yrs. | L26: =CntyDataLinkPrior10YearEstimate!$L$132 -> 802 | N26: =CntyDataLinkPrior10YearEstimate!$M$132 -> 182.4801359 | O26: 0.1275851098 | P26: =CntyDataLinkPrior5YearEstimates!$L$132 -> 765 | Q26: =CntyDataLinkPrior5YearEstimates!$M$132 -> 214.8255106 | R26: 0.1226944667 | S26: =CntyDataLink!$L$132 -> 681 | T26: =CntyDataLink!$M$132 -> 223.9531201 | U26: 0.1050277606 | V26: -0.1098039216 | W26: =StatisticallySignificantCalcs!$A7 -> Y
K27: 55 to 64 yrs. | L27: =CntyDataLinkPrior10YearEstimate!$N$132 -> 1152 | N27: =CntyDataLinkPrior10YearEstimate!$O$132 -> 279.300913 | O27: 0.1832643971 | P27: =CntyDataLinkPrior5YearEstimates!$N$132 -> 973 | Q27: =CntyDataLinkPrior5YearEstimates!$O$132 -> 232.3790008 | R27: 0.1560545309 | S27: =CntyDataLink!$N$132 -> 1365 | T27: =CntyDataLink!$O$132 -> 361.1633979 | U27: 0.2105181986 | V27: 0.4028776978 | W27: =StatisticallySignificantCalcs!$A8 -> Y
K28: 65 to 74 yrs. | L28: =CntyDataLinkPrior10YearEstimate!$P$132 -> 949 | N28: =CntyDataLinkPrior10YearEstimate!$Q$132 -> 230.7834483 | O28: 0.1509704104 | P28: =CntyDataLinkPrior5YearEstimates!$P$132 -> 1232 | Q28: =CntyDataLinkPrior5YearEstimates!$Q$132 -> 233.4866163 | R28: 0.1975942261 | S28: =CntyDataLink!$P$132 -> 999 | T28: =CntyDataLink!$Q$132 -> 238.010504 | U28: 0.1540715608 | V28: -0.1891233766 | W28: =StatisticallySignificantCalcs!$A9 -> Y
K29: Over 74 yrs. | L29: =CntyDataLinkPrior10YearEstimate!$R$132 -> 820 | N29: =CntyDataLinkPrior10YearEstimate!$S$132 -> 183.1829686 | O29: 0.130448616 | P29: =CntyDataLinkPrior5YearEstimates!$R$132 -> 1072 | Q29: =CntyDataLinkPrior5YearEstimates!$S$132 -> 293.6988253 | R29: 0.1719326383 | S29: =CntyDataLink!$R$132 -> 1222 | T29: =CntyDataLink!$S$132 -> 279.8606796 | U29: 0.1884639112 | V29: 0.1399253731 | W29: =StatisticallySignificantCalcs!$A10 -> Y
K30: Median Age (years) | L30: =CntyDataLinkPrior10YearEstimate!$AX$132 -> 52.9 | N30: =CntyDataLinkPrior10YearEstimate!$AY$132 -> 2.7 | P30: =CntyDataLinkPrior5YearEstimates!$AX132 -> 57.2 | Q30: =CntyDataLinkPrior5YearEstimates!$AY$132 -> 4.2 | S30: =CntyDataLink!$AX$132 -> 56.6 | T30: =CntyDataLink!$AY$132 -> 1.6
B32: Population By Race | M32: Statistically Significant Change
M33: =IF(L36="","-",StatisticallySignificantCalcs!A20) -> N
C34: =$L$20 -> 2008-2012 | F34: =$P$20 -> 2013-2017 | I34: =$S$20 -> 2018-2022 | L34: Percent Change
C35: Estimate | D35: Margin of Error | F35: Estimate | G35: Margin of Error | I35: Estimate | J35: Margin of Error | L35: 2012-2022 | M35: 2017-2022
B36: White | C36: =CntyDataLinkPrior10YearEstimate!$AL$132 -> 5991 | D36: =CntyDataLinkPrior10YearEstimate!$AM$132 -> 156 | E36: =IF(C$36="-","-",VALUE(C36/$C$41)) -> 0.953070315 | F36: =CntyDataLinkPrior5YearEstimates!$AL$132 -> 6048 | G36: =CntyDataLinkPrior5YearEstimates!$AM$132 -> 164 | H36: =IF(F$36="-","-",VALUE(F36/$F$41)) -> 0.9700080192 | I36: =CntyDataLink!$AL$132 -> 6166 | J36: =CntyDataLink!$AM$132 -> 119 | K36: =IF(I$36="-","-",VALUE(I36/$I$41)) -> 0.9509561999 | L36: =StatisticallySignificantCalcs!A20 -> N | M36: =StatisticallySignificantCalcs!J20 -> N
B37: Black | C37: =CntyDataLinkPrior10YearEstimate!$AN132 -> 1 | D37: =CntyDataLinkPrior10YearEstimate!$AO$132 -> 2 | E37: =IF(C$37="-","-",VALUE(C37/$C$41)) -> 0.000159083678 | F37: =CntyDataLinkPrior5YearEstimates!$AN132 -> 0 | G37: =CntyDataLinkPrior5YearEstimates!$AO$132 -> 85 | H37: =IF(F$37="-","-",VALUE(F37/$F$41)) -> 0 | I37: =CntyDataLink!$AN$132 -> 0 | J37: =CntyDataLink!$AO$132 -> 17 | K37: =IF(I$37="-","-",VALUE(I37/$I$41)) -> 0 | L37: =StatisticallySignificantCalcs!A21 -> N | M37: =StatisticallySignificantCalcs!J21 -> N
B38: American Indian | C38: =CntyDataLinkPrior10YearEstimate!$AP$132 -> 0 | D38: =CntyDataLinkPrior10YearEstimate!$AQ$132 -> 16 | E38: =IF(C$38="-","-",VALUE(C38/$C$41)) -> 0 | F38: =CntyDataLinkPrior5YearEstimates!$AP$132 -> 0 | G38: =CntyDataLinkPrior5YearEstimates!$AQ$132 -> 85 | H38: =IF(F$38="-","-",VALUE(F38/$F$41)) -> 0 | I38: =CntyDataLink!$AP$132 -> 27 | J38: =CntyDataLink!$AQ$132 -> 38 | K38: =IF(I$38="-","-",VALUE(I38/$I$41)) -> 0.004164096237 | L38: =StatisticallySignificantCalcs!A22 -> N | M38: =StatisticallySignificantCalcs!J22 -> N
B39: Asian &Pacific Is. | C39: =CntyDataLinkPrior10YearEstimate!$AR$132 -> 92 | D39: =CntyDataLinkPrior10YearEstimate!$AS$132 -> 99.2975327 | E39: =IF(C$39="-","-",VALUE(C39/$C$41)) -> 0.01463569838 | F39: =CntyDataLinkPrior5YearEstimates!$AR$132 -> 107 | G39: =CntyDataLinkPrior5YearEstimates!$AS$132 -> 138.2244551 | H39: =IF(F$39="-","-",VALUE(F39/$F$41)) -> 0.01716118685 | I39: =CntyDataLink!$AR$132 -> 16 | J39: =CntyDataLink!$AS$132 -> 31.06444913 | K39: =IF(I$39="-","-",VALUE(I39/$I$41)) -> 0.002467612585 | L39: =StatisticallySignificantCalcs!A23 -> N | M39: =StatisticallySignificantCalcs!J23 -> N
B40: Other* | C40: =CntyDataLinkPrior10YearEstimate!$AT$132 -> 123 | D40: =CntyDataLinkPrior10YearEstimate!$AU$132 -> 122.0532671 | E40: =IF(C$40="-","-",VALUE(C40/$C$41)) -> 0.0195672924 | F40: =CntyDataLinkPrior5YearEstimates!$AT$132 -> 63 | G40: =CntyDataLinkPrior5YearEstimates!$AU$132 -> 112.6987134 | H40: =IF(F$40="-","-",VALUE(F40/$F$41)) -> 0.0101042502 | I40: =CntyDataLink!$AT$132 -> 33 | J40: =CntyDataLink!$AU$132 -> 54.70831747 | K40: =IF(I$40="-","-",VALUE(I40/$I$41)) -> 0.005089450956 | L40: =StatisticallySignificantCalcs!A24 -> N | M40: =StatisticallySignificantCalcs!J24 -> N
B41: Total Population | C41: =CntyDataLinkPrior10YearEstimate!$B$132 -> 6286 | D41: =CntyDataLinkPrior10YearEstimate!$C$132 -> 17 | F41: =CntyDataLinkPrior5YearEstimates!$B$132 -> 6235 | G41: =CntyDataLinkPrior5YearEstimates!$C$132 -> 19 | I41: =CntyDataLink!$B$132 -> 6484 | J41: =CntyDataLink!$C$132 -> 18
B42: Hispanic | C42: =CntyDataLinkPrior10YearEstimate!$AV132 -> 79 | D42: =CntyDataLinkPrior10YearEstimate!$AW$132 -> 78 | E42: =IF(C$42="-","-",VALUE(C42/$C$41)) -> 0.01256761056 | F42: =CntyDataLinkPrior5YearEstimates!$AV132 -> 84 | G42: =CntyDataLinkPrior5YearEstimates!$AW$132 -> 102 | H42: =IF(F$42="-","-",VALUE(F42/$F$41)) -> 0.0134723336 | I42: =CntyDataLink!$AV$132 -> 242 | J42: =CntyDataLink!$AW$132 -> 98 | K42: =IF(I$42="-","-",VALUE(I42/$I$41)) -> 0.03732264035 | L42: =StatisticallySignificantCalcs!$A$26 -> N | M42: =StatisticallySignificantCalcs!$J$26 -> Y
B44: * | C44: Other includes population of 2 or more races
B46: ="Source: "& L20&", "&P20&", and "&S20&" American Community Survey Table B03002" -> Source: 2008-2012, 2013-2017, and 2018-2022 American Community Survey Table B03002
N47: Percent Change
C48: Households and Families
D49: =$L$20 -> 2008-2012 | G49: =$P$20 -> 2013-2017 | J49: =$S$20 -> 2018-2022 | N49: =$L$35 -> 2012-2022 | P49: =$M$35 -> 2017-2022
D50: Estimate | E50: Margin of Error | G50: Estimate | H50: Margin of Error | J50: Estimate | K50: Margin of Error
C51: Total Households | D51: =CntyDataLinkPrior10YearEstimate!$T$132 -> 2590 | E51: =CntyDataLinkPrior10YearEstimate!$U$132 -> 178 | G51: =CntyDataLinkPrior5YearEstimates!$T$132 -> 2935 | H51: =CntyDataLinkPrior5YearEstimates!$U$132 -> 210 | J51: =CntyDataLink!$T$132 -> 2787 | K51: =CntyDataLink!$U$132 -> 260 | N51: =(J51-D51)/D51 -> 0.07606177606 | P51: =(J51-G51)/G51 -> -0.05042589438
C52: Persons per Household | D52: =CntyDataLinkPrior10YearEstimate!$BD$132 -> 2.39 | E52: =CntyDataLinkPrior10YearEstimate!$BE$132 -> 0.16 | G52: =CntyDataLinkPrior5YearEstimates!$BD$132 -> 2.088586031 | H52: =CntyDataLinkPrior5YearEstimates!$BE$132 -> 0.2120629755 | J52: =CntyDataLink!$BD$132 -> 2.271977036 | K52: =CntyDataLink!$BE$132 -> 0.2120629755 | N52: =(J52-D52)/D52 -> -0.04938199321 | P52: =(J52-G52)/G52 -> 0.08780629712
C53: Family Households | D53: =CntyDataLinkPrior10YearEstimate!$V$132 -> 1778 | E53: =CntyDataLinkPrior10YearEstimate!$U$132 -> 178 | G53: =CntyDataLinkPrior5YearEstimates!$V$132 -> 2010 | H53: =CntyDataLinkPrior5YearEstimates!$U$132 -> 210 | J53: =CntyDataLink!$V$132 -> 1708 | K53: =CntyDataLink!$U$132 -> 260 | N53: -0.03937007874 | P53: -0.1502487562
C54: Persons per Family Household | D54: =CntyDataLinkPrior10YearEstimate!$BF$132 -> 2.46 | E54: =CntyDataLinkPrior10YearEstimate!$BG$132 -> 0.19 | G54: =CntyDataLinkPrior5YearEstimates!$BF$132 -> 2.55721393 | H54: =CntyDataLinkPrior5YearEstimates!$BG$132 -> 0.3935721792 | J54: =CntyDataLink!$BF$132 -> 2.971896956 | K54: =CntyDataLink!$BG$132 -> 0.3935721792 | N54: 0.2080881933 | P54: 0.162162039
C55: Married-Couple Family Hh | D55: =CntyDataLinkPrior10YearEstimate!$X$132 -> 1505 | E55: =CntyDataLinkPrior10YearEstimate!$Y$132 -> 167 | G55: =CntyDataLinkPrior5YearEstimates!$X$132 -> 1754 | H55: =CntyDataLinkPrior5YearEstimates!$Y$132 -> 187 | J55: =CntyDataLink!$X$132 -> 1305 | K55: =CntyDataLink!$Y$132 -> 192 | N55: -0.1328903654 | P55: -0.255986317
C56: Single-Parent Family Hh | D56: =CntyDataLinkPrior10YearEstimate!$Z$132 -> 273 | E56: =CntyDataLinkPrior10YearEstimate!$AA$132 -> 125 | G56: =CntyDataLinkPrior5YearEstimates!$Z$132 -> 256 | H56: =CntyDataLinkPrior5YearEstimates!$AA$132 -> 154 | J56: =CntyDataLink!$Z$132 -> 403 | K56: =CntyDataLink!$AA$132 -> 187 | N56: 0.4761904762 | P56: 0.57421875
C57: Non-Family Households* | D57: =CntyDataLinkPrior10YearEstimate!$AF$132 -> 812 | E57: =CntyDataLinkPrior10YearEstimate!$AG$132 -> 205 | G57: =CntyDataLinkPrior5YearEstimates!$AF$132 -> 925 | H57: =CntyDataLinkPrior5YearEstimates!$AG$132 -> 261 | J57: =CntyDataLink!$AF$132 -> 1079 | K57: =CntyDataLink!$AG$132 -> 302 | N57: 0.328817734 | P57: 0.1664864865
C58: Persons per Non-Family Hh | D58: =CntyDataLinkPrior10YearEstimate!$BH$132 -> 2.05 | E58: =CntyDataLinkPrior10YearEstimate!$BI$132 -> 0.47 | G58: =CntyDataLinkPrior5YearEstimates!$BH$132 -> 1.07027027 | H58: =CntyDataLinkPrior5YearEstimates!$BI$132 -> 0.4424455773 | J58: =CntyDataLink!$BH$132 -> 1.164040778 | K58: =CntyDataLink!$BI$132 -> 0.4424455773 | N58: -0.43217523 | P58: 0.0876138587
B61: As a result of changes in the American Community Survey, direct comparisons between the data should be made with caution.
B63: ="Source: "& L20&", "&P20&", and "&S20&" American Community Survey Table B11001" -> Source: 2008-2012, 2013-2017, and 2018-2022 American Community Survey Table B11001
B64: POPULATION CHARACTERISTICS
B87: As a result of changes in the American Community Survey, direct comparisons between the data should be made with caution.

Sheet SchoolEnrolEduAttain (hidden)
C2: =CntyDataLink!A50 -> Wolfeboro
C3: SOCIAL CHARACTERISTICS
C21: School Enrollment | F21: 2008-2012 | I21: 2013-2017 | L21: 2018-2022 | P21: Statistically Significant Change
F22: Estimate | G22: Margin of Error | H22: Percent of Population | I22: Estimate | J22: Margin of Error | K22: Percent of Population | L22: Estimate | M22: Margin of Error | N22: Percent of Population | P22: 2012-2022 | Q22: 2017-2022
C23: Population 3 years and over | F23: =CntyDataLinkPrior10YearEstimate!$B$140 -> 6121 | G23: =CntyDataLinkPrior10YearEstimate!$C$140 -> 115 | I23: =CntyDataLinkPrior5YearEstimates!$B$140 -> 6094 | J23: =CntyDataLinkPrior5YearEstimates!$C$140 -> 66 | L23: =CntyDataLink!$B$140 -> 6482 | M23: =CntyDataLink!$C$140 -> 19 | P23: =StatisticallySignificantCalcs!$A$45 -> Y | Q23: =StatisticallySignificantCalcs!$J$45 -> Y
C24: Population 3 years & over enrolled in school | F24: =CntyDataLinkPrior10YearEstimate!$D$140 -> 1382 | G24: =CntyDataLinkPrior10YearEstimate!$E$140 -> 228 | H24: =F24/$F$23 -> 0.2257801013 | I24: =CntyDataLinkPrior5YearEstimates!$D$140 -> 839 | J24: =CntyDataLinkPrior5YearEstimates!$E$140 -> 237 | K24: =I24/$I$23 -> 0.137676403 | L24: =CntyDataLink!$D$140 -> 1082 | M24: =CntyDataLink!$E$140 -> 243 | N24: =L24/$L$23 -> 0.166923789 | P24: =StatisticallySignificantCalcs!$A$46 -> N | Q24: =StatisticallySignificantCalcs!$J$46 -> N
C25: Preprimary (Nursery, Preschool, Kindergarten) | F25: =CntyDataLinkPrior10YearEstimate!$F$140 -> 68 | G25: =CntyDataLinkPrior10YearEstimate!$G$140 -> 59.53990259 | H25: 0.01110929587 | I25: =CntyDataLinkPrior5YearEstimates!$F$140 -> 46 | J25: =CntyDataLinkPrior5YearEstimates!$G$140 -> 45.69463864 | K25: =I25/$I$23 -> 0.00754840827 | L25: =CntyDataLink!$F$140 -> 64 | M25: =CntyDataLink!$G$140 -> 50.24937811 | N25: =L25/$L$23 -> 0.009873495835 | P25: =StatisticallySignificantCalcs!$A$47 -> N | Q25: =StatisticallySignificantCalcs!$J$47 -> N
C26: Nursery school and Preschool | F26: =CntyDataLinkPrior10YearEstimate!$H$140 -> 27 | G26: =CntyDataLinkPrior10YearEstimate!$I$140 -> 29 | H26: 0.004411043947 | I26: =CntyDataLinkPrior5YearEstimates!$H$140 -> 37 | J26: =CntyDataLinkPrior5YearEstimates!$I$140 -> 42 | K26: 0.006071545783 | L26: =CntyDataLink!$H$140 -> 24 | M26: =CntyDataLink!$I$140 -> 34 | N26: =L26/$L$23 -> 0.003702560938 | P26: =StatisticallySignificantCalcs!$A$48 -> N | Q26: =StatisticallySignificantCalcs!$J$48 -> N
C27: Kindergarten | F27: =CntyDataLinkPrior10YearEstimate!$J$140 -> 41 | G27: =CntyDataLinkPrior10YearEstimate!$K$140 -> 52 | H27: 0.00669825192 | I27: =CntyDataLinkPrior5YearEstimates!$J$140 -> 9 | J27: =CntyDataLinkPrior5YearEstimates!$K$140 -> 18 | K27: 0.001476862488 | L27: =CntyDataLink!$J$140 -> 40 | M27: =CntyDataLink!$K$140 -> 37 | N27: 0.006170934897 | P27: =StatisticallySignificantCalcs!$A$49 -> N | Q27: =StatisticallySignificantCalcs!$J$49 -> N
C28: Elementary through High school | F28: =CntyDataLinkPrior10YearEstimate!$P$140 -> 1110 | G28: =CntyDataLinkPrior10YearEstimate!$Q$140 -> 232.370394 | H28: 0.1813429178 | I28: =CntyDataLinkPrior5YearEstimates!$P$140 -> 588 | J28: =CntyDataLinkPrior5YearEstimates!$Q$140 -> 197.4335331 | K28: 0.0964883492 | L28: =CntyDataLink!$P$140 -> 861 | M28: =CntyDataLink!$Q$140 -> 258.5072533 | N28: 0.1328293737 | P28: =StatisticallySignificantCalcs!$A$50 -> N | Q28: =StatisticallySignificantCalcs!$J$50 -> N
C29: Elementary school (grades 1-8) | F29: =CntyDataLinkPrior10YearEstimate!$L$140 -> 814 | G29: =CntyDataLinkPrior10YearEstimate!$M$140 -> 189.8420396 | H29: 0.1329848064 | I29: =CntyDataLinkPrior5YearEstimates!$L$140 -> 375 | J29: =CntyDataLinkPrior5YearEstimates!$M$140 -> 175.7270611 | K29: =I29/$I$23 -> 0.06153593699 | L29: =CntyDataLink!$L$140 -> 380 | M29: =CntyDataLink!$M$140 -> 116.0387866 | N29: 0.05862388152 | P29: =StatisticallySignificantCalcs!$A$51 -> Y | Q29: =StatisticallySignificantCalcs!$J$51 -> N
C30: High school (grades 9-12) | F30: =CntyDataLinkPrior10YearEstimate!$N$140 -> 296 | G30: =CntyDataLinkPrior10YearEstimate!$O$140 -> 134 | H30: 0.04835811142 | I30: =CntyDataLinkPrior5YearEstimates!$N$140 -> 213 | J30: =CntyDataLinkPrior5YearEstimates!$O$140 -> 90 | K30: 0.03495241221 | L30: =CntyDataLink!$N$140 -> 481 | M30: =CntyDataLink!$O$140 -> 231 | N30: 0.07420549213 | P30: =StatisticallySignificantCalcs!$A$52 -> N | Q30: =StatisticallySignificantCalcs!$J$52 -> Y
C31: College or Graduate School | F31: =CntyDataLinkPrior10YearEstimate!$R$140 -> 204 | G31: =CntyDataLinkPrior10YearEstimate!$S$140 -> 99.12618221 | H31: 0.0333278876 | I31: =CntyDataLinkPrior5YearEstimates!$R$140 -> 205 | J31: =CntyDataLinkPrior5YearEstimates!$S$140 -> 136.7515996 | K31: 0.03363964555 | L31: =CntyDataLink!$R$140 -> 157 | M31: =CntyDataLink!$S$140 -> 105.7733426 | N31: 0.02422091947 | P31: =StatisticallySignificantCalcs!$A$53 -> N | Q31: =StatisticallySignificantCalcs!$J$53 -> N
C33: ="Source: "&F21&", "& I21&" and "&L21&" American Community Survey Table B14001" -> Source: 2008-2012, 2013-2017 and 2018-2022 American Community Survey Table B14001
C50: Educational Attainment | F50: =F21 -> 2008-2012 | I50: =I21 -> 2013-2017 | L50: =L21 -> 2018-2022 | P50: Statistically Significant Change
F51: Estimate | G51: Margin of Error | H51: Percent of Population | I51: Estimate | J51: Margin of Error | K51: Percent of Population | L51: Estimate | M51: Margin of Error | N51: Percent of Population | P51: =P22 -> 2012-2022 | Q51: =Q22 -> 2017-2022
C52: Population 25 years and over | F52: =CntyDataLinkPrior10YearEstimate!$V$140 -> 4605 | G52: =CntyDataLinkPrior10YearEstimate!$W$140 -> 243 | I52: =CntyDataLinkPrior5YearEstimates!$V$140 -> 5112 | J52: =CntyDataLinkPrior5YearEstimates!$W$140 -> 242 | L52: =CntyDataLink!$V$140 -> 5243 | M52: =CntyDataLink!$W$140 -> 306 | P52: =StatisticallySignificantCalcs!A54 -> N | Q52: =StatisticallySignificantCalcs!$J$54 -> N
C53: Less than 9th Grade | F53: =CntyDataLinkPrior10YearEstimate!$X$140 -> 37 | G53: =CntyDataLinkPrior10YearEstimate!$Y$140 -> 51.16639522 | H53: =F53/$F$52 -> 0.008034744843 | I53: =CntyDataLinkPrior5YearEstimates!$X$140 -> 89 | J53: =CntyDataLinkPrior5YearEstimates!$Y$140 -> 91.28526716 | K53: =I53/$I$52 -> 0.01741001565 | L53: =CntyDataLink!$X$140 -> 0 | M53: =CntyDataLink!$Y$140 -> 41.64132563 | N53: =L53/$L$52 -> 0 | P53: =StatisticallySignificantCalcs!A55 -> Y | Q53: =StatisticallySignificantCalcs!$J$55 -> N
C54: 9th to 12th Grade, no Diploma | F54: =CntyDataLinkPrior10YearEstimate!$Z$140 -> 99 | G54: =CntyDataLinkPrior10YearEstimate!$AA$140 -> 82.15229759 | H54: =F54/$F$52 -> 0.02149837134 | I54: =CntyDataLinkPrior5YearEstimates!$Z$140 -> 269 | J54: =CntyDataLinkPrior5YearEstimates!$AA$140 -> 142.4675402 | K54: 0.05262128326 | L54: =CntyDataLink!$Z$140 -> 220 | M54: =CntyDataLink!$AA$140 -> 178.9133869 | N54: 0.04196070952 | P54: =StatisticallySignificantCalcs!A56 -> N | Q54: =StatisticallySignificantCalcs!$J$56 -> N
C55: High School Graduate | F55: =CntyDataLinkPrior10YearEstimate!$AB$140 -> 1051 | G55: =CntyDataLinkPrior10YearEstimate!$AC$140 -> 210.1071155 | H55: 0.2282301846 | I55: =CntyDataLinkPrior5YearEstimates!$AB$140 -> 1384 | J55: =CntyDataLinkPrior5YearEstimates!$AC$140 -> 261.3446001 | K55: 0.2707355243 | L55: =CntyDataLink!$AB$140 -> 1244 | M55: =CntyDataLink!$AC$140 -> 324.9692293 | N55: 0.2372687393 | P55: =StatisticallySignificantCalcs!A57 -> N | Q55: =StatisticallySignificantCalcs!$J$57 -> N
C56: Some College, No Degree | F56: =CntyDataLinkPrior10YearEstimate!$AD$140 -> 1032 | G56: =CntyDataLinkPrior10YearEstimate!$AE$140 -> 249.9019808 | H56: 0.2241042345 | I56: =CntyDataLinkPrior5YearEstimates!$AD$140 -> 801 | J56: =CntyDataLinkPrior5YearEstimates!$AE$140 -> 289.2576706 | K56: 0.1566901408 | L56: =CntyDataLink!$AD$140 -> 937 | M56: =CntyDataLink!$AE$140 -> 267.443452 | N56: 0.1787144764 | P56: =StatisticallySignificantCalcs!A58 -> N | Q56: =StatisticallySignificantCalcs!$J$58 -> N
C57: Associate Degree | F57: =CntyDataLinkPrior10YearEstimate!$AF$140 -> 558 | G57: =CntyDataLinkPrior10YearEstimate!$AG$140 -> 144.402216 | H57: 0.1211726384 | I57: =CntyDataLinkPrior5YearEstimates!$AF$140 -> 304 | J57: =CntyDataLinkPrior5YearEstimates!$AG$140 -> 117.6477794 | K57: 0.05946791862 | L57: =CntyDataLink!$AF$140 -> 704 | M57: =CntyDataLink!$AG$140 -> 261.4287666 | N57: 0.1342742705 | P57: =StatisticallySignificantCalcs!A59 -> Y | Q57: =StatisticallySignificantCalcs!$J$59 -> Y
C58: Bachelor's Degree | F58: =CntyDataLinkPrior10YearEstimate!$AH$140 -> 1060 | G58: =CntyDataLinkPrior10YearEstimate!$AI$140 -> 248.9277003 | H58: 0.230184582 | I58: =CntyDataLinkPrior5YearEstimates!$AH$140 -> 1253 | J58: =CntyDataLinkPrior5YearEstimates!$AI$140 -> 293.4706118 | K58: 0.2451095462 | L58: =CntyDataLink!$AH$140 -> 1233 | M58: =CntyDataLink!$AI$140 -> 278.3037908 | N58: 0.2351707038 | P58: =StatisticallySignificantCalcs!A60 -> N | Q58: =StatisticallySignificantCalcs!$J$60 -> N
C59: Graduate or Professional Degree | F59: =CntyDataLinkPrior10YearEstimate!$AJ$140 -> 349 | G59: =CntyDataLinkPrior10YearEstimate!$AK$140 -> 144.7549654 | H59: 0.07578718784 | I59: =CntyDataLinkPrior5YearEstimates!$AJ$140 -> 1012 | J59: =CntyDataLinkPrior5YearEstimates!$AK$140 -> 221.6370908 | K59: 0.1979655712 | L59: =CntyDataLink!$AJ$140 -> 905 | M59: =CntyDataLink!$AK$140 -> 254.9784305 | N59: 0.1726111005 | P59: =StatisticallySignificantCalcs!A61 -> N | Q59: =StatisticallySignificantCalcs!$J$61 -> N
C61: Percent of High School Graduate or Higher | H61: =SUM(F55:F59)/F52 -> 0.8794788274 | K61: =SUM(I55:I59)/I52 -> 0.9299687011 | N61: =SUM(L55:L59)/L52 -> 0.9580392905
C62: Percent of Bachelor's Degree or Higher | H62: =SUM(F58:F59)/F52 -> 0.3059717698 | K62: =SUM(I58:I59)/I52 -> 0.4430751174 | N62: =SUM(L58:L59)/L52 -> 0.4077818043
C64: ="Source: "&F21&", "&I21&" and "&L21&" American Community Survey Table B15002" -> Source: 2008-2012, 2013-2017 and 2018-2022 American Community Survey Table B15002
C66: As a result of changes in the American Community Survey, direct comparisons between the data should be made with caution.
C67: Data from the American Community Survey are estimates

Sheet HousingCharacteristics (hidden)
B2: =CntyDataLink!$A35 -> Wolfeboro
B4: HOUSING CHARACTERISTICS
D27: ="Source: "& " "&D69&", "&G69&" and "&J69& " American Community Survey Table B25004, B25024; B25032" -> Source: 2008-2012, 2013-2017 and 2018-2022 American Community Survey Table B25004, B25024; B25032
B28: Units by Tenure & Vacancy
C30: 2008-2012 | F30: 2013-2017 | I30: 2018-2022 | L30: Percent Change | O30: Statistically Significant Change
C31: Estimate | D31: Margin of Error | E31: % | F31: Estimate | G31: Margin of Error | H31: % | I31: Estimate | J31: Margin of Error | K31: % | L31: 2012-2022 | M31: 2017-2022 | O31: =L31 -> 2012-2022 | P31: =M31 -> 2017-2022
B32: Total Units | C32: =CntyDataLinkPrior10YearEstimate!$B$108 -> 4182 | D32: =CntyDataLinkPrior5YearEstimates!$C$108 -> 248 | F32: =CntyDataLinkPrior5YearEstimates!$B$108 -> 4758 | G32: =CntyDataLinkPrior5YearEstimates!$C$108 -> 248 | I32: =CntyDataLink!$B$108 -> 4285 | J32: =CntyDataLink!$C$108 -> 287 | L32: =IF(I32="-","-",(I32-C32)/C32) -> 0.02462936394 | M32: =IF(I32="-","-",(I32-F32)/F32) -> -0.09941151744 | O32: =StatisticallySignificantCalcs!$A62 -> N | P32: =StatisticallySignificantCalcs!$J62 -> Y
B33: Occupied Units | C33: =CntyDataLinkPrior10YearEstimate!$D$108 -> 2590 | D33: =CntyDataLinkPrior5YearEstimates!$E$108 -> 210 | E33: =ROUND(C33/C32,2)*100&"% of Total" -> 62% of Total | F33: =CntyDataLinkPrior5YearEstimates!$D$108 -> 2935 | G33: =CntyDataLinkPrior5YearEstimates!$E$108 -> 210 | H33: =ROUND(F33/F32,2)*100&"% of Total" -> 62% of Total | I33: =CntyDataLink!$D$108 -> 2787 | J33: =CntyDataLink!$E$108 -> 260 | K33: =ROUND(I33/I32,2)*100&"% of Total" -> 65% of Total | L33: =IF(I33="-","-",(I33-C33)/C33) -> 0.07606177606 | M33: =IF(I33="-","-",(I33-F33)/F33) -> -0.05042589438 | O33: =StatisticallySignificantCalcs!$A63 -> N | P33: =StatisticallySignificantCalcs!$J63 -> Y
B34: Owner Occupied | C34: =CntyDataLinkPrior10YearEstimate!$F$108 -> 2165 | D34: =CntyDataLinkPrior5YearEstimates!$G$108 -> 218 | E34: =ROUND(C34/C33,2)*100&"% of Occ." -> 84% of Occ. | F34: =CntyDataLinkPrior5YearEstimates!$F$108 -> 2302 | G34: =CntyDataLinkPrior5YearEstimates!$G$108 -> 218 | H34: =ROUND(F34/F33,2)*100&"% of Occ." -> 78% of Occ. | I34: =CntyDataLink!$F$108 -> 2165 | J34: =CntyDataLink!$G$108 -> 270 | K34: =ROUND(I34/I33,2)*100&"% of Occ." -> 78% of Occ. | L34: =IF(I34="-","-",(I34-C34)/C34) -> 0 | M34: -0.05951346655 | O34: =StatisticallySignificantCalcs!$A64 -> N | P34: =StatisticallySignificantCalcs!$J64 -> Y
B35: Renter Occupied | C35: =CntyDataLinkPrior10YearEstimate!$H$108 -> 425 | D35: =CntyDataLinkPrior5YearEstimates!$I$108 -> 207 | E35: =ROUND(C35/C33,2)*100&"% of Occ." -> 16% of Occ. | F35: =CntyDataLinkPrior5YearEstimates!$H$108 -> 633 | G35: =CntyDataLinkPrior5YearEstimates!$I$108 -> 207 | H35: =ROUND(F35/F33,2)*100&"% of Occ." -> 22% of Occ. | I35: =CntyDataLink!$H$108 -> 622 | J35: =CntyDataLink!$I$108 -> 231 | K35: =ROUND(I35/I33,2)*100&"% of Occ." -> 22% of Occ. | L35: =IF(I35="-","-",(I35-C35)/C35) -> 0.4635294118 | M35: -0.01737756714 | O35: =StatisticallySignificantCalcs!$A65 -> N | P35: =StatisticallySignificantCalcs!$J65 -> Y
B36: Vacant Units | C36: =CntyDataLinkPrior10YearEstimate!$J$108 -> 1592 | D36: =CntyDataLinkPrior5YearEstimates!$K$108 -> 249 | E36: =ROUND(C36/C$32,2)*100&"% of Total" -> 38% of Total | F36: =CntyDataLinkPrior5YearEstimates!$J$108 -> 1823 | G36: =CntyDataLinkPrior5YearEstimates!$K$108 -> 249 | H36: =ROUND(F36/F32,2)*100&"% of Total" -> 38% of Total | I36: =CntyDataLink!$J$108 -> 1498 | J36: =CntyDataLink!$K$108 -> 272 | K36: =ROUND(I36/I32,2)*100&"% of Total" -> 35% of Total | L36: =IF(I36="-",I36,VALUE((I36-C36)/C36)) -> -0.05904522613 | M36: -0.1782775645 | O36: =StatisticallySignificantCalcs!$A66 -> N | P36: =StatisticallySignificantCalcs!$J66 -> Y
B37: Vacant For Sale | C37: =CntyDataLinkPrior10YearEstimate!$P$108 -> 101 | D37: =CntyDataLinkPrior5YearEstimates!$Q$108 -> 93 | E37: =ROUND(C37/(C$36),3)*100&"% Vac." -> 6.3% Vac. | F37: =CntyDataLinkPrior5YearEstimates!$P$108 -> 96 | G37: =CntyDataLinkPrior5YearEstimates!$Q$108 -> 93 | H37: =ROUND(F37/(F$36),3)*100&"% Vac." -> 5.3% Vac. | I37: =CntyDataLink!$P$108 -> 54 | J37: =CntyDataLink!$Q$108 -> 86 | K37: =ROUND(I37/(I$36),3)*100&"% Vac." -> 3.6% Vac. | L37: =IF(I37="-",I37,VALUE((I37-C37)/C37)) -> -0.4653465347 | M37: -0.4375 | O37: =StatisticallySignificantCalcs!$A67 -> N | P37: =StatisticallySignificantCalcs!$J67 -> N
B38: Vacant For Rent | C38: =CntyDataLinkPrior10YearEstimate!$L$108 -> 87 | D38: =CntyDataLinkPrior5YearEstimates!$M$108 -> 72 | E38: =ROUND(C38/(C$36),3)*100&"% Vac." -> 5.5% Vac. | F38: =CntyDataLinkPrior5YearEstimates!$L$108 -> 53 | G38: =CntyDataLinkPrior5YearEstimates!$M$108 -> 72 | H38: =ROUND(F38/(F$36),3)*100&"% Vac." -> 2.9% Vac. | I38: =CntyDataLink!$L$108 -> 0 | J38: =CntyDataLink!$M$108 -> 17 | K38: =ROUND(I38/(I$36),3)*100&"% Vac." -> 0% Vac. | L38: =IF(I38="-",I38,VALUE((I38-C38)/C38)) -> -1 | M38: -1 | O38: =StatisticallySignificantCalcs!$A68 -> Y | P38: =StatisticallySignificantCalcs!$J68 -> N
B39: Vacant Seasonal | C39: =CntyDataLinkPrior10YearEstimate!$T$108 -> 1225 | D39: =CntyDataLinkPrior5YearEstimates!$U$108 -> 244 | E39: =ROUND(C39/(C$36),3)*100&"% Vac." -> 76.9% Vac. | F39: =CntyDataLinkPrior5YearEstimates!$T$108 -> 1337 | G39: =CntyDataLinkPrior5YearEstimates!$U$108 -> 244 | H39: =ROUND(F39/(F$36),3)*100&"% Vac." -> 73.3% Vac. | I39: =CntyDataLink!$T$108 -> 1375 | J39: =CntyDataLink!$U$108 -> 251 | K39: =ROUND(I39/(I$36),3)*100&"% Vac." -> 91.8% Vac. | L39: =IF(I39="-",I39,VALUE((I39-C39)/C39)) -> 0.1224489796 | M39: 0.02842183994 | O39: =StatisticallySignificantCalcs!$A69 -> N | P39: =StatisticallySignificantCalcs!$J69 -> Y
B41: Data from the American Community Survey are estimates
D65: ="Source: "& " "&D69&", "&G69&" and "&J69& " American Community Survey Table B25024; B25032" -> Source: 2008-2012, 2013-2017 and 2018-2022 American Community Survey Table B25024; B25032
C67: Units by Type
D69: =C30 -> 2008-2012 | G69: =F30 -> 2013-2017 | J69: =I30 -> 2018-2022 | M69: Percent Change | O69: Statistically Significant Change
D70: Estimate | E70: Margin of Error | F70: % of Total | G70: Estimate | H70: Margin of Error | I70: % of Total | J70: Estimate | K70: Margin of Error | L70: % of Total | M70: =L31 -> 2012-2022 | N70: =M31 -> 2017-2022 | O70: =O31 -> 2012-2022 | P70: =P31 -> 2017-2022
C71: Total Units | D71: =CntyDataLinkPrior10YearEstimate!$B$108 -> 4182 | E71: =CntyDataLinkPrior10YearEstimate!$C$108 -> 237 | G71: =CntyDataLinkPrior5YearEstimates!$B$108 -> 4758 | H71: =CntyDataLinkPrior5YearEstimates!$C$108 -> 248 | J71: =CntyDataLink!$B$108 -> 4285 | K71: =CntyDataLink!$C$108 -> 287 | O71: =StatisticallySignificantCalcs!$A70 -> N | P71: =StatisticallySignificantCalcs!$J70 -> Y
C72: Single Family Units | D72: =CntyDataLinkPrior10YearEstimate!$AT$108 -> 3187 | E72: =CntyDataLinkPrior10YearEstimate!$AU$108 -> 267 | F72: =IF(D72="-","-",($D$72/$D$71)) -> 0.7620755619 | G72: =CntyDataLinkPrior5YearEstimates!$AT$108 -> 3636 | H72: =CntyDataLinkPrior5YearEstimates!$AU$108 -> 321 | I72: =IF(G72="-","-",($G$72/$G$71)) -> 0.764186633 | J72: =CntyDataLink!$AT$108 -> 3434 | K72: =CntyDataLink!$AU$108 -> 374 | L72: =IF(J72="-","-",($J$72/$J$71)) -> 0.8014002334 | M72: =IF(J72="-","-",($J72-$D72)/$D72) -> 0.07750235331 | N72: =IF(J72="-","-",($J72-$G72)/$G72) -> -0.05555555556 | O72: =StatisticallySignificantCalcs!$A71 -> N | P72: =StatisticallySignificantCalcs!$J71 -> N
C73: SF Owner Occ. | D73: =CntyDataLinkPrior10YearEstimate!$AF$108 -> 1963 | E73: =CntyDataLinkPrior10YearEstimate!$AG$108 -> 189 | G73: =CntyDataLinkPrior5YearEstimates!$AF$108 -> 2116 | H73: =CntyDataLinkPrior5YearEstimates!$AG$108 -> 219 | J73: =CntyDataLink!$AF$108 -> 1801 | K73: =CntyDataLink!$AG$108 -> 283 | O73: =StatisticallySignificantCalcs!$A72 -> N | P73: =StatisticallySignificantCalcs!$J72 -> N
C74: SF Renter Occ. | D74: =CntyDataLinkPrior10YearEstimate!$AN$108 -> 226 | E74: =CntyDataLinkPrior10YearEstimate!$AO$108 -> 121 | G74: =CntyDataLinkPrior5YearEstimates!$AN$108 -> 211 | H74: =CntyDataLinkPrior5YearEstimates!$AO$108 -> 148 | J74: =CntyDataLink!$AN$108 -> 257 | K74: =CntyDataLink!$AO$108 -> 130 | O74: =StatisticallySignificantCalcs!$A73 -> N | P74: =StatisticallySignificantCalcs!$J73 -> N
C75: Multi-family Units | D75: =CntyDataLinkPrior10YearEstimate!$AV$108 -> 835 | E75: =CntyDataLinkPrior10YearEstimate!$AW$108 -> 299.7999333 | F75: =IF(D75="-","-",$D$75/$D$71) -> 0.1996652319 | G75: =CntyDataLinkPrior5YearEstimates!$AV$108 -> 916 | H75: =CntyDataLinkPrior5YearEstimates!$AW$108 -> 270.5106283 | I75: =IF(G75="-","-",$G$75/$G$71) -> 0.1925178646 | J75: =CntyDataLink!$AV$108 -> 634 | K75: =CntyDataLink!$AW$108 -> 254.5996858 | L75: =IF(J75="-","-",$J$75/$J$71) -> 0.147957993 | M75: =IF(J75="-","-",($J75-$D75)/$D75) -> -0.2407185629 | N75: =IF(J75="-","-",($J75-$G75)/$G75) -> -0.307860262 | O75: =StatisticallySignificantCalcs!$A74 -> N | P75: =StatisticallySignificantCalcs!$J74 -> N
C76: MF Owner Occ. | D76: =CntyDataLinkPrior10YearEstimate!$AH$108 -> 115 | E76: =CntyDataLinkPrior10YearEstimate!$AI$108 -> 74.25631286 | G76: =CntyDataLinkPrior5YearEstimates!$AH$108 -> 155 | H76: =CntyDataLinkPrior5YearEstimates!$AI$108 -> 111.1080555 | J76: =CntyDataLink!$AH$108 -> 203 | K76: =CntyDataLink!$AI$108 -> 109.4531863 | O76: =StatisticallySignificantCalcs!$A75 -> N | P76: =StatisticallySignificantCalcs!$J75 -> N
C77: MF Renter Occ. | D77: =CntyDataLinkPrior10YearEstimate!$AP$108 -> 199 | E77: =CntyDataLinkPrior10YearEstimate!$AQ$108 -> 139.276703 | G77: =CntyDataLinkPrior5YearEstimates!$AP$108 -> 422 | H77: =CntyDataLinkPrior5YearEstimates!$AQ$108 -> 217.5155167 | J77: =CntyDataLink!$AP$108 -> 344 | K77: =CntyDataLink!$AQ$108 -> 200.7187086 | O77: =StatisticallySignificantCalcs!$A76 -> N | P77: =StatisticallySignificantCalcs!$J76 -> N
C78: Mobile Home & Other | D78: =CntyDataLinkPrior10YearEstimate!$AX$108 -> 160 | E78: =CntyDataLinkPrior10YearEstimate!$AY$108 -> 103.247276 | F78: =IF(D78="-","-",($D$78/$D$71)) -> 0.03825920612 | G78: =CntyDataLinkPrior5YearEstimates!$AX$108 -> 206 | H78: =CntyDataLinkPrior5YearEstimates!$AY$108 -> 134.9518433 | I78: =IF(G78="-","-",($G$78/$G$71)) -> 0.04329550231 | J78: =CntyDataLink!$AX$108 -> 217 | K78: =CntyDataLink!$AY$108 -> 144.0069443 | L78: =IF(J78="-","-",($J$78/$J$71)) -> 0.05064177363 | M78: =IF(J78="-","-",($J78-$D78)/$D78) -> 0.35625 | N78: =IF(J78="-","-",($J78-$G78)/$G78) -> 0.05339805825 | O78: =StatisticallySignificantCalcs!$A77 -> N | P78: =StatisticallySignificantCalcs!$J77 -> N
B80: Data from the American Community Survey are estimates
B83: Units by Number of Bedrooms
D84: ="Source: "& " "&D69&", "&G69&" and "&J69& " American Community Survey Table B25041" -> Source: 2008-2012, 2013-2017 and 2018-2022 American Community Survey Table B25041
C86: =C30 -> 2008-2012 | G86: =F30 -> 2013-2017 | K86: 2018-2022 | O86: Statistically Significant Change
B87: Bedrooms | C87: Estimate | D87: Margin of Error | E87: % of Total | G87: Estimate | H87: Margin of Error | I87: % of Total | K87: Estimate | L87: Margin of Error | M87: % of Total | O87: =O31 -> 2012-2022 | P87: =P31 -> 2017-2022
B88: No Bedrooms | C88: =CntyDataLinkPrior10YearEstimate!$BR$108 -> 59 | D88: =CntyDataLinkPrior10YearEstimate!$BS$108 -> 83 | E88: =C88/SUM($C$88:$C$92) -> 0.01394469393 | G88: =CntyDataLinkPrior5YearEstimates!$BR$108 -> 153 | H88: =CntyDataLinkPrior5YearEstimates!$BS$108 -> 102 | I88: =G88/SUM($G$88:$G$92) -> 0.03369301916 | K88: =CntyDataLink!$BT$108 -> 122 | L88: =CntyDataLink!$BU$108 -> 88 | M88: =K88/SUM($K$88:$K$92) -> 0.0284714119 | O88: =StatisticallySignificantCalcs!$A78 -> N | P88: =StatisticallySignificantCalcs!$J78 -> N
B89: 1 Bedroom | C89: =CntyDataLinkPrior10YearEstimate!$BT$108 -> 523 | D89: =CntyDataLinkPrior10YearEstimate!$BU$108 -> 221 | E89: =C89/SUM($C$88:$C$92) -> 0.1236114394 | G89: =CntyDataLinkPrior5YearEstimates!$BT$108 -> 417 | H89: =CntyDataLinkPrior5YearEstimates!$BU$108 -> 155 | I89: =G89/SUM($G$88:$G$92) -> 0.09182999339 | K89: =CntyDataLink!$BV$108 -> 287 | L89: =CntyDataLink!$BW$108 -> 147 | M89: =K89/SUM($K$88:$K$92) -> 0.06697782964 | O89: =StatisticallySignificantCalcs!$A79 -> N | P89: =StatisticallySignificantCalcs!$J79 -> N
B90: 2 Bedrooms | C90: =CntyDataLinkPrior10YearEstimate!$BV$108 -> 943 | D90: =CntyDataLinkPrior10YearEstimate!$BW$108 -> 268 | E90: =C90/SUM($C$88:$C$92) -> 0.2228787521 | G90: =CntyDataLinkPrior5YearEstimates!$BV$108 -> 1435 | H90: =CntyDataLinkPrior5YearEstimates!$BW$108 -> 320 | I90: =G90/SUM($G$88:$G$92) -> 0.3160096895 | K90: =CntyDataLink!$BX$108 -> 1073 | L90: =CntyDataLink!$BY$108 -> 267 | M90: =K90/SUM($K$88:$K$92) -> 0.2504084014 | O90: =StatisticallySignificantCalcs!$A80 -> N | P90: =StatisticallySignificantCalcs!$J80 -> N
B91: 3 Bedrooms | C91: =CntyDataLinkPrior10YearEstimate!$BX$108 -> 1743 | D91: =CntyDataLinkPrior10YearEstimate!$BY$108 -> 300 | E91: =C91/SUM($C$88:$C$92) -> 0.4119593477 | G91: =CntyDataLinkPrior5YearEstimates!$BX$108 -> 1799 | H91: =CntyDataLinkPrior5YearEstimates!$BY$108 -> 319 | I91: =G91/SUM($G$88:$G$92) -> 0.3961682449 | K91: =CntyDataLink!$BZ$108 -> 1883 | L91: =CntyDataLink!$CA$108 -> 289 | M91: =K91/SUM($K$88:$K$92) -> 0.4394399067 | O91: =StatisticallySignificantCalcs!$A81 -> N | P91: =StatisticallySignificantCalcs!$J81 -> N
B92: 4+ Bedrooms | C92: =CntyDataLinkPrior10YearEstimate!$BZ$108 -> 963 | D92: =CntyDataLinkPrior10YearEstimate!$CA$108 -> 227.0682717 | E92: =C92/SUM($C$88:$C$92) -> 0.227605767 | G92: =CntyDataLinkPrior5YearEstimates!$BZ$108 -> 737 | H92: =CntyDataLinkPrior5YearEstimates!$CA$108 -> 247 | I92: =G92/SUM($G$88:$G$92) -> 0.1622990531 | K92: =CntyDataLink!$CB$108 -> 920 | L92: =CntyDataLink!$CC$108 -> 281.4409352 | M92: =K92/SUM($K$88:$K$92) -> 0.2147024504 | O92: =StatisticallySignificantCalcs!$A82 -> N | P92: =StatisticallySignificantCalcs!$J82 -> N
B95: Data from the American Community Survey are estimates
B97: Units by Year Built
B98: ="Source: "&K86& " American Community Survey Table B25034" -> Source: 2018-2022 American Community Survey Table B25034
D100: Year Built | G100: Units | I100: % of Total | K100: Margin of Error
F101: 2020 or later | G101: =CntyDataLink!$AZ$108 -> 0 | I101: =G101/SUM($G$101:$G$110) -> 0 | K101: =CntyDataLink!$BA$108 -> 17
F102: 2010 through 2019 | G102: =CntyDataLink!$BB$108 -> 138 | I102: 0.03220536756 | K102: =CntyDataLink!$BC$108 -> 84
F103: 2000 through 2009 | G103: =CntyDataLink!$BD$108 -> 526 | I103: 0.1227537923 | K103: =CntyDataLink!$BE$108 -> 192
F104: 1990 through 1999 | G104: =CntyDataLink!$BF$108 -> 681 | I104: 0.1589264877 | K104: =CntyDataLink!$BG$108 -> 234
F105: 1980 through 1989 | G105: =CntyDataLink!$BH$108 -> 1013 | I105: 0.2364060677 | K105: =CntyDataLink!$BI$108 -> 263
F106: 1970 through 1979 | G106: =CntyDataLink!$BJ$108 -> 458 | I106: 0.1068844807 | K106: =CntyDataLink!$BK$108 -> 218
F107: 1960 through 1969 | G107: =CntyDataLink!$BL$108 -> 312 | I107: 0.07281213536 | K107: =CntyDataLink!$BM$108 -> 138
F108: 1950 through 1959 | G108: =CntyDataLink!$BN$108 -> 112 | I108: 0.02613768961 | K108: =CntyDataLink!$BO$108 -> 96
F109: 1940 through 1949 | G109: =CntyDataLink!$BP$108 -> 218 | I109: 0.05087514586 | K109: =CntyDataLink!$BQ$108 -> 135
F110: 1939 and earlier | G110: =CntyDataLink!$BR$108 -> 827 | I110: 0.1929988331 | K110: =CntyDataLink!$BS$108 -> 276
B112: Data from the American Community Survey are estimates

Sheet CntyDataLink (hidden)
A1: 1 | B1: =A1+1 -> 2 | C1: =B1+1 -> 3 | D1: 4 | E1: 5 | F1: 6 | G1: 7 | H1: 8 | I1: 9 | J1: 10 | K1: 11 | L1: 12 | M1: 13 | N1: 14 | O1: 15 | P1: =O1+1 -> 16 | Q1: 17 | R1: 18 | S1: 19 | T1: 20 | U1: 21 | V1: 22 | W1: 23 | X1: 24 | Y1: 25 | Z1: 26 | AA1: 27 | AB1: 28 | AC1: 29 | AD1: 30 | AE1: 31 | AF1: 32 | AG1: 33 | AH1: 34 | AI1: 35 | AJ1: 36 | AK1: 37 | AL1: 38 | AM1: 39 | AN1: 40 | AO1: 41 | AP1: 42 | AQ1: 43 | AR1: 44 | AS1: 45 | AT1: 46 | AU1: 47 | AV1: 48 | AW1: 49 | AX1: 50 | AY1: 51 | AZ1: 52 | BA1: 53 | BB1: 54 | BC1: 55 | BD1: 56 | BE1: 57 | BF1: 58 | BG1: 59 | BH1: 60 | BI1: 61 | BJ1: 62 | BK1: 63 | BL1: 64 | BM1: 65 | BN1: 66 | BO1: =BN1+1 -> 67 | BP1: 68 | BQ1: 69 | BR1: 70 | BS1: 71 | BT1: 72 | BU1: 73 | BV1: 74 | BW1: 75 | BX1: 76 | BY1: 77 | BZ1: 78 | CA1: 79 | CB1: 80 | CC1: 81 | CD1: 82 | CE1: 83 | CF1: 84 | CG1: 85 | CH1: 86 | CI1: 87 | CJ1: 88 | CK1: 89 | CL1: 90 | CM1: 91 | CN1: 92 | CO1: 93 | CP1: 94 | CQ1: 95 | CR1: 96 | CS1: 97 | CT1: 98 | CU1: 99 | CV1: 100 | CW1: 101 | CX1: 102 | CY1: 103 | CZ1: 104 | DA1: 105 | DB1: 106 | DC1: 107 | DD1: 108 | DE1: 109 | DF1: 110 | DG1: 111 | DH1: 112 | DI1: 113 | DJ1: 114 | DK1: 115 | DL1: 116 | DM1: 117 | DN1: 118 | DO1: 119 | DP1: 120 | DQ1: 121 | DR1: 122 | DS1: 123 | DT1: 124 | DU1: 125 | DV1: 126 | DW1: 127 | DX1: 128 | DY1: 129 | DZ1: 130 | EA1: =DZ1+1 -> 131 | EB1: 132 | EC1: 133 | ED1: 134 | EE1: 135 | EF1: 136 | EG1: 137 | EH1: 138 | EI1: 139 | EJ1: 140 | EK1: 141 | EL1: 142 | EM1: 143 | EN1: 144 | EO1: 145 | EP1: 146 | EQ1: 147 | ER1: 148 | ES1: 149 | ET1: 150 | EU1: 151 | EV1: 152 | EW1: 153 | EX1: 154 | EY1: 155 | EZ1: 156 | FA1: 157 | FB1: 158 | FC1: 159 | FD1: 160 | FE1: 161 | FF1: 162 | FG1: 163 | FH1: 164 | FI1: 165 | FJ1: 166 | FK1: 167 | FL1: 168 | FM1: 169 | FN1: 170 | FO1: 171 | FP1: 172 | FQ1: 173 | FR1: 174 | FS1: 175 | FT1: 176 | FU1: 177 | FV1: 178 | FW1: 179 | FX1: 180 | FY1: 181 | FZ1: 182 | GA1: 183 | GB1: 184 | GC1: 185 | GD1: 186 | GE1: 187 | GF1: 188 | GG1: 189 | GH1: 190 | GI1: 191 | GJ1: 192 | GK1: 193 | GL1: 194 | GM1: =GL1+1 -> 195 | GN1: 196 | GO1: 197 | GP1: 198 | GQ1: 199 | GR1: 200 | GS1: 201 | GT1: 202 | GU1: 203 | GV1: 204 | GW1: 205 | GX1: 206 | GY1: 207 | GZ1: 208 | HA1: 209 | HB1: 210 | HC1: 211 | HD1: 212 | HE1: 213 | HF1: 214 | HG1: 215 | HH1: 216 | HI1: 217 | HJ1: 218 | HK1: 219 | HL1: 220 | HM1: 221 | HN1: 222 | HO1: 223 | HP1: 224 | HQ1: 225 | HR1: 226 | HS1: 227 | HT1: 228 | HU1: 229 | HV1: 230 | HW1: 231 | HX1: 232 | HY1: 233 | HZ1: 234 | IA1: 235 | IB1: 236 | IC1: 237 | ID1: 238 | IE1: 239 | IF1: 240 | IG1: 241 | IH1: 242 | II1: 243 | IJ1: 244 | IK1: 245 | IL1: 246 | IM1: 247 | IN1: 248 | IO1: 249 | IP1: 250 | IQ1: 251 | IR1: 252 | IS1: 253 | IT1: 254 | IU1: 255
A3: Census 1990 Data - Query Name: DPCnty90Census
A4: TownName | B4: Cnty_Code | C4: Census_Cnty_Code | D4: LandAcres | E4: WaterAcres | F4: HousingUnits90Cen | G4: Persons90Cen | H4: Families90Cen | I4: Households90cen | J4: MalePop90cen | K4: FemalePop90cen | L4: WhitePop | M4: BlackPop | N4: AmerIndianPop | O4: AsianPIPop | P4: OtherRacePop | Q4: HispanicOrPop | R4: AgeUnder15_90cen | S4: Age15to24_90cen | T4: Age25to34_90cen | U4: Age35to44_90cen | V4: Age45to54_90cen | W4: Age55to64_90cen | X4: Age65to74_90cen | Y4: Age75andOver_90cen | Z4: PersonsInHH90cen | AA4: PersonsInFamHH90cen | AB4: PersonsInGC | AC4: PersonsPerHH90cen | AD4: PersonsPerFam90Cen | AE4: SinglePersonHH90cen | AF4: MarriedCoupleHH90cen | AG4: SingleParentHH90cen | AH4: NonFamilyHH90cen | AI4: TotalHousingUnits | AJ4: OccupiedHousingUnits | AK4: VacantHousingUnits | AL4: OwnerOccHU | AM4: RenterOccHU | AN4: VacantForRent90 | AO4: VacantForSale90 | AP4: VacantSeasonalRec | AQ4: SingFamHU90cen | AR4: MultiFamHU90cen | AS4: MobileHom90cen | AT4: SingFamOwnHU90cen | AU4: MultiFamOwnHU90cen | AV4: MobileHomOwnHU90cen | AW4: SingFamRntrHU90cen | AX4: MultiFamRntrHU90cen | AY4: MobileHomRntrHU90cen | AZ4: HU<5yrs90cen | BA4: HU5to20yrs90cen | BB4: HU20to50yrs90cen | BC4: HU>50yrs90cen | BD4: Units0Bedroom90cen | BE4: Units1Bedroom90cen | BF4: Units2Bedroom90cen | BG4: Units3Bedroom90cen | BH4: Units4+Bedroom90cen | BI4: HI<5K | BJ4: HI5Kto10K | BK4: HI10Kto15K | BL4: HI15Kto25K | BM4: HI25Kto35K | BN4: HI35Kto50K | BO4: HI50Kto75K | BP4: HI75Kto100K | BQ4: HI>100K | BR4: MedHI | BS4: HH<25HI<5K | BT4: HH<25HI5Kto10K | BU4: HH<25HI10Kto15K | BV4: HH<25HI15Kto25K | BW4: HH<25HI25Kto35K | BX4: HH<25HI35Kto50K | BY4: HH<25HI50Kto75K | BZ4: HH<25HI75Kto100K | CA4: HH<25HI>100K | CB4: HH25to34HI<5K | CC4: HH25to34HI5Kto10K | CD4: HH25to34HI10Kto15K | CE4: HH25to34HI15Kto25K | CF4: HH25to34HI25Kto35K | CG4: HH25to34HI35Kto50K | CH4: HH25to34HI50Kto75K | CI4: HH25to34HI75Kto100K | CJ4: HH25to34HI>100K | CK4: HH35to44HI<5K | CL4: HH35to44HI5Kto10K | CM4: HH35to44HI10Kto15K | CN4: HH35to44HI15Kto25K | CO4: HH35to44HI25Kto35K | CP4: HH35to44HI35Kto50K | CQ4: HH35to44HI50Kto75K | CR4: HH35to44HI75Kto100K | CS4: HH35to44HI>100K | CT4: HH45to54HI<5K | CU4: HH45to54HI5Kto10K | CV4: HH45to54HI10Kto15K | CW4: HH45to54HI15Kto25K | CX4: HH45to54HI25Kto35K | CY4: HH45to54HI35Kto50K | CZ4: HH45to54HI50Kto75K | DA4: HH45to54HI75Kto100K | DB4: HH45to54HI>100K | DC4: HH55to64HI<5K | DD4: HH55to64HI5Kto10K | DE4: HH55to64HI10Kto15K | DF4: HH55to64HI15Kto25K | DG4: HH55to64HI25Kto35K | DH4: HH55to64HI35Kto50K | DI4: HH55to64HI50Kto75K | DJ4: HH55to64HI75Kto100K | DK4: HH55to64HI>100K | DL4: HH65to74HI<5K | DM4: HH65to74HI5Kto10K | DN4: HH65to74HI10Kto15K | DO4: HH65to74HI15Kto25K | DP4: HH65to74HI25Kto35K | DQ4: HH65to74HI35Kto50K | DR4: HH65to74HI50Kto75K | DS4: HH65to74HI75Kto100K | DT4: HH65to74HI>100K | DU4: HH>75HI<5K | DV4: HH>75HI5Kto10K | DW4: HH>75HI10Kto15K | DX4: HH>75HI15Kto25K | DY4: HH>75HI25Kto35K | DZ4: HH>75HI35Kto50K | EA4: HH>75HI50Kto75K | EB4: HH>75HI75Kto100K | EC4: HH>75HI>100K | ED4: SchoolEnrollment1thru12 | EE4: Pop25andOver | EF4: HSGradorHigher | EG4: CollGradorHigher | EH4: NativePop | EI4: ForeignBornPop | EJ4: BornStateOfRes | EK4: NativePop2 | EL4: ForeignBornPop2 | EM4: DroveAlone | EN4: CarPooled | EO4: PublicTranspt | EP4: Walked | EQ4: OtherMeans | ER4: WorkedAtHome | ES4: HHInc<10K | ET4: HHInc10to15K | EU4: HHInc15to25K | EV4: HHInc25to35K | EW4: HHInc35to50K | EX4: HHInc50to75K | EY4: HHInc75to100K | EZ4: HHInc100to150K | FA4: HHInc>150K
A5: =VLOOKUP(DropDownList!$A$24,CntyQuery!$A$4:$FA$22,A1) -> Wolfeboro | B5: =VLOOKUP(DropDownList!$A$24,CntyQuery!$A$4:$FA$22,B$1) -> 3095 | C5: =VLOOKUP(DropDownList!$A$24,CntyQuery!$A$4:$FA$22,C$1) -> 86420 | D5: =VLOOKUP(DropDownList!$A$24,CntyQuery!$A$4:$FA$22,D$1) -> 30940.29 | E5: =VLOOKUP(DropDownList!$A$24,CntyQuery!$A$4:$FA$22,E$1) -> 6465.23 | F5: =VLOOKUP(DropDownList!$A$24,CntyQuery!$A$4:$FA$22,F$1) -> 3631 | G5: =VLOOKUP(DropDownList!$A$24,CntyQuery!$A$4:$FA$22,G$1) -> 4807 | H5: =VLOOKUP(DropDownList!$A$24,CntyQuery!$A$4:$FA$22,H$1) -> 1375 | I5: =VLOOKUP(DropDownList!$A$24,CntyQuery!$A$4:$FA$22,I$1) -> 2017 | J5: =VLOOKUP(DropDownList!$A$24,CntyQuery!$A$4:$FA$22,J$1) -> 2240 | K5: =VLOOKUP(DropDownList!$A$24,CntyQuery!$A$4:$FA$22,K$1) -> 2567 | L5: =VLOOKUP(DropDownList!$A$24,CntyQuery!$A$4:$FA$22,L$1) -> 4796 | M5: =VLOOKUP(DropDownList!$A$24,CntyQuery!$A$4:$FA$22,M$1) -> 2 | N5: =VLOOKUP(DropDownList!$A$24,CntyQuery!$A$4:$FA$22,N$1) -> 3 | O5: =VLOOKUP(DropDownList!$A$24,CntyQuery!$A$4:$FA$22,O$1) -> 6 | P5: =VLOOKUP(DropDownList!$A$24,CntyQuery!$A$4:$FA$22,P$1) -> 0 | Q5: =VLOOKUP(DropDownList!$A$24,CntyQuery!$A$4:$FA$22,Q$1) -> 25 | R5: =VLOOKUP(DropDownList!$A$24,CntyQuery!$A$4:$FA$22,R$1) -> 897 | S5: =VLOOKUP(DropDownList!$A$24,CntyQuery!$A$4:$FA$22,S$1) -> 421 | T5: =VLOOKUP(DropDownList!$A$24,CntyQuery!$A$4:$FA$22,T$1) -> 648 | U5: =VLOOKUP(DropDownList!$A$24,CntyQuery!$A$4:$FA$22,U$1) -> 708 | V5: =VLOOKUP(DropDownList!$A$24,CntyQuery!$A$4:$FA$22,V$1) -> 467 | W5: =VLOOKUP(DropDownList!$A$24,CntyQuery!$A$4:$FA$22,W$1) -> 572 | X5: =VLOOKUP(DropDownList!$A$24,CntyQuery!$A$4:$FA$22,X$1) -> 577 | Y5: =VLOOKUP(DropDownList!$A$24,CntyQuery!$A$4:$FA$22,Y$1) -> 517 | Z5: =VLOOKUP(DropDownList!$A$24,CntyQuery!$A$4:$FA$22,Z$1) -> 4716 | AA5: =VLOOKUP(DropDownList!$A$24,CntyQuery!$A$4:$FA$22,AA$1) -> 3981 | AB5: =VLOOKUP(DropDownList!$A$24,CntyQuery!$A$4:$FA$22,AB$1) -> 91 | AC5: =VLOOKUP(DropDownList!$A$24,CntyQuery!$A$4:$FA$22,AC$1) -> 2.33812593 | AD5: =VLOOKUP(DropDownList!$A$24,CntyQuery!$A$4:$FA$22,AD$1) -> 2.895272727 | AE5: =VLOOKUP(DropDownList!$A$24,CntyQuery!$A$4:$FA$22,AE$1) -> 564 | AF5: =VLOOKUP(DropDownList!$A$24,CntyQuery!$A$4:$FA$22,AF$1) -> 1187 | AG5: =VLOOKUP(DropDownList!$A$24,CntyQuery!$A$4:$FA$22,AG$1) -> 188 | AH5: =VLOOKUP(DropDownList!$A$24,CntyQuery!$A$4:$FA$22,AH$1) -> 78 | AI5: =VLOOKUP(DropDownList!$A$24,CntyQuery!$A$4:$FA$22,AI$1) -> 3631 | AJ5: =VLOOKUP(DropDownList!$A$24,CntyQuery!$A$4:$FA$22,AJ$1) -> 2017 | AK5: =VLOOKUP(DropDownList!$A$24,CntyQuery!$A$4:$FA$22,AK$1) -> 1614 | AL5: =VLOOKUP(DropDownList!$A$24,CntyQuery!$A$4:$FA$22,AL$1) -> 1482 | AM5: =VLOOKUP(DropDownList!$A$24,CntyQuery!$A$4:$FA$22,AM$1) -> 535 | AN5: =VLOOKUP(DropDownList!$A$24,CntyQuery!$A$4:$FA$22,AN$1) -> 77 | AO5: =VLOOKUP(DropDownList!$A$24,CntyQuery!$A$4:$FA$22,AO$1) -> 64 | AP5: =VLOOKUP(DropDownList!$A$24,CntyQuery!$A$4:$FA$22,AP$1) -> 1345 | AQ5: =VLOOKUP(DropDownList!$A$24,CntyQuery!$A$4:$FA$22,AQ$1) -> 2716 | AR5: =VLOOKUP(DropDownList!$A$24,CntyQuery!$A$4:$FA$22,AR$1) -> 628 | AS5: =VLOOKUP(DropDownList!$A$24,CntyQuery!$A$4:$FA$22,AS$1) -> 287 | AT5: =VLOOKUP(DropDownList!$A$24,CntyQuery!$A$4:$FA$22,AT$1) -> 1296 | AU5: =VLOOKUP(DropDownList!$A$24,CntyQuery!$A$4:$FA$22,AU$1) -> 73 | AV5: =VLOOKUP(DropDownList!$A$24,CntyQuery!$A$4:$FA$22,AV$1) -> 287 | AW5: =VLOOKUP(DropDownList!$A$24,CntyQuery!$A$4:$FA$22,AW$1) -> 174 | AX5: =VLOOKUP(DropDownList!$A$24,CntyQuery!$A$4:$FA$22,AX$1) -> 314 | AY5: =VLOOKUP(DropDownList!$A$24,CntyQuery!$A$4:$FA$22,AY$1) -> 47 | AZ5: =VLOOKUP(DropDownList!$A$24,CntyQuery!$A$4:$FA$22,AZ$1) -> 805 | BA5: =VLOOKUP(DropDownList!$A$24,CntyQuery!$A$4:$FA$22,BA$1) -> 907 | BB5: =VLOOKUP(DropDownList!$A$24,CntyQuery!$A$4:$FA$22,BB$1) -> 774 | BC5: =VLOOKUP(DropDownList!$A$24,CntyQuery!$A$4:$FA$22,BC$1) -> 1167 | BD5: =VLOOKUP(DropDownList!$A$24,CntyQuery!$A$4:$FA$22,BD$1) -> 39 | BE5: =VLOOKUP(DropDownList!$A$24,CntyQuery!$A$4:$FA$22,BE$1) -> 298 | BF5: =VLOOKUP(DropDownList!$A$24,CntyQuery!$A$4:$FA$22,BF$1) -> 1201 | BG5: =VLOOKUP(DropDownList!$A$24,CntyQuery!$A$4:$FA$22,BG$1) -> 1380 | BH5: =VLOOKUP(DropDownList!$A$24,CntyQuery!$A$4:$FA$22,BH$1) -> 735 | BI5: =VLOOKUP(DropDownList!$A$24,CntyQuery!$A$4:$FA$22,BI$1) -> 94 | BJ5: =VLOOKUP(DropDownList!$A$24,CntyQuery!$A$4:$FA$22,BJ$1) -> 108 | BK5: =VLOOKUP(DropDownList!$A$24,CntyQuery!$A$4:$FA$22,BK$1) -> 202 | BL5: =VLOOKUP(DropDownList!$A$24,CntyQuery!$A$4:$FA$22,BL$1) -> 416 | BM5: =VLOOKUP(DropDownList!$A$24,CntyQuery!$A$4:$FA$22,BM$1) -> 389 | BN5: =VLOOKUP(DropDownList!$A$24,CntyQuery!$A$4:$FA$22,BN$1) -> 356 | BO5: =VLOOKUP(DropDownList!$A$24,CntyQuery!$A$4:$FA$22,BO$1) -> 297 | BP5: =VLOOKUP(DropDownList!$A$24,CntyQuery!$A$4:$FA$22,BP$1) -> 119 | BQ5: =VLOOKUP(DropDownList!$A$24,CntyQuery!$A$4:$FA$22,BQ$1) -> 35 | BR5: =VLOOKUP(DropDownList!$A$24,CntyQuery!$A$4:$FA$22,BR$1) -> 29542 | BS5: =VLOOKUP(DropDownList!$A$24,CntyQuery!$A$4:$FA$22,BS$1) -> 0 | BT5: =VLOOKUP(DropDownList!$A$24,CntyQuery!$A$4:$FA$22,BT$1) -> 0 | BU5: =VLOOKUP(DropDownList!$A$24,CntyQuery!$A$4:$FA$22,BU$1) -> 0 | BV5: =VLOOKUP(DropDownList!$A$24,CntyQuery!$A$4:$FA$22,BV$1) -> 18 | BW5: =VLOOKUP(DropDownList!$A$24,CntyQuery!$A$4:$FA$22,BW$1) -> 7 | BX5: =VLOOKUP(DropDownList!$A$24,CntyQuery!$A$4:$FA$22,BX$1) -> 8 | BY5: =VLOOKUP(DropDownList!$A$24,CntyQuery!$A$4:$FA$22,BY$1) -> 0 | BZ5: =VLOOKUP(DropDownList!$A$24,CntyQuery!$A$4:$FA$22,BZ$1) -> 0 | CA5: =VLOOKUP(DropDownList!$A$24,CntyQuery!$A$4:$FA$22,CA$1) -> 0 | CB5: =VLOOKUP(DropDownList!$A$24,CntyQuery!$A$4:$FA$22,CB$1) -> 0 | CC5: =VLOOKUP(DropDownList!$A$24,CntyQuery!$A$4:$FA$22,CC$1) -> 14 | CD5: =VLOOKUP(DropDownList!$A$24,CntyQuery!$A$4:$FA$22,CD$1) -> 15 | CE5: =VLOOKUP(DropDownList!$A$24,CntyQuery!$A$4:$FA$22,CE$1) -> 104 | CF5: =VLOOKUP(DropDownList!$A$24,CntyQuery!$A$4:$FA$22,CF$1) -> 85 | CG5: =VLOOKUP(DropDownList!$A$24,CntyQuery!$A$4:$FA$22,CG$1) -> 93 | CH5: =VLOOKUP(DropDownList!$A$24,CntyQuery!$A$4:$FA$22,CH$1) -> 40 | CI5: =VLOOKUP(DropDownList!$A$24,CntyQuery!$A$4:$FA$22,CI$1) -> 8 | CJ5: =VLOOKUP(DropDownList!$A$24,CntyQuery!$A$4:$FA$22,CJ$1) -> 5 | CK5: =VLOOKUP(DropDownList!$A$24,CntyQuery!$A$4:$FA$22,CK$1) -> 17 | CL5: =VLOOKUP(DropDownList!$A$24,CntyQuery!$A$4:$FA$22,CL$1) -> 0 | CM5: =VLOOKUP(DropDownList!$A$24,CntyQuery!$A$4:$FA$22,CM$1) -> 27 | CN5: =VLOOKUP(DropDownList!$A$24,CntyQuery!$A$4:$FA$22,CN$1) -> 38 | CO5: =VLOOKUP(DropDownList!$A$24,CntyQuery!$A$4:$FA$22,CO$1) -> 69 | CP5: =VLOOKUP(DropDownList!$A$24,CntyQuery!$A$4:$FA$22,CP$1) -> 94 | CQ5: =VLOOKUP(DropDownList!$A$24,CntyQuery!$A$4:$FA$22,CQ$1) -> 64 | CR5: =VLOOKUP(DropDownList!$A$24,CntyQuery!$A$4:$FA$22,CR$1) -> 57 | CS5: =VLOOKUP(DropDownList!$A$24,CntyQuery!$A$4:$FA$22,CS$1) -> 23 | CT5: =VLOOKUP(DropDownList!$A$24,CntyQuery!$A$4:$FA$22,CT$1) -> 20 | CU5: =VLOOKUP(DropDownList!$A$24,CntyQuery!$A$4:$FA$22,CU$1) -> 0 | CV5: =VLOOKUP(DropDownList!$A$24,CntyQuery!$A$4:$FA$22,CV$1) -> 16 | CW5: =VLOOKUP(DropDownList!$A$24,CntyQuery!$A$4:$FA$22,CW$1) -> 38 | CX5: =VLOOKUP(DropDownList!$A$24,CntyQuery!$A$4:$FA$22,CX$1) -> 49 | CY5: =VLOOKUP(DropDownList!$A$24,CntyQuery!$A$4:$FA$22,CY$1) -> 61 | CZ5: =VLOOKUP(DropDownList!$A$24,CntyQuery!$A$4:$FA$22,CZ$1) -> 53 | DA5: =VLOOKUP(DropDownList!$A$24,CntyQuery!$A$4:$FA$22,DA$1) -> 9 | DB5: =VLOOKUP(DropDownList!$A$24,CntyQuery!$A$4:$FA$22,DB$1) -> 0 | DC5: =VLOOKUP(DropDownList!$A$24,CntyQuery!$A$4:$FA$22,DC$1) -> 7 | DD5: =VLOOKUP(DropDownList!$A$24,CntyQuery!$A$4:$FA$22,DD$1) -> 16 | DE5: =VLOOKUP(DropDownList!$A$24,CntyQuery!$A$4:$FA$22,DE$1) -> 18 | DF5: =VLOOKUP(DropDownList!$A$24,CntyQuery!$A$4:$FA$22,DF$1) -> 76 | DG5: =VLOOKUP(DropDownList!$A$24,CntyQuery!$A$4:$FA$22,DG$1) -> 71 | DH5: =VLOOKUP(DropDownList!$A$24,CntyQuery!$A$4:$FA$22,DH$1) -> 54 | DI5: =VLOOKUP(DropDownList!$A$24,CntyQuery!$A$4:$FA$22,DI$1) -> 32 | DJ5: =VLOOKUP(DropDownList!$A$24,CntyQuery!$A$4:$FA$22,DJ$1) -> 39 | DK5: =VLOOKUP(DropDownList!$A$24,CntyQuery!$A$4:$FA$22,DK$1) -> 7 | DL5: =VLOOKUP(DropDownList!$A$24,CntyQuery!$A$4:$FA$22,DL$1) -> 7 | DM5: =VLOOKUP(DropDownList!$A$24,CntyQuery!$A$4:$FA$22,DM$1) -> 43 | DN5: =VLOOKUP(DropDownList!$A$24,CntyQuery!$A$4:$FA$22,DN$1) -> 65 | DO5: =VLOOKUP(DropDownList!$A$24,CntyQuery!$A$4:$FA$22,DO$1) -> 70 | DP5: =VLOOKUP(DropDownList!$A$24,CntyQuery!$A$4:$FA$22,DP$1) -> 80 | DQ5: =VLOOKUP(DropDownList!$A$24,CntyQuery!$A$4:$FA$22,DQ$1) -> 32 | DR5: =VLOOKUP(DropDownList!$A$24,CntyQuery!$A$4:$FA$22,DR$1) -> 59 | DS5: =VLOOKUP(DropDownList!$A$24,CntyQuery!$A$4:$FA$22,DS$1) -> 6 | DT5: =VLOOKUP(DropDownList!$A$24,CntyQuery!$A$4:$FA$22,DT$1) -> 0 | DU5: =VLOOKUP(DropDownList!$A$24,CntyQuery!$A$4:$FA$22,DU$1) -> 43 | DV5: =VLOOKUP(DropDownList!$A$24,CntyQuery!$A$4:$FA$22,DV$1) -> 35 | DW5: =VLOOKUP(DropDownList!$A$24,CntyQuery!$A$4:$FA$22,DW$1) -> 61 | DX5: =VLOOKUP(DropDownList!$A$24,CntyQuery!$A$4:$FA$22,DX$1) -> 72 | DY5: =VLOOKUP(DropDownList!$A$24,CntyQuery!$A$4:$FA$22,DY$1) -> 28 | DZ5: =VLOOKUP(DropDownList!$A$24,CntyQuery!$A$4:$FA$22,DZ$1) -> 14 | EA5: =VLOOKUP(DropDownList!$A$24,CntyQuery!$A$4:$FA$22,EA$1) -> 49 | EB5: =VLOOKUP(DropDownList!$A$24,CntyQuery!$A$4:$FA$22,EB$1) -> 0 | EC5: =VLOOKUP(DropDownList!$A$24,CntyQuery!$A$4:$FA$22,EC$1) -> 0 | ED5: =VLOOKUP(DropDownList!$A$24,CntyQuery!$A$4:$FA$22,ED$1) -> 696 | EE5: =VLOOKUP(DropDownList!$A$24,CntyQuery!$A$4:$FA$22,EE$1) -> 3503 | EF5: =VLOOKUP(DropDownList!$A$24,CntyQuery!$A$4:$FA$22,EF$1) -> 2972 | EG5: =VLOOKUP(DropDownList!$A$24,CntyQuery!$A$4:$FA$22,EG$1) -> 1022 | EH5: =VLOOKUP(DropDownList!$A$24,CntyQuery!$A$4:$FA$22,EH$1) -> 4584 | EI5: =VLOOKUP(DropDownList!$A$24,CntyQuery!$A$4:$FA$22,EI$1) -> 156 | EJ5: =VLOOKUP(DropDownList!$A$24,CntyQuery!$A$4:$FA$22,EJ$1) -> 2285 | EK5: =VLOOKUP(DropDownList!$A$24,CntyQuery!$A$4:$FA$22,EK$1) -> 4584 | EL5: =VLOOKUP(DropDownList!$A$24,CntyQuery!$A$4:$FA$22,EL$1) -> 156 | EM5: =VLOOKUP(DropDownList!$A$24,CntyQuery!$A$4:$FA$22,EM$1) -> 1725 | EN5: =VLOOKUP(DropDownList!$A$24,CntyQuery!$A$4:$FA$22,EN$1) -> 224 | EO5: =VLOOKUP(DropDownList!$A$24,CntyQuery!$A$4:$FA$22,EO$1) -> 9 | EP5: =VLOOKUP(DropDownList!$A$24,CntyQuery!$A$4:$FA$22,EP$1) -> 174 | EQ5: =VLOOKUP(DropDownList!$A$24,CntyQuery!$A$4:$FA$22,EQ$1) -> 26 | ER5: =VLOOKUP(DropDownList!$A$24,CntyQuery!$A$4:$FA$22,ER$1) -> 128 | ES5: =VLOOKUP(DropDownList!$A$24,CntyQuery!$A$4:$FA$22,ES$1) -> 202 | ET5: =VLOOKUP(DropDownList!$A$24,CntyQuery!$A$4:$FA$22,ET$1) -> 202 | EU5: =VLOOKUP(DropDownList!$A$24,CntyQuery!$A$4:$FA$22,EU$1) -> 416 | EV5: =VLOOKUP(DropDownList!$A$24,CntyQuery!$A$4:$FA$22,EV$1) -> 389 | EW5: =VLOOKUP(DropDownList!$A$24,CntyQuery!$A$4:$FA$22,EW$1) -> 356 | EX5: =VLOOKUP(DropDownList!$A$24,CntyQuery!$A$4:$FA$22,EX$1) -> 297 | EY5: =VLOOKUP(DropDownList!$A$24,CntyQuery!$A$4:$FA$22,EY$1) -> 119 | EZ5: =VLOOKUP(DropDownList!$A$24,CntyQuery!$A$4:$FA$22,EZ$1) -> 35 | FA5: =VLOOKUP(DropDownList!$A$24,CntyQuery!$A$4:$FA$22,FA$1) -> 0
A8: Census 1990 Data - Query Name: TownSTF1Qry1
A9: NAME | B9: COUSUBFP | C9: Census_Cnty_Code | D9: FIPS | E9: LandAcres | F9: WaterAcres | G9: HousingUnits90Cen | H9: P01Persons90Cen | I9: P02Families90Cen | J9: P03Households90cen | K9: P05MalePop90cen | L9: P05FemalePop90cen | M9: P06WhitePop | N9: P06BlackPop | O9: P06AmerIndianPop | P9: P06AsianPIPop | Q9: P06OtherRacePop | R9: P08HispanicOrPop | S9: P11AgeUnder15_90cen | T9: P11Age15to24_90cen | U9: P11Age25to34_90cen | V9: P11Age35to44_90cen | W9: P11Age45to54_90cen | X9: P11Age55to64_90cen | Y9: P11Age65to74_90cen | Z9: P11Age75andOver_90cen | AA9: P15PersonsInHH90cen | AB9: P15PersonsInFamHH90cen | AC9: P15PersonsInGC | AD9: PersonsPerHH90cen | AE9: PersonsPerFam90Cen | AF9: P16SinglePersonHH90cen | AG9: P16MarriedCoupleHH90cen | AH9: P16SingleParentHH90cen | AI9: P16NonFamilyHH90cen | AJ9: H01TotalHousingUnits | AK9: H02OccupiedHousingUnits | AL9: H02VacantHousingUnits | AM9: H03OwnerOccHU | AN9: H03RenterOccHU | AO9: H05VacantForRent90 | AP9: H05VacantForSale90 | AQ9: H05VacantSeasonalRec | AR9: H23OOHUVal<15k | AS9: H23OOHUVal15to19k | AT9: H23OOHUVal20to24k | AU9: H23OOHUVal25to29k | AV9: H23OOHUVal30to34k | AW9: H23OOHUVal35to39k | AX9: H23OOHUVal40to44k | AY9: H23OOHUVal45to49k | AZ9: H23OOHUVal50to59k | BA9: H23OOHUVal60to74k | BB9: H23OOHUVal75to99k | BC9: H23OOHUVal100to124k | BD9: H23OOHUVal125to149k | BE9: H23OOHUVal150to174k | BF9: H23OOHUVal175to199k | BG9: H23OOHUVal200to249k | BH9: H23OOHUVal250to299k | BI9: H23OOHUVal300to399k | BJ9: H23OOHUVal400to499k | BK9: H23OOHUVal500kOrMore | BL9: H23BOOHUMedVal | BM9: H41SingFamHU90cen | BN9: H41MultiFamHU90cen | BO9: H41MobileHom90cen | BP9: H43SingFamOwnHU90cen | BQ9: H43MultiFamOwnHU90cen | BR9: H43MobileHomOwnHU90cen | BS9: H43SingFamRntrHU90cen | BT9: H43MultiFamRntrHU90cen | BU9: H43MobileHomRntrHU90cen | BV9: H41HU1UnitDet | BW9: H41HU1UnitAtt | BX9: H41HU2Unit | BY9: H41HU3to4Unit | BZ9: H41HU5to9Unit | CA9: H41HU10to19Unit | CB9: H41HU20to49Unit | CC9: H41HU50PlusUnit | CD9: H41HUMobilH | CE9: H41HUOther
A10: =VLOOKUP(DropDownList!$B$24,CntyQuery!$A$37:$CE$45,A$1) -> Wolfeboro | B10: =VLOOKUP(DropDownList!$B$24,CntyQuery!$A$37:$CE$45,B$1) -> 218 | C10: =VLOOKUP(DropDownList!$B$24,CntyQuery!$A$37:$CE$45,C$1) -> 3095 | D10: =VLOOKUP(DropDownList!$B$24,CntyQuery!$A$37:$CE$45,D$1) -> 86420 | E10: =VLOOKUP(DropDownList!$B$24,CntyQuery!$A$37:$CE$45,E$1) -> 30940.29 | F10: =VLOOKUP(DropDownList!$B$24,CntyQuery!$A$37:$CE$45,F$1) -> 6465.23 | G10: =VLOOKUP(DropDownList!$B$24,CntyQuery!$A$37:$CE$45,G$1) -> 3631 | H10: =VLOOKUP(DropDownList!$B$24,CntyQuery!$A$37:$CE$45,H$1) -> 4807 | I10: =VLOOKUP(DropDownList!$B$24,CntyQuery!$A$37:$CE$45,I$1) -> 1375 | J10: =VLOOKUP(DropDownList!$B$24,CntyQuery!$A$37:$CE$45,J$1) -> 2017 | K10: =VLOOKUP(DropDownList!$B$24,CntyQuery!$A$37:$CE$45,K$1) -> 2240 | L10: =VLOOKUP(DropDownList!$B$24,CntyQuery!$A$37:$CE$45,L$1) -> 2567 | M10: =VLOOKUP(DropDownList!$B$24,CntyQuery!$A$37:$CE$45,M$1) -> 4796 | N10: =VLOOKUP(DropDownList!$B$24,CntyQuery!$A$37:$CE$45,N$1) -> 2 | O10: =VLOOKUP(DropDownList!$B$24,CntyQuery!$A$37:$CE$45,O$1) -> 3 | P10: =VLOOKUP(DropDownList!$B$24,CntyQuery!$A$37:$CE$45,P$1) -> 6 | Q10: =VLOOKUP(DropDownList!$B$24,CntyQuery!$A$37:$CE$45,Q$1) -> 0 | R10: =VLOOKUP(DropDownList!$B$24,CntyQuery!$A$37:$CE$45,R$1) -> 25 | S10: =VLOOKUP(DropDownList!$B$24,CntyQuery!$A$37:$CE$45,S$1) -> 897 | T10: =VLOOKUP(DropDownList!$B$24,CntyQuery!$A$37:$CE$45,T$1) -> 421 | U10: =VLOOKUP(DropDownList!$B$24,CntyQuery!$A$37:$CE$45,U$1) -> 648 | V10: =VLOOKUP(DropDownList!$B$24,CntyQuery!$A$37:$CE$45,V$1) -> 708 | W10: =VLOOKUP(DropDownList!$B$24,CntyQuery!$A$37:$CE$45,W$1) -> 467 | X10: =VLOOKUP(DropDownList!$B$24,CntyQuery!$A$37:$CE$45,X$1) -> 572 | Y10: =VLOOKUP(DropDownList!$B$24,CntyQuery!$A$37:$CE$45,Y$1) -> 577 | Z10: =VLOOKUP(DropDownList!$B$24,CntyQuery!$A$37:$CE$45,Z$1) -> 517 | AA10: =VLOOKUP(DropDownList!$B$24,CntyQuery!$A$37:$CE$45,AA$1) -> 4716 | AB10: =VLOOKUP(DropDownList!$B$24,CntyQuery!$A$37:$CE$45,AB$1) -> 3981 | AC10: =VLOOKUP(DropDownList!$B$24,CntyQuery!$A$37:$CE$45,AC$1) -> 91 | AD10: =VLOOKUP(DropDownList!$B$24,CntyQuery!$A$37:$CE$45,AD$1) -> 2.33812593 | AE10: =VLOOKUP(DropDownList!$B$24,CntyQuery!$A$37:$CE$45,AE$1) -> 2.895272727 | AF10: =VLOOKUP(DropDownList!$B$24,CntyQuery!$A$37:$CE$45,AF$1) -> 564 | AG10: =VLOOKUP(DropDownList!$B$24,CntyQuery!$A$37:$CE$45,AG$1) -> 1187 | AH10: =VLOOKUP(DropDownList!$B$24,CntyQuery!$A$37:$CE$45,AH$1) -> 188 | AI10: =VLOOKUP(DropDownList!$B$24,CntyQuery!$A$37:$CE$45,AI$1) -> 78 | AJ10: =VLOOKUP(DropDownList!$B$24,CntyQuery!$A$37:$CE$45,AJ$1) -> 3631 | AK10: =VLOOKUP(DropDownList!$B$24,CntyQuery!$A$37:$CE$45,AK$1) -> 2017 | AL10: =VLOOKUP(DropDownList!$B$24,CntyQuery!$A$37:$CE$45,AL$1) -> 1614 | AM10: =VLOOKUP(DropDownList!$B$24,CntyQuery!$A$37:$CE$45,AM$1) -> 1482 | AN10: =VLOOKUP(DropDownList!$B$24,CntyQuery!$A$37:$CE$45,AN$1) -> 535 | AO10: =VLOOKUP(DropDownList!$B$24,CntyQuery!$A$37:$CE$45,AO$1) -> 77 | AP10: =VLOOKUP(DropDownList!$B$24,CntyQuery!$A$37:$CE$45,AP$1) -> 64 | AQ10: =VLOOKUP(DropDownList!$B$24,CntyQuery!$A$37:$CE$45,AQ$1) -> 1345 | AR10: =VLOOKUP(DropDownList!$B$24,CntyQuery!$A$37:$CE$45,AR$1) -> 3 | AS10: =VLOOKUP(DropDownList!$B$24,CntyQuery!$A$37:$CE$45,AS$1) -> 1 | AT10: =VLOOKUP(DropDownList!$B$24,CntyQuery!$A$37:$CE$45,AT$1) -> 7 | AU10: =VLOOKUP(DropDownList!$B$24,CntyQuery!$A$37:$CE$45,AU$1) -> 1 | AV10: =VLOOKUP(DropDownList!$B$24,CntyQuery!$A$37:$CE$45,AV$1) -> 2 | AW10: =VLOOKUP(DropDownList!$B$24,CntyQuery!$A$37:$CE$45,AW$1) -> 7 | AX10: =VLOOKUP(DropDownList!$B$24,CntyQuery!$A$37:$CE$45,AX$1) -> 10 | AY10: =VLOOKUP(DropDownList!$B$24,CntyQuery!$A$37:$CE$45,AY$1) -> 11 | AZ10: =VLOOKUP(DropDownList!$B$24,CntyQuery!$A$37:$CE$45,AZ$1) -> 22 | BA10: =VLOOKUP(DropDownList!$B$24,CntyQuery!$A$37:$CE$45,BA$1) -> 71 | BB10: =VLOOKUP(DropDownList!$B$24,CntyQuery!$A$37:$CE$45,BB$1) -> 163 | BC10: =VLOOKUP(DropDownList!$B$24,CntyQuery!$A$37:$CE$45,BC$1) -> 176 | BD10: =VLOOKUP(DropDownList!$B$24,CntyQuery!$A$37:$CE$45,BD$1) -> 164 | BE10: =VLOOKUP(DropDownList!$B$24,CntyQuery!$A$37:$CE$45,BE$1) -> 137 | BF10: =VLOOKUP(DropDownList!$B$24,CntyQuery!$A$37:$CE$45,BF$1) -> 94 | BG10: =VLOOKUP(DropDownList!$B$24,CntyQuery!$A$37:$CE$45,BG$1) -> 118 | BH10: =VLOOKUP(DropDownList!$B$24,CntyQuery!$A$37:$CE$45,BH$1) -> 54 | BI10: =VLOOKUP(DropDownList!$B$24,CntyQuery!$A$37:$CE$45,BI$1) -> 30 | BJ10: =VLOOKUP(DropDownList!$B$24,CntyQuery!$A$37:$CE$45,BJ$1) -> 20 | BK10: =VLOOKUP(DropDownList!$B$24,CntyQuery!$A$37:$CE$45,BK$1) -> 38 | BL10: =VLOOKUP(DropDownList!$B$24,CntyQuery!$A$37:$CE$45,BL$1) -> 138800 | BM10: =VLOOKUP(DropDownList!$B$24,CntyQuery!$A$37:$CE$45,BM$1) -> 2716 | BN10: =VLOOKUP(DropDownList!$B$24,CntyQuery!$A$37:$CE$45,BN$1) -> 628 | BO10: =VLOOKUP(DropDownList!$B$24,CntyQuery!$A$37:$CE$45,BO$1) -> 287 | BP10: =VLOOKUP(DropDownList!$B$24,CntyQuery!$A$37:$CE$45,BP$1) -> 1296 | BQ10: =VLOOKUP(DropDownList!$B$24,CntyQuery!$A$37:$CE$45,BQ$1) -> 73 | BR10: =VLOOKUP(DropDownList!$B$24,CntyQuery!$A$37:$CE$45,BR$1) -> 113 | BS10: =VLOOKUP(DropDownList!$B$24,CntyQuery!$A$37:$CE$45,BS$1) -> 174 | BT10: =VLOOKUP(DropDownList!$B$24,CntyQuery!$A$37:$CE$45,BT$1) -> 314 | BU10: =VLOOKUP(DropDownList!$B$24,CntyQuery!$A$37:$CE$45,BU$1) -> 47 | BV10: =VLOOKUP(DropDownList!$B$24,CntyQuery!$A$37:$CE$45,BV$1) -> 2716 | BW10: =VLOOKUP(DropDownList!$B$24,CntyQuery!$A$37:$CE$45,BW$1) -> 153 | BX10: =VLOOKUP(DropDownList!$B$24,CntyQuery!$A$37:$CE$45,BX$1) -> 106 | BY10: =VLOOKUP(DropDownList!$B$24,CntyQuery!$A$37:$CE$45,BY$1) -> 210 | BZ10: =VLOOKUP(DropDownList!$B$24,CntyQuery!$A$37:$CE$45,BZ$1) -> 93 | CA10: =VLOOKUP(DropDownList!$B$24,CntyQuery!$A$37:$CE$45,CA$1) -> 0 | CB10: =VLOOKUP(DropDownList!$B$24,CntyQuery!$A$37:$CE$45,CB$1) -> 66 | CC10: =VLOOKUP(DropDownList!$B$24,CntyQuery!$A$37:$CE$45,CC$1) -> 0 | CD10: =VLOOKUP(DropDownList!$B$24,CntyQuery!$A$37:$CE$45,CD$1) -> 165 | CE10: =VLOOKUP(DropDownList!$B$24,CntyQuery!$A$37:$CE$45,CE$1) -> 122
A13: Census 1990 Data - Query Name: TownSTF3Qry1
A14: NAME | B14: FIPS | C14: COUSUBFP | D14: LandAcres | E14: WaterAcres | F14: HousingUnits90Cen | G14: P01Persons90Cen | H14: P02Families90Cen | I14: P03Households90cen | J14: H25HU<5yrs90cen | K14: H25HU5to20yrs90cen | L14: H25HU20to50yrs90cen | M14: H25HU>50yrs90cen | N14: H31Units0Bedroom90cen | O14: H31Units1Bedroom90cen | P14: H31Units2Bedroom90cen | Q14: H31Units3Bedroom90cen | R14: H31Units4Bedroom90cen | S14: H31Units5+Bedroom90cen | T14: P80HI<5K | U14: P80HI5Kto10K | V14: P80HI10Kto15K | W14: P80HI15Kto25K | X14: P80HI25Kto35K | Y14: P80HI35Kto50K | Z14: P80HI50Kto75K | AA14: P80HI75Kto100K | AB14: P80HI>100K | AC14: P80AMedHI | AD14: P86HH<25HI<5K | AE14: P86HH<25HI5Kto10K | AF14: P86HH<25HI10Kto15K | AG14: P86HH<25HI15Kto25K | AH14: P86HH<25HI25Kto35K | AI14: P86HH<25HI35Kto50K | AJ14: P86HH<25HI50Kto75K | AK14: P86HH<25HI75Kto100K | AL14: P86HH<25HI>100K | AM14: P86HH25to34HI<5K | AN14: P86HH25to34HI5Kto10K | AO14: P86HH25to34HI10Kto15K | AP14: P86HH25to34HI15Kto25K | AQ14: P86HH25to34HI25Kto35K | AR14: P86HH25to34HI35Kto50K | AS14: P86HH25to34HI50Kto75K | AT14: P86HH25to34HI75Kto100K | AU14: P86HH25to34HI>100K | AV14: P86HH35to44HI<5K | AW14: P86HH35to44HI5Kto10K | AX14: P86HH35to44HI10Kto15K | AY14: P86HH35to44HI15Kto25K | AZ14: P86HH35to44HI25Kto35K | BA14: P86HH35to44HI35Kto50K | BB14: P86HH35to44HI50Kto75K | BC14: P86HH35to44HI75Kto100K | BD14: P86HH35to44HI>100K | BE14: P86HH45to54HI<5K | BF14: P86HH45to54HI5Kto10K | BG14: P86HH45to54HI10Kto15K | BH14: P86HH45to54HI15Kto25K | BI14: P86HH45to54HI25Kto35K | BJ14: P86HH45to54HI35Kto50K | BK14: P86HH45to54HI50Kto75K | BL14: P86HH45to54HI75Kto100K | BM14: P86HH45to54HI>100K | BN14: P86HH55to64HI<5K | BO14: P86HH55to64HI5Kto10K | BP14: P86HH55to64HI10Kto15K | BQ14: P86HH55to64HI15Kto25K | BR14: P86HH55to64HI25Kto35K | BS14: P86HH55to64HI35Kto50K | BT14: P86HH55to64HI50Kto75K | BU14: P86HH55to64HI75Kto100K | BV14: P86HH55to64HI>100K | BW14: P86HH65to74HI<5K | BX14: P86HH65to74HI5Kto10K | BY14: P86HH65to74HI10Kto15K | BZ14: P86HH65to74HI15Kto25K | CA14: P86HH65to74HI25Kto35K | CB14: P86HH65to74HI35Kto50K | CC14: P86HH65to74HI50Kto75K | CD14: P86HH65to74HI75Kto100K | CE14: P86HH65to74HI>100K | CF14: P86HH>75HI<5K | CG14: P86HH>75HI5Kto10K | CH14: P86HH>75HI10Kto15K | CI14: P86HH>75HI15Kto25K | CJ14: P86HH>75HI25Kto35K | CK14: P86HH>75HI35Kto50K | CL14: P86HH>75HI50Kto75K | CM14: P86HH>75HI75Kto100K | CN14: P86HH>75HI>100K | CO14: P54SchlEnrlPrePrim | CP14: P54SchlEnrlElemThrHS | CQ14: P54SchlEnrlCollege | CR14: P54NotEnrlInSch | CS14: P57Pop25andOver | CT14: P57LessThan9thGrade | CU14: P579thto12thNoDip | CV14: P57HSGrad | CW14: P57SomeCollege | CX14: P57AssocDeg | CY14: P57BachelDeg | CZ14: P57GradorProfDeg | DA14: P57HSGradorHigher | DB14: P57CollGradorHigher | DC14: P42NativePop | DD14: P42ForeignBornPop | DE14: P42BornStateOfRes | DF14: P37NativePop2 | DG14: P37ForeignBornPop2 | DH14: P49DroveAlone | DI14: P49CarPooled | DJ14: P49PublicTranspt | DK14: P49Walked | DL14: P49OtherMeans | DM14: P49WorkedAtHome | DN14: P80HHInc<10K | DO14: P80HHInc10to15K | DP14: P80HHInc15to25K | DQ14: P80HHInc25to35K | DR14: P80HHInc35to50K | DS14: P80HHInc50to75K | DT14: P80HHInc75to100K | DU14: P80HHInc100to150K | DV14: P80HHInc>150K | DW14: H25YearStBlt89to90 | DX14: H25YearStBlt85to88 | DY14: H25YearStBlt80to84 | DZ14: H25YearStBlt70to79 | EA14: H25YearStBlt60to69 | EB14: H25YearStBlt50to59 | EC14: H25YearStBlt40to49 | ED14: H25YearStBlt39earlier | EE14: P107FamInc<10K | EF14: P107FamInc10to15K | EG14: P107FamInc15to25K | EH14: P107FamInc25to35K | EI14: P107FamInc35to50K | EJ14: P107FamInc50to75K | EK14: P107FamInc75to100K | EL14: P107FamInc100to150K | EM14: P107FamInc>150K | EN14: P107AMedFamInc | EO14: P110NonFamInc<10K | EP14: P110NonFamInc10to15K | EQ14: P110NonFamInc15to25K | ER14: P110NonFamInc25to35K | ES14: P110NonFamInc35to50K | ET14: P110NonFamInc50to75K | EU14: P110NonFamInc75to100K | EV14: P110NonFamInc100to150K | EW14: P110NonFamInc>150K | EX14: P110AMedNonFamInc | EY14: H16HU1Room | EZ14: H16HU2Room | FA14: H16HU3Room | FB14: H16HU4Room | FC14: H16HU5Room | FD14: H16HU6Room | FE14: H16HU7Room | FF14: H16HU8Room | FG14: H16HU9+Room | FH14: H43GrossRnt<100 | FI14: H43GrossRnt100to149 | FJ14: H43GrossRnt150to199 | FK14: H43GrossRnt200to249 | FL14: H43GrossRnt250to299 | FM14: H43GrossRnt300to349 | FN14: H43GrossRnt350to399 | FO14: H43GrossRnt400to449 | FP14: H43GrossRnt450to499 | FQ14: H43GrossRnt500to549 | FR14: H43GrossRnt550to599 | FS14: H43GrossRnt600to649 | FT14: H43GrossRnt650to699 | FU14: H43GrossRnt700to749 | FV14: H43GrossRnt750to999 | FW14: H43GrossRnt1000Plus | FX14: H43NoCashRent | FY14: H43MedGrossRent | FZ14: H51GrossRnt<20PctHHInc | GA14: H51GrossRnt20to24PctHHInc | GB14: H51GrossRnt25to29PctHHInc | GC14: H51GrossRnt30to34PctHHInc | GD14: H51GrossRnt35PctOrMoreHHInc | GE14: H51GrossRntAsPctHHIncNotComp | GF14: H52HUwMtgMoOwnCst<200 | GG14: H52HUwMtgMoOwnCst200to299 | GH14: H52HUwMtgMoOwnCst300to399 | GI14: H52HUwMtgMoOwnCst400to499 | GJ14: H52HUwMtgMoOwnCst500to599 | GK14: H52HUwMtgMoOwnCst600to699 | GL14: H52HUwMtgMoOwnCst700to799 | GM14: H52HUwMtgMoOwnCst800to899 | GN14: H52HUwMtgMoOwnCst900to999 | GO14: H52HUwMtgMoOwnCst1000to1249 | GP14: H52HUwMtgMoOwnCst1250to1499 | GQ14: H52HUwMtgMoOwnCst1500to1999 | GR14: H52HUwMtgMoOwnCst2000More | GS14: H52HUwNoMtgMoOwnCst<100 | GT14: H52HUwNoMtgMoOwnCst100to149 | GU14: H52HUwNoMtgMoOwnCst150to199 | GV14: H52HUwNoMtgMoOwnCst200to249 | GW14: H52HUwNoMtgMoOwnCst250to299 | GX14: H52HUwNoMtgMoOwnCst300to349 | GY14: H52HUwNoMtgMoOwnCst350to399 | GZ14: H52HUwNoMtgMoOwnCst400More | HA14: H52AMedMoOwnCstWMortg | HB14: H52AMedMoOwnCstWNoMortg | HC14: H58HUwMtgMOC<20pHHInc | HD14: H58HUwMtgMOC20to24pHHInc | HE14: H58HUwMtgMOC25to29pHHInc | HF14: H58HUwMtgMOC30to34pHHInc | HG14: H58wMtgMOC>35pHHInc | HH14: H58HUwMtgMOCNotComp | HI14: H58HUwNoMtgMOC<20pHHInc | HJ14: H58HUwNoMtgMOC20to24pHHInc | HK14: H58HUwNoMtgMOC25to29pHHInc | HL14: H58HUwNoMtgMOC30to34pHHInc | HM14: H58wNoMtgMOC>35pHHInc | HN14: H58HUwNoMtgMOCNotComp | HO14: H61OOHUVal<15k | HP14: H61OOHUVal15to19k | HQ14: H61OOHUVal20to24k | HR14: H61OOHUVal25to29k | HS14: H61OOHUVal30to34k | HT14: H61OOHUVal35to39k | HU14: H61OOHUVal40to44k | HV14: H61OOHUVal45to49k | HW14: H61OOHUVal50to59k | HX14: H61OOHUVal60to74k | HY14: H61OOHUVal75to99k | HZ14: H61OOHUVal100to124k | IA14: H61OOHUVal125to149k | IB14: H61OOHUVal150to174k | IC14: H61OOHUVal175to199k | ID14: H61OOHUVal200to249k | IE14: H61OOHUVal250to299k | IF14: H61OOHUVal300to399k | IG14: H61OOHUVal400to499k | IH14: H61OOHUVal500kOrMore | II14: H61aOOHUMedVal
A15: =A20 -> Wolfeboro | B15: =VLOOKUP(DropDownList!$B$24,CntyQuery!$A$52:$II$62,B$1) ->  | C15: =VLOOKUP(DropDownList!$B$24,CntyQuery!$A$52:$II$62,C$1) ->  | D15: =VLOOKUP(DropDownList!$B$24,CntyQuery!$A$52:$II$62,D$1) ->  | E15: =VLOOKUP(DropDownList!$B$24,CntyQuery!$A$52:$II$62,E$1) ->  | F15: =VLOOKUP(DropDownList!$B$24,CntyQuery!$A$52:$II$62,F$1) ->  | G15: =VLOOKUP(DropDownList!$B$24,CntyQuery!$A$52:$II$62,G$1) ->  | H15: =VLOOKUP(DropDownList!$B$24,CntyQuery!$A$52:$II$62,H$1) ->  | I15: =VLOOKUP(DropDownList!$B$24,CntyQuery!$A$52:$II$62,I$1) ->  | J15: =VLOOKUP(DropDownList!$B$24,CntyQuery!$A$52:$II$62,J$1) ->  | K15: =VLOOKUP(DropDownList!$B$24,CntyQuery!$A$52:$II$62,K$1) ->  | L15: =VLOOKUP(DropDownList!$B$24,CntyQuery!$A$52:$II$62,L$1) ->  | M15: =VLOOKUP(DropDownList!$B$24,CntyQuery!$A$52:$II$62,M$1) ->  | N15: =VLOOKUP(DropDownList!$B$24,CntyQuery!$A$52:$II$62,N$1) ->  | O15: =VLOOKUP(DropDownList!$B$24,CntyQuery!$A$52:$II$62,O$1) ->  | P15: =VLOOKUP(DropDownList!$B$24,CntyQuery!$A$52:$II$62,P$1) ->  | Q15: =VLOOKUP(DropDownList!$B$24,CntyQuery!$A$52:$II$62,Q$1) ->  | R15: =VLOOKUP(DropDownList!$B$24,CntyQuery!$A$52:$II$62,R$1) ->  | S15: =VLOOKUP(DropDownList!$B$24,CntyQuery!$A$52:$II$62,S$1) ->  | T15: =VLOOKUP(DropDownList!$B$24,CntyQuery!$A$52:$II$62,T$1) ->  | U15: =VLOOKUP(DropDownList!$B$24,CntyQuery!$A$52:$II$62,U$1) ->  | V15: =VLOOKUP(DropDownList!$B$24,CntyQuery!$A$52:$II$62,V$1) ->  | W15: =VLOOKUP(DropDownList!$B$24,CntyQuery!$A$52:$II$62,W$1) ->  | X15: =VLOOKUP(DropDownList!$B$24,CntyQuery!$A$52:$II$62,X$1) ->  | Y15: =VLOOKUP(DropDownList!$B$24,CntyQuery!$A$52:$II$62,Y$1) ->  | Z15: =VLOOKUP(DropDownList!$B$24,CntyQuery!$A$52:$II$62,Z$1) ->  | AA15: =VLOOKUP(DropDownList!$B$24,CntyQuery!$A$52:$II$62,AA$1) ->  | AB15: =VLOOKUP(DropDownList!$B$24,CntyQuery!$A$52:$II$62,AB$1) ->  | AC15: =VLOOKUP(DropDownList!$B$24,CntyQuery!$A$52:$II$62,AC$1) ->  | AD15: =VLOOKUP(DropDownList!$B$24,CntyQuery!$A$52:$II$62,AD$1) ->  | AE15: =VLOOKUP(DropDownList!$B$24,CntyQuery!$A$52:$II$62,AE$1) ->  | AF15: =VLOOKUP(DropDownList!$B$24,CntyQuery!$A$52:$II$62,AF$1) ->  | AG15: =VLOOKUP(DropDownList!$B$24,CntyQuery!$A$52:$II$62,AG$1) ->  | AH15: =VLOOKUP(DropDownList!$B$24,CntyQuery!$A$52:$II$62,AH$1) ->  | AI15: =VLOOKUP(DropDownList!$B$24,CntyQuery!$A$52:$II$62,AI$1) ->  | AJ15: =VLOOKUP(DropDownList!$B$24,CntyQuery!$A$52:$II$62,AJ$1) ->  | AK15: =VLOOKUP(DropDownList!$B$24,CntyQuery!$A$52:$II$62,AK$1) ->  | AL15: =VLOOKUP(DropDownList!$B$24,CntyQuery!$A$52:$II$62,AL$1) ->  | AM15: =VLOOKUP(DropDownList!$B$24,CntyQuery!$A$52:$II$62,AM$1) ->  | AN15: =VLOOKUP(DropDownList!$B$24,CntyQuery!$A$52:$II$62,AN$1) ->  | AO15: =VLOOKUP(DropDownList!$B$24,CntyQuery!$A$52:$II$62,AO$1) ->  | AP15: =VLOOKUP(DropDownList!$B$24,CntyQuery!$A$52:$II$62,AP$1) ->  | AQ15: =VLOOKUP(DropDownList!$B$24,CntyQuery!$A$52:$II$62,AQ$1) ->  | AR15: =VLOOKUP(DropDownList!$B$24,CntyQuery!$A$52:$II$62,AR$1) ->  | AS15: =VLOOKUP(DropDownList!$B$24,CntyQuery!$A$52:$II$62,AS$1) ->  | AT15: =VLOOKUP(DropDownList!$B$24,CntyQuery!$A$52:$II$62,AT$1) ->  | AU15: =VLOOKUP(DropDownList!$B$24,CntyQuery!$A$52:$II$62,AU$1) ->  | AV15: =VLOOKUP(DropDownList!$B$24,CntyQuery!$A$52:$II$62,AV$1) ->  | AW15: =VLOOKUP(DropDownList!$B$24,CntyQuery!$A$52:$II$62,AW$1) ->  | AX15: =VLOOKUP(DropDownList!$B$24,CntyQuery!$A$52:$II$62,AX$1) ->  | AY15: =VLOOKUP(DropDownList!$B$24,CntyQuery!$A$52:$II$62,AY$1) ->  | AZ15: =VLOOKUP(DropDownList!$B$24,CntyQuery!$A$52:$II$62,AZ$1) ->  | BA15: =VLOOKUP(DropDownList!$B$24,CntyQuery!$A$52:$II$62,BA$1) ->  | BB15: =VLOOKUP(DropDownList!$B$24,CntyQuery!$A$52:$II$62,BB$1) ->  | BC15: =VLOOKUP(DropDownList!$B$24,CntyQuery!$A$52:$II$62,BC$1) ->  | BD15: =VLOOKUP(DropDownList!$B$24,CntyQuery!$A$52:$II$62,BD$1) ->  | BE15: =VLOOKUP(DropDownList!$B$24,CntyQuery!$A$52:$II$62,BE$1) ->  | BF15: =VLOOKUP(DropDownList!$B$24,CntyQuery!$A$52:$II$62,BF$1) ->  | BG15: =VLOOKUP(DropDownList!$B$24,CntyQuery!$A$52:$II$62,BG$1) ->  | BH15: =VLOOKUP(DropDownList!$B$24,CntyQuery!$A$52:$II$62,BH$1) ->  | BI15: =VLOOKUP(DropDownList!$B$24,CntyQuery!$A$52:$II$62,BI$1) ->  | BJ15: =VLOOKUP(DropDownList!$B$24,CntyQuery!$A$52:$II$62,BJ$1) ->  | BK15: =VLOOKUP(DropDownList!$B$24,CntyQuery!$A$52:$II$62,BK$1) ->  | BL15: =VLOOKUP(DropDownList!$B$24,CntyQuery!$A$52:$II$62,BL$1) ->  | BM15: =VLOOKUP(DropDownList!$B$24,CntyQuery!$A$52:$II$62,BM$1) ->  | BN15: =VLOOKUP(DropDownList!$B$24,CntyQuery!$A$52:$II$62,BN$1) ->  | BO15: =VLOOKUP(DropDownList!$B$24,CntyQuery!$A$52:$II$62,BO$1) ->  | BP15: =VLOOKUP(DropDownList!$B$24,CntyQuery!$A$52:$II$62,BP$1) ->  | BQ15: =VLOOKUP(DropDownList!$B$24,CntyQuery!$A$52:$II$62,BQ$1) ->  | BR15: =VLOOKUP(DropDownList!$B$24,CntyQuery!$A$52:$II$62,BR$1) ->  | BS15: =VLOOKUP(DropDownList!$B$24,CntyQuery!$A$52:$II$62,BS$1) ->  | BT15: =VLOOKUP(DropDownList!$B$24,CntyQuery!$A$52:$II$62,BT$1) ->  | BU15: =VLOOKUP(DropDownList!$B$24,CntyQuery!$A$52:$II$62,BU$1) ->  | BV15: =VLOOKUP(DropDownList!$B$24,CntyQuery!$A$52:$II$62,BV$1) ->  | BW15: =VLOOKUP(DropDownList!$B$24,CntyQuery!$A$52:$II$62,BW$1) ->  | BX15: =VLOOKUP(DropDownList!$B$24,CntyQuery!$A$52:$II$62,BX$1) ->  | BY15: =VLOOKUP(DropDownList!$B$24,CntyQuery!$A$52:$II$62,BY$1) ->  | BZ15: =VLOOKUP(DropDownList!$B$24,CntyQuery!$A$52:$II$62,BZ$1) ->  | CA15: =VLOOKUP(DropDownList!$B$24,CntyQuery!$A$52:$II$62,CA$1) ->  | CB15: =VLOOKUP(DropDownList!$B$24,CntyQuery!$A$52:$II$62,CB$1) ->  | CC15: =VLOOKUP(DropDownList!$B$24,CntyQuery!$A$52:$II$62,CC$1) ->  | CD15: =VLOOKUP(DropDownList!$B$24,CntyQuery!$A$52:$II$62,CD$1) ->  | CE15: =VLOOKUP(DropDownList!$B$24,CntyQuery!$A$52:$II$62,CE$1) ->  | CF15: =VLOOKUP(DropDownList!$B$24,CntyQuery!$A$52:$II$62,CF$1) ->  | CG15: =VLOOKUP(DropDownList!$B$24,CntyQuery!$A$52:$II$62,CG$1) ->  | CH15: =VLOOKUP(DropDownList!$B$24,CntyQuery!$A$52:$II$62,CH$1) ->  | CI15: =VLOOKUP(DropDownList!$B$24,CntyQuery!$A$52:$II$62,CI$1) ->  | CJ15: =VLOOKUP(DropDownList!$B$24,CntyQuery!$A$52:$II$62,CJ$1) ->  | CK15: =VLOOKUP(DropDownList!$B$24,CntyQuery!$A$52:$II$62,CK$1) ->  | CL15: =VLOOKUP(DropDownList!$B$24,CntyQuery!$A$52:$II$62,CL$1) ->  | CM15: =VLOOKUP(DropDownList!$B$24,CntyQuery!$A$52:$II$62,CM$1) ->  | CN15: =VLOOKUP(DropDownList!$B$24,CntyQuery!$A$52:$II$62,CN$1) ->  | CO15: =VLOOKUP(DropDownList!$B$24,CntyQuery!$A$52:$II$62,CO$1) ->  | CP15: =VLOOKUP(DropDownList!$B$24,CntyQuery!$A$52:$II$62,CP$1) ->  | CQ15: =VLOOKUP(DropDownList!$B$24,CntyQuery!$A$52:$II$62,CQ$1) ->  | CR15: =VLOOKUP(DropDownList!$B$24,CntyQuery!$A$52:$II$62,CR$1) ->  | CS15: =VLOOKUP(DropDownList!$B$24,CntyQuery!$A$52:$II$62,CS$1) ->  | CT15: =VLOOKUP(DropDownList!$B$24,CntyQuery!$A$52:$II$62,CT$1) ->  | CU15: =VLOOKUP(DropDownList!$B$24,CntyQuery!$A$52:$II$62,CU$1) ->  | CV15: =VLOOKUP(DropDownList!$B$24,CntyQuery!$A$52:$II$62,CV$1) ->  | CW15: =VLOOKUP(DropDownList!$B$24,CntyQuery!$A$52:$II$62,CW$1) ->  | CX15: =VLOOKUP(DropDownList!$B$24,CntyQuery!$A$52:$II$62,CX$1) ->  | CY15: =VLOOKUP(DropDownList!$B$24,CntyQuery!$A$52:$II$62,CY$1) ->  | CZ15: =VLOOKUP(DropDownList!$B$24,CntyQuery!$A$52:$II$62,CZ$1) ->  | DA15: =VLOOKUP(DropDownList!$B$24,CntyQuery!$A$52:$II$62,DA$1) ->  | DB15: =VLOOKUP(DropDownList!$B$24,CntyQuery!$A$52:$II$62,DB$1) ->  | DC15: =VLOOKUP(DropDownList!$B$24,CntyQuery!$A$52:$II$62,DC$1) ->  | DD15: =VLOOKUP(DropDownList!$B$24,CntyQuery!$A$52:$II$62,DD$1) ->  | DE15: =VLOOKUP(DropDownList!$B$24,CntyQuery!$A$52:$II$62,DE$1) ->  | DF15: =VLOOKUP(DropDownList!$B$24,CntyQuery!$A$52:$II$62,DF$1) ->  | DG15: =VLOOKUP(DropDownList!$B$24,CntyQuery!$A$52:$II$62,DG$1) ->  | DH15: =VLOOKUP(DropDownList!$B$24,CntyQuery!$A$52:$II$62,DH$1) ->  | DI15: =VLOOKUP(DropDownList!$B$24,CntyQuery!$A$52:$II$62,DI$1) ->  | DJ15: =VLOOKUP(DropDownList!$B$24,CntyQuery!$A$52:$II$62,DJ$1) ->  | DK15: =VLOOKUP(DropDownList!$B$24,CntyQuery!$A$52:$II$62,DK$1) ->  | DL15: =VLOOKUP(DropDownList!$B$24,CntyQuery!$A$52:$II$62,DL$1) ->  | DM15: =VLOOKUP(DropDownList!$B$24,CntyQuery!$A$52:$II$62,DM$1) ->  | DN15: =VLOOKUP(DropDownList!$B$24,CntyQuery!$A$52:$II$62,DN$1) ->  | DO15: =VLOOKUP(DropDownList!$B$24,CntyQuery!$A$52:$II$62,DO$1) ->  | DP15: =VLOOKUP(DropDownList!$B$24,CntyQuery!$A$52:$II$62,DP$1) ->  | DQ15: =VLOOKUP(DropDownList!$B$24,CntyQuery!$A$52:$II$62,DQ$1) ->  | DR15: =VLOOKUP(DropDownList!$B$24,CntyQuery!$A$52:$II$62,DR$1) ->  | DS15: =VLOOKUP(DropDownList!$B$24,CntyQuery!$A$52:$II$62,DS$1) ->  | DT15: =VLOOKUP(DropDownList!$B$24,CntyQuery!$A$52:$II$62,DT$1) ->  | DU15: =VLOOKUP(DropDownList!$B$24,CntyQuery!$A$52:$II$62,DU$1) ->  | DV15: =VLOOKUP(DropDownList!$B$24,CntyQuery!$A$52:$II$62,DV$1) ->  | DW15: =VLOOKUP(DropDownList!$B$24,CntyQuery!$A$52:$II$62,DW$1) ->  | DX15: =VLOOKUP(DropDownList!$B$24,CntyQuery!$A$52:$II$62,DX$1) ->  | DY15: =VLOOKUP(DropDownList!$B$24,CntyQuery!$A$52:$II$62,DY$1) ->  | DZ15: =VLOOKUP(DropDownList!$B$24,CntyQuery!$A$52:$II$62,DZ$1) ->  | EA15: =VLOOKUP(DropDownList!$B$24,CntyQuery!$A$52:$II$62,EA$1) ->  | EB15: =VLOOKUP(DropDownList!$B$24,CntyQuery!$A$52:$II$62,EB$1) ->  | EC15: =VLOOKUP(DropDownList!$B$24,CntyQuery!$A$52:$II$62,EC$1) ->  | ED15: =VLOOKUP(DropDownList!$B$24,CntyQuery!$A$52:$II$62,ED$1) ->  | EE15: =VLOOKUP(DropDownList!$B$24,CntyQuery!$A$52:$II$62,EE$1) ->  | EF15: =VLOOKUP(DropDownList!$B$24,CntyQuery!$A$52:$II$62,EF$1) ->  | EG15: =VLOOKUP(DropDownList!$B$24,CntyQuery!$A$52:$II$62,EG$1) ->  | EH15: =VLOOKUP(DropDownList!$B$24,CntyQuery!$A$52:$II$62,EH$1) ->  | EI15: =VLOOKUP(DropDownList!$B$24,CntyQuery!$A$52:$II$62,EI$1) ->  | EJ15: =VLOOKUP(DropDownList!$B$24,CntyQuery!$A$52:$II$62,EJ$1) ->  | EK15: =VLOOKUP(DropDownList!$B$24,CntyQuery!$A$52:$II$62,EK$1) ->  | EL15: =VLOOKUP(DropDownList!$B$24,CntyQuery!$A$52:$II$62,EL$1) ->  | EM15: =VLOOKUP(DropDownList!$B$24,CntyQuery!$A$52:$II$62,EM$1) ->  | EN15: =VLOOKUP(DropDownList!$B$24,CntyQuery!$A$52:$II$62,EN$1) ->  | EO15: =VLOOKUP(DropDownList!$B$24,CntyQuery!$A$52:$II$62,EO$1) ->  | EP15: =VLOOKUP(DropDownList!$B$24,CntyQuery!$A$52:$II$62,EP$1) ->  | EQ15: =VLOOKUP(DropDownList!$B$24,CntyQuery!$A$52:$II$62,EQ$1) ->  | ER15: =VLOOKUP(DropDownList!$B$24,CntyQuery!$A$52:$II$62,ER$1) ->  | ES15: =VLOOKUP(DropDownList!$B$24,CntyQuery!$A$52:$II$62,ES$1) ->  | ET15: =VLOOKUP(DropDownList!$B$24,CntyQuery!$A$52:$II$62,ET$1) ->  | EU15: =VLOOKUP(DropDownList!$B$24,CntyQuery!$A$52:$II$62,EU$1) ->  | EV15: =VLOOKUP(DropDownList!$B$24,CntyQuery!$A$52:$II$62,EV$1) ->  | EW15: =VLOOKUP(DropDownList!$B$24,CntyQuery!$A$52:$II$62,EW$1) ->  | EX15: =VLOOKUP(DropDownList!$B$24,CntyQuery!$A$52:$II$62,EX$1) ->  | EY15: =VLOOKUP(DropDownList!$B$24,CntyQuery!$A$52:$II$62,EY$1) ->  | EZ15: =VLOOKUP(DropDownList!$B$24,CntyQuery!$A$52:$II$62,EZ$1) ->  | FA15: =VLOOKUP(DropDownList!$B$24,CntyQuery!$A$52:$II$62,FA$1) ->  | FB15: =VLOOKUP(DropDownList!$B$24,CntyQuery!$A$52:$II$62,FB$1) ->  | FC15: =VLOOKUP(DropDownList!$B$24,CntyQuery!$A$52:$II$62,FC$1) ->  | FD15: =VLOOKUP(DropDownList!$B$24,CntyQuery!$A$52:$II$62,FD$1) ->  | FE15: =VLOOKUP(DropDownList!$B$24,CntyQuery!$A$52:$II$62,FE$1) ->  | FF15: =VLOOKUP(DropDownList!$B$24,CntyQuery!$A$52:$II$62,FF$1) ->  | FG15: =VLOOKUP(DropDownList!$B$24,CntyQuery!$A$52:$II$62,FG$1) ->  | FH15: =VLOOKUP(DropDownList!$B$24,CntyQuery!$A$52:$II$62,FH$1) ->  | FI15: =VLOOKUP(DropDownList!$B$24,CntyQuery!$A$52:$II$62,FI$1) ->  | FJ15: =VLOOKUP(DropDownList!$B$24,CntyQuery!$A$52:$II$62,FJ$1) ->  | FK15: =VLOOKUP(DropDownList!$B$24,CntyQuery!$A$52:$II$62,FK$1) ->  | FL15: =VLOOKUP(DropDownList!$B$24,CntyQuery!$A$52:$II$62,FL$1) ->  | FM15: =VLOOKUP(DropDownList!$B$24,CntyQuery!$A$52:$II$62,FM$1) ->  | FN15: =VLOOKUP(DropDownList!$B$24,CntyQuery!$A$52:$II$62,FN$1) ->  | FO15: =VLOOKUP(DropDownList!$B$24,CntyQuery!$A$52:$II$62,FO$1) ->  | FP15: =VLOOKUP(DropDownList!$B$24,CntyQuery!$A$52:$II$62,FP$1) ->  | FQ15: =VLOOKUP(DropDownList!$B$24,CntyQuery!$A$52:$II$62,FQ$1) ->  | FR15: =VLOOKUP(DropDownList!$B$24,CntyQuery!$A$52:$II$62,FR$1) ->  | FS15: =VLOOKUP(DropDownList!$B$24,CntyQuery!$A$52:$II$62,FS$1) ->  | FT15: =VLOOKUP(DropDownList!$B$24,CntyQuery!$A$52:$II$62,FT$1) ->  | FU15: =VLOOKUP(DropDownList!$B$24,CntyQuery!$A$52:$II$62,FU$1) ->  | FV15: =VLOOKUP(DropDownList!$B$24,CntyQuery!$A$52:$II$62,FV$1) ->  | FW15: =VLOOKUP(DropDownList!$B$24,CntyQuery!$A$52:$II$62,FW$1) ->  | FX15: =VLOOKUP(DropDownList!$B$24,CntyQuery!$A$52:$II$62,FX$1) ->  | FY15: =VLOOKUP(DropDownList!$B$24,CntyQuery!$A$52:$II$62,FY$1) ->  | FZ15: =VLOOKUP(DropDownList!$B$24,CntyQuery!$A$52:$II$62,FZ$1) ->  | GA15: =VLOOKUP(DropDownList!$B$24,CntyQuery!$A$52:$II$62,GA$1) ->  | GB15: =VLOOKUP(DropDownList!$B$24,CntyQuery!$A$52:$II$62,GB$1) ->  | GC15: =VLOOKUP(DropDownList!$B$24,CntyQuery!$A$52:$II$62,GC$1) ->  | GD15: =VLOOKUP(DropDownList!$B$24,CntyQuery!$A$52:$II$62,GD$1) ->  | GE15: =VLOOKUP(DropDownList!$B$24,CntyQuery!$A$52:$II$62,GE$1) ->  | GF15: =VLOOKUP(DropDownList!$B$24,CntyQuery!$A$52:$II$62,GF$1) ->  | GG15: =VLOOKUP(DropDownList!$B$24,CntyQuery!$A$52:$II$62,GG$1) ->  | GH15: =VLOOKUP(DropDownList!$B$24,CntyQuery!$A$52:$II$62,GH$1) ->  | GI15: =VLOOKUP(DropDownList!$B$24,CntyQuery!$A$52:$II$62,GI$1) ->  | GJ15: =VLOOKUP(DropDownList!$B$24,CntyQuery!$A$52:$II$62,GJ$1) ->  | GK15: =VLOOKUP(DropDownList!$B$24,CntyQuery!$A$52:$II$62,GK$1) ->  | GL15: =VLOOKUP(DropDownList!$B$24,CntyQuery!$A$52:$II$62,GL$1) ->  | GM15: =VLOOKUP(DropDownList!$B$24,CntyQuery!$A$52:$II$62,GM$1) ->  | GN15: =VLOOKUP(DropDownList!$B$24,CntyQuery!$A$52:$II$62,GN$1) ->  | GO15: =VLOOKUP(DropDownList!$B$24,CntyQuery!$A$52:$II$62,GO$1) ->  | GP15: =VLOOKUP(DropDownList!$B$24,CntyQuery!$A$52:$II$62,GP$1) ->  | GQ15: =VLOOKUP(DropDownList!$B$24,CntyQuery!$A$52:$II$62,GQ$1) ->  | GR15: =VLOOKUP(DropDownList!$B$24,CntyQuery!$A$52:$II$62,GR$1) ->  | GS15: =VLOOKUP(DropDownList!$B$24,CntyQuery!$A$52:$II$62,GS$1) ->  | GT15: =VLOOKUP(DropDownList!$B$24,CntyQuery!$A$52:$II$62,GT$1) ->  | GU15: =VLOOKUP(DropDownList!$B$24,CntyQuery!$A$52:$II$62,GU$1) ->  | GV15: =VLOOKUP(DropDownList!$B$24,CntyQuery!$A$52:$II$62,GV$1) ->  | GW15: =VLOOKUP(DropDownList!$B$24,CntyQuery!$A$52:$II$62,GW$1) ->  | GX15: =VLOOKUP(DropDownList!$B$24,CntyQuery!$A$52:$II$62,GX$1) ->  | GY15: =VLOOKUP(DropDownList!$B$24,CntyQuery!$A$52:$II$62,GY$1) ->  | GZ15: =VLOOKUP(DropDownList!$B$24,CntyQuery!$A$52:$II$62,GZ$1) ->  | HA15: =VLOOKUP(DropDownList!$B$24,CntyQuery!$A$52:$II$62,HA$1) ->  | HB15: =VLOOKUP(DropDownList!$B$24,CntyQuery!$A$52:$II$62,HB$1) ->  | HC15: =VLOOKUP(DropDownList!$B$24,CntyQuery!$A$52:$II$62,HC$1) ->  | HD15: =VLOOKUP(DropDownList!$B$24,CntyQuery!$A$52:$II$62,HD$1) ->  | HE15: =VLOOKUP(DropDownList!$B$24,CntyQuery!$A$52:$II$62,HE$1) ->  | HF15: =VLOOKUP(DropDownList!$B$24,CntyQuery!$A$52:$II$62,HF$1) ->  | HG15: =VLOOKUP(DropDownList!$B$24,CntyQuery!$A$52:$II$62,HG$1) ->  | HH15: =VLOOKUP(DropDownList!$B$24,CntyQuery!$A$52:$II$62,HH$1) ->  | HI15: =VLOOKUP(DropDownList!$B$24,CntyQuery!$A$52:$II$62,HI$1) ->  | HJ15: =VLOOKUP(DropDownList!$B$24,CntyQuery!$A$52:$II$62,HJ$1) ->  | HK15: =VLOOKUP(DropDownList!$B$24,CntyQuery!$A$52:$II$62,HK$1) ->  | HL15: =VLOOKUP(DropDownList!$B$24,CntyQuery!$A$52:$II$62,HL$1) ->  | HM15: =VLOOKUP(DropDownList!$B$24,CntyQuery!$A$52:$II$62,HM$1) ->  | HN15: =VLOOKUP(DropDownList!$B$24,CntyQuery!$A$52:$II$62,HN$1) ->  | HO15: =VLOOKUP(DropDownList!$B$24,CntyQuery!$A$52:$II$62,HO$1) ->  | HP15: =VLOOKUP(DropDownList!$B$24,CntyQuery!$A$52:$II$62,HP$1) ->  | HQ15: =VLOOKUP(DropDownList!$B$24,CntyQuery!$A$52:$II$62,HQ$1) ->  | HR15: =VLOOKUP(DropDownList!$B$24,CntyQuery!$A$52:$II$62,HR$1) ->  | HS15: =VLOOKUP(DropDownList!$B$24,CntyQuery!$A$52:$II$62,HS$1) ->  | HT15: =VLOOKUP(DropDownList!$B$24,CntyQuery!$A$52:$II$62,HT$1) ->  | HU15: =VLOOKUP(DropDownList!$B$24,CntyQuery!$A$52:$II$62,HU$1) ->  | HV15: =VLOOKUP(DropDownList!$B$24,CntyQuery!$A$52:$II$62,HV$1) ->  | HW15: =VLOOKUP(DropDownList!$B$24,CntyQuery!$A$52:$II$62,HW$1) ->  | HX15: =VLOOKUP(DropDownList!$B$24,CntyQuery!$A$52:$II$62,HX$1) ->  | HY15: =VLOOKUP(DropDownList!$B$24,CntyQuery!$A$52:$II$62,HY$1) ->  | HZ15: =VLOOKUP(DropDownList!$B$24,CntyQuery!$A$52:$II$62,HZ$1) ->  | IA15: =VLOOKUP(DropDownList!$B$24,CntyQuery!$A$52:$II$62,IA$1) ->  | IB15: =VLOOKUP(DropDownList!$B$24,CntyQuery!$A$52:$II$62,IB$1) ->  | IC15: =VLOOKUP(DropDownList!$B$24,CntyQuery!$A$52:$II$62,IC$1) ->  | ID15: =VLOOKUP(DropDownList!$B$24,CntyQuery!$A$52:$II$62,ID$1) ->  | IE15: =VLOOKUP(DropDownList!$B$24,CntyQuery!$A$52:$II$62,IE$1) ->  | IF15: =VLOOKUP(DropDownList!$B$24,CntyQuery!$A$52:$II$62,IF$1) ->  | IG15: =VLOOKUP(DropDownList!$B$24,CntyQuery!$A$52:$II$62,IG$1) ->  | IH15: =VLOOKUP(DropDownList!$B$24,CntyQuery!$A$52:$II$62,IH$1) ->  | II15: =VLOOKUP(DropDownList!$B$24,CntyQuery!$A$52:$II$62,II$1) -> 
A19: TOWN_NAME | B19: FIPS | C19: TOWNCNTY | D19: COUSUB | E19: POP80 | F19: POP90CDCEN | G19: POP2000CEN | H19: POP2010CEN | I19: POP2020CEN | J19: POP2025-Proj | K19: POP2030-Proj | L19: POP2035-Proj | M19: SF80 | N19: MF80 | O19: MH80 | P19: SF81 | Q19: MF81 | R19: MH81 | S19: SF82 | T19: MF82 | U19: MH82 | V19: SF83 | W19: MF83 | X19: MH83 | Y19: SF84_OSP | Z19: MF84_OSP | AA19: MH84_OSP | AB19: SF85_OSP | AC19: MF85_OSP | AD19: MH85_OSP | AE19: SF86_OSP | AF19: MF86_OSP | AG19: MH86_OSP | AH19: SF87_OSP | AI19: MF87_OSP | AJ19: MH87_OSP | AK19: SF88_OSP | AL19: MF88_OSP | AM19: MH88_OSP | AN19: SF89_OSP | AO19: MF89_OSP | AP19: MH89_OSP | AQ19: SF90_OSP | AR19: MF90_OSP | AS19: MH90_OSP | AT19: SF91_OSP | AU19: MF91_OSP | AV19: MH91_OSP | AW19: SF92_OSP | AX19: MF92_OSP | AY19: MH92_OSP | AZ19: SF93_OSP | BA19: MF93_OSP | BB19: MH93_OSP | BC19: SF94_OSP | BD19: MF94_OSP | BE19: MH94_OSP | BF19: SF95_OSP | BG19: MF95_OSP | BH19: MH95_OSP | BI19: SF96_OSP | BJ19: MF96_OSP | BK19: MH96_OSP | BL19: SF97_OSP | BM19: MF97_OSP | BN19: MH97_OSP | BO19: SF98_OSP | BP19: MF98_OSP | BQ19: MH98_OSP | BR19: SF99_OSP | BS19: MF99_OSP | BT19: MH99_OSP | BU19: SF00_OSP | BV19: MF00_OSP | BW19: MH00_OSP | BX19: SF01_OSP | BY19: MF01_OSP | BZ19: MH01_OSP | CA19: SF02_OSP | CB19: MF02_OSP | CC19: MH02_OSP | CD19: SF03_OSP | CE19: MF03_OSP | CF19: MH03_OSP | CG19: SF04_OSP | CH19: MF04_OSP | CI19: MH04_OSP | CJ19: SF05_OSP | CK19: MF05_OSP | CL19: MH05_OSP | CM19: SF06_OSP | CN19: MF06_OSP | CO19: MH06_OSP | CP19: SF07_OSP | CQ19: MF07_OSP | CR19: MH07_OSP | CS19: SF08_OSP | CT19: MF08_OSP | CU19: MH08_OSP | CV19: SF09_OSP | CW19: MF09_OSP | CX19: MH09_OSP | CY19: SF10_OSP | CZ19: MF10_OSP | DA19: MH10_OSP | DB19: SF11_OSP | DC19: MF11_OSP | DD19: MH11_OSP | DE19: SF12_OSP | DF19: MF12_OSP | DG19: MH12_OSP | DH19: SF13_OSP | DI19: MF13_OSP | DJ19: MH13_OSP | DK19: SF14_OSP | DL19: MF14_OSP | DM19: MH14_OSP | DN19: SF15_OSP | DO19: MF15_OSP | DP19: MH15_OSP | DQ19: SF16_OSP | DR19: MF16_OSP | DS19: MH16_OSP | DT19: SF17_OSP | DU19: MF17_OSP | DV19: MH17_OSP | DW19: SF18_OSP | DX19: MF18_OSP | DY19: MH18_OSP | DZ19: SF19_OSP | EA19: MF19_OSP | EB19: MH19_OSP | EC19: SF20_OSP | ED19: MF20_OSP | EE19: MH20_OSP | EF19: SF20 Census_OSP | EG19: MF20 Census OSP | EH19: MH20 Census_OSP | EI19: SF21_OSP | EJ19: MF21_OSP | EK19: MH21_OSP | EL19: COMMENTS | EM19: CNTY_CODE
A20: =VLOOKUP(DropDownList!$B$24,CntyQuery!$A$99:$FT$117,A$1) -> Wolfeboro | B20: =VLOOKUP(DropDownList!$B$24,CntyQuery!$A$99:$FT$117,B$1) -> 2 | C20: =VLOOKUP(DropDownList!$B$24,CntyQuery!$A$70:$FZ$88,C$1) -> 218 | D20: =VLOOKUP(DropDownList!$B$24,CntyQuery!$A$70:$FZ$88,D$1) -> 86420 | E20: =VLOOKUP(DropDownList!$B$24,CntyQuery!$A$70:$FZ$88,E$1) -> 3968 | F20: =VLOOKUP(DropDownList!$B$24,CntyQuery!$A$70:$FZ$88,F$1) -> 4807 | G20: =VLOOKUP(DropDownList!$B$24,CntyQuery!$A$70:$FZ$88,G$1) -> 6083 | H20: =VLOOKUP(DropDownList!$B$24,CntyQuery!$A$70:$FZ$88,H$1) -> 6269 | I20: =VLOOKUP(DropDownList!$B$24,CntyQuery!$A$70:$FZ$88,I$1) -> 6416 | J20: =VLOOKUP(DropDownList!$B$24,CntyQuery!$A$70:$FZ$88,J$1) -> 6696 | K20: =VLOOKUP(DropDownList!$B$24,CntyQuery!$A$70:$FZ$88,K$1) -> 6917 | L20: =VLOOKUP(DropDownList!$B$24,CntyQuery!$A$70:$FZ$88,L$1) -> 7035 | M20: =VLOOKUP(DropDownList!$B$24,CntyQuery!$A$70:$FZ$88,M$1) -> 34 | N20: =VLOOKUP(DropDownList!$B$24,CntyQuery!$A$70:$FZ$88,N$1) -> 7 | O20: =VLOOKUP(DropDownList!$B$24,CntyQuery!$A$70:$FZ$88,O$1) -> 0 | P20: =VLOOKUP(DropDownList!$B$24,CntyQuery!$A$70:$FZ$88,P$1) -> 26 | Q20: =VLOOKUP(DropDownList!$B$24,CntyQuery!$A$70:$FZ$88,Q$1) -> 16 | R20: =VLOOKUP(DropDownList!$B$24,CntyQuery!$A$70:$FZ$88,R$1) -> 0 | S20: =VLOOKUP(DropDownList!$B$24,CntyQuery!$A$70:$FZ$88,S$1) -> 31 | T20: =VLOOKUP(DropDownList!$B$24,CntyQuery!$A$70:$FZ$88,T$1) -> 38 | U20: =VLOOKUP(DropDownList!$B$24,CntyQuery!$A$70:$FZ$88,U$1) -> 0 | V20: =VLOOKUP(DropDownList!$B$24,CntyQuery!$A$70:$FZ$88,V$1) -> 37 | W20: =VLOOKUP(DropDownList!$B$24,CntyQuery!$A$70:$FZ$88,W$1) -> 0 | X20: =VLOOKUP(DropDownList!$B$24,CntyQuery!$A$70:$FZ$88,X$1) -> 0 | Y20: =VLOOKUP(DropDownList!$B$24,CntyQuery!$A$70:$FZ$88,Y$1) -> 80 | Z20: =VLOOKUP(DropDownList!$B$24,CntyQuery!$A$70:$FZ$88,Z$1) -> 6 | AA20: =VLOOKUP(DropDownList!$B$24,CntyQuery!$A$70:$FZ$88,AA$1) -> 0 | AB20: =VLOOKUP(DropDownList!$B$24,CntyQuery!$A$70:$FZ$88,AB$1) -> 91 | AC20: =VLOOKUP(DropDownList!$B$24,CntyQuery!$A$70:$FZ$88,AC$1) -> 9 | AD20: =VLOOKUP(DropDownList!$B$24,CntyQuery!$A$70:$FZ$88,AD$1) -> 12 | AE20: =VLOOKUP(DropDownList!$B$24,CntyQuery!$A$70:$FZ$88,AE$1) -> 160 | AF20: =VLOOKUP(DropDownList!$B$24,CntyQuery!$A$70:$FZ$88,AF$1) -> 40 | AG20: =VLOOKUP(DropDownList!$B$24,CntyQuery!$A$70:$FZ$88,AG$1) -> 23 | AH20: =VLOOKUP(DropDownList!$B$24,CntyQuery!$A$70:$FZ$88,AH$1) -> 59 | AI20: =VLOOKUP(DropDownList!$B$24,CntyQuery!$A$70:$FZ$88,AI$1) -> -1 | AJ20: =VLOOKUP(DropDownList!$B$24,CntyQuery!$A$70:$FZ$88,AJ$1) -> 4 | AK20: =VLOOKUP(DropDownList!$B$24,CntyQuery!$A$70:$FZ$88,AK$1) -> 57 | AL20: =VLOOKUP(DropDownList!$B$24,CntyQuery!$A$70:$FZ$88,AL$1) -> 3 | AM20: =VLOOKUP(DropDownList!$B$24,CntyQuery!$A$70:$FZ$88,AM$1) -> 16 | AN20: =VLOOKUP(DropDownList!$B$24,CntyQuery!$A$70:$FZ$88,AN$1) -> 19 | AO20: =VLOOKUP(DropDownList!$B$24,CntyQuery!$A$70:$FZ$88,AO$1) -> 2 | AP20: =VLOOKUP(DropDownList!$B$24,CntyQuery!$A$70:$FZ$88,AP$1) -> 5 | AQ20: =VLOOKUP(DropDownList!$B$24,CntyQuery!$A$70:$FZ$88,AQ$1) -> 33 | AR20: =VLOOKUP(DropDownList!$B$24,CntyQuery!$A$70:$FZ$88,AR$1) -> 0 | AS20: =VLOOKUP(DropDownList!$B$24,CntyQuery!$A$70:$FZ$88,AS$1) -> 1 | AT20: =VLOOKUP(DropDownList!$B$24,CntyQuery!$A$70:$FZ$88,AT$1) -> 55 | AU20: =VLOOKUP(DropDownList!$B$24,CntyQuery!$A$70:$FZ$88,AU$1) -> 0 | AV20: =VLOOKUP(DropDownList!$B$24,CntyQuery!$A$70:$FZ$88,AV$1) -> 3 | AW20: =VLOOKUP(DropDownList!$B$24,CntyQuery!$A$70:$FZ$88,AW$1) -> 45 | AX20: =VLOOKUP(DropDownList!$B$24,CntyQuery!$A$70:$FZ$88,AX$1) -> 2 | AY20: =VLOOKUP(DropDownList!$B$24,CntyQuery!$A$70:$FZ$88,AY$1) -> 3 | AZ20: =VLOOKUP(DropDownList!$B$24,CntyQuery!$A$70:$FZ$88,AZ$1) -> 50 | BA20: =VLOOKUP(DropDownList!$B$24,CntyQuery!$A$70:$FZ$88,BA$1) -> 3 | BB20: =VLOOKUP(DropDownList!$B$24,CntyQuery!$A$70:$FZ$88,BB$1) -> 0 | BC20: =VLOOKUP(DropDownList!$B$24,CntyQuery!$A$70:$FZ$88,BC$1) -> 44 | BD20: =VLOOKUP(DropDownList!$B$24,CntyQuery!$A$70:$FZ$88,BD$1) -> 0 | BE20: =VLOOKUP(DropDownList!$B$24,CntyQuery!$A$70:$FZ$88,BE$1) -> 2 | BF20: =VLOOKUP(DropDownList!$B$24,CntyQuery!$A$70:$FZ$88,BF$1) -> 40 | BG20: =VLOOKUP(DropDownList!$B$24,CntyQuery!$A$70:$FZ$88,BG$1) -> 0 | BH20: =VLOOKUP(DropDownList!$B$24,CntyQuery!$A$70:$FZ$88,BH$1) -> 7 | BI20: =VLOOKUP(DropDownList!$B$24,CntyQuery!$A$70:$FZ$88,BI$1) -> 44 | BJ20: =VLOOKUP(DropDownList!$B$24,CntyQuery!$A$70:$FZ$88,BJ$1) -> 1 | BK20: =VLOOKUP(DropDownList!$B$24,CntyQuery!$A$70:$FZ$88,BK$1) -> 5 | BL20: =VLOOKUP(DropDownList!$B$24,CntyQuery!$A$70:$FZ$88,BL$1) -> 19 | BM20: =VLOOKUP(DropDownList!$B$24,CntyQuery!$A$70:$FZ$88,BM$1) -> 0 | BN20: =VLOOKUP(DropDownList!$B$24,CntyQuery!$A$70:$FZ$88,BN$1) -> 0 | BO20: =VLOOKUP(DropDownList!$B$24,CntyQuery!$A$70:$FZ$88,BO$1) -> 43 | BP20: =VLOOKUP(DropDownList!$B$24,CntyQuery!$A$70:$FZ$88,BP$1) -> 0 | BQ20: =VLOOKUP(DropDownList!$B$24,CntyQuery!$A$70:$FZ$88,BQ$1) -> 6 | BR20: =VLOOKUP(DropDownList!$B$24,CntyQuery!$A$70:$FZ$88,BR$1) -> 45 | BS20: =VLOOKUP(DropDownList!$B$24,CntyQuery!$A$70:$FZ$88,BS$1) -> 0 | BT20: =VLOOKUP(DropDownList!$B$24,CntyQuery!$A$70:$FZ$88,BT$1) -> 3 | BU20: =VLOOKUP(DropDownList!$B$24,CntyQuery!$A$70:$FZ$88,BU$1) -> 55 | BV20: =VLOOKUP(DropDownList!$B$24,CntyQuery!$A$70:$FZ$88,BV$1) -> 0 | BW20: =VLOOKUP(DropDownList!$B$24,CntyQuery!$A$70:$FZ$88,BW$1) -> 0 | BX20: =VLOOKUP(DropDownList!$B$24,CntyQuery!$A$70:$FZ$88,BX$1) -> 70 | BY20: =VLOOKUP(DropDownList!$B$24,CntyQuery!$A$70:$FZ$88,BY$1) -> 0 | BZ20: =VLOOKUP(DropDownList!$B$24,CntyQuery!$A$70:$FZ$88,BZ$1) -> 0 | CA20: =VLOOKUP(DropDownList!$B$24,CntyQuery!$A$70:$FZ$88,CA$1) -> 66 | CB20: =VLOOKUP(DropDownList!$B$24,CntyQuery!$A$70:$FZ$88,CB$1) -> 0 | CC20: =VLOOKUP(DropDownList!$B$24,CntyQuery!$A$70:$FZ$88,CC$1) -> 1 | CD20: =VLOOKUP(DropDownList!$B$24,CntyQuery!$A$70:$FZ$88,CD$1) -> 60 | CE20: =VLOOKUP(DropDownList!$B$24,CntyQuery!$A$70:$FZ$88,CE$1) -> 0 | CF20: =VLOOKUP(DropDownList!$B$24,CntyQuery!$A$70:$FZ$88,CF$1) -> 0 | CG20: =VLOOKUP(DropDownList!$B$24,CntyQuery!$A$70:$FZ$88,CG$1) -> 60 | CH20: =VLOOKUP(DropDownList!$B$24,CntyQuery!$A$70:$FZ$88,CH$1) -> 0 | CI20: =VLOOKUP(DropDownList!$B$24,CntyQuery!$A$70:$FZ$88,CI$1) -> 0 | CJ20: =VLOOKUP(DropDownList!$B$24,CntyQuery!$A$70:$FZ$88,CJ$1) -> 16 | CK20: =VLOOKUP(DropDownList!$B$24,CntyQuery!$A$70:$FZ$88,CK$1) -> 4 | CL20: =VLOOKUP(DropDownList!$B$24,CntyQuery!$A$70:$FZ$88,CL$1) -> 0 | CM20: =VLOOKUP(DropDownList!$B$24,CntyQuery!$A$70:$FZ$88,CM$1) -> 4 | CN20: =VLOOKUP(DropDownList!$B$24,CntyQuery!$A$70:$FZ$88,CN$1) -> 0 | CO20: =VLOOKUP(DropDownList!$B$24,CntyQuery!$A$70:$FZ$88,CO$1) -> 0 | CP20: =VLOOKUP(DropDownList!$B$24,CntyQuery!$A$70:$FZ$88,CP$1) -> 17 | CQ20: =VLOOKUP(DropDownList!$B$24,CntyQuery!$A$70:$FZ$88,CQ$1) -> 0 | CR20: =VLOOKUP(DropDownList!$B$24,CntyQuery!$A$70:$FZ$88,CR$1) -> 0 | CS20: =VLOOKUP(DropDownList!$B$24,CntyQuery!$A$70:$FZ$88,CS$1) -> 2 | CT20: =VLOOKUP(DropDownList!$B$24,CntyQuery!$A$70:$FZ$88,CT$1) -> 2 | CU20: =VLOOKUP(DropDownList!$B$24,CntyQuery!$A$70:$FZ$88,CU$1) -> 0 | CV20: =VLOOKUP(DropDownList!$B$24,CntyQuery!$A$70:$FZ$88,CV$1) -> -8 | CW20: =VLOOKUP(DropDownList!$B$24,CntyQuery!$A$70:$FZ$88,CW$1) -> 0 | CX20: =VLOOKUP(DropDownList!$B$24,CntyQuery!$A$70:$FZ$88,CX$1) -> 0 | CY20: =VLOOKUP(DropDownList!$B$24,CntyQuery!$A$70:$FZ$88,CY$1) -> -9 | CZ20: =VLOOKUP(DropDownList!$B$24,CntyQuery!$A$70:$FZ$88,CZ$1) -> 0 | DA20: =VLOOKUP(DropDownList!$B$24,CntyQuery!$A$70:$FZ$88,DA$1) -> 0 | DB20: =VLOOKUP(DropDownList!$B$24,CntyQuery!$A$70:$FZ$88,DB$1) -> 0 | DC20: =VLOOKUP(DropDownList!$B$24,CntyQuery!$A$70:$FZ$88,DC$1) -> 0 | DD20: =VLOOKUP(DropDownList!$B$24,CntyQuery!$A$70:$FZ$88,DD$1) -> 0 | DE20: =VLOOKUP(DropDownList!$B$24,CntyQuery!$A$70:$FZ$88,DE$1) -> 2 | DF20: =VLOOKUP(DropDownList!$B$24,CntyQuery!$A$70:$FZ$88,DF$1) -> 24 | DG20: =VLOOKUP(DropDownList!$B$24,CntyQuery!$A$70:$FZ$88,DG$1) -> -1 | DH20: =VLOOKUP(DropDownList!$B$24,CntyQuery!$A$70:$FZ$88,DH$1) -> 8 | DI20: =VLOOKUP(DropDownList!$B$24,CntyQuery!$A$70:$FZ$88,DI$1) -> 24 | DJ20: =VLOOKUP(DropDownList!$B$24,CntyQuery!$A$70:$FZ$88,DJ$1) -> 0 | DK20: =VLOOKUP(DropDownList!$B$24,CntyQuery!$A$70:$FZ$88,DK$1) -> 12 | DL20: =VLOOKUP(DropDownList!$B$24,CntyQuery!$A$70:$FZ$88,DL$1) -> 0 | DM20: =VLOOKUP(DropDownList!$B$24,CntyQuery!$A$70:$FZ$88,DM$1) -> 0 | DN20: =VLOOKUP(DropDownList!$B$24,CntyQuery!$A$70:$FZ$88,DN$1) -> 5 | DO20: =VLOOKUP(DropDownList!$B$24,CntyQuery!$A$70:$FZ$88,DO$1) -> 0 | DP20: =VLOOKUP(DropDownList!$B$24,CntyQuery!$A$70:$FZ$88,DP$1) -> 0 | DQ20: =VLOOKUP(DropDownList!$B$24,CntyQuery!$A$70:$FZ$88,DQ$1) -> 6 | DR20: =VLOOKUP(DropDownList!$B$24,CntyQuery!$A$70:$FZ$88,DR$1) -> 0 | DS20: =VLOOKUP(DropDownList!$B$24,CntyQuery!$A$70:$FZ$88,DS$1) -> 0 | DT20: =VLOOKUP(DropDownList!$B$24,CntyQuery!$A$70:$FZ$88,DT$1) -> 15 | DU20: =VLOOKUP(DropDownList!$B$24,CntyQuery!$A$70:$FZ$88,DU$1) -> 2 | DV20: =VLOOKUP(DropDownList!$B$24,CntyQuery!$A$70:$FZ$88,DV$1) -> 0 | DW20: =VLOOKUP(DropDownList!$B$24,CntyQuery!$A$70:$FZ$88,DW$1) -> 22 | DX20: =VLOOKUP(DropDownList!$B$24,CntyQuery!$A$70:$FZ$88,DX$1) -> 2 | DY20: =VLOOKUP(DropDownList!$B$24,CntyQuery!$A$70:$FZ$88,DY$1) -> 0 | DZ20: =VLOOKUP(DropDownList!$B$24,CntyQuery!$A$70:$FZ$88,DZ$1) -> 30 | EA20: =VLOOKUP(DropDownList!$B$24,CntyQuery!$A$70:$FZ$88,EA$1) -> 6 | EB20: =VLOOKUP(DropDownList!$B$24,CntyQuery!$A$70:$FZ$88,EB$1) -> 0 | EC20: =VLOOKUP(DropDownList!$B$24,CntyQuery!$A$70:$FZ$88,EC$1) -> 14 | ED20: =VLOOKUP(DropDownList!$B$24,CntyQuery!$A$70:$FZ$88,ED$1) -> 7 | EE20: =VLOOKUP(DropDownList!$B$24,CntyQuery!$A$70:$FZ$88,EE$1) -> 0 | EF20: =VLOOKUP(DropDownList!$B$24,CntyQuery!$A$70:$FZ$88,EF$1) -> 0 | EG20: =VLOOKUP(DropDownList!$B$24,CntyQuery!$A$70:$FZ$88,EG$1) -> 0 | EH20: =VLOOKUP(DropDownList!$B$24,CntyQuery!$A$70:$FZ$88,EH$1) -> 0 | EI20: =VLOOKUP(DropDownList!$B$24,CntyQuery!$A$70:$FZ$88,EI$1) -> 9 | EJ20: =VLOOKUP(DropDownList!$B$24,CntyQuery!$A$70:$FZ$88,EJ$1) -> 1 | EK20: =VLOOKUP(DropDownList!$B$24,CntyQuery!$A$70:$FZ$88,EK$1) -> 0 | EL20: =VLOOKUP(DropDownList!$B$24,CntyQuery!$A$70:$FZ$88,EL$1) ->  | EM20: =VLOOKUP(DropDownList!$B$24,CntyQuery!$A$70:$FZ$88,EM$1) -> 2
A23: NH Employment Data | B23: Query Name: DPQryEmploymentByCnty
A24: NAME | B24: COUNTYCODE | C24: TOTP & G2001 | D24: TOT2001 | E24: GOODPRO2001 | F24: SERVICEPROMAN2001 | G24: WAGEP & G2001 | H24: WAGETOT2001 | I24: WAGEGOODPRO2001 | J24: WAGESERVICEPRO2001 | K24: TOTP & G2002 | L24: TOT2002 | M24: GOODPRO2002 | N24: SERVICEPROMAN2002 | O24: WAGEP & G2002 | P24: WAGETOT2002 | Q24: WAGEGOODPRO2002 | R24: WAGESERVICEPRO2002 | S24: TOTP & G2003 | T24: TOT2003 | U24: GOODPRO2003 | V24: SERVICEPROMAN2003 | W24: WAGEP & G2003 | X24: WAGETOT2003 | Y24: WAGEGOODPRO2003 | Z24: WAGESERVICEPRO2003 | AA24: TOTP & G2004 | AB24: TOT2004 | AC24: GOODPRO2004 | AD24: SERVICEPROMAN2004 | AE24: WAGEP & G2004 | AF24: WAGETOT2004 | AG24: WAGEGOODPRO2004 | AH24: WAGESERVICEPRO2004 | AI24: TOTP & G2005 | AJ24: TOT2005 | AK24: GOODPRO2005 | AL24: SERVICEPROMAN2005 | AM24: WAGEP & G2005 | AN24: WAGETOT2005 | AO24: WAGEGOODPRO2005 | AP24: WAGESERVICEPRO2005 | AQ24: TOTP & G2006 | AR24: TOT2006 | AS24: GOODPRO2006 | AT24: SERVICEPROMAN2006 | AU24: WAGEP & G2006 | AV24: WAGETOT2006 | AW24: WAGEGOODPRO2006 | AX24: WAGESERVICEPRO2006 | AY24: TOTP & G2007 | AZ24: TOT2007 | BA24: GOODPRO2007 | BB24: SERVICEPROMAN2007 | BC24: WAGEP & G2007 | BD24: WAGETOT2007 | BE24: WAGEGOODPRO2007 | BF24: WAGESERVICEPRO2007 | BG24: TOTP & G2008 | BH24: TOT2008 | BI24: GOODPRO2008 | BJ24: SERVICEPROMAN2008 | BK24: WAGEP & G2008 | BL24: WAGETOT2008 | BM24: WAGEGOODPRO2008 | BN24: WAGESERVICEPRO2008 | BO24: TOTP & G2009 | BP24: TOT2009 | BQ24: GOODPRO2009 | BR24: SERVICEPROMAN2009 | BS24: WAGEP & G2009 | BT24: WAGETOT2009 | BU24: WAGEGOODPRO2009 | BV24: WAGESERVICEPRO2009 | BW24: TOTP & G2010 | BX24: TOT2010 | BY24: GOODPRO2010 | BZ24: SERVICEPROMAN2010 | CA24: WAGEP & G2010 | CB24: WAGETOT2010 | CC24: WAGEGOODPRO2010 | CD24: WAGESERVICEPRO2010 | CE24: TOTP & G2011 | CF24: TOT2011 | CG24: GOODPRO2011 | CH24: SERVICEPROMAN2011 | CI24: WAGEP & G2011 | CJ24: WAGETOT2011 | CK24: WAGEGOODPRO2011 | CL24: WAGESERVICEPRO2011 | CM24: TOTP & G2012 | CN24: TOT2012 | CO24: GOODPRO2012 | CP24: SERVICEPROMAN2012 | CQ24: WAGEP & G2012 | CR24: WAGETOT2012 | CS24: WAGEGOODPRO2012 | CT24: WAGESERVICEPRO2012 | CU24: TOTP & G2013 | CV24: TOT2013 | CW24: GOODPRO2013 | CX24: SERVICEPROMAN2013 | CY24: WAGEP & G2013 | CZ24: WAGETOT2013 | DA24: WAGEGOODPRO2013 | DB24: WAGESERVICEPRO2013 | DC24: TOTP & G2014 | DD24: TOT2014 | DE24: GOODPRO2014 | DF24: SERVICEPROMAN2014 | DG24: WAGEP & G2014 | DH24: WAGETOT2014 | DI24: WAGEGOODPRO2014 | DJ24: WAGESERVICEPRO2014 | DK24: TOTP & G2015 | DL24: TOT2015 | DM24: GOODPRO2015 | DN24: SERVICEPROMAN2015 | DO24: WAGEP & G2015 | DP24: WAGETOT2015 | DQ24: WAGEGOODPRO2015 | DR24: WAGESERVICEPRO2015 | DS24: TOTP & G2016 | DT24: TOT2016 | DU24: GOODPRO2016 | DV24: SERVICEPROMAN2016 | DW24: WAGEP & G2016 | DX24: WAGETOT2016 | DY24: WAGEGOODPRO2016 | DZ24: WAGESERVICEPRO2016 | EA24: TOTP & G2017 | EB24: TOT2017 | EC24: GOODPRO2017 | ED24: SERVICEPROMAN2017 | EE24: WAGEP & G2017 | EF24: WAGETOT2017 | EG24: WAGEGOODPRO2017 | EH24: WAGESERVICEPRO2017 | EI24: TOTP & G2018 | EJ24: TOT2018 | EK24: GOODPRO2018 | EL24: SERVICEPROMAN2018 | EM24: WAGEP & G2018 | EN24: WAGETOT2018 | EO24: WAGEGOODPRO2018 | EP24: WAGESERVICEPRO2018 | EQ24: TOTP & G2019 | ER24: TOT2019 | ES24: TOTGov2019 | ET24: GOODPRO2019 | EU24: SERVICEPROMAN2019 | EV24: WAGEP & G2019 | EW24: WAGETOT2019 | EX24: WAGEGov2019 | EY24: WAGEGOODPRO2019 | EZ24: WAGESERVICEPRO2019 | FA24: TOTP & G2020 | FB24: TOT2020 | FC24: TOTGov2020 | FD24: GOODPRO2020 | FE24: SERVICEPROMAN2020 | FF24: WAGEP & G2020 | FG24: WAGETOT2020 | FH24: WAGEGov2020 | FI24: WAGEGOODPRO2020 | FJ24: WAGESERVICEPRO2020 | FK24: TOTP & G2021 | FL24: TOT2021 | FM24: TOTGov2021 | FN24: GOODPRO2021 | FO24: SERVICEPROMAN2021 | FP24: WAGEP & G2021 | FQ24: WAGETOT2021 | FR24: WAGEGov2021 | FS24: WAGEGOODPRO2021 | FT24: WAGESERVICEPRO2021 | FU24: TOTP & G2022 | FV24: TOT2022 | FW24: TOTGov2022 | FX24: GOODPRO2022 | FY24: SERVICEPROMAN2022 | FZ24: WAGEP & G2022 | GA24: WAGETOT2022 | GB24: WAGEGov2022 | GC24: WAGEGOODPRO2022 | GD24: WAGESERVICEPRO2022 | GE24: COUNTYCODE
A25: =VLOOKUP(DropDownList!$B$24,CntyQuery!$A$99:$GZ$117,A$1) -> Wolfeboro | B25: =VLOOKUP(DropDownList!$B$24,CntyQuery!$A$99:$GZ$117,B$1) -> 2 | C25: =VLOOKUP(DropDownList!$B$24,CntyQuery!$A$99:$GZ$117,C$1) -> 3283 | D25: =VLOOKUP(DropDownList!$B$24,CntyQuery!$A$99:$GZ$117,D$1) -> 2830 | E25: =VLOOKUP(DropDownList!$B$24,CntyQuery!$A$99:$GZ$117,E$1) -> 374 | F25: =VLOOKUP(DropDownList!$B$24,CntyQuery!$A$99:$GZ$117,F$1) -> 2456 | G25: =VLOOKUP(DropDownList!$B$24,CntyQuery!$A$99:$GZ$117,G$1) -> 545.19 | H25: =VLOOKUP(DropDownList!$B$24,CntyQuery!$A$99:$GZ$117,H$1) -> 535.09 | I25: =VLOOKUP(DropDownList!$B$24,CntyQuery!$A$99:$GZ$117,I$1) -> 599.39 | J25: =VLOOKUP(DropDownList!$B$24,CntyQuery!$A$99:$GZ$117,J$1) -> 525.31 | K25: =VLOOKUP(DropDownList!$B$24,CntyQuery!$A$99:$GZ$117,K$1) -> 3409 | L25: =VLOOKUP(DropDownList!$B$24,CntyQuery!$A$99:$GZ$117,L$1) -> 2937 | M25: =VLOOKUP(DropDownList!$B$24,CntyQuery!$A$99:$GZ$117,M$1) -> 358 | N25: =VLOOKUP(DropDownList!$B$24,CntyQuery!$A$99:$GZ$117,N$1) -> 2579 | O25: =VLOOKUP(DropDownList!$B$24,CntyQuery!$A$99:$GZ$117,O$1) -> 544.08 | P25: =VLOOKUP(DropDownList!$B$24,CntyQuery!$A$99:$GZ$117,P$1) -> 534.38 | Q25: =VLOOKUP(DropDownList!$B$24,CntyQuery!$A$99:$GZ$117,Q$1) -> 565.14 | R25: =VLOOKUP(DropDownList!$B$24,CntyQuery!$A$99:$GZ$117,R$1) -> 530.11 | S25: =VLOOKUP(DropDownList!$B$24,CntyQuery!$A$99:$GZ$117,S$1) -> 3459 | T25: =VLOOKUP(DropDownList!$B$24,CntyQuery!$A$99:$GZ$117,T$1) -> 2989 | U25: =VLOOKUP(DropDownList!$B$24,CntyQuery!$A$99:$GZ$117,U$1) -> 372 | V25: =VLOOKUP(DropDownList!$B$24,CntyQuery!$A$99:$GZ$117,V$1) -> 2617 | W25: =VLOOKUP(DropDownList!$B$24,CntyQuery!$A$99:$GZ$117,W$1) -> 568.21 | X25: =VLOOKUP(DropDownList!$B$24,CntyQuery!$A$99:$GZ$117,X$1) -> 557.88 | Y25: =VLOOKUP(DropDownList!$B$24,CntyQuery!$A$99:$GZ$117,Y$1) -> 609.42 | Z25: =VLOOKUP(DropDownList!$B$24,CntyQuery!$A$99:$GZ$117,Z$1) -> 550.55 | AA25: =VLOOKUP(DropDownList!$B$24,CntyQuery!$A$99:$GZ$117,AA$1) -> 3540 | AB25: =VLOOKUP(DropDownList!$B$24,CntyQuery!$A$99:$GZ$117,AB$1) -> 3068 | AC25: =VLOOKUP(DropDownList!$B$24,CntyQuery!$A$99:$GZ$117,AC$1) -> 345 | AD25: =VLOOKUP(DropDownList!$B$24,CntyQuery!$A$99:$GZ$117,AD$1) -> 2724 | AE25: =VLOOKUP(DropDownList!$B$24,CntyQuery!$A$99:$GZ$117,AE$1) -> 598.21 | AF25: =VLOOKUP(DropDownList!$B$24,CntyQuery!$A$99:$GZ$117,AF$1) -> 589.05 | AG25: =VLOOKUP(DropDownList!$B$24,CntyQuery!$A$99:$GZ$117,AG$1) -> 653.38 | AH25: =VLOOKUP(DropDownList!$B$24,CntyQuery!$A$99:$GZ$117,AH$1) -> 580.91 | AI25: =VLOOKUP(DropDownList!$B$24,CntyQuery!$A$99:$GZ$117,AI$1) -> 3514 | AJ25: =VLOOKUP(DropDownList!$B$24,CntyQuery!$A$99:$GZ$117,AJ$1) -> 3009 | AK25: =VLOOKUP(DropDownList!$B$24,CntyQuery!$A$99:$GZ$117,AK$1) -> 342 | AL25: =VLOOKUP(DropDownList!$B$24,CntyQuery!$A$99:$GZ$117,AL$1) -> 2667 | AM25: =VLOOKUP(DropDownList!$B$24,CntyQuery!$A$99:$GZ$117,AM$1) -> 611.36 | AN25: =VLOOKUP(DropDownList!$B$24,CntyQuery!$A$99:$GZ$117,AN$1) -> 605.86 | AO25: =VLOOKUP(DropDownList!$B$24,CntyQuery!$A$99:$GZ$117,AO$1) -> 682.86 | AP25: =VLOOKUP(DropDownList!$B$24,CntyQuery!$A$99:$GZ$117,AP$1) -> 595.99 | AQ25: =VLOOKUP(DropDownList!$B$24,CntyQuery!$A$99:$GZ$117,AQ$1) -> 3493 | AR25: =VLOOKUP(DropDownList!$B$24,CntyQuery!$A$99:$GZ$117,AR$1) -> 2981 | AS25: =VLOOKUP(DropDownList!$B$24,CntyQuery!$A$99:$GZ$117,AS$1) -> 342 | AT25: =VLOOKUP(DropDownList!$B$24,CntyQuery!$A$99:$GZ$117,AT$1) -> 2639 | AU25: =VLOOKUP(DropDownList!$B$24,CntyQuery!$A$99:$GZ$117,AU$1) -> 640.87 | AV25: =VLOOKUP(DropDownList!$B$24,CntyQuery!$A$99:$GZ$117,AV$1) -> 637.52 | AW25: =VLOOKUP(DropDownList!$B$24,CntyQuery!$A$99:$GZ$117,AW$1) -> 777.77 | AX25: =VLOOKUP(DropDownList!$B$24,CntyQuery!$A$99:$GZ$117,AX$1) -> 619.37 | AY25: =VLOOKUP(DropDownList!$B$24,CntyQuery!$A$99:$GZ$117,AY$1) -> 3410 | AZ25: =VLOOKUP(DropDownList!$B$24,CntyQuery!$A$99:$GZ$117,AZ$1) -> 2897 | BA25: =VLOOKUP(DropDownList!$B$24,CntyQuery!$A$99:$GZ$117,BA$1) -> 322 | BB25: =VLOOKUP(DropDownList!$B$24,CntyQuery!$A$99:$GZ$117,BB$1) -> 2575 | BC25: =VLOOKUP(DropDownList!$B$24,CntyQuery!$A$99:$GZ$117,BC$1) -> 695.31 | BD25: =VLOOKUP(DropDownList!$B$24,CntyQuery!$A$99:$GZ$117,BD$1) -> 695.42 | BE25: =VLOOKUP(DropDownList!$B$24,CntyQuery!$A$99:$GZ$117,BE$1) -> 838.44 | BF25: =VLOOKUP(DropDownList!$B$24,CntyQuery!$A$99:$GZ$117,BF$1) -> 677.53 | BG25: =VLOOKUP(DropDownList!$B$24,CntyQuery!$A$99:$GZ$117,BG$1) -> 3382 | BH25: =VLOOKUP(DropDownList!$B$24,CntyQuery!$A$99:$GZ$117,BH$1) -> 2873 | BI25: =VLOOKUP(DropDownList!$B$24,CntyQuery!$A$99:$GZ$117,BI$1) -> 312 | BJ25: =VLOOKUP(DropDownList!$B$24,CntyQuery!$A$99:$GZ$117,BJ$1) -> 2562 | BK25: =VLOOKUP(DropDownList!$B$24,CntyQuery!$A$99:$GZ$117,BK$1) -> 715.72 | BL25: =VLOOKUP(DropDownList!$B$24,CntyQuery!$A$99:$GZ$117,BL$1) -> 713.3 | BM25: =VLOOKUP(DropDownList!$B$24,CntyQuery!$A$99:$GZ$117,BM$1) -> 818.01 | BN25: =VLOOKUP(DropDownList!$B$24,CntyQuery!$A$99:$GZ$117,BN$1) -> 700.56 | BO25: =VLOOKUP(DropDownList!$B$24,CntyQuery!$A$99:$GZ$117,BO$1) -> 3292 | BP25: =VLOOKUP(DropDownList!$B$24,CntyQuery!$A$99:$GZ$117,BP$1) -> 2770 | BQ25: =VLOOKUP(DropDownList!$B$24,CntyQuery!$A$99:$GZ$117,BQ$1) -> 272 | BR25: =VLOOKUP(DropDownList!$B$24,CntyQuery!$A$99:$GZ$117,BR$1) -> 2498 | BS25: =VLOOKUP(DropDownList!$B$24,CntyQuery!$A$99:$GZ$117,BS$1) -> 691.4 | BT25: =VLOOKUP(DropDownList!$B$24,CntyQuery!$A$99:$GZ$117,BT$1) -> 681.23 | BU25: =VLOOKUP(DropDownList!$B$24,CntyQuery!$A$99:$GZ$117,BU$1) -> 841.75 | BV25: =VLOOKUP(DropDownList!$B$24,CntyQuery!$A$99:$GZ$117,BV$1) -> 663.73 | BW25: =VLOOKUP(DropDownList!$B$24,CntyQuery!$A$99:$GZ$117,BW$1) -> 3196 | BX25: =VLOOKUP(DropDownList!$B$24,CntyQuery!$A$99:$GZ$117,BX$1) -> 2688 | BY25: =VLOOKUP(DropDownList!$B$24,CntyQuery!$A$99:$GZ$117,BY$1) -> 261 | BZ25: =VLOOKUP(DropDownList!$B$24,CntyQuery!$A$99:$GZ$117,BZ$1) -> 2427 | CA25: =VLOOKUP(DropDownList!$B$24,CntyQuery!$A$99:$GZ$117,CA$1) -> 702.45 | CB25: =VLOOKUP(DropDownList!$B$24,CntyQuery!$A$99:$GZ$117,CB$1) -> 692.79 | CC25: =VLOOKUP(DropDownList!$B$24,CntyQuery!$A$99:$GZ$117,CC$1) -> 836.35 | CD25: =VLOOKUP(DropDownList!$B$24,CntyQuery!$A$99:$GZ$117,CD$1) -> 677.38 | CE25: =VLOOKUP(DropDownList!$B$24,CntyQuery!$A$99:$GZ$117,CE$1) -> 3118 | CF25: =VLOOKUP(DropDownList!$B$24,CntyQuery!$A$99:$GZ$117,CF$1) -> 2616 | CG25: =VLOOKUP(DropDownList!$B$24,CntyQuery!$A$99:$GZ$117,CG$1) -> 273 | CH25: =VLOOKUP(DropDownList!$B$24,CntyQuery!$A$99:$GZ$117,CH$1) -> 2344 | CI25: =VLOOKUP(DropDownList!$B$24,CntyQuery!$A$99:$GZ$117,CI$1) -> 718.76 | CJ25: =VLOOKUP(DropDownList!$B$24,CntyQuery!$A$99:$GZ$117,CJ$1) -> 701.84 | CK25: =VLOOKUP(DropDownList!$B$24,CntyQuery!$A$99:$GZ$117,CK$1) -> 851.81 | CL25: =VLOOKUP(DropDownList!$B$24,CntyQuery!$A$99:$GZ$117,CL$1) -> 684.4 | CM25: =VLOOKUP(DropDownList!$B$24,CntyQuery!$A$99:$GZ$117,CM$1) -> 3028 | CN25: =VLOOKUP(DropDownList!$B$24,CntyQuery!$A$99:$GZ$117,CN$1) -> 2517 | CO25: =VLOOKUP(DropDownList!$B$24,CntyQuery!$A$99:$GZ$117,CO$1) -> 211 | CP25: =VLOOKUP(DropDownList!$B$24,CntyQuery!$A$99:$GZ$117,CP$1) -> 2306 | CQ25: =VLOOKUP(DropDownList!$B$24,CntyQuery!$A$99:$GZ$117,CQ$1) -> 720.14 | CR25: =VLOOKUP(DropDownList!$B$24,CntyQuery!$A$99:$GZ$117,CR$1) -> 702.92 | CS25: =VLOOKUP(DropDownList!$B$24,CntyQuery!$A$99:$GZ$117,CS$1) -> 781.9 | CT25: =VLOOKUP(DropDownList!$B$24,CntyQuery!$A$99:$GZ$117,CT$1) -> 695.7 | CU25: =VLOOKUP(DropDownList!$B$24,CntyQuery!$A$99:$GZ$117,CU$1) -> 3001 | CV25: =VLOOKUP(DropDownList!$B$24,CntyQuery!$A$99:$GZ$117,CV$1) -> 2480 | CW25: =VLOOKUP(DropDownList!$B$24,CntyQuery!$A$99:$GZ$117,CW$1) -> 216 | CX25: =VLOOKUP(DropDownList!$B$24,CntyQuery!$A$99:$GZ$117,CX$1) -> 2264 | CY25: =VLOOKUP(DropDownList!$B$24,CntyQuery!$A$99:$GZ$117,CY$1) -> 740.65 | CZ25: =VLOOKUP(DropDownList!$B$24,CntyQuery!$A$99:$GZ$117,CZ$1) -> 726.5 | DA25: =VLOOKUP(DropDownList!$B$24,CntyQuery!$A$99:$GZ$117,DA$1) -> 827.03 | DB25: =VLOOKUP(DropDownList!$B$24,CntyQuery!$A$99:$GZ$117,DB$1) -> 716.89 | DC25: =VLOOKUP(DropDownList!$B$24,CntyQuery!$A$99:$GZ$117,DC$1) -> 2993 | DD25: =VLOOKUP(DropDownList!$B$24,CntyQuery!$A$99:$GZ$117,DD$1) -> 2477 | DE25: =VLOOKUP(DropDownList!$B$24,CntyQuery!$A$99:$GZ$117,DE$1) -> 214 | DF25: =VLOOKUP(DropDownList!$B$24,CntyQuery!$A$99:$GZ$117,DF$1) -> 2262 | DG25: =VLOOKUP(DropDownList!$B$24,CntyQuery!$A$99:$GZ$117,DG$1) -> 750.08 | DH25: =VLOOKUP(DropDownList!$B$24,CntyQuery!$A$99:$GZ$117,DH$1) -> 735.1 | DI25: =VLOOKUP(DropDownList!$B$24,CntyQuery!$A$99:$GZ$117,DI$1) -> 818.56 | DJ25: =VLOOKUP(DropDownList!$B$24,CntyQuery!$A$99:$GZ$117,DJ$1) -> 727.19 | DK25: =VLOOKUP(DropDownList!$B$24,CntyQuery!$A$99:$GZ$117,DK$1) -> 3025 | DL25: =VLOOKUP(DropDownList!$B$24,CntyQuery!$A$99:$GZ$117,DL$1) -> 2515 | DM25: =VLOOKUP(DropDownList!$B$24,CntyQuery!$A$99:$GZ$117,DM$1) -> 223 | DN25: =VLOOKUP(DropDownList!$B$24,CntyQuery!$A$99:$GZ$117,DN$1) -> 2292 | DO25: =VLOOKUP(DropDownList!$B$24,CntyQuery!$A$99:$GZ$117,DO$1) -> 768.38 | DP25: =VLOOKUP(DropDownList!$B$24,CntyQuery!$A$99:$GZ$117,DP$1) -> 753.87 | DQ25: =VLOOKUP(DropDownList!$B$24,CntyQuery!$A$99:$GZ$117,DQ$1) -> 865.09 | DR25: =VLOOKUP(DropDownList!$B$24,CntyQuery!$A$99:$GZ$117,DR$1) -> 743.05 | DS25: =VLOOKUP(DropDownList!$B$24,CntyQuery!$A$99:$GZ$117,DS$1) -> 3126 | DT25: =VLOOKUP(DropDownList!$B$24,CntyQuery!$A$99:$GZ$117,DT$1) -> 2611 | DU25: =VLOOKUP(DropDownList!$B$24,CntyQuery!$A$99:$GZ$117,DU$1) -> 253 | DV25: =VLOOKUP(DropDownList!$B$24,CntyQuery!$A$99:$GZ$117,DV$1) -> 2358 | DW25: =VLOOKUP(DropDownList!$B$24,CntyQuery!$A$99:$GZ$117,DW$1) -> 793.72 | DX25: =VLOOKUP(DropDownList!$B$24,CntyQuery!$A$99:$GZ$117,DX$1) -> 773.56 | DY25: =VLOOKUP(DropDownList!$B$24,CntyQuery!$A$99:$GZ$117,DY$1) -> 958.13 | DZ25: =VLOOKUP(DropDownList!$B$24,CntyQuery!$A$99:$GZ$117,DZ$1) -> 753.77 | EA25: =VLOOKUP(DropDownList!$B$24,CntyQuery!$A$99:$GZ$117,EA$1) -> 3093 | EB25: =VLOOKUP(DropDownList!$B$24,CntyQuery!$A$99:$GZ$117,EB$1) -> 2565 | EC25: =VLOOKUP(DropDownList!$B$24,CntyQuery!$A$99:$GZ$117,EC$1) -> 270 | ED25: =VLOOKUP(DropDownList!$B$24,CntyQuery!$A$99:$GZ$117,ED$1) -> 2295 | EE25: =VLOOKUP(DropDownList!$B$24,CntyQuery!$A$99:$GZ$117,EE$1) -> 822.13 | EF25: =VLOOKUP(DropDownList!$B$24,CntyQuery!$A$99:$GZ$117,EF$1) -> 808.54 | EG25: =VLOOKUP(DropDownList!$B$24,CntyQuery!$A$99:$GZ$117,EG$1) -> 971.06 | EH25: =VLOOKUP(DropDownList!$B$24,CntyQuery!$A$99:$GZ$117,EH$1) -> 789.43 | EI25: =VLOOKUP(DropDownList!$B$24,CntyQuery!$A$99:$GZ$117,EI$1) -> 3105 | EJ25: =VLOOKUP(DropDownList!$B$24,CntyQuery!$A$99:$GZ$117,EJ$1) -> 2569 | EK25: =VLOOKUP(DropDownList!$B$24,CntyQuery!$A$99:$GZ$117,EK$1) -> 300 | EL25: =VLOOKUP(DropDownList!$B$24,CntyQuery!$A$99:$GZ$117,EL$1) -> 2269 | EM25: =VLOOKUP(DropDownList!$B$24,CntyQuery!$A$99:$GZ$117,EM$1) -> 860.01 | EN25: =VLOOKUP(DropDownList!$B$24,CntyQuery!$A$99:$GZ$117,EN$1) -> 855.1 | EO25: =VLOOKUP(DropDownList!$B$24,CntyQuery!$A$99:$GZ$117,EO$1) -> 935.78 | EP25: =VLOOKUP(DropDownList!$B$24,CntyQuery!$A$99:$GZ$117,EP$1) -> 844.42 | EQ25: =VLOOKUP(DropDownList!$B$24,CntyQuery!$A$99:$GZ$117,EQ$1) -> 3193 | ER25: =VLOOKUP(DropDownList!$B$24,CntyQuery!$A$99:$GZ$117,ER$1) -> 2653 | ES25: =VLOOKUP(DropDownList!$B$24,CntyQuery!$A$99:$GZ$117,ES$1) -> 540 | ET25: =VLOOKUP(DropDownList!$B$24,CntyQuery!$A$99:$GZ$117,ET$1) -> 312 | EU25: =VLOOKUP(DropDownList!$B$24,CntyQuery!$A$99:$GZ$117,EU$1) -> 2342 | EV25: =VLOOKUP(DropDownList!$B$24,CntyQuery!$A$99:$GZ$117,EV$1) -> 867.43 | EW25: =VLOOKUP(DropDownList!$B$24,CntyQuery!$A$99:$GZ$117,EW$1) -> 861.4 | EX25: =VLOOKUP(DropDownList!$B$24,CntyQuery!$A$99:$GZ$117,EX$1) -> 897.07 | EY25: =VLOOKUP(DropDownList!$B$24,CntyQuery!$A$99:$GZ$117,EY$1) -> 1003.32 | EZ25: =VLOOKUP(DropDownList!$B$24,CntyQuery!$A$99:$GZ$117,EZ$1) -> 842.51 | FA25: =VLOOKUP(DropDownList!$B$24,CntyQuery!$A$99:$GZ$117,FA$1) -> 3015 | FB25: =VLOOKUP(DropDownList!$B$24,CntyQuery!$A$99:$GZ$117,FB$1) -> 2509 | FC25: =VLOOKUP(DropDownList!$B$24,CntyQuery!$A$99:$GZ$117,FC$1) -> 507 | FD25: =VLOOKUP(DropDownList!$B$24,CntyQuery!$A$99:$GZ$117,FD$1) -> 312 | FE25: =VLOOKUP(DropDownList!$B$24,CntyQuery!$A$99:$GZ$117,FE$1) -> 2196 | FF25: =VLOOKUP(DropDownList!$B$24,CntyQuery!$A$99:$GZ$117,FF$1) -> 978.38 | FG25: =VLOOKUP(DropDownList!$B$24,CntyQuery!$A$99:$GZ$117,FG$1) -> 971.94 | FH25: =VLOOKUP(DropDownList!$B$24,CntyQuery!$A$99:$GZ$117,FH$1) -> 1010.27 | FI25: =VLOOKUP(DropDownList!$B$24,CntyQuery!$A$99:$GZ$117,FI$1) -> 1079.87 | FJ25: =VLOOKUP(DropDownList!$B$24,CntyQuery!$A$99:$GZ$117,FJ$1) -> 956.6 | FK25: =VLOOKUP(DropDownList!$B$24,CntyQuery!$A$99:$GZ$117,FK$1) -> 3139 | FL25: =VLOOKUP(DropDownList!$B$24,CntyQuery!$A$99:$GZ$117,FL$1) -> 2636 | FM25: =VLOOKUP(DropDownList!$B$24,CntyQuery!$A$99:$GZ$117,FM$1) -> 503 | FO25: =VLOOKUP(DropDownList!$B$24,CntyQuery!$A$99:$GZ$117,FN$1) -> 309 | FP25: =VLOOKUP(DropDownList!$B$24,CntyQuery!$A$99:$GZ$117,FP$1) -> 1005.07 | FQ25: =VLOOKUP(DropDownList!$B$24,CntyQuery!$A$99:$GZ$117,FQ$1) -> 1003.49 | FR25: =VLOOKUP(DropDownList!$B$24,CntyQuery!$A$99:$GZ$117,FR$1) -> 1013.33 | FS25: =VLOOKUP(DropDownList!$B$24,CntyQuery!$A$99:$GZ$117,FS$1) -> 1081.19 | FT25: =VLOOKUP(DropDownList!$B$24,CntyQuery!$A$99:$GZ$117,FT$1) -> 993.18 | FU25: =VLOOKUP(DropDownList!$B$24,CntyQuery!$A$99:$GZ$117,FU$1) -> 3197 | FV25: =VLOOKUP(DropDownList!$B$24,CntyQuery!$A$99:$GZ$117,FV$1) -> 2688 | FW25: =VLOOKUP(DropDownList!$B$24,CntyQuery!$A$99:$GZ$117,FW$1) -> 509 | FX25: =VLOOKUP(DropDownList!$B$24,CntyQuery!$A$99:$GZ$117,FX$1) -> 274 | FY25: =VLOOKUP(DropDownList!$B$24,CntyQuery!$A$99:$GZ$117,FY$1) -> 2414 | FZ25: =VLOOKUP(DropDownList!$B$24,CntyQuery!$A$99:$GZ$117,FZ$1) -> 1046 | GA25: =VLOOKUP(DropDownList!$B$24,CntyQuery!$A$99:$GZ$117,GA$1) -> 1039 | GB25: =VLOOKUP(DropDownList!$B$24,CntyQuery!$A$99:$GZ$117,GB$1) -> 1080 | GC25: =VLOOKUP(DropDownList!$B$24,CntyQuery!$A$99:$GZ$117,GC$1) -> 1159 | GD25: =VLOOKUP(DropDownList!$B$24,CntyQuery!$A$99:$GZ$117,GD$1) -> 1026 | GE25: =VLOOKUP(DropDownList!$B$24,CntyQuery!$A$99:$GZ$117,GE$1) -> 0
M32: =IF((CntyDataLink!$BL$25)="n",NA(),IF(VALUE(CntyDataLink!$BL$25)="",NA(),VALUE(CntyDataLink!$BL$25))) -> 713.3
A33: Census 2000 - Query Name: TownAllQuery3 | B33: 2 | C33: =B33+1 -> 3 | D33: =C33+1 -> 4 | E33: 5 | F33: 6 | G33: 7 | H33: 8 | I33: 9 | J33: 10 | K33: 11 | L33: 12 | M33: 13 | N33: 14 | O33: 15 | P33: 16 | Q33: 17 | R33: 18 | S33: 19 | T33: 20 | U33: 21 | V33: 22 | W33: 23 | X33: 24 | Y33: 25 | Z33: 26 | AA33: 27 | AB33: 28 | AC33: 29 | AD33: 30 | AE33: 31 | AF33: 32 | AG33: 33 | AH33: 34 | AI33: 35 | AJ33: 36 | AK33: 37 | AL33: 38 | AM33: 39 | AN33: 40 | AO33: 41 | AP33: 42 | AQ33: 43 | AR33: 44 | AS33: 45 | AT33: 46 | AU33: 47 | AV33: 48 | AW33: 49 | AX33: 50 | AY33: 51 | AZ33: 52 | BA33: 53 | BB33: 54 | BC33: 55 | BD33: 56 | BE33: 57 | BF33: 58 | BG33: 59 | BH33: 60 | BI33: 61 | BJ33: 62 | BK33: 63 | BL33: 64 | BM33: 65 | BN33: 66 | BO33: 67 | BP33: =BO33+1 -> 68 | BQ33: 69 | BR33: 70 | BS33: 71 | BT33: 72 | BU33: 73 | BV33: 74 | BW33: 75 | BX33: 76 | BY33: 77 | BZ33: 78 | CA33: 79 | CB33: 80 | CC33: 81 | CD33: 82 | CE33: 83 | CF33: 84 | CG33: 85 | CH33: 86 | CI33: 87 | CJ33: 88 | CK33: 89 | CL33: 90 | CM33: 91 | CN33: 92 | CO33: 93 | CP33: 94 | CQ33: 95 | CR33: 96 | CS33: 97 | CT33: 98 | CU33: 99 | CV33: 100 | CW33: 101 | CX33: 102
A34: NAME | B34: COUNTY | C34: LOGRECNO | D34: COUSUB | E34: TRACT | F34: AREALAND | G34: AREAWATR | H34: POP100 | I34: HU100 | J34: 2000Population | K34: PopOfOneRace | L34: PopWhite | M34: PopBlack | N34: PopAmIndian | O34: PopAsian | P34: PopHawaiian | Q34: PopOtherRace | R34: Pop2orMoreRaces | S34: PopHispanicLatino | T34: PopNotHispanicLatino | U34: PopMale | V34: PopMale<15 | W34: PopMale15to24 | X34: PopMale25to34 | Y34: PopMale35to44 | Z34: PopMale45to54 | AA34: PopMale55to64 | AB34: PopMale65to74 | AC34: PopMale75to84 | AD34: PopMale85andOver | AE34: PopFemale | AF34: PopFemale<15 | AG34: PopFemale15to24 | AH34: PopFemale25to34 | AI34: PopFemale35t44 | AJ34: PopFemale45to54 | AK34: PopFemale55to64 | AL34: PopFemale65to74 | AM34: PopFemale75to84 | AN34: PopFemale85andOver | AO34: Households2000 | AP34: PopInHH | AQ34: AvgHHSize | AR34: HHs1Person | AS34: HHs2orMorePerson | AT34: HHsFamily | AU34: HHMarriedCoupleFam | AV34: HHSingleParentFam | AW34: HHsNonFamily | AX34: Families | AY34: PopInFam | AZ34: AvgFamSize | BA34: TotHsUnits | BB34: OccHsUnits | BC34: OwnerOccHU | BD34: RenterOccHU | BE34: VctHsUnits | BF34: VctHUForRent | BG34: VctHUForSale | BH34: VctHUSeasonal | BI34: PopInOccHU | BJ34: PopInOwnOccHU | BK34: PopInRntOccHU | BL34: AvgHHSize2 | BM34: AvgHHSizOwnOcc | BN34: AvgHHSizRntOcc | BO34: OwnOccWhtHsHldr | BP34: OwnOccBlkHsHldr | BQ34: OwnOccAmIHsHldr | BR34: OwnOccAsnHsHldr | BS34: OwnOccPIsHsHldr | BT34: OwnOccORHsHldr | BU34: OwnOcc2RcHsHldr | BV34: RntOccWhtHsHldr | BW34: RntOccBlkHsHldr | BX34: RntOccAmIHsHldr | BY34: RntOccAsnHsHldr | BZ34: RntOccPIsHsHldr | CA34: RntOccORHsHldr | CB34: RntOcc2RcHsHldr | CC34: OwnOccHH15to24 | CD34: OwnOccHH25to34 | CE34: OwnOccHH35to44 | CF34: OwnOccHH45to54 | CG34: OwnOccHH55to64 | CH34: OwnOccHH65to74 | CI34: OwnOccHH75to84 | CJ34: OwnOccHH85Over | CK34: RntOccHH15to24 | CL34: RntOccHH25to34 | CM34: RntOccHH35to44 | CN34: RntOccHH45to54 | CO34: RntOccHH55to64 | CP34: RntOccHH65to74 | CQ34: RntOccHH75to84 | CR34: RntOccHH85Over | CS34: P27TotalPop | CT34: P27PopInHseHlds | CU34: P27PopInGrpQtrs | CV34: Median Age Total | CW34: Median Age (Male) | CX34: Median Age (Female)
A35: =VLOOKUP(DropDownList!$B$24,CntyQryCensus!$A$4:$CX$22,A$1) -> Wolfeboro | B35: =VLOOKUP(DropDownList!$B$24,CntyQryCensus!$A$4:$CX$22,B$1) -> 003 | C35: =VLOOKUP(DropDownList!$B$24,CntyQryCensus!$A$4:$CX$22,C$1) -> 0004531 | D35: =VLOOKUP(DropDownList!$B$24,CntyQryCensus!$A$4:$CX$22,D$1) -> 86420 | E35: =VLOOKUP(DropDownList!$B$24,CntyQryCensus!$A$4:$CX$22,E$1) ->  | F35: =VLOOKUP(DropDownList!$B$24,CntyQryCensus!$A$4:$CX$22,F$1) -> 125115350 | G35: =VLOOKUP(DropDownList!$B$24,CntyQryCensus!$A$4:$CX$22,G$1) -> 26367985 | H35: =VLOOKUP(DropDownList!$B$24,CntyQryCensus!$A$4:$CX$22,H$1) -> 6083 | I35: =VLOOKUP(DropDownList!$B$24,CntyQryCensus!$A$4:$CX$22,I$1) -> 3903 | J35: =VLOOKUP(DropDownList!$B$24,CntyQryCensus!$A$4:$CX$22,J$1) -> 6083 | K35: =VLOOKUP(DropDownList!$B$24,CntyQryCensus!$A$4:$CX$22,K$1) -> 6069 | L35: =VLOOKUP(DropDownList!$B$24,CntyQryCensus!$A$4:$CX$22,L$1) -> 6030 | M35: =VLOOKUP(DropDownList!$B$24,CntyQryCensus!$A$4:$CX$22,M$1) -> 10 | N35: =VLOOKUP(DropDownList!$B$24,CntyQryCensus!$A$4:$CX$22,N$1) -> 4 | O35: =VLOOKUP(DropDownList!$B$24,CntyQryCensus!$A$4:$CX$22,O$1) -> 22 | P35: =VLOOKUP(DropDownList!$B$24,CntyQryCensus!$A$4:$CX$22,P$1) -> 0 | Q35: =VLOOKUP(DropDownList!$B$24,CntyQryCensus!$A$4:$CX$22,Q$1) -> 3 | R35: =VLOOKUP(DropDownList!$B$24,CntyQryCensus!$A$4:$CX$22,R$1) -> 14 | S35: =VLOOKUP(DropDownList!$B$24,CntyQryCensus!$A$4:$CX$22,S$1) -> 37 | T35: =VLOOKUP(DropDownList!$B$24,CntyQryCensus!$A$4:$CX$22,T$1) -> 6046 | U35: =VLOOKUP(DropDownList!$B$24,CntyQryCensus!$A$4:$CX$22,U$1) -> 2864 | V35: =VLOOKUP(DropDownList!$B$24,CntyQryCensus!$A$4:$CX$22,V$1) -> 533 | W35: =VLOOKUP(DropDownList!$B$24,CntyQryCensus!$A$4:$CX$22,W$1) -> 279 | X35: =VLOOKUP(DropDownList!$B$24,CntyQryCensus!$A$4:$CX$22,X$1) -> 220 | Y35: =VLOOKUP(DropDownList!$B$24,CntyQryCensus!$A$4:$CX$22,Y$1) -> 458 | Z35: =VLOOKUP(DropDownList!$B$24,CntyQryCensus!$A$4:$CX$22,Z$1) -> 421 | AA35: =VLOOKUP(DropDownList!$B$24,CntyQryCensus!$A$4:$CX$22,AA$1) -> 340 | AB35: =VLOOKUP(DropDownList!$B$24,CntyQryCensus!$A$4:$CX$22,AB$1) -> 330 | AC35: =VLOOKUP(DropDownList!$B$24,CntyQryCensus!$A$4:$CX$22,AC$1) -> 215 | AD35: =VLOOKUP(DropDownList!$B$24,CntyQryCensus!$A$4:$CX$22,AD$1) -> 68 | AE35: =VLOOKUP(DropDownList!$B$24,CntyQryCensus!$A$4:$CX$22,AE$1) -> 3219 | AF35: =VLOOKUP(DropDownList!$B$24,CntyQryCensus!$A$4:$CX$22,AF$1) -> 529 | AG35: =VLOOKUP(DropDownList!$B$24,CntyQryCensus!$A$4:$CX$22,AG$1) -> 261 | AH35: =VLOOKUP(DropDownList!$B$24,CntyQryCensus!$A$4:$CX$22,AH$1) -> 280 | AI35: =VLOOKUP(DropDownList!$B$24,CntyQryCensus!$A$4:$CX$22,AI$1) -> 457 | AJ35: =VLOOKUP(DropDownList!$B$24,CntyQryCensus!$A$4:$CX$22,AJ$1) -> 461 | AK35: =VLOOKUP(DropDownList!$B$24,CntyQryCensus!$A$4:$CX$22,AK$1) -> 349 | AL35: =VLOOKUP(DropDownList!$B$24,CntyQryCensus!$A$4:$CX$22,AL$1) -> 419 | AM35: =VLOOKUP(DropDownList!$B$24,CntyQryCensus!$A$4:$CX$22,AM$1) -> 296 | AN35: =VLOOKUP(DropDownList!$B$24,CntyQryCensus!$A$4:$CX$22,AN$1) -> 167 | AO35: =VLOOKUP(DropDownList!$B$24,CntyQryCensus!$A$4:$CX$22,AO$1) -> 2574 | AP35: =VLOOKUP(DropDownList!$B$24,CntyQryCensus!$A$4:$CX$22,AP$1) -> 5978 | AQ35: =VLOOKUP(DropDownList!$B$24,CntyQryCensus!$A$4:$CX$22,AQ$1) -> 2.32 | AR35: =VLOOKUP(DropDownList!$B$24,CntyQryCensus!$A$4:$CX$22,AR$1) -> 736 | AS35: =VLOOKUP(DropDownList!$B$24,CntyQryCensus!$A$4:$CX$22,AS$1) -> 1838 | AT35: =VLOOKUP(DropDownList!$B$24,CntyQryCensus!$A$4:$CX$22,AT$1) -> 1723 | AU35: =VLOOKUP(DropDownList!$B$24,CntyQryCensus!$A$4:$CX$22,AU$1) -> 1460 | AV35: =VLOOKUP(DropDownList!$B$24,CntyQryCensus!$A$4:$CX$22,AV$1) -> 263 | AW35: =VLOOKUP(DropDownList!$B$24,CntyQryCensus!$A$4:$CX$22,AW$1) -> 115 | AX35: =VLOOKUP(DropDownList!$B$24,CntyQryCensus!$A$4:$CX$22,AX$1) -> 1723 | AY35: =VLOOKUP(DropDownList!$B$24,CntyQryCensus!$A$4:$CX$22,AY$1) -> 4875 | AZ35: =VLOOKUP(DropDownList!$B$24,CntyQryCensus!$A$4:$CX$22,AZ$1) -> 2.83 | BA35: =VLOOKUP(DropDownList!$B$24,CntyQryCensus!$A$4:$CX$22,BA$1) -> 3903 | BB35: =VLOOKUP(DropDownList!$B$24,CntyQryCensus!$A$4:$CX$22,BB$1) -> 2574 | BC35: =VLOOKUP(DropDownList!$B$24,CntyQryCensus!$A$4:$CX$22,BC$1) -> 1987 | BD35: =VLOOKUP(DropDownList!$B$24,CntyQryCensus!$A$4:$CX$22,BD$1) -> 587 | BE35: =VLOOKUP(DropDownList!$B$24,CntyQryCensus!$A$4:$CX$22,BE$1) -> 1329 | BF35: =VLOOKUP(DropDownList!$B$24,CntyQryCensus!$A$4:$CX$22,BF$1) -> 24 | BG35: =VLOOKUP(DropDownList!$B$24,CntyQryCensus!$A$4:$CX$22,BG$1) -> 40 | BH35: =VLOOKUP(DropDownList!$B$24,CntyQryCensus!$A$4:$CX$22,BH$1) -> 1194 | BI35: =VLOOKUP(DropDownList!$B$24,CntyQryCensus!$A$4:$CX$22,BI$1) -> 5978 | BJ35: =VLOOKUP(DropDownList!$B$24,CntyQryCensus!$A$4:$CX$22,BJ$1) -> 4784 | BK35: =VLOOKUP(DropDownList!$B$24,CntyQryCensus!$A$4:$CX$22,BK$1) -> 1194 | BL35: =VLOOKUP(DropDownList!$B$24,CntyQryCensus!$A$4:$CX$22,BL$1) -> 2.32 | BM35: =VLOOKUP(DropDownList!$B$24,CntyQryCensus!$A$4:$CX$22,BM$1) -> 2.41 | BN35: =VLOOKUP(DropDownList!$B$24,CntyQryCensus!$A$4:$CX$22,BN$1) -> 2.03 | BO35: =VLOOKUP(DropDownList!$B$24,CntyQryCensus!$A$4:$CX$22,BO$1) -> 1980 | BP35: =VLOOKUP(DropDownList!$B$24,CntyQryCensus!$A$4:$CX$22,BP$1) -> 1 | BQ35: =VLOOKUP(DropDownList!$B$24,CntyQryCensus!$A$4:$CX$22,BQ$1) -> 0 | BR35: =VLOOKUP(DropDownList!$B$24,CntyQryCensus!$A$4:$CX$22,BR$1) -> 4 | BS35: =VLOOKUP(DropDownList!$B$24,CntyQryCensus!$A$4:$CX$22,BS$1) -> 0 | BT35: =VLOOKUP(DropDownList!$B$24,CntyQryCensus!$A$4:$CX$22,BT$1) -> 0 | BU35: =VLOOKUP(DropDownList!$B$24,CntyQryCensus!$A$4:$CX$22,BU$1) -> 2 | BV35: =VLOOKUP(DropDownList!$B$24,CntyQryCensus!$A$4:$CX$22,BV$1) -> 581 | BW35: =VLOOKUP(DropDownList!$B$24,CntyQryCensus!$A$4:$CX$22,BW$1) -> 2 | BX35: =VLOOKUP(DropDownList!$B$24,CntyQryCensus!$A$4:$CX$22,BX$1) -> 1 | BY35: =VLOOKUP(DropDownList!$B$24,CntyQryCensus!$A$4:$CX$22,BY$1) -> 0 | BZ35: =VLOOKUP(DropDownList!$B$24,CntyQryCensus!$A$4:$CX$22,BZ$1) -> 0 | CA35: =VLOOKUP(DropDownList!$B$24,CntyQryCensus!$A$4:$CX$22,CA$1) -> 1 | CB35: =VLOOKUP(DropDownList!$B$24,CntyQryCensus!$A$4:$CX$22,CB$1) -> 2 | CC35: =VLOOKUP(DropDownList!$B$24,CntyQryCensus!$A$4:$CX$22,CC$1) -> 4 | CD35: =VLOOKUP(DropDownList!$B$24,CntyQryCensus!$A$4:$CX$22,CD$1) -> 126 | CE35: =VLOOKUP(DropDownList!$B$24,CntyQryCensus!$A$4:$CX$22,CE$1) -> 364 | CF35: =VLOOKUP(DropDownList!$B$24,CntyQryCensus!$A$4:$CX$22,CF$1) -> 386 | CG35: =VLOOKUP(DropDownList!$B$24,CntyQryCensus!$A$4:$CX$22,CG$1) -> 345 | CH35: =VLOOKUP(DropDownList!$B$24,CntyQryCensus!$A$4:$CX$22,CH$1) -> 388 | CI35: =VLOOKUP(DropDownList!$B$24,CntyQryCensus!$A$4:$CX$22,CI$1) -> 287 | CJ35: =VLOOKUP(DropDownList!$B$24,CntyQryCensus!$A$4:$CX$22,CJ$1) -> 87 | CK35: =VLOOKUP(DropDownList!$B$24,CntyQryCensus!$A$4:$CX$22,CK$1) -> 34 | CL35: =VLOOKUP(DropDownList!$B$24,CntyQryCensus!$A$4:$CX$22,CL$1) -> 121 | CM35: =VLOOKUP(DropDownList!$B$24,CntyQryCensus!$A$4:$CX$22,CM$1) -> 139 | CN35: =VLOOKUP(DropDownList!$B$24,CntyQryCensus!$A$4:$CX$22,CN$1) -> 101 | CO35: =VLOOKUP(DropDownList!$B$24,CntyQryCensus!$A$4:$CX$22,CO$1) -> 52 | CP35: =VLOOKUP(DropDownList!$B$24,CntyQryCensus!$A$4:$CX$22,CP$1) -> 57 | CQ35: =VLOOKUP(DropDownList!$B$24,CntyQryCensus!$A$4:$CX$22,CQ$1) -> 47 | CR35: =VLOOKUP(DropDownList!$B$24,CntyQryCensus!$A$4:$CX$22,CR$1) -> 36 | CS35: =VLOOKUP(DropDownList!$B$24,CntyQryCensus!$A$4:$CX$22,CS$1) -> 6083 | CT35: =VLOOKUP(DropDownList!$B$24,CntyQryCensus!$A$4:$CX$22,CT$1) -> 5978 | CU35: =VLOOKUP(DropDownList!$B$24,CntyQryCensus!$A$4:$CX$22,CU$1) -> 105 | CV35: =VLOOKUP(DropDownList!$B$24,CntyQryCensus!$A$4:$CX$22,CV$1) -> 45.3 | CW35: =VLOOKUP(DropDownList!$B$24,CntyQryCensus!$A$4:$CX$22,CW$1) -> 44.1 | CX35: =VLOOKUP(DropDownList!$B$24,CntyQryCensus!$A$4:$CX$22,CX$1) -> 46.7
A38: Census 2000 DemoProfile Sample Data Tables 2&3 - DPTab23TownQry
A39: NAME | B39: COUSUB | C39: AREANAME | D39: PopInSchool | E39: Preschool | F39: Kindergarten | G39: Elementary | H39: HighSchool | I39: College | J39: Pop25andOver | K39: HighSchoolGrad | L39: SomeCollege | M39: AssocDegree | N39: BachelDegree | O39: GradDegree | P39: HSGradorHigher | Q39: CollegeGradorHigher | R39: Pop5to20yrs | S39: Pop5to20wDis | T39: Pop21to64 | U39: Pop21to64wDis | V39: Pop65over | W39: Pop65overwDis | X39: Pop5yrsOver | Y39: SameHUin95 | Z39: DiffHUinUSin95 | AA39: HUinSameCountyin95 | AB39: HUinSameStatein95 | AC39: TotalPop | AD39: NativePop | AE39: NatPopBornUS | AF39: NatPopBornInStatRes | AG39: NatPopBornDiffState | AH39: NatPopBornOutUS | AI39: FornBornPop | AJ39: FornPopEnt90to00 | AK39: FornPopNatCit | AL39: FornPopNotCit | AM39: Households | AN39: HHIncLessThn10k | AO39: HHInc10to15K | AP39: HHInc15to25K | AQ39: HHInc25to35K | AR39: HHInc35to50K | AS39: HHInc50to75K | AT39: HHInc75to100K | AU39: HHInc100to150K | AV39: HHInc150to200K | AW39: HHIncOver200K | AX39: MedianHHInc | AY39: HHwithPubAssistInc | AZ39: MeanPubAssist | BA39: FamilyHH | BB39: FHHIncLessThn10k | BC39: FHHInc10to15K | BD39: FHHInc15to25K | BE39: FHHInc25to35K | BF39: FHHInc35to50K | BG39: FHHInc50to75K | BH39: FHHInc75to100K | BI39: FHHInc100to150K | BJ39: FHHInc150to200K | BK39: FHHIncOver200K | BL39: MedianFHHInc | BM39: PerCapitaInc | BN39: PovStatFamilies | BO39: PovStatFHHwChilUnd18 | BP39: PovStatFHHwChilUnd5 | BQ39: PovStFmalHH | BR39: DP3088 | BS39: DP3089 | BT39: PovStatIndiv | BU39: PovStatIndiv18yrOver | BV39: PovStatIndiv65yrOver | BW39: DP3093 | BX39: DP3094 | BY39: DP3095
A40: =VLOOKUP(DropDownList!$B$24,CntyQryCensus!$A$29:$BY$47,A$1) -> Wolfeboro | B40: =VLOOKUP(DropDownList!$B$24,CntyQryCensus!$A$29:$BY$47,B$1) -> 86420 | C40: =VLOOKUP(DropDownList!$B$24,CntyQryCensus!$A$29:$BY$47,C$1) -> Wolfeboro town, Carroll County, New Hampshire | D40: =VLOOKUP(DropDownList!$B$24,CntyQryCensus!$A$29:$BY$47,D$1) -> 1401 | E40: =VLOOKUP(DropDownList!$B$24,CntyQryCensus!$A$29:$BY$47,E$1) -> 83 | F40: =VLOOKUP(DropDownList!$B$24,CntyQryCensus!$A$29:$BY$47,F$1) -> 53 | G40: =VLOOKUP(DropDownList!$B$24,CntyQryCensus!$A$29:$BY$47,G$1) -> 655 | H40: =VLOOKUP(DropDownList!$B$24,CntyQryCensus!$A$29:$BY$47,H$1) -> 411 | I40: =VLOOKUP(DropDownList!$B$24,CntyQryCensus!$A$29:$BY$47,I$1) -> 199 | J40: =VLOOKUP(DropDownList!$B$24,CntyQryCensus!$A$29:$BY$47,J$1) -> 4508 | K40: =VLOOKUP(DropDownList!$B$24,CntyQryCensus!$A$29:$BY$47,K$1) -> 1202 | L40: =VLOOKUP(DropDownList!$B$24,CntyQryCensus!$A$29:$BY$47,L$1) -> 925 | M40: =VLOOKUP(DropDownList!$B$24,CntyQryCensus!$A$29:$BY$47,M$1) -> 425 | N40: =VLOOKUP(DropDownList!$B$24,CntyQryCensus!$A$29:$BY$47,N$1) -> 913 | O40: =VLOOKUP(DropDownList!$B$24,CntyQryCensus!$A$29:$BY$47,O$1) -> 623 | P40: =VLOOKUP(DropDownList!$B$24,CntyQryCensus!$A$29:$BY$47,P$1) -> 4088 | Q40: =VLOOKUP(DropDownList!$B$24,CntyQryCensus!$A$29:$BY$47,Q$1) -> 1536 | R40: =VLOOKUP(DropDownList!$B$24,CntyQryCensus!$A$29:$BY$47,R$1) -> 1219 | S40: =VLOOKUP(DropDownList!$B$24,CntyQryCensus!$A$29:$BY$47,S$1) -> 119 | T40: =VLOOKUP(DropDownList!$B$24,CntyQryCensus!$A$29:$BY$47,T$1) -> 3097 | U40: =VLOOKUP(DropDownList!$B$24,CntyQryCensus!$A$29:$BY$47,U$1) -> 451 | V40: =VLOOKUP(DropDownList!$B$24,CntyQryCensus!$A$29:$BY$47,V$1) -> 1403 | W40: =VLOOKUP(DropDownList!$B$24,CntyQryCensus!$A$29:$BY$47,W$1) -> 522 | X40: =VLOOKUP(DropDownList!$B$24,CntyQryCensus!$A$29:$BY$47,X$1) -> 5820 | Y40: =VLOOKUP(DropDownList!$B$24,CntyQryCensus!$A$29:$BY$47,Y$1) -> 2896 | Z40: =VLOOKUP(DropDownList!$B$24,CntyQryCensus!$A$29:$BY$47,Z$1) -> 2918 | AA40: =VLOOKUP(DropDownList!$B$24,CntyQryCensus!$A$29:$BY$47,AA$1) -> 1240 | AB40: =VLOOKUP(DropDownList!$B$24,CntyQryCensus!$A$29:$BY$47,AB$1) -> 1678 | AC40: =VLOOKUP(DropDownList!$B$24,CntyQryCensus!$A$29:$BY$47,AC$1) -> 6083 | AD40: =VLOOKUP(DropDownList!$B$24,CntyQryCensus!$A$29:$BY$47,AD$1) -> 5909 | AE40: =VLOOKUP(DropDownList!$B$24,CntyQryCensus!$A$29:$BY$47,AE$1) -> 5847 | AF40: =VLOOKUP(DropDownList!$B$24,CntyQryCensus!$A$29:$BY$47,AF$1) -> 2157 | AG40: =VLOOKUP(DropDownList!$B$24,CntyQryCensus!$A$29:$BY$47,AG$1) -> 3690 | AH40: =VLOOKUP(DropDownList!$B$24,CntyQryCensus!$A$29:$BY$47,AH$1) -> 62 | AI40: =VLOOKUP(DropDownList!$B$24,CntyQryCensus!$A$29:$BY$47,AI$1) -> 174 | AJ40: =VLOOKUP(DropDownList!$B$24,CntyQryCensus!$A$29:$BY$47,AJ$1) -> 20 | AK40: =VLOOKUP(DropDownList!$B$24,CntyQryCensus!$A$29:$BY$47,AK$1) -> 135 | AL40: =VLOOKUP(DropDownList!$B$24,CntyQryCensus!$A$29:$BY$47,AL$1) -> 39 | AM40: =VLOOKUP(DropDownList!$B$24,CntyQryCensus!$A$29:$BY$47,AM$1) -> 2575 | AN40: =VLOOKUP(DropDownList!$B$24,CntyQryCensus!$A$29:$BY$47,AN$1) -> 151 | AO40: =VLOOKUP(DropDownList!$B$24,CntyQryCensus!$A$29:$BY$47,AO$1) -> 170 | AP40: =VLOOKUP(DropDownList!$B$24,CntyQryCensus!$A$29:$BY$47,AP$1) -> 412 | AQ40: =VLOOKUP(DropDownList!$B$24,CntyQryCensus!$A$29:$BY$47,AQ$1) -> 302 | AR40: =VLOOKUP(DropDownList!$B$24,CntyQryCensus!$A$29:$BY$47,AR$1) -> 415 | AS40: =VLOOKUP(DropDownList!$B$24,CntyQryCensus!$A$29:$BY$47,AS$1) -> 533 | AT40: =VLOOKUP(DropDownList!$B$24,CntyQryCensus!$A$29:$BY$47,AT$1) -> 224 | AU40: =VLOOKUP(DropDownList!$B$24,CntyQryCensus!$A$29:$BY$47,AU$1) -> 203 | AV40: =VLOOKUP(DropDownList!$B$24,CntyQryCensus!$A$29:$BY$47,AV$1) -> 79 | AW40: =VLOOKUP(DropDownList!$B$24,CntyQryCensus!$A$29:$BY$47,AW$1) -> 86 | AX40: =VLOOKUP(DropDownList!$B$24,CntyQryCensus!$A$29:$BY$47,AX$1) -> 44012 | AY40: =VLOOKUP(DropDownList!$B$24,CntyQryCensus!$A$29:$BY$47,AY$1) -> 72 | AZ40: =VLOOKUP(DropDownList!$B$24,CntyQryCensus!$A$29:$BY$47,AZ$1) -> 1254 | BA40: =VLOOKUP(DropDownList!$B$24,CntyQryCensus!$A$29:$BY$47,BA$1) -> 1734 | BB40: =VLOOKUP(DropDownList!$B$24,CntyQryCensus!$A$29:$BY$47,BB$1) -> 33 | BC40: =VLOOKUP(DropDownList!$B$24,CntyQryCensus!$A$29:$BY$47,BC$1) -> 64 | BD40: =VLOOKUP(DropDownList!$B$24,CntyQryCensus!$A$29:$BY$47,BD$1) -> 188 | BE40: =VLOOKUP(DropDownList!$B$24,CntyQryCensus!$A$29:$BY$47,BE$1) -> 187 | BF40: =VLOOKUP(DropDownList!$B$24,CntyQryCensus!$A$29:$BY$47,BF$1) -> 311 | BG40: =VLOOKUP(DropDownList!$B$24,CntyQryCensus!$A$29:$BY$47,BG$1) -> 406 | BH40: =VLOOKUP(DropDownList!$B$24,CntyQryCensus!$A$29:$BY$47,BH$1) -> 214 | BI40: =VLOOKUP(DropDownList!$B$24,CntyQryCensus!$A$29:$BY$47,BI$1) -> 190 | BJ40: =VLOOKUP(DropDownList!$B$24,CntyQryCensus!$A$29:$BY$47,BJ$1) -> 64 | BK40: =VLOOKUP(DropDownList!$B$24,CntyQryCensus!$A$29:$BY$47,BK$1) -> 77 | BL40: =VLOOKUP(DropDownList!$B$24,CntyQryCensus!$A$29:$BY$47,BL$1) -> 53269 | BM40: =VLOOKUP(DropDownList!$B$24,CntyQryCensus!$A$29:$BY$47,BM$1) -> 26361 | BN40: =VLOOKUP(DropDownList!$B$24,CntyQryCensus!$A$29:$BY$47,BN$1) -> 61 | BO40: =VLOOKUP(DropDownList!$B$24,CntyQryCensus!$A$29:$BY$47,BO$1) -> 53 | BP40: =VLOOKUP(DropDownList!$B$24,CntyQryCensus!$A$29:$BY$47,BP$1) -> 22 | BQ40: =VLOOKUP(DropDownList!$B$24,CntyQryCensus!$A$29:$BY$47,BQ$1) -> 27 | BR40: =VLOOKUP(DropDownList!$B$24,CntyQryCensus!$A$29:$BY$47,BR$1) -> 27 | BS40: =VLOOKUP(DropDownList!$B$24,CntyQryCensus!$A$29:$BY$47,BS$1) -> 8 | BT40: =VLOOKUP(DropDownList!$B$24,CntyQryCensus!$A$29:$BY$47,BT$1) -> 375 | BU40: =VLOOKUP(DropDownList!$B$24,CntyQryCensus!$A$29:$BY$47,BU$1) -> 250 | BV40: =VLOOKUP(DropDownList!$B$24,CntyQryCensus!$A$29:$BY$47,BV$1) -> 40 | BW40: =VLOOKUP(DropDownList!$B$24,CntyQryCensus!$A$29:$BY$47,BW$1) -> 119 | BX40: =VLOOKUP(DropDownList!$B$24,CntyQryCensus!$A$29:$BY$47,BX$1) -> 94 | BY40: =VLOOKUP(DropDownList!$B$24,CntyQryCensus!$A$29:$BY$47,BY$1) -> 156
A43: Census 2000 DemoProfile Sample Data Table 4 - DPTab4TownQry
A44: NAME | B44: COUSUB | C44: TotHousingUnits | D44: 1UnitDet | E44: 1UnitAtt | F44: 2Units | G44: 3to4Units | H44: 5to9Units | I44: 10to19Units | J44: 20orMoreUnits | K44: MobileHomes | L44: BoatRvVan | M44: SingleFamilyUnits | N44: MultiFamUnits | O44: MobileHomeUnits | P44: YearBuilt99to00 | Q44: YearBuilt95to98 | R44: YearBUilt90to94 | S44: YearBuilt80to89 | T44: YearBuilt70to79 | U44: YearBuilt60to69 | V44: YearBuilt40to59 | W44: YearBuilt39orEarlier | X44: Rooms1 | Y44: Rooms2 | Z44: Rooms3 | AA44: Rooms4 | AB44: Rooms5 | AC44: Rooms6 | AD44: Rooms7 | AE44: Rooms8 | AF44: Rooms9orMore | AG44: MedianRooms | AH44: OccHU1 | AI44: YrHHMvdIn99to00 | AJ44: YrHHMvdIn95to98 | AK44: YrHHMvdIn90to94 | AL44: YrHHMvdIn80to89 | AM44: YrHHMvdIn70to79 | AN44: YrHHMvdIn69orBefore | AO44: HeatFuelNatGas | AP44: HeatFuelBotGas | AQ44: HeatFuelElectric | AR44: HeatFuelOil | AS44: HeatFuelCoal | AT44: HeatFuelWood | AU44: HeatFuelSolar | AV44: HeatFuelOther | AW44: HeatFuelNone | AX44: LackCompPlumb | AY44: LackCompKit | AZ44: NoTelephone | BA44: OccHU | BB44: OccPerRm1orLess | BC44: OccPerRm1to1_5 | BD44: OccPerRm1_5orMore | BE44: SpecOwnOccUnits | BF44: Value<50K | BG44: Value50to100K | BH44: Value100to150K | BI44: Value150to200K | BJ44: Value200to300K | BK44: Value300to500K | BL44: Value500Kto1mil | BM44: Value1MilorMore | BN44: MedianValue | BO44: WithMortg | BP44: MnthOwnCst<300 | BQ44: MnthOwnCst300to500 | BR44: MnthOwnCst500to700 | BS44: MnthOwnCst700to1000 | BT44: MnthOwnCst1000to1500 | BU44: MnthOwnCst1500to2000 | BV44: MnthOwnCst2000orMore | BW44: MediMnthOwnCst | BX44: NotMrtg | BY44: NotMrtgMediMnthOwnCst | BZ44: OwnCst%HHInc<15 | CA44: OwnCst%HHInc15to20 | CB44: OwnCst%HHInc20to25 | CC44: OwnCst%HHInc25to30 | CD44: OwnCst%HHInc30to35 | CE44: OwnCst%HHInc35orMor | CF44: NotComputed | CG44: SpecRntOccUnits | CH44: Rnt<200 | CI44: Rnt200to300 | CJ44: Rnt300to500 | CK44: Rnt500to750 | CL44: Rnt750to1000 | CM44: Rnt1000to1500 | CN44: Rnt1500orMore | CO44: NoRent | CP44: MedianRent | CQ44: Rnt%HHInc<15 | CR44: Rnt%HHInc15to20 | CS44: Rnt%HHInc20to25 | CT44: Rnt%HHInc25to30 | CU44: Rnt%HHInc30to35 | CV44: Rnt%HHInc35orMore | CW44: Rnt%NotCompute
A45: =VLOOKUP(DropDownList!$B$24,CntyQryCensus!$A$55:$CW$73,A$1) -> Wolfeboro | B45: =VLOOKUP(DropDownList!$B$24,CntyQryCensus!$A$55:$CW$73,B$1) -> 86420 | C45: =VLOOKUP(DropDownList!$B$24,CntyQryCensus!$A$55:$CW$73,C$1) -> 3903 | D45: =VLOOKUP(DropDownList!$B$24,CntyQryCensus!$A$55:$CW$73,D$1) -> 3092 | E45: =VLOOKUP(DropDownList!$B$24,CntyQryCensus!$A$55:$CW$73,E$1) -> 157 | F45: =VLOOKUP(DropDownList!$B$24,CntyQryCensus!$A$55:$CW$73,F$1) -> 151 | G45: =VLOOKUP(DropDownList!$B$24,CntyQryCensus!$A$55:$CW$73,G$1) -> 217 | H45: =VLOOKUP(DropDownList!$B$24,CntyQryCensus!$A$55:$CW$73,H$1) -> 76 | I45: =VLOOKUP(DropDownList!$B$24,CntyQryCensus!$A$55:$CW$73,I$1) -> 0 | J45: =VLOOKUP(DropDownList!$B$24,CntyQryCensus!$A$55:$CW$73,J$1) -> 87 | K45: =VLOOKUP(DropDownList!$B$24,CntyQryCensus!$A$55:$CW$73,K$1) -> 107 | L45: =VLOOKUP(DropDownList!$B$24,CntyQryCensus!$A$55:$CW$73,L$1) -> 16 | M45: =VLOOKUP(DropDownList!$B$24,CntyQryCensus!$A$55:$CW$73,M$1) -> 3092 | N45: =VLOOKUP(DropDownList!$B$24,CntyQryCensus!$A$55:$CW$73,N$1) -> 688 | O45: =VLOOKUP(DropDownList!$B$24,CntyQryCensus!$A$55:$CW$73,O$1) -> 123 | P45: =VLOOKUP(DropDownList!$B$24,CntyQryCensus!$A$55:$CW$73,P$1) -> 156 | Q45: =VLOOKUP(DropDownList!$B$24,CntyQryCensus!$A$55:$CW$73,Q$1) -> 295 | R45: =VLOOKUP(DropDownList!$B$24,CntyQryCensus!$A$55:$CW$73,R$1) -> 279 | S45: =VLOOKUP(DropDownList!$B$24,CntyQryCensus!$A$55:$CW$73,S$1) -> 811 | T45: =VLOOKUP(DropDownList!$B$24,CntyQryCensus!$A$55:$CW$73,T$1) -> 485 | U45: =VLOOKUP(DropDownList!$B$24,CntyQryCensus!$A$55:$CW$73,U$1) -> 414 | V45: =VLOOKUP(DropDownList!$B$24,CntyQryCensus!$A$55:$CW$73,V$1) -> 517 | W45: =VLOOKUP(DropDownList!$B$24,CntyQryCensus!$A$55:$CW$73,W$1) -> 946 | X45: =VLOOKUP(DropDownList!$B$24,CntyQryCensus!$A$55:$CW$73,X$1) -> 8 | Y45: =VLOOKUP(DropDownList!$B$24,CntyQryCensus!$A$55:$CW$73,Y$1) -> 121 | Z45: =VLOOKUP(DropDownList!$B$24,CntyQryCensus!$A$55:$CW$73,Z$1) -> 299 | AA45: =VLOOKUP(DropDownList!$B$24,CntyQryCensus!$A$55:$CW$73,AA$1) -> 500 | AB45: =VLOOKUP(DropDownList!$B$24,CntyQryCensus!$A$55:$CW$73,AB$1) -> 679 | AC45: =VLOOKUP(DropDownList!$B$24,CntyQryCensus!$A$55:$CW$73,AC$1) -> 968 | AD45: =VLOOKUP(DropDownList!$B$24,CntyQryCensus!$A$55:$CW$73,AD$1) -> 484 | AE45: =VLOOKUP(DropDownList!$B$24,CntyQryCensus!$A$55:$CW$73,AE$1) -> 308 | AF45: =VLOOKUP(DropDownList!$B$24,CntyQryCensus!$A$55:$CW$73,AF$1) -> 536 | AG45: =VLOOKUP(DropDownList!$B$24,CntyQryCensus!$A$55:$CW$73,AG$1) -> 5.9 | AH45: =VLOOKUP(DropDownList!$B$24,CntyQryCensus!$A$55:$CW$73,AH$1) -> 2574 | AI45: =VLOOKUP(DropDownList!$B$24,CntyQryCensus!$A$55:$CW$73,AI$1) -> 395 | AJ45: =VLOOKUP(DropDownList!$B$24,CntyQryCensus!$A$55:$CW$73,AJ$1) -> 941 | AK45: =VLOOKUP(DropDownList!$B$24,CntyQryCensus!$A$55:$CW$73,AK$1) -> 326 | AL45: =VLOOKUP(DropDownList!$B$24,CntyQryCensus!$A$55:$CW$73,AL$1) -> 472 | AM45: =VLOOKUP(DropDownList!$B$24,CntyQryCensus!$A$55:$CW$73,AM$1) -> 267 | AN45: =VLOOKUP(DropDownList!$B$24,CntyQryCensus!$A$55:$CW$73,AN$1) -> 173 | AO45: =VLOOKUP(DropDownList!$B$24,CntyQryCensus!$A$55:$CW$73,AO$1) -> 0 | AP45: =VLOOKUP(DropDownList!$B$24,CntyQryCensus!$A$55:$CW$73,AP$1) -> 247 | AQ45: =VLOOKUP(DropDownList!$B$24,CntyQryCensus!$A$55:$CW$73,AQ$1) -> 316 | AR45: =VLOOKUP(DropDownList!$B$24,CntyQryCensus!$A$55:$CW$73,AR$1) -> 1884 | AS45: =VLOOKUP(DropDownList!$B$24,CntyQryCensus!$A$55:$CW$73,AS$1) -> 0 | AT45: =VLOOKUP(DropDownList!$B$24,CntyQryCensus!$A$55:$CW$73,AT$1) -> 109 | AU45: =VLOOKUP(DropDownList!$B$24,CntyQryCensus!$A$55:$CW$73,AU$1) -> 0 | AV45: =VLOOKUP(DropDownList!$B$24,CntyQryCensus!$A$55:$CW$73,AV$1) -> 18 | AW45: =VLOOKUP(DropDownList!$B$24,CntyQryCensus!$A$55:$CW$73,AW$1) -> 0 | AX45: =VLOOKUP(DropDownList!$B$24,CntyQryCensus!$A$55:$CW$73,AX$1) -> 33 | AY45: =VLOOKUP(DropDownList!$B$24,CntyQryCensus!$A$55:$CW$73,AY$1) -> 37 | AZ45: =VLOOKUP(DropDownList!$B$24,CntyQryCensus!$A$55:$CW$73,AZ$1) -> 10 | BA45: =VLOOKUP(DropDownList!$B$24,CntyQryCensus!$A$55:$CW$73,BA$1) -> 2574 | BB45: =VLOOKUP(DropDownList!$B$24,CntyQryCensus!$A$55:$CW$73,BB$1) -> 2559 | BC45: =VLOOKUP(DropDownList!$B$24,CntyQryCensus!$A$55:$CW$73,BC$1) -> 15 | BD45: =VLOOKUP(DropDownList!$B$24,CntyQryCensus!$A$55:$CW$73,BD$1) -> 0 | BE45: =VLOOKUP(DropDownList!$B$24,CntyQryCensus!$A$55:$CW$73,BE$1) -> 1552 | BF45: =VLOOKUP(DropDownList!$B$24,CntyQryCensus!$A$55:$CW$73,BF$1) -> 0 | BG45: =VLOOKUP(DropDownList!$B$24,CntyQryCensus!$A$55:$CW$73,BG$1) -> 351 | BH45: =VLOOKUP(DropDownList!$B$24,CntyQryCensus!$A$55:$CW$73,BH$1) -> 427 | BI45: =VLOOKUP(DropDownList!$B$24,CntyQryCensus!$A$55:$CW$73,BI$1) -> 284 | BJ45: =VLOOKUP(DropDownList!$B$24,CntyQryCensus!$A$55:$CW$73,BJ$1) -> 305 | BK45: =VLOOKUP(DropDownList!$B$24,CntyQryCensus!$A$55:$CW$73,BK$1) -> 97 | BL45: =VLOOKUP(DropDownList!$B$24,CntyQryCensus!$A$55:$CW$73,BL$1) -> 75 | BM45: =VLOOKUP(DropDownList!$B$24,CntyQryCensus!$A$55:$CW$73,BM$1) -> 13 | BN45: =VLOOKUP(DropDownList!$B$24,CntyQryCensus!$A$55:$CW$73,BN$1) -> 149800 | BO45: =VLOOKUP(DropDownList!$B$24,CntyQryCensus!$A$55:$CW$73,BO$1) -> 913 | BP45: =VLOOKUP(DropDownList!$B$24,CntyQryCensus!$A$55:$CW$73,BP$1) -> 0 | BQ45: =VLOOKUP(DropDownList!$B$24,CntyQryCensus!$A$55:$CW$73,BQ$1) -> 29 | BR45: =VLOOKUP(DropDownList!$B$24,CntyQryCensus!$A$55:$CW$73,BR$1) -> 72 | BS45: =VLOOKUP(DropDownList!$B$24,CntyQryCensus!$A$55:$CW$73,BS$1) -> 276 | BT45: =VLOOKUP(DropDownList!$B$24,CntyQryCensus!$A$55:$CW$73,BT$1) -> 314 | BU45: =VLOOKUP(DropDownList!$B$24,CntyQryCensus!$A$55:$CW$73,BU$1) -> 131 | BV45: =VLOOKUP(DropDownList!$B$24,CntyQryCensus!$A$55:$CW$73,BV$1) -> 91 | BW45: =VLOOKUP(DropDownList!$B$24,CntyQryCensus!$A$55:$CW$73,BW$1) -> 1098 | BX45: =VLOOKUP(DropDownList!$B$24,CntyQryCensus!$A$55:$CW$73,BX$1) -> 639 | BY45: =VLOOKUP(DropDownList!$B$24,CntyQryCensus!$A$55:$CW$73,BY$1) -> 441 | BZ45: =VLOOKUP(DropDownList!$B$24,CntyQryCensus!$A$55:$CW$73,BZ$1) -> 517 | CA45: =VLOOKUP(DropDownList!$B$24,CntyQryCensus!$A$55:$CW$73,CA$1) -> 182 | CB45: =VLOOKUP(DropDownList!$B$24,CntyQryCensus!$A$55:$CW$73,CB$1) -> 253 | CC45: =VLOOKUP(DropDownList!$B$24,CntyQryCensus!$A$55:$CW$73,CC$1) -> 167 | CD45: =VLOOKUP(DropDownList!$B$24,CntyQryCensus!$A$55:$CW$73,CD$1) -> 119 | CE45: =VLOOKUP(DropDownList!$B$24,CntyQryCensus!$A$55:$CW$73,CE$1) -> 299 | CF45: =VLOOKUP(DropDownList!$B$24,CntyQryCensus!$A$55:$CW$73,CF$1) -> 15 | CG45: =VLOOKUP(DropDownList!$B$24,CntyQryCensus!$A$55:$CW$73,CG$1) -> 579 | CH45: =VLOOKUP(DropDownList!$B$24,CntyQryCensus!$A$55:$CW$73,CH$1) -> 61 | CI45: =VLOOKUP(DropDownList!$B$24,CntyQryCensus!$A$55:$CW$73,CI$1) -> 18 | CJ45: =VLOOKUP(DropDownList!$B$24,CntyQryCensus!$A$55:$CW$73,CJ$1) -> 136 | CK45: =VLOOKUP(DropDownList!$B$24,CntyQryCensus!$A$55:$CW$73,CK$1) -> 192 | CL45: =VLOOKUP(DropDownList!$B$24,CntyQryCensus!$A$55:$CW$73,CL$1) -> 99 | CM45: =VLOOKUP(DropDownList!$B$24,CntyQryCensus!$A$55:$CW$73,CM$1) -> 26 | CN45: =VLOOKUP(DropDownList!$B$24,CntyQryCensus!$A$55:$CW$73,CN$1) -> 9 | CO45: =VLOOKUP(DropDownList!$B$24,CntyQryCensus!$A$55:$CW$73,CO$1) -> 38 | CP45: =VLOOKUP(DropDownList!$B$24,CntyQryCensus!$A$55:$CW$73,CP$1) -> 606 | CQ45: =VLOOKUP(DropDownList!$B$24,CntyQryCensus!$A$55:$CW$73,CQ$1) -> 67 | CR45: =VLOOKUP(DropDownList!$B$24,CntyQryCensus!$A$55:$CW$73,CR$1) -> 90 | CS45: =VLOOKUP(DropDownList!$B$24,CntyQryCensus!$A$55:$CW$73,CS$1) -> 116 | CT45: =VLOOKUP(DropDownList!$B$24,CntyQryCensus!$A$55:$CW$73,CT$1) -> 52 | CU45: =VLOOKUP(DropDownList!$B$24,CntyQryCensus!$A$55:$CW$73,CU$1) -> 34 | CV45: =VLOOKUP(DropDownList!$B$24,CntyQryCensus!$A$55:$CW$73,CV$1) -> 164 | CW45: =VLOOKUP(DropDownList!$B$24,CntyQryCensus!$A$55:$CW$73,CW$1) -> 56
A48: Census 2000 SummaryFile3 Sample Data - SF3TownQry1SocialChar
A49: NAME | B49: LOGRECNO | C49: COUNTY | D49: P01TotalPopulation | E49: P02SampleCountOfPop | F49: P03Pop100pctCount | G49: P05UrbanPopulation | H49: P05RuralPopulation | I49: P06WhiteAlone | J49: P06BlackOrAfAm | K49: P06AmIndAlone | L49: P06AsianAlone | M49: P06HawaiianOrPI | N49: P06OtherRace | O49: P06TwoPlusRaces | P49: P07NotHispanicOrLatino | Q49: P07HispanicOrLatino | R49: P08MalePop | S49: P08FemalePop | T49: P09PopInHouseholds | U49: P09PopInFamHH | V49: P09PopInNonFamHH | W49: P09PopInGroupQtr | X49: P13TotalHH | Y49: P13FamilyHH | Z49: P13FamHHolder15to24yrs | AA49: P13FamHHolder25to34yrs | AB49: P13FamHHolder35to44yrs | AC49: P13FamHHolder45to54yrs | AD49: P13FamHHolder55to64yrs | AE49: P13FamHHolder65to74yrs | AF49: P13FamHHolder75to84yrs | AG49: P13FamHHolder85yrsOver | AH49: P13NonFamilyHH | AI49: P13NonFamHHolder15to24yrs | AJ49: P13NonFamHHolder25to34yrs | AK49: P13NonFamHHolder35to44yrs | AL49: P13NonFamHHolder45to54yrs | AM49: P13NonFamHHolder55to64yrs | AN49: P13NonFamHHolder65to74yrs | AO49: P13NonFamHHolder75to84yrs | AP49: P13NonFamHHolder85yrsOver | AQ49: P18Pop15yrsOver | AR49: P18MaritalStatNeverMarried | AS49: P18MaritalStatNowMarried | AT49: P18MaritalStatSeparated | AU49: P18MaritalStatWidowed | AV49: P18MaritalStatWidowFemale | AW49: P18MaritalStatDivorced | AX49: P18MaritalStatDivorcedFemale | AY49: P21NativeBornPop | AZ49: P21NatPopBornInState | BA49: P21NatPopBornOtherState | BB49: P021005 | BC49: P021006 | BD49: P021007 | BE49: P021008 | BF49: P21NatPopBornOutUS | BG49: P21ForeignBornPop | BH49: P021014 | BI49: P021015 | BJ49: P24Pop5YrsPlus | BK49: P24ResSameHouseIn95 | BL49: P24ResDiffHouseIn95 | BM49: P24ResDiffHouseInUSIn95 | BN49: P24ResDiffHouseSameCountyIn95 | BO49: P24ResDiffHouseDiffCountyIn95 | BP49: P24ResDiffHouseDiffCntySamStIn95 | BQ49: P24ResDiffHouseDiffCntyDifStIn95 | BR49: P24ResDiffHouseDiffCntyNEStIn95 | BS49: P24ResDiffHouseDiffCntyMWStIn95 | BT49: P24ResDiffHouseDiffCntySoStIn95 | BU49: P24ResDiffHouseDiffCntyWstStIn95 | BV49: P24ResDiffInPR | BW49: P24ResDiffElsewhereIn95 | BX49: P26Workers16yrsOver | BY49: P26WorkedInState | BZ49: P26WorkedInCnty | CA49: P26WorkedOutsideCnty | CB49: P26WorkedOutsideState | CC49: P30Workers16Over | CD49: P30TranspToWrkCar | CE49: P30TranspToWrkPublic | CF49: P30TranspToWrkOther | CG49: P30WrkdAtHome | CH49: P31WrkrsNotWrkAtHom | CI49: P31TravTim<5min | CJ49: P31TravTim5to9Min | CK49: P31TravTim10to14Min | CL49: P31TravTim15to19Min | CM49: P31TravTim20to24Min | CN49: P31TravTim25to29Min | CO49: P31TravTim30to34Min | CP49: P31TravTim35to39Min | CQ49: P31TravTim40to44Min | CR49: P31TravTim45to59Min | CS49: P31TravTim60to89Min | CT49: P31TravTim90MinMore | CU49: P31WorkAtHome | CV49: P36SchEnrlPop3yrOver | CW49: P36NurserSchEnrl | CX49: P36KinderSchEnrl | CY49: P36ElemSchEnrl | CZ49: P36HighSchEnrl | DA49: P36CollGradSchEnrl | DB49: P37Pop25yrsOver | DC49: P37EduAtain<9grd | DD49: P37EduAtainHSnoDip | DE49: P37EduAtainHSgrad | DF49: P37EduAtainCollNoDeg | DG49: P37EduAtainAssocDeg | DH49: P37EduAtainBachDeg | DI49: P37EduAtainGradProfDeg | DJ49: P42NIPop5to15 | DK49: P42NIPop5to15wDisabl | DL49: P42NIPop16to20 | DM49: P42NIPop16to20wDisab | DN49: P42NIPop16to20wDisEmp | DO49: P42NIPop16to21NoDis | DP49: P42NIPop16to21NoDisEmpl | DQ49: P42NIPop21to64 | DR49: P42NIPop21to64wDis | DS49: P42NIPop21to64wDisEmp | DT49: P42NIPop21to64NoDis | DU49: P42NIPop21to64NoDisEmp | DV49: P42NIPop65to74 | DW49: P42NIPop65to74wDis | DX49: P42NIPop75Over | DY49: P42NIPop75OverwDis | DZ49: P43Pop16YrsOver | EA49: P43Pop16OvrInLaborForce | EB49: P43Pop16OvrCivlLabFrc | EC49: P43Pop16OvrCivlLbrFrcEmp | ED49: P48Families | EE49: P48MarriedFam | EF49: P48MarrFamNoWorkers | EG49: P48MarrFam1Worker | EH49: P48MarrFam2Worker | EI49: P48MarrFamHusbWifeWorked | EJ49: P48MarrFamOther | EK49: P48MarrFam3PlusWorker | EL49: P48MarrFam3WorkHsbWif | EM49: P48MarrFam3PlsWrkOther | EN49: P48OtherFam | EO49: P48MaleHHNoWif | EP49: P48MaleHHNoWifNoWorker | EQ49: P48MaleHHNoWif1Worker | ER49: P48MaleHHNoWif2Worker | ES49: P48MaleHHNoWif3PlusWorker | ET49: P48FemaleHHNoHsb | EU49: P48FemaleHHNoHsbNoWorker | EV49: P48FemaleHHNoHsb1Worker | EW49: P48FemaleHHNoHsb2Worker | EX49: P48FemaleHHNoHsb3Worker | EY49: P49EmpCivPop16YrOver | EZ49: P49IndustAgricult | FA49: P49IndustConst | FB49: P49IndustMnftg | FC49: P49IndustWhlslTrd | FD49: P49IndustRtlTrd | FE49: P49IndustTrspWrhsUtlt | FF49: P49IndustInfrm | FG49: P49IndustFinInsRE | FH49: P49IndustPrfsScntfMngmt | FI49: P49IndustEduHlthSocSrv | FJ49: P49IndustArtsEntRec | FK49: P49IndustOthrSrvc | FL49: P49IndustPubAdm | FM49: P50OccupMngmtProfs | FN49: P50OccupService | FO49: P50OccupSalesOff | FP49: P50OccupFarmFishForest | FQ49: P50OccupConstExtrctMaint | FR49: P50OccupPrdctTrnspMatMv
A50: =VLOOKUP(DropDownList!$B$24,CntyQryCensus!$A$83:$FR$101,A$1) -> Wolfeboro | B50: =VLOOKUP(DropDownList!$B$24,CntyQryCensus!$A$83:$FR$101,B$1) -> 0000440 | C50: =VLOOKUP(DropDownList!$B$24,CntyQryCensus!$A$83:$FR$101,C$1) -> 86420 | D50: =VLOOKUP(DropDownList!$B$24,CntyQryCensus!$A$83:$FR$101,D$1) -> 6083 | E50: =VLOOKUP(DropDownList!$B$24,CntyQryCensus!$A$83:$FR$101,E$1) -> 780 | F50: =VLOOKUP(DropDownList!$B$24,CntyQryCensus!$A$83:$FR$101,F$1) -> 6083 | G50: =VLOOKUP(DropDownList!$B$24,CntyQryCensus!$A$83:$FR$101,G$1) -> 0 | H50: =VLOOKUP(DropDownList!$B$24,CntyQryCensus!$A$83:$FR$101,H$1) -> 6083 | I50: =VLOOKUP(DropDownList!$B$24,CntyQryCensus!$A$83:$FR$101,I$1) -> 6066 | J50: =VLOOKUP(DropDownList!$B$24,CntyQryCensus!$A$83:$FR$101,J$1) -> 8 | K50: =VLOOKUP(DropDownList!$B$24,CntyQryCensus!$A$83:$FR$101,K$1) -> 0 | L50: =VLOOKUP(DropDownList!$B$24,CntyQryCensus!$A$83:$FR$101,L$1) -> 0 | M50: =VLOOKUP(DropDownList!$B$24,CntyQryCensus!$A$83:$FR$101,M$1) -> 0 | N50: =VLOOKUP(DropDownList!$B$24,CntyQryCensus!$A$83:$FR$101,N$1) -> 0 | O50: =VLOOKUP(DropDownList!$B$24,CntyQryCensus!$A$83:$FR$101,O$1) -> 9 | P50: =VLOOKUP(DropDownList!$B$24,CntyQryCensus!$A$83:$FR$101,P$1) -> 6026 | Q50: =VLOOKUP(DropDownList!$B$24,CntyQryCensus!$A$83:$FR$101,Q$1) -> 57 | R50: =VLOOKUP(DropDownList!$B$24,CntyQryCensus!$A$83:$FR$101,R$1) -> 2840 | S50: =VLOOKUP(DropDownList!$B$24,CntyQryCensus!$A$83:$FR$101,S$1) -> 3243 | T50: =VLOOKUP(DropDownList!$B$24,CntyQryCensus!$A$83:$FR$101,T$1) -> 5977 | U50: =VLOOKUP(DropDownList!$B$24,CntyQryCensus!$A$83:$FR$101,U$1) -> 5027 | V50: =VLOOKUP(DropDownList!$B$24,CntyQryCensus!$A$83:$FR$101,V$1) -> 950 | W50: =VLOOKUP(DropDownList!$B$24,CntyQryCensus!$A$83:$FR$101,W$1) -> 106 | X50: =VLOOKUP(DropDownList!$B$24,CntyQryCensus!$A$83:$FR$101,X$1) -> 2575 | Y50: =VLOOKUP(DropDownList!$B$24,CntyQryCensus!$A$83:$FR$101,Y$1) -> 1734 | Z50: =VLOOKUP(DropDownList!$B$24,CntyQryCensus!$A$83:$FR$101,Z$1) -> 6 | AA50: =VLOOKUP(DropDownList!$B$24,CntyQryCensus!$A$83:$FR$101,AA$1) -> 187 | AB50: =VLOOKUP(DropDownList!$B$24,CntyQryCensus!$A$83:$FR$101,AB$1) -> 394 | AC50: =VLOOKUP(DropDownList!$B$24,CntyQryCensus!$A$83:$FR$101,AC$1) -> 355 | AD50: =VLOOKUP(DropDownList!$B$24,CntyQryCensus!$A$83:$FR$101,AD$1) -> 305 | AE50: =VLOOKUP(DropDownList!$B$24,CntyQryCensus!$A$83:$FR$101,AE$1) -> 261 | AF50: =VLOOKUP(DropDownList!$B$24,CntyQryCensus!$A$83:$FR$101,AF$1) -> 204 | AG50: =VLOOKUP(DropDownList!$B$24,CntyQryCensus!$A$83:$FR$101,AG$1) -> 22 | AH50: =VLOOKUP(DropDownList!$B$24,CntyQryCensus!$A$83:$FR$101,AH$1) -> 841 | AI50: =VLOOKUP(DropDownList!$B$24,CntyQryCensus!$A$83:$FR$101,AI$1) -> 16 | AJ50: =VLOOKUP(DropDownList!$B$24,CntyQryCensus!$A$83:$FR$101,AJ$1) -> 70 | AK50: =VLOOKUP(DropDownList!$B$24,CntyQryCensus!$A$83:$FR$101,AK$1) -> 106 | AL50: =VLOOKUP(DropDownList!$B$24,CntyQryCensus!$A$83:$FR$101,AL$1) -> 137 | AM50: =VLOOKUP(DropDownList!$B$24,CntyQryCensus!$A$83:$FR$101,AM$1) -> 76 | AN50: =VLOOKUP(DropDownList!$B$24,CntyQryCensus!$A$83:$FR$101,AN$1) -> 188 | AO50: =VLOOKUP(DropDownList!$B$24,CntyQryCensus!$A$83:$FR$101,AO$1) -> 126 | AP50: =VLOOKUP(DropDownList!$B$24,CntyQryCensus!$A$83:$FR$101,AP$1) -> 122 | AQ50: =VLOOKUP(DropDownList!$B$24,CntyQryCensus!$A$83:$FR$101,AQ$1) -> 5023 | AR50: =VLOOKUP(DropDownList!$B$24,CntyQryCensus!$A$83:$FR$101,AR$1) -> 832 | AS50: =VLOOKUP(DropDownList!$B$24,CntyQryCensus!$A$83:$FR$101,AS$1) -> 3196 | AT50: =VLOOKUP(DropDownList!$B$24,CntyQryCensus!$A$83:$FR$101,AT$1) -> 40 | AU50: =VLOOKUP(DropDownList!$B$24,CntyQryCensus!$A$83:$FR$101,AU$1) -> 462 | AV50: =VLOOKUP(DropDownList!$B$24,CntyQryCensus!$A$83:$FR$101,AV$1) -> 408 | AW50: =VLOOKUP(DropDownList!$B$24,CntyQryCensus!$A$83:$FR$101,AW$1) -> 493 | AX50: =VLOOKUP(DropDownList!$B$24,CntyQryCensus!$A$83:$FR$101,AX$1) -> 241 | AY50: =VLOOKUP(DropDownList!$B$24,CntyQryCensus!$A$83:$FR$101,AY$1) -> 5909 | AZ50: =VLOOKUP(DropDownList!$B$24,CntyQryCensus!$A$83:$FR$101,AZ$1) -> 2157 | BA50: =VLOOKUP(DropDownList!$B$24,CntyQryCensus!$A$83:$FR$101,BA$1) -> 3690 | BB50: =VLOOKUP(DropDownList!$B$24,CntyQryCensus!$A$83:$FR$101,BB$1) -> 3012 | BC50: =VLOOKUP(DropDownList!$B$24,CntyQryCensus!$A$83:$FR$101,BC$1) -> 172 | BD50: =VLOOKUP(DropDownList!$B$24,CntyQryCensus!$A$83:$FR$101,BD$1) -> 324 | BE50: =VLOOKUP(DropDownList!$B$24,CntyQryCensus!$A$83:$FR$101,BE$1) -> 182 | BF50: =VLOOKUP(DropDownList!$B$24,CntyQryCensus!$A$83:$FR$101,BF$1) -> 62 | BG50: =VLOOKUP(DropDownList!$B$24,CntyQryCensus!$A$83:$FR$101,BG$1) -> 174 | BH50: =VLOOKUP(DropDownList!$B$24,CntyQryCensus!$A$83:$FR$101,BH$1) -> 135 | BI50: =VLOOKUP(DropDownList!$B$24,CntyQryCensus!$A$83:$FR$101,BI$1) -> 39 | BJ50: =VLOOKUP(DropDownList!$B$24,CntyQryCensus!$A$83:$FR$101,BJ$1) -> 5820 | BK50: =VLOOKUP(DropDownList!$B$24,CntyQryCensus!$A$83:$FR$101,BK$1) -> 2896 | BL50: =VLOOKUP(DropDownList!$B$24,CntyQryCensus!$A$83:$FR$101,BL$1) -> 2924 | BM50: =VLOOKUP(DropDownList!$B$24,CntyQryCensus!$A$83:$FR$101,BM$1) -> 2918 | BN50: =VLOOKUP(DropDownList!$B$24,CntyQryCensus!$A$83:$FR$101,BN$1) -> 1240 | BO50: =VLOOKUP(DropDownList!$B$24,CntyQryCensus!$A$83:$FR$101,BO$1) -> 1678 | BP50: =VLOOKUP(DropDownList!$B$24,CntyQryCensus!$A$83:$FR$101,BP$1) -> 755 | BQ50: =VLOOKUP(DropDownList!$B$24,CntyQryCensus!$A$83:$FR$101,BQ$1) -> 923 | BR50: =VLOOKUP(DropDownList!$B$24,CntyQryCensus!$A$83:$FR$101,BR$1) -> 692 | BS50: =VLOOKUP(DropDownList!$B$24,CntyQryCensus!$A$83:$FR$101,BS$1) -> 20 | BT50: =VLOOKUP(DropDownList!$B$24,CntyQryCensus!$A$83:$FR$101,BT$1) -> 181 | BU50: =VLOOKUP(DropDownList!$B$24,CntyQryCensus!$A$83:$FR$101,BU$1) -> 30 | BV50: =VLOOKUP(DropDownList!$B$24,CntyQryCensus!$A$83:$FR$101,BV$1) -> 0 | BW50: =VLOOKUP(DropDownList!$B$24,CntyQryCensus!$A$83:$FR$101,BW$1) -> 6 | BX50: =VLOOKUP(DropDownList!$B$24,CntyQryCensus!$A$83:$FR$101,BX$1) -> 2522 | BY50: =VLOOKUP(DropDownList!$B$24,CntyQryCensus!$A$83:$FR$101,BY$1) -> 2348 | BZ50: =VLOOKUP(DropDownList!$B$24,CntyQryCensus!$A$83:$FR$101,BZ$1) -> 1890 | CA50: =VLOOKUP(DropDownList!$B$24,CntyQryCensus!$A$83:$FR$101,CA$1) -> 458 | CB50: =VLOOKUP(DropDownList!$B$24,CntyQryCensus!$A$83:$FR$101,CB$1) -> 174 | CC50: =VLOOKUP(DropDownList!$B$24,CntyQryCensus!$A$83:$FR$101,CC$1) -> 2522 | CD50: =VLOOKUP(DropDownList!$B$24,CntyQryCensus!$A$83:$FR$101,CD$1) -> 2220 | CE50: =VLOOKUP(DropDownList!$B$24,CntyQryCensus!$A$83:$FR$101,CE$1) -> 6 | CF50: =VLOOKUP(DropDownList!$B$24,CntyQryCensus!$A$83:$FR$101,CF$1) -> 26 | CG50: =VLOOKUP(DropDownList!$B$24,CntyQryCensus!$A$83:$FR$101,CG$1) -> 168 | CH50: =VLOOKUP(DropDownList!$B$24,CntyQryCensus!$A$83:$FR$101,CH$1) -> 2354 | CI50: =VLOOKUP(DropDownList!$B$24,CntyQryCensus!$A$83:$FR$101,CI$1) -> 181 | CJ50: =VLOOKUP(DropDownList!$B$24,CntyQryCensus!$A$83:$FR$101,CJ$1) -> 508 | CK50: =VLOOKUP(DropDownList!$B$24,CntyQryCensus!$A$83:$FR$101,CK$1) -> 448 | CL50: =VLOOKUP(DropDownList!$B$24,CntyQryCensus!$A$83:$FR$101,CL$1) -> 238 | CM50: =VLOOKUP(DropDownList!$B$24,CntyQryCensus!$A$83:$FR$101,CM$1) -> 183 | CN50: =VLOOKUP(DropDownList!$B$24,CntyQryCensus!$A$83:$FR$101,CN$1) -> 58 | CO50: =VLOOKUP(DropDownList!$B$24,CntyQryCensus!$A$83:$FR$101,CO$1) -> 114 | CP50: =VLOOKUP(DropDownList!$B$24,CntyQryCensus!$A$83:$FR$101,CP$1) -> 0 | CQ50: =VLOOKUP(DropDownList!$B$24,CntyQryCensus!$A$83:$FR$101,CQ$1) -> 79 | CR50: =VLOOKUP(DropDownList!$B$24,CntyQryCensus!$A$83:$FR$101,CR$1) -> 205 | CS50: =VLOOKUP(DropDownList!$B$24,CntyQryCensus!$A$83:$FR$101,CS$1) -> 169 | CT50: =VLOOKUP(DropDownList!$B$24,CntyQryCensus!$A$83:$FR$101,CT$1) -> 171 | CU50: =VLOOKUP(DropDownList!$B$24,CntyQryCensus!$A$83:$FR$101,CU$1) -> 168 | CV50: =VLOOKUP(DropDownList!$B$24,CntyQryCensus!$A$83:$FR$101,CV$1) -> 5938 | CW50: =VLOOKUP(DropDownList!$B$24,CntyQryCensus!$A$83:$FR$101,CW$1) -> 83 | CX50: =VLOOKUP(DropDownList!$B$24,CntyQryCensus!$A$83:$FR$101,CX$1) -> 53 | CY50: =VLOOKUP(DropDownList!$B$24,CntyQryCensus!$A$83:$FR$101,CY$1) -> 655 | CZ50: =VLOOKUP(DropDownList!$B$24,CntyQryCensus!$A$83:$FR$101,CZ$1) -> 411 | DA50: =VLOOKUP(DropDownList!$B$24,CntyQryCensus!$A$83:$FR$101,DA$1) -> 199 | DB50: =VLOOKUP(DropDownList!$B$24,CntyQryCensus!$A$83:$FR$101,DB$1) -> 4508 | DC50: =VLOOKUP(DropDownList!$B$24,CntyQryCensus!$A$83:$FR$101,DC$1) -> 123 | DD50: =VLOOKUP(DropDownList!$B$24,CntyQryCensus!$A$83:$FR$101,DD$1) -> 297 | DE50: =VLOOKUP(DropDownList!$B$24,CntyQryCensus!$A$83:$FR$101,DE$1) -> 1202 | DF50: =VLOOKUP(DropDownList!$B$24,CntyQryCensus!$A$83:$FR$101,DF$1) -> 925 | DG50: =VLOOKUP(DropDownList!$B$24,CntyQryCensus!$A$83:$FR$101,DG$1) -> 425 | DH50: =VLOOKUP(DropDownList!$B$24,CntyQryCensus!$A$83:$FR$101,DH$1) -> 913 | DI50: =VLOOKUP(DropDownList!$B$24,CntyQryCensus!$A$83:$FR$101,DI$1) -> 623 | DJ50: =VLOOKUP(DropDownList!$B$24,CntyQryCensus!$A$83:$FR$101,DJ$1) -> 886 | DK50: =VLOOKUP(DropDownList!$B$24,CntyQryCensus!$A$83:$FR$101,DK$1) -> 61 | DL50: =VLOOKUP(DropDownList!$B$24,CntyQryCensus!$A$83:$FR$101,DL$1) -> 333 | DM50: =VLOOKUP(DropDownList!$B$24,CntyQryCensus!$A$83:$FR$101,DM$1) -> 58 | DN50: =VLOOKUP(DropDownList!$B$24,CntyQryCensus!$A$83:$FR$101,DN$1) -> 42 | DO50: =VLOOKUP(DropDownList!$B$24,CntyQryCensus!$A$83:$FR$101,DO$1) -> 275 | DP50: =VLOOKUP(DropDownList!$B$24,CntyQryCensus!$A$83:$FR$101,DP$1) -> 83 | DQ50: =VLOOKUP(DropDownList!$B$24,CntyQryCensus!$A$83:$FR$101,DQ$1) -> 3097 | DR50: =VLOOKUP(DropDownList!$B$24,CntyQryCensus!$A$83:$FR$101,DR$1) -> 451 | DS50: =VLOOKUP(DropDownList!$B$24,CntyQryCensus!$A$83:$FR$101,DS$1) -> 302 | DT50: =VLOOKUP(DropDownList!$B$24,CntyQryCensus!$A$83:$FR$101,DT$1) -> 2646 | DU50: =VLOOKUP(DropDownList!$B$24,CntyQryCensus!$A$83:$FR$101,DU$1) -> 1999 | DV50: =VLOOKUP(DropDownList!$B$24,CntyQryCensus!$A$83:$FR$101,DV$1) -> 718 | DW50: =VLOOKUP(DropDownList!$B$24,CntyQryCensus!$A$83:$FR$101,DW$1) -> 154 | DX50: =VLOOKUP(DropDownList!$B$24,CntyQryCensus!$A$83:$FR$101,DX$1) -> 685 | DY50: =VLOOKUP(DropDownList!$B$24,CntyQryCensus!$A$83:$FR$101,DY$1) -> 368 | DZ50: =VLOOKUP(DropDownList!$B$24,CntyQryCensus!$A$83:$FR$101,DZ$1) -> 4934 | EA50: =VLOOKUP(DropDownList!$B$24,CntyQryCensus!$A$83:$FR$101,EA$1) -> 2662 | EB50: =VLOOKUP(DropDownList!$B$24,CntyQryCensus!$A$83:$FR$101,EB$1) -> 2662 | EC50: =VLOOKUP(DropDownList!$B$24,CntyQryCensus!$A$83:$FR$101,EC$1) -> 2583 | ED50: =VLOOKUP(DropDownList!$B$24,CntyQryCensus!$A$83:$FR$101,ED$1) -> 1734 | EE50: =VLOOKUP(DropDownList!$B$24,CntyQryCensus!$A$83:$FR$101,EE$1) -> 1493 | EF50: =VLOOKUP(DropDownList!$B$24,CntyQryCensus!$A$83:$FR$101,EF$1) -> 319 | EG50: =VLOOKUP(DropDownList!$B$24,CntyQryCensus!$A$83:$FR$101,EG$1) -> 291 | EH50: =VLOOKUP(DropDownList!$B$24,CntyQryCensus!$A$83:$FR$101,EH$1) -> 717 | EI50: =VLOOKUP(DropDownList!$B$24,CntyQryCensus!$A$83:$FR$101,EI$1) -> 624 | EJ50: =VLOOKUP(DropDownList!$B$24,CntyQryCensus!$A$83:$FR$101,EJ$1) -> 93 | EK50: =VLOOKUP(DropDownList!$B$24,CntyQryCensus!$A$83:$FR$101,EK$1) -> 166 | EL50: =VLOOKUP(DropDownList!$B$24,CntyQryCensus!$A$83:$FR$101,EL$1) -> 166 | EM50: =VLOOKUP(DropDownList!$B$24,CntyQryCensus!$A$83:$FR$101,EM$1) -> 0 | EN50: =VLOOKUP(DropDownList!$B$24,CntyQryCensus!$A$83:$FR$101,EN$1) -> 241 | EO50: =VLOOKUP(DropDownList!$B$24,CntyQryCensus!$A$83:$FR$101,EO$1) -> 64 | EP50: =VLOOKUP(DropDownList!$B$24,CntyQryCensus!$A$83:$FR$101,EP$1) -> 16 | EQ50: =VLOOKUP(DropDownList!$B$24,CntyQryCensus!$A$83:$FR$101,EQ$1) -> 37 | ER50: =VLOOKUP(DropDownList!$B$24,CntyQryCensus!$A$83:$FR$101,ER$1) -> 11 | ES50: =VLOOKUP(DropDownList!$B$24,CntyQryCensus!$A$83:$FR$101,ES$1) -> 0 | ET50: =VLOOKUP(DropDownList!$B$24,CntyQryCensus!$A$83:$FR$101,ET$1) -> 177 | EU50: =VLOOKUP(DropDownList!$B$24,CntyQryCensus!$A$83:$FR$101,EU$1) -> 7 | EV50: =VLOOKUP(DropDownList!$B$24,CntyQryCensus!$A$83:$FR$101,EV$1) -> 81 | EW50: =VLOOKUP(DropDownList!$B$24,CntyQryCensus!$A$83:$FR$101,EW$1) -> 80 | EX50: =VLOOKUP(DropDownList!$B$24,CntyQryCensus!$A$83:$FR$101,EX$1) -> 9 | EY50: =VLOOKUP(DropDownList!$B$24,CntyQryCensus!$A$83:$FR$101,EY$1) -> 2583 | EZ50: =VLOOKUP(DropDownList!$B$24,CntyQryCensus!$A$83:$FR$101,EZ$1) -> 26 | FA50: =VLOOKUP(DropDownList!$B$24,CntyQryCensus!$A$83:$FR$101,FA$1) -> 298 | FB50: =VLOOKUP(DropDownList!$B$24,CntyQryCensus!$A$83:$FR$101,FB$1) -> 210 | FC50: =VLOOKUP(DropDownList!$B$24,CntyQryCensus!$A$83:$FR$101,FC$1) -> 132 | FD50: =VLOOKUP(DropDownList!$B$24,CntyQryCensus!$A$83:$FR$101,FD$1) -> 254 | FE50: =VLOOKUP(DropDownList!$B$24,CntyQryCensus!$A$83:$FR$101,FE$1) -> 104 | FF50: =VLOOKUP(DropDownList!$B$24,CntyQryCensus!$A$83:$FR$101,FF$1) -> 8 | FG50: =VLOOKUP(DropDownList!$B$24,CntyQryCensus!$A$83:$FR$101,FG$1) -> 136 | FH50: =VLOOKUP(DropDownList!$B$24,CntyQryCensus!$A$83:$FR$101,FH$1) -> 244 | FI50: =VLOOKUP(DropDownList!$B$24,CntyQryCensus!$A$83:$FR$101,FI$1) -> 699 | FJ50: =VLOOKUP(DropDownList!$B$24,CntyQryCensus!$A$83:$FR$101,FJ$1) -> 270 | FK50: =VLOOKUP(DropDownList!$B$24,CntyQryCensus!$A$83:$FR$101,FK$1) -> 104 | FL50: =VLOOKUP(DropDownList!$B$24,CntyQryCensus!$A$83:$FR$101,FL$1) -> 98 | FM50: =VLOOKUP(DropDownList!$B$24,CntyQryCensus!$A$83:$FR$101,FM$1) -> 950 | FN50: =VLOOKUP(DropDownList!$B$24,CntyQryCensus!$A$83:$FR$101,FN$1) -> 423 | FO50: =VLOOKUP(DropDownList!$B$24,CntyQryCensus!$A$83:$FR$101,FO$1) -> 593 | FP50: =VLOOKUP(DropDownList!$B$24,CntyQryCensus!$A$83:$FR$101,FP$1) -> 8 | FQ50: =VLOOKUP(DropDownList!$B$24,CntyQryCensus!$A$83:$FR$101,FQ$1) -> 347 | FR50: =VLOOKUP(DropDownList!$B$24,CntyQryCensus!$A$83:$FR$101,FR$1) -> 262
A53: Census 2000 SummaryFile3 Sample Data - SF3TownQry2aIncomeChar
A54: NAME | B54: LOGRECNO | C54: COUNTY | D54: TotalPop | E54: P52Households1 | F54: P52HHInc<10K | G54: P52HHInc10to15K | H54: P52HHInc15to20K | I54: P52HHInc20to25K | J54: P52HHInc25to30K | K54: P52HHInc30to35K | L54: P52HHInc35to40K | M54: P52HHInc40to45K | N54: P52HHInc45to50K | O54: P52HHInc50to60K | P54: P52HHInc60to75K | Q54: P52HHInc75to100K | R54: P52HHInc100to125K | S54: P52HHInc125to150K | T54: P52HHInc150to200K | U54: P52HHInc>200K | V54: P53MedianHHInc | W54: P54AggregHHInc | X54: P55Households2 | Y54: P55HHUnder25yrs | Z54: P55HH<25HHInc<10K | AA54: P55HH<25HHInc10to15K | AB54: P55HH<25HHInc15to20K | AC54: P55HH<25HHInc20to25K | AD54: P55HH<25HHInc25to30K | AE54: P55HH<25HHInc30to35K | AF54: P55HH<25HHInc35to40K | AG54: P55HH<25HHInc40to45K | AH54: P55HH<25HHInc45to50K | AI54: P55HH<25HHInc50to60K | AJ54: P55HH<25HHInc60to75K | AK54: P55HH<25HHInc75to100K | AL54: P55HH<25HHInc100to125K | AM54: P55HH<25HHInc125to150K | AN54: P55HH<25HHInc150to200K | AO54: P55HH<25HHInc>200K | AP54: P55HH25to34yrs | AQ54: P55HH25to34HHInc<10K | AR54: P55HH25to34HHInc10to15K | AS54: P55HH25to34HHInc15to20K | AT54: P55HH25to34HHInc20to25K | AU54: P55HH25to34HHInc25to30K | AV54: P55HH25to34HHInc30to35K | AW54: P55HH25to34HHInc35to40K | AX54: P55HH25to34HHInc40to45K | AY54: P55HH25to34HHInc45to50K | AZ54: P55HH25to34HHInc50to60K | BA54: P55HH25to34HHInc60to75K | BB54: P55HH25to34HHInc75to100K | BC54: P55HH25to34HHInc100to125K | BD54: P55HH25to34HHInc125to150K | BE54: P55HH25to34HHInc150to200K | BF54: P55HH25to34HHInc>200K | BG54: P55HH35to44yrs | BH54: P55HH35to44HHInc<10K | BI54: P55HH35to44HHInc10to15K | BJ54: P55HH35to44HHInc15to20K | BK54: P55HH35to44HHInc20to25K | BL54: P55HH35to44HHInc25to30K | BM54: P55HH35to44HHInc30to35K | BN54: P55HH35to44HHInc35to40K | BO54: P55HH35to44HHInc40to45K | BP54: P55HH35to44HHInc45to50K | BQ54: P55HH35to44HHInc50to60K | BR54: P55HH35to44HHInc60to75K | BS54: P55HH35to44HHInc75to100K | BT54: P55HH35to44HHInc100to125K | BU54: P55HH35to44HHInc125to150K | BV54: P55HH35to44HHInc150to200K | BW54: P55HH35to44HHInc>200K | BX54: P55HH45to54yrs | BY54: P55HH45to55HHInc<10K | BZ54: P55HH45to55HHInc10to15K | CA54: P55HH45to55HHInc15to20K | CB54: P55HH45to55HHInc20to25K | CC54: P55HH45to55HHInc25to30K | CD54: P55HH45to55HHInc30to35K | CE54: P55HH45to55HHInc35to40K | CF54: P55HH45to55HHInc40to45K | CG54: P55HH45to55HHInc45to50K | CH54: P55HH45to55HHInc50to60K | CI54: P55HH45to55HHInc60to75K | CJ54: P55HH45to55HHInc75to100K | CK54: P55HH45to55HHInc100to125K | CL54: P55HH45to55HHInc125to150K | CM54: P55HH45to55HHInc150to200K | CN54: P55HH45to55HHInc>200K | CO54: P55HH55to64yrs | CP54: P55HH55to64HHInc<10K | CQ54: P55HH55to64HHInc10to15K | CR54: P55HH55to64HHInc15to20K | CS54: P55HH55to64HHInc20to25K | CT54: P55HH55to64HHInc25to30K | CU54: P55HH55to64HHInc30to35K | CV54: P55HH55to64HHInc35to40K | CW54: P55HH55to64HHInc40to45K | CX54: P55HH55to64HHInc45to50K | CY54: P55HH55to64HHInc50to60K | CZ54: P55HH55to64HHInc60to75K | DA54: P55HH55to64HHInc75to100K | DB54: P55HH55to64HHInc100to125K | DC54: P55HH55to64HHInc125to150K | DD54: P55HH55to64HHInc150to200K | DE54: P55HH55to64HHInc>200K | DF54: P55HH65to74yrs | DG54: P55HH65to74HHInc<10K | DH54: P55HH65to74HHInc10to15K | DI54: P55HH65to74HHInc15to20K | DJ54: P55HH65to74HHInc20to25K | DK54: P55HH65to74HHInc25to30K | DL54: P55HH65to74HHInc30to35K | DM54: P55HH65to74HHInc35to40K | DN54: P55HH65to74HHInc40to45K | DO54: P55HH65to74HHInc45to50K | DP54: P55HH65to74HHInc50to60K | DQ54: P55HH65to74HHInc60to75K | DR54: P55HH65to74HHInc75to100K | DS54: P55HH65to74HHInc100to125K | DT54: P55HH65to74HHInc125to150K | DU54: P55HH65to74HHInc150to200K | DV54: P55HH65to74HHInc>200K | DW54: P55HH>75yrs | DX54: P55HH>75HHInc<10K | DY54: P55HH>75HHInc10to15K | DZ54: P55HH>75HHInc15to20K | EA54: P55HH>75HHInc20to25K | EB54: P55HH>75HHInc25to30K | EC54: P55HH>75HHInc30to35K | ED54: P55HH>75HHInc35to40K | EE54: P55HH>75HHInc40to45K | EF54: P55HH>75HHInc45to50K | EG54: P55HH>75HHInc50to60K | EH54: P55HH>75HHInc60to75K | EI54: P55HH>75HHInc75to100K | EJ54: P55HH>75HHInc100to125K | EK54: P55HH>75HHInc125to150K | EL54: P55HH>75HHInc150to200K | EM54: P55HH>75HHInc>200K | EN54: P56MedHHInc | EO54: P56MedHHIncHH<25y | EP54: P56MedHHIncHH25to34y | EQ54: P56MedHHIncHH35to44y | ER54: P56MedHHIncHH45to54y | ES54: P56MedHHIncHH55to64y | ET54: P56MedHHIncHH65to74y | EU54: P56MedHHIncHH>75y | EV54: P58Households3 | EW54: P58HHwithEarnings | EX54: P58HHNoEarnings | EY54: P59HHwWageSalInc | EZ54: P59HHNoWageSalInc | FA54: P60HHwSelfEmpInc | FB54: P60HHNoSelfEmpInc | FC54: P61HHwIndDivInc | FD54: P61HHNoIndDivInc | FE54: P62HHwSocSecInc | FF54: P62HHNoSocSecInc | FG54: P63HHwSSI | FH54: P63HHNoSSI | FI54: P64HHwPubAssInc | FJ54: P64HHNoPubAssInc | FK54: P65HHwRetInc | FL54: P65HHNoRetInc | FM54: P66HHwOtherTypInc | FN54: P66HHNoOtherTypInc | FO54: P67AggregEarnings | FP54: P68AggregWageSalInc | FQ54: P69AggregSelfEmpInc | FR54: P70AggregIntDivInc | FS54: P71AggregSocSecInc | FT54: P72AggregSSIInc | FU54: P73AggregPublicAssInc | FV54: P74AggregRetireInc | FW54: P76Families1 | FX54: P76FamInc<10K | FY54: P76FamInc10to15K | FZ54: P76FamInc15to20K | GA54: P76FamInc20to25K | GB54: P76FamInc25to30K | GC54: P76FamInc30to35K | GD54: P76FamInc35to40K | GE54: P76FamInc40to45K | GF54: P76FamInc45to50K | GG54: P76FamInc50to60K | GH54: P76FamInc60to75K | GI54: P76FamInc75to100K | GJ54: P76FamInc100to125K | GK54: P76FamInc125to150K | GL54: P76FamInc150to200K | GM54: P76FamInc>200K | GN54: P77MedFamInc | GO54: P78AggregFamInc | GP54: P79NonFamHH | GQ54: P79NonFamHHwInc<10K | GR54: P79NonFamHHwInc10to15K | GS54: P79NonFamHHwInc15to20K | GT54: P79NonFamHHwInc20to25K | GU54: P79NonFamHHwInc25to30K | GV54: P79NonFamHHwInc30to35K | GW54: P79NonFamHHwInc35to40K | GX54: P79NonFamHHwInc40to45K | GY54: P79NonFamHHwInc45to50K | GZ54: P79NonFamHHwInc50to60K | HA54: P79NonFamHHwInc60to75K | HB54: P79NonFamHHwInc75to100K | HC54: P79NonFamHHwInc100to125K | HD54: P79NonFamHHwInc125to150K | HE54: P79NonFamHHwInc150to200K | HF54: P79NonFamHHwInc200KorMore | HG54: P80MedNonFamInc | HH54: P82PerCapitaInc
A55: =VLOOKUP(DropDownList!$B$24,CntyQryCensus!$A$109:$HH$127,A$1) -> Wolfeboro | B55: =VLOOKUP(DropDownList!$B$24,CntyQryCensus!$A$109:$HH$127,B$1) -> 0000440 | C55: =VLOOKUP(DropDownList!$B$24,CntyQryCensus!$A$109:$HH$127,C$1) -> 86420 | D55: =VLOOKUP(DropDownList!$B$24,CntyQryCensus!$A$109:$HH$127,D$1) -> 6083 | E55: =VLOOKUP(DropDownList!$B$24,CntyQryCensus!$A$109:$HH$127,E$1) -> 2575 | F55: =VLOOKUP(DropDownList!$B$24,CntyQryCensus!$A$109:$HH$127,F$1) -> 151 | G55: =VLOOKUP(DropDownList!$B$24,CntyQryCensus!$A$109:$HH$127,G$1) -> 170 | H55: =VLOOKUP(DropDownList!$B$24,CntyQryCensus!$A$109:$HH$127,H$1) -> 184 | I55: =VLOOKUP(DropDownList!$B$24,CntyQryCensus!$A$109:$HH$127,I$1) -> 228 | J55: =VLOOKUP(DropDownList!$B$24,CntyQryCensus!$A$109:$HH$127,J$1) -> 187 | K55: =VLOOKUP(DropDownList!$B$24,CntyQryCensus!$A$109:$HH$127,K$1) -> 115 | L55: =VLOOKUP(DropDownList!$B$24,CntyQryCensus!$A$109:$HH$127,L$1) -> 124 | M55: =VLOOKUP(DropDownList!$B$24,CntyQryCensus!$A$109:$HH$127,M$1) -> 168 | N55: =VLOOKUP(DropDownList!$B$24,CntyQryCensus!$A$109:$HH$127,N$1) -> 123 | O55: =VLOOKUP(DropDownList!$B$24,CntyQryCensus!$A$109:$HH$127,O$1) -> 255 | P55: =VLOOKUP(DropDownList!$B$24,CntyQryCensus!$A$109:$HH$127,P$1) -> 278 | Q55: =VLOOKUP(DropDownList!$B$24,CntyQryCensus!$A$109:$HH$127,Q$1) -> 224 | R55: =VLOOKUP(DropDownList!$B$24,CntyQryCensus!$A$109:$HH$127,R$1) -> 139 | S55: =VLOOKUP(DropDownList!$B$24,CntyQryCensus!$A$109:$HH$127,S$1) -> 64 | T55: =VLOOKUP(DropDownList!$B$24,CntyQryCensus!$A$109:$HH$127,T$1) -> 79 | U55: =VLOOKUP(DropDownList!$B$24,CntyQryCensus!$A$109:$HH$127,U$1) -> 86 | V55: =VLOOKUP(DropDownList!$B$24,CntyQryCensus!$A$109:$HH$127,V$1) -> 44013 | W55: =VLOOKUP(DropDownList!$B$24,CntyQryCensus!$A$109:$HH$127,W$1) -> 157196700 | X55: =VLOOKUP(DropDownList!$B$24,CntyQryCensus!$A$109:$HH$127,X$1) -> 2575 | Y55: =VLOOKUP(DropDownList!$B$24,CntyQryCensus!$A$109:$HH$127,Y$1) -> 22 | Z55: =VLOOKUP(DropDownList!$B$24,CntyQryCensus!$A$109:$HH$127,Z$1) -> 0 | AA55: =VLOOKUP(DropDownList!$B$24,CntyQryCensus!$A$109:$HH$127,AA$1) -> 0 | AB55: =VLOOKUP(DropDownList!$B$24,CntyQryCensus!$A$109:$HH$127,AB$1) -> 0 | AC55: =VLOOKUP(DropDownList!$B$24,CntyQryCensus!$A$109:$HH$127,AC$1) -> 8 | AD55: =VLOOKUP(DropDownList!$B$24,CntyQryCensus!$A$109:$HH$127,AD$1) -> 0 | AE55: =VLOOKUP(DropDownList!$B$24,CntyQryCensus!$A$109:$HH$127,AE$1) -> 8 | AF55: =VLOOKUP(DropDownList!$B$24,CntyQryCensus!$A$109:$HH$127,AF$1) -> 0 | AG55: =VLOOKUP(DropDownList!$B$24,CntyQryCensus!$A$109:$HH$127,AG$1) -> 0 | AH55: =VLOOKUP(DropDownList!$B$24,CntyQryCensus!$A$109:$HH$127,AH$1) -> 0 | AI55: =VLOOKUP(DropDownList!$B$24,CntyQryCensus!$A$109:$HH$127,AI$1) -> 6 | AJ55: =VLOOKUP(DropDownList!$B$24,CntyQryCensus!$A$109:$HH$127,AJ$1) -> 0 | AK55: =VLOOKUP(DropDownList!$B$24,CntyQryCensus!$A$109:$HH$127,AK$1) -> 0 | AL55: =VLOOKUP(DropDownList!$B$24,CntyQryCensus!$A$109:$HH$127,AL$1) -> 0 | AM55: =VLOOKUP(DropDownList!$B$24,CntyQryCensus!$A$109:$HH$127,AM$1) -> 0 | AN55: =VLOOKUP(DropDownList!$B$24,CntyQryCensus!$A$109:$HH$127,AN$1) -> 0 | AO55: =VLOOKUP(DropDownList!$B$24,CntyQryCensus!$A$109:$HH$127,AO$1) -> 0 | AP55: =VLOOKUP(DropDownList!$B$24,CntyQryCensus!$A$109:$HH$127,AP$1) -> 257 | AQ55: =VLOOKUP(DropDownList!$B$24,CntyQryCensus!$A$109:$HH$127,AQ$1) -> 17 | AR55: =VLOOKUP(DropDownList!$B$24,CntyQryCensus!$A$109:$HH$127,AR$1) -> 15 | AS55: =VLOOKUP(DropDownList!$B$24,CntyQryCensus!$A$109:$HH$127,AS$1) -> 8 | AT55: =VLOOKUP(DropDownList!$B$24,CntyQryCensus!$A$109:$HH$127,AT$1) -> 41 | AU55: =VLOOKUP(DropDownList!$B$24,CntyQryCensus!$A$109:$HH$127,AU$1) -> 20 | AV55: =VLOOKUP(DropDownList!$B$24,CntyQryCensus!$A$109:$HH$127,AV$1) -> 25 | AW55: =VLOOKUP(DropDownList!$B$24,CntyQryCensus!$A$109:$HH$127,AW$1) -> 8 | AX55: =VLOOKUP(DropDownList!$B$24,CntyQryCensus!$A$109:$HH$127,AX$1) -> 24 | AY55: =VLOOKUP(DropDownList!$B$24,CntyQryCensus!$A$109:$HH$127,AY$1) -> 11 | AZ55: =VLOOKUP(DropDownList!$B$24,CntyQryCensus!$A$109:$HH$127,AZ$1) -> 27 | BA55: =VLOOKUP(DropDownList!$B$24,CntyQryCensus!$A$109:$HH$127,BA$1) -> 45 | BB55: =VLOOKUP(DropDownList!$B$24,CntyQryCensus!$A$109:$HH$127,BB$1) -> 7 | BC55: =VLOOKUP(DropDownList!$B$24,CntyQryCensus!$A$109:$HH$127,BC$1) -> 9 | BD55: =VLOOKUP(DropDownList!$B$24,CntyQryCensus!$A$109:$HH$127,BD$1) -> 0 | BE55: =VLOOKUP(DropDownList!$B$24,CntyQryCensus!$A$109:$HH$127,BE$1) -> 0 | BF55: =VLOOKUP(DropDownList!$B$24,CntyQryCensus!$A$109:$HH$127,BF$1) -> 0 | BG55: =VLOOKUP(DropDownList!$B$24,CntyQryCensus!$A$109:$HH$127,BG$1) -> 500 | BH55: =VLOOKUP(DropDownList!$B$24,CntyQryCensus!$A$109:$HH$127,BH$1) -> 32 | BI55: =VLOOKUP(DropDownList!$B$24,CntyQryCensus!$A$109:$HH$127,BI$1) -> 27 | BJ55: =VLOOKUP(DropDownList!$B$24,CntyQryCensus!$A$109:$HH$127,BJ$1) -> 8 | BK55: =VLOOKUP(DropDownList!$B$24,CntyQryCensus!$A$109:$HH$127,BK$1) -> 6 | BL55: =VLOOKUP(DropDownList!$B$24,CntyQryCensus!$A$109:$HH$127,BL$1) -> 60 | BM55: =VLOOKUP(DropDownList!$B$24,CntyQryCensus!$A$109:$HH$127,BM$1) -> 14 | BN55: =VLOOKUP(DropDownList!$B$24,CntyQryCensus!$A$109:$HH$127,BN$1) -> 43 | BO55: =VLOOKUP(DropDownList!$B$24,CntyQryCensus!$A$109:$HH$127,BO$1) -> 24 | BP55: =VLOOKUP(DropDownList!$B$24,CntyQryCensus!$A$109:$HH$127,BP$1) -> 29 | BQ55: =VLOOKUP(DropDownList!$B$24,CntyQryCensus!$A$109:$HH$127,BQ$1) -> 73 | BR55: =VLOOKUP(DropDownList!$B$24,CntyQryCensus!$A$109:$HH$127,BR$1) -> 64 | BS55: =VLOOKUP(DropDownList!$B$24,CntyQryCensus!$A$109:$HH$127,BS$1) -> 50 | BT55: =VLOOKUP(DropDownList!$B$24,CntyQryCensus!$A$109:$HH$127,BT$1) -> 28 | BU55: =VLOOKUP(DropDownList!$B$24,CntyQryCensus!$A$109:$HH$127,BU$1) -> 17 | BV55: =VLOOKUP(DropDownList!$B$24,CntyQryCensus!$A$109:$HH$127,BV$1) -> 11 | BW55: =VLOOKUP(DropDownList!$B$24,CntyQryCensus!$A$109:$HH$127,BW$1) -> 14 | BX55: =VLOOKUP(DropDownList!$B$24,CntyQryCensus!$A$109:$HH$127,BX$1) -> 492 | BY55: =VLOOKUP(DropDownList!$B$24,CntyQryCensus!$A$109:$HH$127,BY$1) -> 17 | BZ55: =VLOOKUP(DropDownList!$B$24,CntyQryCensus!$A$109:$HH$127,BZ$1) -> 0 | CA55: =VLOOKUP(DropDownList!$B$24,CntyQryCensus!$A$109:$HH$127,CA$1) -> 0 | CB55: =VLOOKUP(DropDownList!$B$24,CntyQryCensus!$A$109:$HH$127,CB$1) -> 44 | CC55: =VLOOKUP(DropDownList!$B$24,CntyQryCensus!$A$109:$HH$127,CC$1) -> 30 | CD55: =VLOOKUP(DropDownList!$B$24,CntyQryCensus!$A$109:$HH$127,CD$1) -> 8 | CE55: =VLOOKUP(DropDownList!$B$24,CntyQryCensus!$A$109:$HH$127,CE$1) -> 26 | CF55: =VLOOKUP(DropDownList!$B$24,CntyQryCensus!$A$109:$HH$127,CF$1) -> 59 | CG55: =VLOOKUP(DropDownList!$B$24,CntyQryCensus!$A$109:$HH$127,CG$1) -> 37 | CH55: =VLOOKUP(DropDownList!$B$24,CntyQryCensus!$A$109:$HH$127,CH$1) -> 17 | CI55: =VLOOKUP(DropDownList!$B$24,CntyQryCensus!$A$109:$HH$127,CI$1) -> 88 | CJ55: =VLOOKUP(DropDownList!$B$24,CntyQryCensus!$A$109:$HH$127,CJ$1) -> 36 | CK55: =VLOOKUP(DropDownList!$B$24,CntyQryCensus!$A$109:$HH$127,CK$1) -> 62 | CL55: =VLOOKUP(DropDownList!$B$24,CntyQryCensus!$A$109:$HH$127,CL$1) -> 17 | CM55: =VLOOKUP(DropDownList!$B$24,CntyQryCensus!$A$109:$HH$127,CM$1) -> 17 | CN55: =VLOOKUP(DropDownList!$B$24,CntyQryCensus!$A$109:$HH$127,CN$1) -> 34 | CO55: =VLOOKUP(DropDownList!$B$24,CntyQryCensus!$A$109:$HH$127,CO$1) -> 381 | CP55: =VLOOKUP(DropDownList!$B$24,CntyQryCensus!$A$109:$HH$127,CP$1) -> 7 | CQ55: =VLOOKUP(DropDownList!$B$24,CntyQryCensus!$A$109:$HH$127,CQ$1) -> 17 | CR55: =VLOOKUP(DropDownList!$B$24,CntyQryCensus!$A$109:$HH$127,CR$1) -> 18 | CS55: =VLOOKUP(DropDownList!$B$24,CntyQryCensus!$A$109:$HH$127,CS$1) -> 33 | CT55: =VLOOKUP(DropDownList!$B$24,CntyQryCensus!$A$109:$HH$127,CT$1) -> 27 | CU55: =VLOOKUP(DropDownList!$B$24,CntyQryCensus!$A$109:$HH$127,CU$1) -> 8 | CV55: =VLOOKUP(DropDownList!$B$24,CntyQryCensus!$A$109:$HH$127,CV$1) -> 0 | CW55: =VLOOKUP(DropDownList!$B$24,CntyQryCensus!$A$109:$HH$127,CW$1) -> 0 | CX55: =VLOOKUP(DropDownList!$B$24,CntyQryCensus!$A$109:$HH$127,CX$1) -> 20 | CY55: =VLOOKUP(DropDownList!$B$24,CntyQryCensus!$A$109:$HH$127,CY$1) -> 64 | CZ55: =VLOOKUP(DropDownList!$B$24,CntyQryCensus!$A$109:$HH$127,CZ$1) -> 9 | DA55: =VLOOKUP(DropDownList!$B$24,CntyQryCensus!$A$109:$HH$127,DA$1) -> 101 | DB55: =VLOOKUP(DropDownList!$B$24,CntyQryCensus!$A$109:$HH$127,DB$1) -> 0 | DC55: =VLOOKUP(DropDownList!$B$24,CntyQryCensus!$A$109:$HH$127,DC$1) -> 11 | DD55: =VLOOKUP(DropDownList!$B$24,CntyQryCensus!$A$109:$HH$127,DD$1) -> 28 | DE55: =VLOOKUP(DropDownList!$B$24,CntyQryCensus!$A$109:$HH$127,DE$1) -> 38 | DF55: =VLOOKUP(DropDownList!$B$24,CntyQryCensus!$A$109:$HH$127,DF$1) -> 449 | DG55: =VLOOKUP(DropDownList!$B$24,CntyQryCensus!$A$109:$HH$127,DG$1) -> 24 | DH55: =VLOOKUP(DropDownList!$B$24,CntyQryCensus!$A$109:$HH$127,DH$1) -> 26 | DI55: =VLOOKUP(DropDownList!$B$24,CntyQryCensus!$A$109:$HH$127,DI$1) -> 80 | DJ55: =VLOOKUP(DropDownList!$B$24,CntyQryCensus!$A$109:$HH$127,DJ$1) -> 34 | DK55: =VLOOKUP(DropDownList!$B$24,CntyQryCensus!$A$109:$HH$127,DK$1) -> 28 | DL55: =VLOOKUP(DropDownList!$B$24,CntyQryCensus!$A$109:$HH$127,DL$1) -> 37 | DM55: =VLOOKUP(DropDownList!$B$24,CntyQryCensus!$A$109:$HH$127,DM$1) -> 16 | DN55: =VLOOKUP(DropDownList!$B$24,CntyQryCensus!$A$109:$HH$127,DN$1) -> 36 | DO55: =VLOOKUP(DropDownList!$B$24,CntyQryCensus!$A$109:$HH$127,DO$1) -> 26 | DP55: =VLOOKUP(DropDownList!$B$24,CntyQryCensus!$A$109:$HH$127,DP$1) -> 37 | DQ55: =VLOOKUP(DropDownList!$B$24,CntyQryCensus!$A$109:$HH$127,DQ$1) -> 28 | DR55: =VLOOKUP(DropDownList!$B$24,CntyQryCensus!$A$109:$HH$127,DR$1) -> 24 | DS55: =VLOOKUP(DropDownList!$B$24,CntyQryCensus!$A$109:$HH$127,DS$1) -> 28 | DT55: =VLOOKUP(DropDownList!$B$24,CntyQryCensus!$A$109:$HH$127,DT$1) -> 9 | DU55: =VLOOKUP(DropDownList!$B$24,CntyQryCensus!$A$109:$HH$127,DU$1) -> 16 | DV55: =VLOOKUP(DropDownList!$B$24,CntyQryCensus!$A$109:$HH$127,DV$1) -> 0 | DW55: =VLOOKUP(DropDownList!$B$24,CntyQryCensus!$A$109:$HH$127,DW$1) -> 474 | DX55: =VLOOKUP(DropDownList!$B$24,CntyQryCensus!$A$109:$HH$127,DX$1) -> 54 | DY55: =VLOOKUP(DropDownList!$B$24,CntyQryCensus!$A$109:$HH$127,DY$1) -> 85 | DZ55: =VLOOKUP(DropDownList!$B$24,CntyQryCensus!$A$109:$HH$127,DZ$1) -> 70 | EA55: =VLOOKUP(DropDownList!$B$24,CntyQryCensus!$A$109:$HH$127,EA$1) -> 62 | EB55: =VLOOKUP(DropDownList!$B$24,CntyQryCensus!$A$109:$HH$127,EB$1) -> 22 | EC55: =VLOOKUP(DropDownList!$B$24,CntyQryCensus!$A$109:$HH$127,EC$1) -> 15 | ED55: =VLOOKUP(DropDownList!$B$24,CntyQryCensus!$A$109:$HH$127,ED$1) -> 31 | EE55: =VLOOKUP(DropDownList!$B$24,CntyQryCensus!$A$109:$HH$127,EE$1) -> 25 | EF55: =VLOOKUP(DropDownList!$B$24,CntyQryCensus!$A$109:$HH$127,EF$1) -> 0 | EG55: =VLOOKUP(DropDownList!$B$24,CntyQryCensus!$A$109:$HH$127,EG$1) -> 31 | EH55: =VLOOKUP(DropDownList!$B$24,CntyQryCensus!$A$109:$HH$127,EH$1) -> 44 | EI55: =VLOOKUP(DropDownList!$B$24,CntyQryCensus!$A$109:$HH$127,EI$1) -> 6 | EJ55: =VLOOKUP(DropDownList!$B$24,CntyQryCensus!$A$109:$HH$127,EJ$1) -> 12 | EK55: =VLOOKUP(DropDownList!$B$24,CntyQryCensus!$A$109:$HH$127,EK$1) -> 10 | EL55: =VLOOKUP(DropDownList!$B$24,CntyQryCensus!$A$109:$HH$127,EL$1) -> 7 | EM55: =VLOOKUP(DropDownList!$B$24,CntyQryCensus!$A$109:$HH$127,EM$1) -> 0 | EN55: =VLOOKUP(DropDownList!$B$24,CntyQryCensus!$A$109:$HH$127,EN$1) -> 44013 | EO55: =VLOOKUP(DropDownList!$B$24,CntyQryCensus!$A$109:$HH$127,EO$1) -> 30938 | EP55: =VLOOKUP(DropDownList!$B$24,CntyQryCensus!$A$109:$HH$127,EP$1) -> 38281 | EQ55: =VLOOKUP(DropDownList!$B$24,CntyQryCensus!$A$109:$HH$127,EQ$1) -> 50625 | ER55: =VLOOKUP(DropDownList!$B$24,CntyQryCensus!$A$109:$HH$127,ER$1) -> 61176 | ES55: =VLOOKUP(DropDownList!$B$24,CntyQryCensus!$A$109:$HH$127,ES$1) -> 58750 | ET55: =VLOOKUP(DropDownList!$B$24,CntyQryCensus!$A$109:$HH$127,ET$1) -> 34408 | EU55: =VLOOKUP(DropDownList!$B$24,CntyQryCensus!$A$109:$HH$127,EU$1) -> 21750 | EV55: =VLOOKUP(DropDownList!$B$24,CntyQryCensus!$A$109:$HH$127,EV$1) -> 2575 | EW55: =VLOOKUP(DropDownList!$B$24,CntyQryCensus!$A$109:$HH$127,EW$1) -> 1820 | EX55: =VLOOKUP(DropDownList!$B$24,CntyQryCensus!$A$109:$HH$127,EX$1) -> 755 | EY55: =VLOOKUP(DropDownList!$B$24,CntyQryCensus!$A$109:$HH$127,EY$1) -> 1608 | EZ55: =VLOOKUP(DropDownList!$B$24,CntyQryCensus!$A$109:$HH$127,EZ$1) -> 967 | FA55: =VLOOKUP(DropDownList!$B$24,CntyQryCensus!$A$109:$HH$127,FA$1) -> 590 | FB55: =VLOOKUP(DropDownList!$B$24,CntyQryCensus!$A$109:$HH$127,FB$1) -> 1985 | FC55: =VLOOKUP(DropDownList!$B$24,CntyQryCensus!$A$109:$HH$127,FC$1) -> 1149 | FD55: =VLOOKUP(DropDownList!$B$24,CntyQryCensus!$A$109:$HH$127,FD$1) -> 1426 | FE55: =VLOOKUP(DropDownList!$B$24,CntyQryCensus!$A$109:$HH$127,FE$1) -> 951 | FF55: =VLOOKUP(DropDownList!$B$24,CntyQryCensus!$A$109:$HH$127,FF$1) -> 1624 | FG55: =VLOOKUP(DropDownList!$B$24,CntyQryCensus!$A$109:$HH$127,FG$1) -> 64 | FH55: =VLOOKUP(DropDownList!$B$24,CntyQryCensus!$A$109:$HH$127,FH$1) -> 2511 | FI55: =VLOOKUP(DropDownList!$B$24,CntyQryCensus!$A$109:$HH$127,FI$1) -> 72 | FJ55: =VLOOKUP(DropDownList!$B$24,CntyQryCensus!$A$109:$HH$127,FJ$1) -> 2503 | FK55: =VLOOKUP(DropDownList!$B$24,CntyQryCensus!$A$109:$HH$127,FK$1) -> 709 | FL55: =VLOOKUP(DropDownList!$B$24,CntyQryCensus!$A$109:$HH$127,FL$1) -> 1866 | FM55: =VLOOKUP(DropDownList!$B$24,CntyQryCensus!$A$109:$HH$127,FM$1) -> 332 | FN55: =VLOOKUP(DropDownList!$B$24,CntyQryCensus!$A$109:$HH$127,FN$1) -> 2243 | FO55: =VLOOKUP(DropDownList!$B$24,CntyQryCensus!$A$109:$HH$127,FO$1) -> 107224100 | FP55: =VLOOKUP(DropDownList!$B$24,CntyQryCensus!$A$109:$HH$127,FP$1) -> 83810600 | FQ55: =VLOOKUP(DropDownList!$B$24,CntyQryCensus!$A$109:$HH$127,FQ$1) -> 23413500 | FR55: =VLOOKUP(DropDownList!$B$24,CntyQryCensus!$A$109:$HH$127,FR$1) -> 17876300 | FS55: =VLOOKUP(DropDownList!$B$24,CntyQryCensus!$A$109:$HH$127,FS$1) -> 11917200 | FT55: =VLOOKUP(DropDownList!$B$24,CntyQryCensus!$A$109:$HH$127,FT$1) -> 362300 | FU55: =VLOOKUP(DropDownList!$B$24,CntyQryCensus!$A$109:$HH$127,FU$1) -> 90300 | FV55: =VLOOKUP(DropDownList!$B$24,CntyQryCensus!$A$109:$HH$127,FV$1) -> 16185500 | FW55: =VLOOKUP(DropDownList!$B$24,CntyQryCensus!$A$109:$HH$127,FW$1) -> 1734 | FX55: =VLOOKUP(DropDownList!$B$24,CntyQryCensus!$A$109:$HH$127,FX$1) -> 33 | FY55: =VLOOKUP(DropDownList!$B$24,CntyQryCensus!$A$109:$HH$127,FY$1) -> 64 | FZ55: =VLOOKUP(DropDownList!$B$24,CntyQryCensus!$A$109:$HH$127,FZ$1) -> 49 | GA55: =VLOOKUP(DropDownList!$B$24,CntyQryCensus!$A$109:$HH$127,GA$1) -> 139 | GB55: =VLOOKUP(DropDownList!$B$24,CntyQryCensus!$A$109:$HH$127,GB$1) -> 122 | GC55: =VLOOKUP(DropDownList!$B$24,CntyQryCensus!$A$109:$HH$127,GC$1) -> 65 | GD55: =VLOOKUP(DropDownList!$B$24,CntyQryCensus!$A$109:$HH$127,GD$1) -> 85 | GE55: =VLOOKUP(DropDownList!$B$24,CntyQryCensus!$A$109:$HH$127,GE$1) -> 113 | GF55: =VLOOKUP(DropDownList!$B$24,CntyQryCensus!$A$109:$HH$127,GF$1) -> 113 | GG55: =VLOOKUP(DropDownList!$B$24,CntyQryCensus!$A$109:$HH$127,GG$1) -> 187 | GH55: =VLOOKUP(DropDownList!$B$24,CntyQryCensus!$A$109:$HH$127,GH$1) -> 219 | GI55: =VLOOKUP(DropDownList!$B$24,CntyQryCensus!$A$109:$HH$127,GI$1) -> 214 | GJ55: =VLOOKUP(DropDownList!$B$24,CntyQryCensus!$A$109:$HH$127,GJ$1) -> 126 | GK55: =VLOOKUP(DropDownList!$B$24,CntyQryCensus!$A$109:$HH$127,GK$1) -> 64 | GL55: =VLOOKUP(DropDownList!$B$24,CntyQryCensus!$A$109:$HH$127,GL$1) -> 64 | GM55: =VLOOKUP(DropDownList!$B$24,CntyQryCensus!$A$109:$HH$127,GM$1) -> 77 | GN55: =VLOOKUP(DropDownList!$B$24,CntyQryCensus!$A$109:$HH$127,GN$1) -> 53269 | GO55: =VLOOKUP(DropDownList!$B$24,CntyQryCensus!$A$109:$HH$127,GO$1) -> 122919400 | GP55: =VLOOKUP(DropDownList!$B$24,CntyQryCensus!$A$109:$HH$127,GP$1) -> 841 | GQ55: =VLOOKUP(DropDownList!$B$24,CntyQryCensus!$A$109:$HH$127,GQ$1) -> 118 | GR55: =VLOOKUP(DropDownList!$B$24,CntyQryCensus!$A$109:$HH$127,GR$1) -> 106 | GS55: =VLOOKUP(DropDownList!$B$24,CntyQryCensus!$A$109:$HH$127,GS$1) -> 143 | GT55: =VLOOKUP(DropDownList!$B$24,CntyQryCensus!$A$109:$HH$127,GT$1) -> 81 | GU55: =VLOOKUP(DropDownList!$B$24,CntyQryCensus!$A$109:$HH$127,GU$1) -> 65 | GV55: =VLOOKUP(DropDownList!$B$24,CntyQryCensus!$A$109:$HH$127,GV$1) -> 58 | GW55: =VLOOKUP(DropDownList!$B$24,CntyQryCensus!$A$109:$HH$127,GW$1) -> 50 | GX55: =VLOOKUP(DropDownList!$B$24,CntyQryCensus!$A$109:$HH$127,GX$1) -> 42 | GY55: =VLOOKUP(DropDownList!$B$24,CntyQryCensus!$A$109:$HH$127,GY$1) -> 10 | GZ55: =VLOOKUP(DropDownList!$B$24,CntyQryCensus!$A$109:$HH$127,GZ$1) -> 68 | HA55: =VLOOKUP(DropDownList!$B$24,CntyQryCensus!$A$109:$HH$127,HA$1) -> 53 | HB55: =VLOOKUP(DropDownList!$B$24,CntyQryCensus!$A$109:$HH$127,HB$1) -> 10 | HC55: =VLOOKUP(DropDownList!$B$24,CntyQryCensus!$A$109:$HH$127,HC$1) -> 13 | HD55: =VLOOKUP(DropDownList!$B$24,CntyQryCensus!$A$109:$HH$127,HD$1) -> 0 | HE55: =VLOOKUP(DropDownList!$B$24,CntyQryCensus!$A$109:$HH$127,HE$1) -> 15 | HF55: =VLOOKUP(DropDownList!$B$24,CntyQryCensus!$A$109:$HH$127,HF$1) -> 9 | HG55: =VLOOKUP(DropDownList!$B$24,CntyQryCensus!$A$109:$HH$127,HG$1) -> 21651 | HH55: =VLOOKUP(DropDownList!$B$24,CntyQryCensus!$A$109:$HH$127,HH$1) -> 26361
A58: Census 2000 SummaryFile3 Sample Data - SF3TownQry2bPovertyChar
A59: NAME | B59: LOGRECNO | C59: COUNTY | D59: TotalPop | E59: P52Households1 | F59: P82PerCapitaInc | G59: P87PopForPovStatus | H59: P87PopWIncBelowPovStatus | I59: P87PopUnder5yrBelowPoverty | J59: P87Pop5yrBelowPoverty | K59: P87Pop5to11yrBelowPoverty | L59: P87Pop12to17yrBelowPoverty | M59: P87Pop18to64yrBelowPoverty | N59: P87Pop65to74yrBelowPoverty | O59: P87PopOver75yrBelowPoverty | P59: P87PopWIncAbovePovStatus | Q59: P87PopUnder5yrAbovePoverty | R59: P87Pop5yrAbovePoverty | S59: P87Pop5to11yrAbovePoverty | T59: P87Pop12to17yrAbovePoverty | U59: P87Pop18to64yrAbovePoverty | V59: P87Pop65to74yrAbovePoverty | W59: P87PopOver75yrAbovePoverty | X59: P90Families | Y59: P90FamWIncBelowPov | Z59: P90MarCupFamWIncBelowPov | AA59: P90MCFamWRltdChld<18WIncBelowPov | AB59: P90MCFamWRltdChld<5WIncBelowPov | AC59: P90MaleHhlrWIncBelowPov | AD59: P90MaleHhlrWRltdChld<18yrWIncBelowPov | AE59: P90MaleHhlrWRltdChld<5yrWIncBelowPov | AF59: P90FemaleHhlrWIncBelowPov | AG59: P90FemaleHhlrWRltdChld<18yWIncBelowPov | AH59: P90FemaleHhlrWRltdChld<5yWIncBelowPov | AI59: P90FamWIncAbovePov | AJ59: P90MarCupFamWIncAbovePov | AK59: P90MCFamWRltdChld<18WIncAbovePov | AL59: P90MCFamWRltdChld<5WIncAbovePov | AM59: P90MaleHhlrWIncAbovePov | AN59: P90MaleHhlrWRltdChld<18yrWIncAbovePov | AO59: P90MaleHhlrWRltdChld<5yrWIncAbovePov | AP59: P90FemaleHhlrWIncAbovePov | AQ59: P90FemaleHhlrWRltdChld<18yWIncAbovePov | AR59: P90FemaleHhlrWRltdChld<5yWIncAbovePov | AS59: P92Households | AT59: P92HHwIncBelowPov | AU59: P92FamHHwIncBelowPov | AV59: P92MCFamHHwIncBelowPov | AW59: P92MaleFamHHwIncBelowPov | AX59: P92FemaleFamHHwIncBelowPov | AY59: P92NonFamHHwIncBelowPov | AZ59: P92NonFamMaleHHwIncBelowPov | BA59: P92NonFamFemaleHHwIncBelowPov | BB59: P92HHwIncAbovePov | BC59: P92FamHHwIncAbovePov | BD59: P92MCFamHHwIncAbovePov | BE59: P92MaleFamHHwIncAbovePov | BF59: P92FemaleFamHHwIncAbovePov | BG59: P92NonFamHHwIncAbovePov | BH59: P92NonFamMaleHHwIncAbovePov | BI59: P92NonFamFemaleHHwIncAbovePov
A60: =VLOOKUP(DropDownList!$B$24,CntyQryCensus!$A$135:$FZ$153,A$1) -> Wolfeboro | B60: =VLOOKUP(DropDownList!$B$24,CntyQryCensus!$A$135:$FZ$153,B$1) -> 0000440 | C60: =VLOOKUP(DropDownList!$B$24,CntyQryCensus!$A$135:$FZ$153,C$1) -> 86420 | D60: =VLOOKUP(DropDownList!$B$24,CntyQryCensus!$A$135:$FZ$153,D$1) -> 6083 | E60: =VLOOKUP(DropDownList!$B$24,CntyQryCensus!$A$135:$FZ$153,E$1) -> 2575 | F60: =VLOOKUP(DropDownList!$B$24,CntyQryCensus!$A$135:$FZ$153,F$1) -> 26361 | G60: =VLOOKUP(DropDownList!$B$24,CntyQryCensus!$A$135:$FZ$153,G$1) -> 5964 | H60: =VLOOKUP(DropDownList!$B$24,CntyQryCensus!$A$135:$FZ$153,H$1) -> 375 | I60: =VLOOKUP(DropDownList!$B$24,CntyQryCensus!$A$135:$FZ$153,I$1) -> 25 | J60: =VLOOKUP(DropDownList!$B$24,CntyQryCensus!$A$135:$FZ$153,J$1) -> 7 | K60: =VLOOKUP(DropDownList!$B$24,CntyQryCensus!$A$135:$FZ$153,K$1) -> 21 | L60: =VLOOKUP(DropDownList!$B$24,CntyQryCensus!$A$135:$FZ$153,L$1) -> 72 | M60: =VLOOKUP(DropDownList!$B$24,CntyQryCensus!$A$135:$FZ$153,M$1) -> 210 | N60: =VLOOKUP(DropDownList!$B$24,CntyQryCensus!$A$135:$FZ$153,N$1) -> 16 | O60: =VLOOKUP(DropDownList!$B$24,CntyQryCensus!$A$135:$FZ$153,O$1) -> 24 | P60: =VLOOKUP(DropDownList!$B$24,CntyQryCensus!$A$135:$FZ$153,P$1) -> 5589 | Q60: =VLOOKUP(DropDownList!$B$24,CntyQryCensus!$A$135:$FZ$153,Q$1) -> 238 | R60: =VLOOKUP(DropDownList!$B$24,CntyQryCensus!$A$135:$FZ$153,R$1) -> 71 | S60: =VLOOKUP(DropDownList!$B$24,CntyQryCensus!$A$135:$FZ$153,S$1) -> 428 | T60: =VLOOKUP(DropDownList!$B$24,CntyQryCensus!$A$135:$FZ$153,T$1) -> 464 | U60: =VLOOKUP(DropDownList!$B$24,CntyQryCensus!$A$135:$FZ$153,U$1) -> 3025 | V60: =VLOOKUP(DropDownList!$B$24,CntyQryCensus!$A$135:$FZ$153,V$1) -> 702 | W60: =VLOOKUP(DropDownList!$B$24,CntyQryCensus!$A$135:$FZ$153,W$1) -> 661 | X60: =VLOOKUP(DropDownList!$B$24,CntyQryCensus!$A$135:$FZ$153,X$1) -> 1734 | Y60: =VLOOKUP(DropDownList!$B$24,CntyQryCensus!$A$135:$FZ$153,Y$1) -> 61 | Z60: =VLOOKUP(DropDownList!$B$24,CntyQryCensus!$A$135:$FZ$153,Z$1) -> 28 | AA60: =VLOOKUP(DropDownList!$B$24,CntyQryCensus!$A$135:$FZ$153,AA$1) -> 20 | AB60: =VLOOKUP(DropDownList!$B$24,CntyQryCensus!$A$135:$FZ$153,AB$1) -> 0 | AC60: =VLOOKUP(DropDownList!$B$24,CntyQryCensus!$A$135:$FZ$153,AC$1) -> 6 | AD60: =VLOOKUP(DropDownList!$B$24,CntyQryCensus!$A$135:$FZ$153,AD$1) -> 6 | AE60: =VLOOKUP(DropDownList!$B$24,CntyQryCensus!$A$135:$FZ$153,AE$1) -> 0 | AF60: =VLOOKUP(DropDownList!$B$24,CntyQryCensus!$A$135:$FZ$153,AF$1) -> 27 | AG60: =VLOOKUP(DropDownList!$B$24,CntyQryCensus!$A$135:$FZ$153,AG$1) -> 27 | AH60: =VLOOKUP(DropDownList!$B$24,CntyQryCensus!$A$135:$FZ$153,AH$1) -> 0 | AI60: =VLOOKUP(DropDownList!$B$24,CntyQryCensus!$A$135:$FZ$153,AI$1) -> 1673 | AJ60: =VLOOKUP(DropDownList!$B$24,CntyQryCensus!$A$135:$FZ$153,AJ$1) -> 1465 | AK60: =VLOOKUP(DropDownList!$B$24,CntyQryCensus!$A$135:$FZ$153,AK$1) -> 473 | AL60: =VLOOKUP(DropDownList!$B$24,CntyQryCensus!$A$135:$FZ$153,AL$1) -> 57 | AM60: =VLOOKUP(DropDownList!$B$24,CntyQryCensus!$A$135:$FZ$153,AM$1) -> 58 | AN60: =VLOOKUP(DropDownList!$B$24,CntyQryCensus!$A$135:$FZ$153,AN$1) -> 29 | AO60: =VLOOKUP(DropDownList!$B$24,CntyQryCensus!$A$135:$FZ$153,AO$1) -> 15 | AP60: =VLOOKUP(DropDownList!$B$24,CntyQryCensus!$A$135:$FZ$153,AP$1) -> 150 | AQ60: =VLOOKUP(DropDownList!$B$24,CntyQryCensus!$A$135:$FZ$153,AQ$1) -> 111 | AR60: =VLOOKUP(DropDownList!$B$24,CntyQryCensus!$A$135:$FZ$153,AR$1) -> 0 | AS60: =VLOOKUP(DropDownList!$B$24,CntyQryCensus!$A$135:$FZ$153,AS$1) -> 2575 | AT60: =VLOOKUP(DropDownList!$B$24,CntyQryCensus!$A$135:$FZ$153,AT$1) -> 133 | AU60: =VLOOKUP(DropDownList!$B$24,CntyQryCensus!$A$135:$FZ$153,AU$1) -> 61 | AV60: =VLOOKUP(DropDownList!$B$24,CntyQryCensus!$A$135:$FZ$153,AV$1) -> 28 | AW60: =VLOOKUP(DropDownList!$B$24,CntyQryCensus!$A$135:$FZ$153,AW$1) -> 6 | AX60: =VLOOKUP(DropDownList!$B$24,CntyQryCensus!$A$135:$FZ$153,AX$1) -> 27 | AY60: =VLOOKUP(DropDownList!$B$24,CntyQryCensus!$A$135:$FZ$153,AY$1) -> 72 | AZ60: =VLOOKUP(DropDownList!$B$24,CntyQryCensus!$A$135:$FZ$153,AZ$1) -> 33 | BA60: =VLOOKUP(DropDownList!$B$24,CntyQryCensus!$A$135:$FZ$153,BA$1) -> 39 | BB60: =VLOOKUP(DropDownList!$B$24,CntyQryCensus!$A$135:$FZ$153,BB$1) -> 2442 | BC60: =VLOOKUP(DropDownList!$B$24,CntyQryCensus!$A$135:$FZ$153,BC$1) -> 1673 | BD60: =VLOOKUP(DropDownList!$B$24,CntyQryCensus!$A$135:$FZ$153,BD$1) -> 1465 | BE60: =VLOOKUP(DropDownList!$B$24,CntyQryCensus!$A$135:$FZ$153,BE$1) -> 58 | BF60: =VLOOKUP(DropDownList!$B$24,CntyQryCensus!$A$135:$FZ$153,BF$1) -> 150 | BG60: =VLOOKUP(DropDownList!$B$24,CntyQryCensus!$A$135:$FZ$153,BG$1) -> 769 | BH60: =VLOOKUP(DropDownList!$B$24,CntyQryCensus!$A$135:$FZ$153,BH$1) -> 273 | BI60: =VLOOKUP(DropDownList!$B$24,CntyQryCensus!$A$135:$FZ$153,BI$1) -> 496
S61: =SUM(R60:T60) -> 963
A63: Census 2000 SummaryFile3 Sample Data - SF3TownQry7HousingA
A64: NAME | B64: LOGRECNO | C64: COUNTY | D64: TotalPop | E64: H1HousingUnitsTotal | F64: H2SampleHU | G64: H2SampleOccHU | H64: H2SampleVacHU | I64: H3HU100pctCount | J64: H5HUTotal | K64: H5HUUrban | L64: H5HUUrbanInUrbanAreas | M64: H5HUUrbanInUrbanClusters | N64: H5HURural | O64: H5HURuralFarm | P64: H5HURuralNonFarm | Q64: H7HUOcc | R64: H7HUOwnrOcc | S64: H7HURentrOcc | T64: H8HUVacant | U64: H8HUVacantForRent | V64: H8HUVacantForSale | W64: H8HUVacRentedorSold | X64: H8HUVacSeasonal | Y64: H8HUVacForMigrantWrkrs | Z64: H8HUOtherVacant | AA64: H14OccHUa | AB64: H14OwnerOccHU | AC64: H14OwnOccHuHh15to24 | AD64: H14OwnOccHuHh25to34 | AE64: H14OwnOccHuHh35to44 | AF64: H14OwnOccHuHh45to54 | AG64: H14OwnOccHuHh55to59 | AH64: H14OwnOccHuHh60to64 | AI64: H14OwnOccHuHh65to74 | AJ64: H14OwnOccHuHh75to84 | AK64: H14OwnOccHuHh85Over | AL64: H14RenterOccHU1 | AM64: H14RntrOccHuHh15to24 | AN64: H14RntrOccHuHh25to34 | AO64: H14RntrOccHuHh35to44 | AP64: H14RntrOccHuHh45to54 | AQ64: H14RntrOccHuHh55to59 | AR64: H14RntrOccHuHh60to64 | AS64: H14RntrOccHuHh65to74 | AT64: H14RntrOccHuHh75to84 | AU64: H14RntrOccHuHh85Over | AV64: H15PopInOccHU | AW64: H15PopInOwnOccHU1 | AX64: H15PopInRentOccHU1 | AY64: H17OccupHUb | AZ64: H17OwnOccHU2 | BA64: H17OwnOccHU1PersonHH | BB64: H17OwnOccHU2PersonHH | BC64: H17OwnOccHU3PersonHH | BD64: H17OwnOccHU4PersonHH | BE64: H17OwnOccHU5PersonHH | BF64: H17OwnOccHU6PersonHH | BG64: H17OwnOccHU7PlusPersonHH | BH64: H17RentOccHU2 | BI64: H17RntOccHU1PersonHH | BJ64: H17RntOccHU2PersonHH | BK64: H17RntOccHU3PersonHH | BL64: H17RntOccHU4PersonHH | BM64: H17RntOccHU5PersonHH | BN64: H17RntOccHU6PersonHH | BO64: H17RntOccHU7PlusPersonHH | BP64: H18AvgHHSize | BQ64: H18AvgHHSizeOwnOcc | BR64: H18AvgHHSizeRentOcc | BS64: H23TotHU | BT64: H23HU1Room | BU64: H23HU2Room | BV64: H23HU3Room | BW64: H23HU4Room | BX64: H23HU5Room | BY64: H23HU6Room | BZ64: H23HU7Room | CA64: H23HU8Room | CB64: H23HU9orMoreRoom | CC64: H24MedianNumRooms | CD64: H25AggregNumRooms | CE64: H30TotalHU | CF64: H30Det1HU | CG64: H30Att1HU | CH64: H30Units2 | CI64: H30Units3or4 | CJ64: H30Units5to9 | CK64: H30Units10to19 | CL64: H30Units20to49 | CM64: H30Units50orMore | CN64: H30UnitsMobileHome | CO64: H30UnitsBoatRv | CP64: H32OccHUcTotal | CQ64: H32OwnerOccHU3 | CR64: H32OwnOccHU1Det | CS64: H32OwnOccHU1Att | CT64: H32OwnOccHU2Unit | CU64: H32OwnOccHU3to4Unit | CV64: H32OwnOccHU5to9Unit | CW64: H32OwnOccHU10to19Unit | CX64: H32OwnOccHU20to49Unit | CY64: H32OwnOccHU50plusUnit | CZ64: H32OwnOccHUMobHom | DA64: H32OwnOccHUBoatRVOth | DB64: H32RentrOccHU3 | DC64: H32RntrOccHU1Det | DD64: H32RntrOccHU1Att | DE64: H32RntrOccHU2Unit | DF64: H32RntrOccHU3to4Unit | DG64: H32RntrOccHU5to9Unit | DH64: H32RntrOccHU10to19Unit | DI64: H32RntrOccHU20to49Unit | DJ64: H32RntrOccHU50PlusUnit | DK64: H32RntrOccHUMobHom | DL64: H32RntrOccHUBoatRVOth | DM64: H33TotPopInOccHU | DN64: H33PopInOwnOccHU2 | DO64: H33PopInOOHU1Det | DP64: H33PopInOOHU1Att | DQ64: H33PopInOOHU2unit | DR64: H33PopInOOHU3to4Unit | DS64: H33PopInOOHU5to9Unit | DT64: H33PopInOOHU10to19Unit | DU64: H33PopInOOHU20to49Unit | DV64: H33PopInOOHU50PlusUnit | DW64: H33PopInOOHUMobilHome | DX64: H33PopInOOHUOtherUnit | DY64: H33PopInRentOccHU2 | DZ64: H33PopInROHU1Det | EA64: H33PopInROHU1Att | EB64: H33PopInROHU2Unit | EC64: H33PopInROHU3to4Unit | ED64: H33PopInROHU5to9Unit | EE64: H33PopInROHU10to19Unit | EF64: H33PopInROHU20to49Unit | EG64: H33PopInROHU50PlusUnit | EH64: H33PopInROHUMobilHome | EI64: H33PopInROHUOtherUnit | EJ64: H36OccHousingUnitsdTotal | EK64: H36OwnerOccHU4 | EL64: H36OOHUBuilt99to0300 | EM64: H36OOHUBuilt95to98 | EN64: H36OOHUBuilt90to94 | EO64: H36OOHUBuilt80to89 | EP64: H36OOHUBuilt70to79 | EQ64: H36OOHUBuilt60to69 | ER64: H36OOHUBuilt50to59 | ES64: H36OOHUBuilt40to49 | ET64: H36OOHUBuilt39Earlier | EU64: H36RentOccHU4 | EV64: H36ROHUBuilt99to0300 | EW64: H36ROHUBuilt95to98 | EX64: H36ROHUBuilt90to94 | EY64: H36ROHUBuilt80to89 | EZ64: H36ROHUBuilt70to79 | FA64: H36ROHUBuilt60to69 | FB64: H36ROHUBuilt50to59 | FC64: H36ROHUBuilt40to49 | FD64: H36ROHUBuilt39Earlier | FE64: H40OccupHousUnitse | FF64: H40HeatFuelUtilGas | FG64: H40HeatFuelBotGas | FH64: H40HeatFuelElect | FI64: H40HeatFuelOilKero | FJ64: H40HeatFuelCoal | FK64: H40HeatFuelWood | FL64: H40HeatFuelSolar | FM64: H40HeatFuelOther | FN64: H40HeatFuelNone | FO64: H41TotalHU | FP64: H41HUNoBdrm | FQ64: H41HU1Bdrm | FR64: H41HU2Bdrm | FS64: H41HU3Bdrm | FT64: H41HU4Bdrm | FU64: H41HU5MoreBdrm | FV64: H42OccuHousUnitf | FW64: H42OwnerOccHU5 | FX64: H42OOHUNoBdrm | FY64: H42OOHU1Bdrm | FZ64: H42OOHU2Bdrm | GA64: H42OOHU3Bdrm | GB64: H42OOHU4Bdrm | GC64: H42OOHU5PlusBdrm | GD64: H42RentOccHU5 | GE64: H42ROHUNoBdrm | GF64: H42ROHU1Bdrm | GG64: H42ROHU2Bdrm | GH64: H42ROHU3Bdrm | GI64: H42ROHU4Bdrm | GJ64: H42ROHU5PlusBdrm | GK64: H48OccupHousUnitsg | GL64: H48OwnerOccHU6 | GM64: H48OOHUwCompltPlumFacil | GN64: H48OOHULackCompltPlumFacil | GO64: H48RentOccHU6 | GP64: H48ROHUwCompltPlumFacil | GQ64: H48ROHULackCompltPlumFacil | GR64: H51OccupHousUnitf | GS64: H51OwnerOccHU7 | GT64: H51OOHUwCompleteKitFacil | GU64: H51OOHULackCompleteKitFacil | GV64: H51RenterOccHU7 | GW64: H51ROHUwCompleteKitFacil | GX64: H51ROHULackCompleteKitFacil
A65: =VLOOKUP(DropDownList!$B$24,CntyQryCensus!$A$161:$GX$179,A$1) -> Wolfeboro | B65: =VLOOKUP(DropDownList!$B$24,CntyQryCensus!$A$161:$GX$179,B$1) -> 0000440 | C65: =VLOOKUP(DropDownList!$B$24,CntyQryCensus!$A$161:$GX$179,C$1) -> 86420 | D65: =VLOOKUP(DropDownList!$B$24,CntyQryCensus!$A$161:$GX$179,D$1) -> 6083 | E65: =VLOOKUP(DropDownList!$B$24,CntyQryCensus!$A$161:$GX$179,E$1) -> 3903 | F65: =VLOOKUP(DropDownList!$B$24,CntyQryCensus!$A$161:$GX$179,F$1) -> 498 | G65: =VLOOKUP(DropDownList!$B$24,CntyQryCensus!$A$161:$GX$179,G$1) -> 315 | H65: =VLOOKUP(DropDownList!$B$24,CntyQryCensus!$A$161:$GX$179,H$1) -> 183 | I65: =VLOOKUP(DropDownList!$B$24,CntyQryCensus!$A$161:$GX$179,I$1) -> 3903 | J65: =VLOOKUP(DropDownList!$B$24,CntyQryCensus!$A$161:$GX$179,J$1) -> 3903 | K65: =VLOOKUP(DropDownList!$B$24,CntyQryCensus!$A$161:$GX$179,K$1) -> 0 | L65: =VLOOKUP(DropDownList!$B$24,CntyQryCensus!$A$161:$GX$179,L$1) -> 0 | M65: =VLOOKUP(DropDownList!$B$24,CntyQryCensus!$A$161:$GX$179,M$1) -> 0 | N65: =VLOOKUP(DropDownList!$B$24,CntyQryCensus!$A$161:$GX$179,N$1) -> 3903 | O65: =VLOOKUP(DropDownList!$B$24,CntyQryCensus!$A$161:$GX$179,O$1) -> 20 | P65: =VLOOKUP(DropDownList!$B$24,CntyQryCensus!$A$161:$GX$179,P$1) -> 3883 | Q65: =VLOOKUP(DropDownList!$B$24,CntyQryCensus!$A$161:$GX$179,Q$1) -> 2574 | R65: =VLOOKUP(DropDownList!$B$24,CntyQryCensus!$A$161:$GX$179,R$1) -> 1985 | S65: =VLOOKUP(DropDownList!$B$24,CntyQryCensus!$A$161:$GX$179,S$1) -> 589 | T65: =VLOOKUP(DropDownList!$B$24,CntyQryCensus!$A$161:$GX$179,T$1) -> 1329 | U65: =VLOOKUP(DropDownList!$B$24,CntyQryCensus!$A$161:$GX$179,U$1) -> 9 | V65: =VLOOKUP(DropDownList!$B$24,CntyQryCensus!$A$161:$GX$179,V$1) -> 55 | W65: =VLOOKUP(DropDownList!$B$24,CntyQryCensus!$A$161:$GX$179,W$1) -> 0 | X65: =VLOOKUP(DropDownList!$B$24,CntyQryCensus!$A$161:$GX$179,X$1) -> 1210 | Y65: =VLOOKUP(DropDownList!$B$24,CntyQryCensus!$A$161:$GX$179,Y$1) -> 0 | Z65: =VLOOKUP(DropDownList!$B$24,CntyQryCensus!$A$161:$GX$179,Z$1) -> 55 | AA65: =VLOOKUP(DropDownList!$B$24,CntyQryCensus!$A$161:$GX$179,AA$1) -> 2574 | AB65: =VLOOKUP(DropDownList!$B$24,CntyQryCensus!$A$161:$GX$179,AB$1) -> 1985 | AC65: =VLOOKUP(DropDownList!$B$24,CntyQryCensus!$A$161:$GX$179,AC$1) -> 6 | AD65: =VLOOKUP(DropDownList!$B$24,CntyQryCensus!$A$161:$GX$179,AD$1) -> 152 | AE65: =VLOOKUP(DropDownList!$B$24,CntyQryCensus!$A$161:$GX$179,AE$1) -> 403 | AF65: =VLOOKUP(DropDownList!$B$24,CntyQryCensus!$A$161:$GX$179,AF$1) -> 337 | AG65: =VLOOKUP(DropDownList!$B$24,CntyQryCensus!$A$161:$GX$179,AG$1) -> 207 | AH65: =VLOOKUP(DropDownList!$B$24,CntyQryCensus!$A$161:$GX$179,AH$1) -> 119 | AI65: =VLOOKUP(DropDownList!$B$24,CntyQryCensus!$A$161:$GX$179,AI$1) -> 363 | AJ65: =VLOOKUP(DropDownList!$B$24,CntyQryCensus!$A$161:$GX$179,AJ$1) -> 310 | AK65: =VLOOKUP(DropDownList!$B$24,CntyQryCensus!$A$161:$GX$179,AK$1) -> 88 | AL65: =VLOOKUP(DropDownList!$B$24,CntyQryCensus!$A$161:$GX$179,AL$1) -> 589 | AM65: =VLOOKUP(DropDownList!$B$24,CntyQryCensus!$A$161:$GX$179,AM$1) -> 21 | AN65: =VLOOKUP(DropDownList!$B$24,CntyQryCensus!$A$161:$GX$179,AN$1) -> 103 | AO65: =VLOOKUP(DropDownList!$B$24,CntyQryCensus!$A$161:$GX$179,AO$1) -> 170 | AP65: =VLOOKUP(DropDownList!$B$24,CntyQryCensus!$A$161:$GX$179,AP$1) -> 113 | AQ65: =VLOOKUP(DropDownList!$B$24,CntyQryCensus!$A$161:$GX$179,AQ$1) -> 22 | AR65: =VLOOKUP(DropDownList!$B$24,CntyQryCensus!$A$161:$GX$179,AR$1) -> 10 | AS65: =VLOOKUP(DropDownList!$B$24,CntyQryCensus!$A$161:$GX$179,AS$1) -> 50 | AT65: =VLOOKUP(DropDownList!$B$24,CntyQryCensus!$A$161:$GX$179,AT$1) -> 51 | AU65: =VLOOKUP(DropDownList!$B$24,CntyQryCensus!$A$161:$GX$179,AU$1) -> 49 | AV65: =VLOOKUP(DropDownList!$B$24,CntyQryCensus!$A$161:$GX$179,AV$1) -> 5977 | AW65: =VLOOKUP(DropDownList!$B$24,CntyQryCensus!$A$161:$GX$179,AW$1) -> 5023 | AX65: =VLOOKUP(DropDownList!$B$24,CntyQryCensus!$A$161:$GX$179,AX$1) -> 954 | AY65: =VLOOKUP(DropDownList!$B$24,CntyQryCensus!$A$161:$GX$179,AY$1) -> 2574 | AZ65: =VLOOKUP(DropDownList!$B$24,CntyQryCensus!$A$161:$GX$179,AZ$1) -> 1985 | BA65: =VLOOKUP(DropDownList!$B$24,CntyQryCensus!$A$161:$GX$179,BA$1) -> 442 | BB65: =VLOOKUP(DropDownList!$B$24,CntyQryCensus!$A$161:$GX$179,BB$1) -> 888 | BC65: =VLOOKUP(DropDownList!$B$24,CntyQryCensus!$A$161:$GX$179,BC$1) -> 264 | BD65: =VLOOKUP(DropDownList!$B$24,CntyQryCensus!$A$161:$GX$179,BD$1) -> 240 | BE65: =VLOOKUP(DropDownList!$B$24,CntyQryCensus!$A$161:$GX$179,BE$1) -> 103 | BF65: =VLOOKUP(DropDownList!$B$24,CntyQryCensus!$A$161:$GX$179,BF$1) -> 13 | BG65: =VLOOKUP(DropDownList!$B$24,CntyQryCensus!$A$161:$GX$179,BG$1) -> 35 | BH65: =VLOOKUP(DropDownList!$B$24,CntyQryCensus!$A$161:$GX$179,BH$1) -> 589 | BI65: =VLOOKUP(DropDownList!$B$24,CntyQryCensus!$A$161:$GX$179,BI$1) -> 295 | BJ65: =VLOOKUP(DropDownList!$B$24,CntyQryCensus!$A$161:$GX$179,BJ$1) -> 146 | BK65: =VLOOKUP(DropDownList!$B$24,CntyQryCensus!$A$161:$GX$179,BK$1) -> 61 | BL65: =VLOOKUP(DropDownList!$B$24,CntyQryCensus!$A$161:$GX$179,BL$1) -> 58 | BM65: =VLOOKUP(DropDownList!$B$24,CntyQryCensus!$A$161:$GX$179,BM$1) -> 21 | BN65: =VLOOKUP(DropDownList!$B$24,CntyQryCensus!$A$161:$GX$179,BN$1) -> 8 | BO65: =VLOOKUP(DropDownList!$B$24,CntyQryCensus!$A$161:$GX$179,BO$1) -> 0 | BP65: =VLOOKUP(DropDownList!$B$24,CntyQryCensus!$A$161:$GX$179,BP$1) -> 2 | BQ65: =VLOOKUP(DropDownList!$B$24,CntyQryCensus!$A$161:$GX$179,BQ$1) -> 3 | BR65: =VLOOKUP(DropDownList!$B$24,CntyQryCensus!$A$161:$GX$179,BR$1) -> 2 | BS65: =VLOOKUP(DropDownList!$B$24,CntyQryCensus!$A$161:$GX$179,BS$1) -> 3903 | BT65: =VLOOKUP(DropDownList!$B$24,CntyQryCensus!$A$161:$GX$179,BT$1) -> 8 | BU65: =VLOOKUP(DropDownList!$B$24,CntyQryCensus!$A$161:$GX$179,BU$1) -> 121 | BV65: =VLOOKUP(DropDownList!$B$24,CntyQryCensus!$A$161:$GX$179,BV$1) -> 299 | BW65: =VLOOKUP(DropDownList!$B$24,CntyQryCensus!$A$161:$GX$179,BW$1) -> 500 | BX65: =VLOOKUP(DropDownList!$B$24,CntyQryCensus!$A$161:$GX$179,BX$1) -> 679 | BY65: =VLOOKUP(DropDownList!$B$24,CntyQryCensus!$A$161:$GX$179,BY$1) -> 968 | BZ65: =VLOOKUP(DropDownList!$B$24,CntyQryCensus!$A$161:$GX$179,BZ$1) -> 484 | CA65: =VLOOKUP(DropDownList!$B$24,CntyQryCensus!$A$161:$GX$179,CA$1) -> 308 | CB65: =VLOOKUP(DropDownList!$B$24,CntyQryCensus!$A$161:$GX$179,CB$1) -> 536 | CC65: =VLOOKUP(DropDownList!$B$24,CntyQryCensus!$A$161:$GX$179,CC$1) -> 6 | CD65: =VLOOKUP(DropDownList!$B$24,CntyQryCensus!$A$161:$GX$179,CD$1) -> 23562 | CE65: =VLOOKUP(DropDownList!$B$24,CntyQryCensus!$A$161:$GX$179,CE$1) -> 3903 | CF65: =VLOOKUP(DropDownList!$B$24,CntyQryCensus!$A$161:$GX$179,CF$1) -> 3092 | CG65: =VLOOKUP(DropDownList!$B$24,CntyQryCensus!$A$161:$GX$179,CG$1) -> 157 | CH65: =VLOOKUP(DropDownList!$B$24,CntyQryCensus!$A$161:$GX$179,CH$1) -> 151 | CI65: =VLOOKUP(DropDownList!$B$24,CntyQryCensus!$A$161:$GX$179,CI$1) -> 217 | CJ65: =VLOOKUP(DropDownList!$B$24,CntyQryCensus!$A$161:$GX$179,CJ$1) -> 76 | CK65: =VLOOKUP(DropDownList!$B$24,CntyQryCensus!$A$161:$GX$179,CK$1) -> 0 | CL65: =VLOOKUP(DropDownList!$B$24,CntyQryCensus!$A$161:$GX$179,CL$1) -> 87 | CM65: =VLOOKUP(DropDownList!$B$24,CntyQryCensus!$A$161:$GX$179,CM$1) -> 0 | CN65: =VLOOKUP(DropDownList!$B$24,CntyQryCensus!$A$161:$GX$179,CN$1) -> 107 | CO65: =VLOOKUP(DropDownList!$B$24,CntyQryCensus!$A$161:$GX$179,CO$1) -> 16 | CP65: =VLOOKUP(DropDownList!$B$24,CntyQryCensus!$A$161:$GX$179,CP$1) -> 2574 | CQ65: =VLOOKUP(DropDownList!$B$24,CntyQryCensus!$A$161:$GX$179,CQ$1) -> 1985 | CR65: =VLOOKUP(DropDownList!$B$24,CntyQryCensus!$A$161:$GX$179,CR$1) -> 1772 | CS65: =VLOOKUP(DropDownList!$B$24,CntyQryCensus!$A$161:$GX$179,CS$1) -> 52 | CT65: =VLOOKUP(DropDownList!$B$24,CntyQryCensus!$A$161:$GX$179,CT$1) -> 47 | CU65: =VLOOKUP(DropDownList!$B$24,CntyQryCensus!$A$161:$GX$179,CU$1) -> 8 | CV65: =VLOOKUP(DropDownList!$B$24,CntyQryCensus!$A$161:$GX$179,CV$1) -> 0 | CW65: =VLOOKUP(DropDownList!$B$24,CntyQryCensus!$A$161:$GX$179,CW$1) -> 0 | CX65: =VLOOKUP(DropDownList!$B$24,CntyQryCensus!$A$161:$GX$179,CX$1) -> 16 | CY65: =VLOOKUP(DropDownList!$B$24,CntyQryCensus!$A$161:$GX$179,CY$1) -> 0 | CZ65: =VLOOKUP(DropDownList!$B$24,CntyQryCensus!$A$161:$GX$179,CZ$1) -> 82 | DA65: =VLOOKUP(DropDownList!$B$24,CntyQryCensus!$A$161:$GX$179,DA$1) -> 8 | DB65: =VLOOKUP(DropDownList!$B$24,CntyQryCensus!$A$161:$GX$179,DB$1) -> 589 | DC65: =VLOOKUP(DropDownList!$B$24,CntyQryCensus!$A$161:$GX$179,DC$1) -> 173 | DD65: =VLOOKUP(DropDownList!$B$24,CntyQryCensus!$A$161:$GX$179,DD$1) -> 16 | DE65: =VLOOKUP(DropDownList!$B$24,CntyQryCensus!$A$161:$GX$179,DE$1) -> 66 | DF65: =VLOOKUP(DropDownList!$B$24,CntyQryCensus!$A$161:$GX$179,DF$1) -> 182 | DG65: =VLOOKUP(DropDownList!$B$24,CntyQryCensus!$A$161:$GX$179,DG$1) -> 71 | DH65: =VLOOKUP(DropDownList!$B$24,CntyQryCensus!$A$161:$GX$179,DH$1) -> 0 | DI65: =VLOOKUP(DropDownList!$B$24,CntyQryCensus!$A$161:$GX$179,DI$1) -> 71 | DJ65: =VLOOKUP(DropDownList!$B$24,CntyQryCensus!$A$161:$GX$179,DJ$1) -> 0 | DK65: =VLOOKUP(DropDownList!$B$24,CntyQryCensus!$A$161:$GX$179,DK$1) -> 10 | DL65: =VLOOKUP(DropDownList!$B$24,CntyQryCensus!$A$161:$GX$179,DL$1) -> 0 | DM65: =VLOOKUP(DropDownList!$B$24,CntyQryCensus!$A$161:$GX$179,DM$1) -> 5977 | DN65: =VLOOKUP(DropDownList!$B$24,CntyQryCensus!$A$161:$GX$179,DN$1) -> 5023 | DO65: =VLOOKUP(DropDownList!$B$24,CntyQryCensus!$A$161:$GX$179,DO$1) -> 4548 | DP65: =VLOOKUP(DropDownList!$B$24,CntyQryCensus!$A$161:$GX$179,DP$1) -> 100 | DQ65: =VLOOKUP(DropDownList!$B$24,CntyQryCensus!$A$161:$GX$179,DQ$1) -> 156 | DR65: =VLOOKUP(DropDownList!$B$24,CntyQryCensus!$A$161:$GX$179,DR$1) -> 17 | DS65: =VLOOKUP(DropDownList!$B$24,CntyQryCensus!$A$161:$GX$179,DS$1) -> 0 | DT65: =VLOOKUP(DropDownList!$B$24,CntyQryCensus!$A$161:$GX$179,DT$1) -> 0 | DU65: =VLOOKUP(DropDownList!$B$24,CntyQryCensus!$A$161:$GX$179,DU$1) -> 25 | DV65: =VLOOKUP(DropDownList!$B$24,CntyQryCensus!$A$161:$GX$179,DV$1) -> 0 | DW65: =VLOOKUP(DropDownList!$B$24,CntyQryCensus!$A$161:$GX$179,DW$1) -> 168 | DX65: =VLOOKUP(DropDownList!$B$24,CntyQryCensus!$A$161:$GX$179,DX$1) -> 9 | DY65: =VLOOKUP(DropDownList!$B$24,CntyQryCensus!$A$161:$GX$179,DY$1) -> 954 | DZ65: =VLOOKUP(DropDownList!$B$24,CntyQryCensus!$A$161:$GX$179,DZ$1) -> 379 | EA65: =VLOOKUP(DropDownList!$B$24,CntyQryCensus!$A$161:$GX$179,EA$1) -> 74 | EB65: =VLOOKUP(DropDownList!$B$24,CntyQryCensus!$A$161:$GX$179,EB$1) -> 86 | EC65: =VLOOKUP(DropDownList!$B$24,CntyQryCensus!$A$161:$GX$179,EC$1) -> 261 | ED65: =VLOOKUP(DropDownList!$B$24,CntyQryCensus!$A$161:$GX$179,ED$1) -> 83 | EE65: =VLOOKUP(DropDownList!$B$24,CntyQryCensus!$A$161:$GX$179,EE$1) -> 0 | EF65: =VLOOKUP(DropDownList!$B$24,CntyQryCensus!$A$161:$GX$179,EF$1) -> 59 | EG65: =VLOOKUP(DropDownList!$B$24,CntyQryCensus!$A$161:$GX$179,EG$1) -> 0 | EH65: =VLOOKUP(DropDownList!$B$24,CntyQryCensus!$A$161:$GX$179,EH$1) -> 12 | EI65: =VLOOKUP(DropDownList!$B$24,CntyQryCensus!$A$161:$GX$179,EI$1) -> 0 | EJ65: =VLOOKUP(DropDownList!$B$24,CntyQryCensus!$A$161:$GX$179,EJ$1) -> 2574 | EK65: =VLOOKUP(DropDownList!$B$24,CntyQryCensus!$A$161:$GX$179,EK$1) -> 1985 | EL65: =VLOOKUP(DropDownList!$B$24,CntyQryCensus!$A$161:$GX$179,EL$1) -> 106 | EM65: =VLOOKUP(DropDownList!$B$24,CntyQryCensus!$A$161:$GX$179,EM$1) -> 197 | EN65: =VLOOKUP(DropDownList!$B$24,CntyQryCensus!$A$161:$GX$179,EN$1) -> 172 | EO65: =VLOOKUP(DropDownList!$B$24,CntyQryCensus!$A$161:$GX$179,EO$1) -> 409 | EP65: =VLOOKUP(DropDownList!$B$24,CntyQryCensus!$A$161:$GX$179,EP$1) -> 275 | EQ65: =VLOOKUP(DropDownList!$B$24,CntyQryCensus!$A$161:$GX$179,EQ$1) -> 194 | ER65: =VLOOKUP(DropDownList!$B$24,CntyQryCensus!$A$161:$GX$179,ER$1) -> 152 | ES65: =VLOOKUP(DropDownList!$B$24,CntyQryCensus!$A$161:$GX$179,ES$1) -> 38 | ET65: =VLOOKUP(DropDownList!$B$24,CntyQryCensus!$A$161:$GX$179,ET$1) -> 442 | EU65: =VLOOKUP(DropDownList!$B$24,CntyQryCensus!$A$161:$GX$179,EU$1) -> 589 | EV65: =VLOOKUP(DropDownList!$B$24,CntyQryCensus!$A$161:$GX$179,EV$1) -> 0 | EW65: =VLOOKUP(DropDownList!$B$24,CntyQryCensus!$A$161:$GX$179,EW$1) -> 10 | EX65: =VLOOKUP(DropDownList!$B$24,CntyQryCensus!$A$161:$GX$179,EX$1) -> 19 | EY65: =VLOOKUP(DropDownList!$B$24,CntyQryCensus!$A$161:$GX$179,EY$1) -> 69 | EZ65: =VLOOKUP(DropDownList!$B$24,CntyQryCensus!$A$161:$GX$179,EZ$1) -> 60 | FA65: =VLOOKUP(DropDownList!$B$24,CntyQryCensus!$A$161:$GX$179,FA$1) -> 56 | FB65: =VLOOKUP(DropDownList!$B$24,CntyQryCensus!$A$161:$GX$179,FB$1) -> 71 | FC65: =VLOOKUP(DropDownList!$B$24,CntyQryCensus!$A$161:$GX$179,FC$1) -> 35 | FD65: =VLOOKUP(DropDownList!$B$24,CntyQryCensus!$A$161:$GX$179,FD$1) -> 269 | FE65: =VLOOKUP(DropDownList!$B$24,CntyQryCensus!$A$161:$GX$179,FE$1) -> 2574 | FF65: =VLOOKUP(DropDownList!$B$24,CntyQryCensus!$A$161:$GX$179,FF$1) -> 0 | FG65: =VLOOKUP(DropDownList!$B$24,CntyQryCensus!$A$161:$GX$179,FG$1) -> 247 | FH65: =VLOOKUP(DropDownList!$B$24,CntyQryCensus!$A$161:$GX$179,FH$1) -> 316 | FI65: =VLOOKUP(DropDownList!$B$24,CntyQryCensus!$A$161:$GX$179,FI$1) -> 1884 | FJ65: =VLOOKUP(DropDownList!$B$24,CntyQryCensus!$A$161:$GX$179,FJ$1) -> 0 | FK65: =VLOOKUP(DropDownList!$B$24,CntyQryCensus!$A$161:$GX$179,FK$1) -> 109 | FL65: =VLOOKUP(DropDownList!$B$24,CntyQryCensus!$A$161:$GX$179,FL$1) -> 0 | FM65: =VLOOKUP(DropDownList!$B$24,CntyQryCensus!$A$161:$GX$179,FM$1) -> 18 | FN65: =VLOOKUP(DropDownList!$B$24,CntyQryCensus!$A$161:$GX$179,FN$1) -> 0 | FO65: =VLOOKUP(DropDownList!$B$24,CntyQryCensus!$A$161:$GX$179,FO$1) -> 3903 | FP65: =VLOOKUP(DropDownList!$B$24,CntyQryCensus!$A$161:$GX$179,FP$1) -> 16 | FQ65: =VLOOKUP(DropDownList!$B$24,CntyQryCensus!$A$161:$GX$179,FQ$1) -> 489 | FR65: =VLOOKUP(DropDownList!$B$24,CntyQryCensus!$A$161:$GX$179,FR$1) -> 1193 | FS65: =VLOOKUP(DropDownList!$B$24,CntyQryCensus!$A$161:$GX$179,FS$1) -> 1410 | FT65: =VLOOKUP(DropDownList!$B$24,CntyQryCensus!$A$161:$GX$179,FT$1) -> 611 | FU65: =VLOOKUP(DropDownList!$B$24,CntyQryCensus!$A$161:$GX$179,FU$1) -> 184 | FV65: =VLOOKUP(DropDownList!$B$24,CntyQryCensus!$A$161:$GX$179,FV$1) -> 2574 | FW65: =VLOOKUP(DropDownList!$B$24,CntyQryCensus!$A$161:$GX$179,FW$1) -> 1985 | FX65: =VLOOKUP(DropDownList!$B$24,CntyQryCensus!$A$161:$GX$179,FX$1) -> 0 | FY65: =VLOOKUP(DropDownList!$B$24,CntyQryCensus!$A$161:$GX$179,FY$1) -> 65 | FZ65: =VLOOKUP(DropDownList!$B$24,CntyQryCensus!$A$161:$GX$179,FZ$1) -> 576 | GA65: =VLOOKUP(DropDownList!$B$24,CntyQryCensus!$A$161:$GX$179,GA$1) -> 906 | GB65: =VLOOKUP(DropDownList!$B$24,CntyQryCensus!$A$161:$GX$179,GB$1) -> 325 | GC65: =VLOOKUP(DropDownList!$B$24,CntyQryCensus!$A$161:$GX$179,GC$1) -> 113 | GD65: =VLOOKUP(DropDownList!$B$24,CntyQryCensus!$A$161:$GX$179,GD$1) -> 589 | GE65: =VLOOKUP(DropDownList!$B$24,CntyQryCensus!$A$161:$GX$179,GE$1) -> 8 | GF65: =VLOOKUP(DropDownList!$B$24,CntyQryCensus!$A$161:$GX$179,GF$1) -> 250 | GG65: =VLOOKUP(DropDownList!$B$24,CntyQryCensus!$A$161:$GX$179,GG$1) -> 159 | GH65: =VLOOKUP(DropDownList!$B$24,CntyQryCensus!$A$161:$GX$179,GH$1) -> 136 | GI65: =VLOOKUP(DropDownList!$B$24,CntyQryCensus!$A$161:$GX$179,GI$1) -> 36 | GJ65: =VLOOKUP(DropDownList!$B$24,CntyQryCensus!$A$161:$GX$179,GJ$1) -> 0 | GK65: =VLOOKUP(DropDownList!$B$24,CntyQryCensus!$A$161:$GX$179,GK$1) -> 2574 | GL65: =VLOOKUP(DropDownList!$B$24,CntyQryCensus!$A$161:$GX$179,GL$1) -> 1985 | GM65: =VLOOKUP(DropDownList!$B$24,CntyQryCensus!$A$161:$GX$179,GM$1) -> 1960 | GN65: =VLOOKUP(DropDownList!$B$24,CntyQryCensus!$A$161:$GX$179,GN$1) -> 25 | GO65: =VLOOKUP(DropDownList!$B$24,CntyQryCensus!$A$161:$GX$179,GO$1) -> 589 | GP65: =VLOOKUP(DropDownList!$B$24,CntyQryCensus!$A$161:$GX$179,GP$1) -> 581 | GQ65: =VLOOKUP(DropDownList!$B$24,CntyQryCensus!$A$161:$GX$179,GQ$1) -> 8 | GR65: =VLOOKUP(DropDownList!$B$24,CntyQryCensus!$A$161:$GX$179,GR$1) -> 2574 | GS65: =VLOOKUP(DropDownList!$B$24,CntyQryCensus!$A$161:$GX$179,GS$1) -> 1985 | GT65: =VLOOKUP(DropDownList!$B$24,CntyQryCensus!$A$161:$GX$179,GT$1) -> 1959 | GU65: =VLOOKUP(DropDownList!$B$24,CntyQryCensus!$A$161:$GX$179,GU$1) -> 26 | GV65: =VLOOKUP(DropDownList!$B$24,CntyQryCensus!$A$161:$GX$179,GV$1) -> 589 | GW65: =VLOOKUP(DropDownList!$B$24,CntyQryCensus!$A$161:$GX$179,GW$1) -> 578 | GX65: =VLOOKUP(DropDownList!$B$24,CntyQryCensus!$A$161:$GX$179,GX$1) -> 11
A68: Census 2000 SummaryFile3 Sample Data - SF3TownQry8HousingCostA
A69: NAME | B69: LOGRECNO | C69: COUNTY | D69: TotalPop | E69: H62RntrOccHU | F69: H62RntrOccHUwRent | G69: H62ROHUGRent<100 | H69: H62ROHUGRent100to149 | I69: H62ROHUGRent150to199 | J69: H62ROHUGRent200to249 | K69: H62ROHUGRent250to299 | L69: H62ROHUGRent300to349 | M69: H62ROHUGRent350to399 | N69: H62ROHUGRent400to449 | O69: H62ROHUGRent450to499 | P69: H62ROHUGRent500to549 | Q69: H62ROHUGRent550to599 | R69: H62ROHUGRent600to649 | S69: H62ROHUGRent650to699 | T69: H62ROHUGRent700to749 | U69: H62ROHUGRent750to799 | V69: H62ROHUGRent800to899 | W69: H62ROHUGRent900to999 | X69: H62ROHUGRent1000to1249 | Y69: H62ROHUGRent1250to1499 | Z69: H62ROHUGRent1500to1999 | AA69: H62ROHUGRent2000> | AB69: H62ROHUNoGRent | AC69: H63MedianGrossRnt | AD69: H69RenterOccHsU | AE69: H69GRnt<10PctHHInc | AF69: H69GRnt10to15PctHHInc | AG69: H69GRnt15to20PctHHInc | AH69: H69GRnt20to25PctHHInc | AI69: H69GRnt25to30PctHHInc | AJ69: H69GRnt30to35PctHHInc | AK69: H69GRnt35to40PctHHInc | AL69: H69GRnt40to50PctHHInc | AM69: H69GRnt>50PctHHInc | AN69: H69GRntPctNotcomputed | AO69: H73RenterOccHU | AP69: H73ROHUHhInc<10k | AQ69: H73ROHUHhInc<10kRnt<20pct | AR69: H73ROHUHhInc<10kRnt20to25pct | AS69: H73ROHUHhInc<10kRnt25to30pct | AT69: H73ROHUHhInc<10kRnt30to35pct | AU69: H73ROHUHhInc<10kRnt>35pct | AV69: H73ROHUHhInc<10kPctNotComput | AW69: H73ROHUHhInc10to20k | AX69: H73ROHUHhInc10to20kRnt<20pct | AY69: H73ROHUHhInc10to20kRnt20to25pct | AZ69: H73ROHUHhInc10to20kRnt25to30pct | BA69: H73ROHUHhInc10to20kRnt30to35pct | BB69: H73ROHUHhInc10to20kRnt>35pct | BC69: H73ROHUHhInc10to20kRntPctNC | BD69: H73ROHUHhInc20to35k | BE69: H73ROHUHhInc20to35kRnt<20pct | BF69: H73ROHUHhInc20to35kRnt20to25pct | BG69: H73ROHUHhInc20to35kRnt25to30pct | BH69: H73ROHUHhInc20to35kRnt30to35pct | BI69: H73ROHUHhInc20to35kRnt>35pct | BJ69: H73ROHUHhInc20to35kRntPctNC | BK69: H73ROHUHhInc35to40k | BL69: H73ROHUHhInc35to40kRnt<20pct | BM69: H73ROHUHhInc35to40kRnt20to25pct | BN69: H73ROHUHhInc35to40kRnt25to30pct | BO69: H73ROHUHhInc35to40kRnt30to35pct | BP69: H73ROHUHhInc35to40kRnt>35pct | BQ69: H73ROHUHhInc35to40kRntPctNC | BR69: H73ROHUHhInc50to75k | BS69: H73ROHUHhInc50to75kRnt<20pct | BT69: H73ROHUHhInc50to75kRnt20to25pct | BU69: H73ROHUHhInc50to75kRnt25to30pct | BV69: H73ROHUHhInc50to75kRnt30to35pct | BW69: H73ROHUHhInc50to75kRnt>35pct | BX69: H73ROHUHhInc50to75kRntPctNC | BY69: H73ROHUHhInc75to100k | BZ69: H73ROHUHhInc75to100kRnt<20pct | CA69: H73ROHUHhInc75to100kRnt20to25pct | CB69: H73ROHUHhInc75to100kRnt25to30pct | CC69: H73ROHUHhInc75to100kRnt30to35pct | CD69: H73ROHUHhInc75to100kRnt>35pct | CE69: H73ROHUHhInc75to100kRntPctNC | CF69: H73ROHUHhInc>100k | CG69: H73ROHUHhInc>100kRnt<20pct | CH69: H73ROHUHhInc>100kRnt20to25pct | CI69: H73ROHUHhInc>100kRnt25to30pct | CJ69: H73ROHUHhInc>100kRnt30to35pct | CK69: H73ROHUHhInc>100kRnt>35pct | CL69: H73ROHUHhInc>100kRntPctNC
A70: =VLOOKUP(DropDownList!$B$24,CntyQryCensus!$A$187:$CL$205,A$1) -> Wolfeboro | B70: =VLOOKUP(DropDownList!$B$24,CntyQryCensus!$A$187:$CL$205,B$1) -> 0000440 | C70: =VLOOKUP(DropDownList!$B$24,CntyQryCensus!$A$187:$CL$205,C$1) -> 86420 | D70: =VLOOKUP(DropDownList!$B$24,CntyQryCensus!$A$187:$CL$205,D$1) -> 6083 | E70: =VLOOKUP(DropDownList!$B$24,CntyQryCensus!$A$187:$CL$205,E$1) -> 579 | F70: =VLOOKUP(DropDownList!$B$24,CntyQryCensus!$A$187:$CL$205,F$1) -> 541 | G70: =VLOOKUP(DropDownList!$B$24,CntyQryCensus!$A$187:$CL$205,G$1) -> 10 | H70: =VLOOKUP(DropDownList!$B$24,CntyQryCensus!$A$187:$CL$205,H$1) -> 10 | I70: =VLOOKUP(DropDownList!$B$24,CntyQryCensus!$A$187:$CL$205,I$1) -> 41 | J70: =VLOOKUP(DropDownList!$B$24,CntyQryCensus!$A$187:$CL$205,J$1) -> 10 | K70: =VLOOKUP(DropDownList!$B$24,CntyQryCensus!$A$187:$CL$205,K$1) -> 8 | L70: =VLOOKUP(DropDownList!$B$24,CntyQryCensus!$A$187:$CL$205,L$1) -> 10 | M70: =VLOOKUP(DropDownList!$B$24,CntyQryCensus!$A$187:$CL$205,M$1) -> 11 | N70: =VLOOKUP(DropDownList!$B$24,CntyQryCensus!$A$187:$CL$205,N$1) -> 37 | O70: =VLOOKUP(DropDownList!$B$24,CntyQryCensus!$A$187:$CL$205,O$1) -> 78 | P70: =VLOOKUP(DropDownList!$B$24,CntyQryCensus!$A$187:$CL$205,P$1) -> 37 | Q70: =VLOOKUP(DropDownList!$B$24,CntyQryCensus!$A$187:$CL$205,Q$1) -> 9 | R70: =VLOOKUP(DropDownList!$B$24,CntyQryCensus!$A$187:$CL$205,R$1) -> 80 | S70: =VLOOKUP(DropDownList!$B$24,CntyQryCensus!$A$187:$CL$205,S$1) -> 66 | T70: =VLOOKUP(DropDownList!$B$24,CntyQryCensus!$A$187:$CL$205,T$1) -> 0 | U70: =VLOOKUP(DropDownList!$B$24,CntyQryCensus!$A$187:$CL$205,U$1) -> 22 | V70: =VLOOKUP(DropDownList!$B$24,CntyQryCensus!$A$187:$CL$205,V$1) -> 56 | W70: =VLOOKUP(DropDownList!$B$24,CntyQryCensus!$A$187:$CL$205,W$1) -> 21 | X70: =VLOOKUP(DropDownList!$B$24,CntyQryCensus!$A$187:$CL$205,X$1) -> 26 | Y70: =VLOOKUP(DropDownList!$B$24,CntyQryCensus!$A$187:$CL$205,Y$1) -> 0 | Z70: =VLOOKUP(DropDownList!$B$24,CntyQryCensus!$A$187:$CL$205,Z$1) -> 0 | AA70: =VLOOKUP(DropDownList!$B$24,CntyQryCensus!$A$187:$CL$205,AA$1) -> 9 | AB70: =VLOOKUP(DropDownList!$B$24,CntyQryCensus!$A$187:$CL$205,AB$1) -> 38 | AC70: =VLOOKUP(DropDownList!$B$24,CntyQryCensus!$A$187:$CL$205,AC$1) -> 606 | AD70: =VLOOKUP(DropDownList!$B$24,CntyQryCensus!$A$187:$CL$205,AD$1) -> 579 | AE70: =VLOOKUP(DropDownList!$B$24,CntyQryCensus!$A$187:$CL$205,AE$1) -> 47 | AF70: =VLOOKUP(DropDownList!$B$24,CntyQryCensus!$A$187:$CL$205,AF$1) -> 20 | AG70: =VLOOKUP(DropDownList!$B$24,CntyQryCensus!$A$187:$CL$205,AG$1) -> 90 | AH70: =VLOOKUP(DropDownList!$B$24,CntyQryCensus!$A$187:$CL$205,AH$1) -> 116 | AI70: =VLOOKUP(DropDownList!$B$24,CntyQryCensus!$A$187:$CL$205,AI$1) -> 52 | AJ70: =VLOOKUP(DropDownList!$B$24,CntyQryCensus!$A$187:$CL$205,AJ$1) -> 34 | AK70: =VLOOKUP(DropDownList!$B$24,CntyQryCensus!$A$187:$CL$205,AK$1) -> 48 | AL70: =VLOOKUP(DropDownList!$B$24,CntyQryCensus!$A$187:$CL$205,AL$1) -> 30 | AM70: =VLOOKUP(DropDownList!$B$24,CntyQryCensus!$A$187:$CL$205,AM$1) -> 86 | AN70: =VLOOKUP(DropDownList!$B$24,CntyQryCensus!$A$187:$CL$205,AN$1) -> 56 | AO70: =VLOOKUP(DropDownList!$B$24,CntyQryCensus!$A$187:$CL$205,AO$1) -> 579 | AP70: =VLOOKUP(DropDownList!$B$24,CntyQryCensus!$A$187:$CL$205,AP$1) -> 116 | AQ70: =VLOOKUP(DropDownList!$B$24,CntyQryCensus!$A$187:$CL$205,AQ$1) -> 10 | AR70: =VLOOKUP(DropDownList!$B$24,CntyQryCensus!$A$187:$CL$205,AR$1) -> 10 | AS70: =VLOOKUP(DropDownList!$B$24,CntyQryCensus!$A$187:$CL$205,AS$1) -> 20 | AT70: =VLOOKUP(DropDownList!$B$24,CntyQryCensus!$A$187:$CL$205,AT$1) -> 0 | AU70: =VLOOKUP(DropDownList!$B$24,CntyQryCensus!$A$187:$CL$205,AU$1) -> 58 | AV70: =VLOOKUP(DropDownList!$B$24,CntyQryCensus!$A$187:$CL$205,AV$1) -> 18 | AW70: =VLOOKUP(DropDownList!$B$24,CntyQryCensus!$A$187:$CL$205,AW$1) -> 81 | AX70: =VLOOKUP(DropDownList!$B$24,CntyQryCensus!$A$187:$CL$205,AX$1) -> 10 | AY70: =VLOOKUP(DropDownList!$B$24,CntyQryCensus!$A$187:$CL$205,AY$1) -> 11 | AZ70: =VLOOKUP(DropDownList!$B$24,CntyQryCensus!$A$187:$CL$205,AZ$1) -> 0 | BA70: =VLOOKUP(DropDownList!$B$24,CntyQryCensus!$A$187:$CL$205,BA$1) -> 0 | BB70: =VLOOKUP(DropDownList!$B$24,CntyQryCensus!$A$187:$CL$205,BB$1) -> 50 | BC70: =VLOOKUP(DropDownList!$B$24,CntyQryCensus!$A$187:$CL$205,BC$1) -> 10 | BD70: =VLOOKUP(DropDownList!$B$24,CntyQryCensus!$A$187:$CL$205,BD$1) -> 164 | BE70: =VLOOKUP(DropDownList!$B$24,CntyQryCensus!$A$187:$CL$205,BE$1) -> 52 | BF70: =VLOOKUP(DropDownList!$B$24,CntyQryCensus!$A$187:$CL$205,BF$1) -> 27 | BG70: =VLOOKUP(DropDownList!$B$24,CntyQryCensus!$A$187:$CL$205,BG$1) -> 11 | BH70: =VLOOKUP(DropDownList!$B$24,CntyQryCensus!$A$187:$CL$205,BH$1) -> 18 | BI70: =VLOOKUP(DropDownList!$B$24,CntyQryCensus!$A$187:$CL$205,BI$1) -> 56 | BJ70: =VLOOKUP(DropDownList!$B$24,CntyQryCensus!$A$187:$CL$205,BJ$1) -> 0 | BK70: =VLOOKUP(DropDownList!$B$24,CntyQryCensus!$A$187:$CL$205,BK$1) -> 87 | BL70: =VLOOKUP(DropDownList!$B$24,CntyQryCensus!$A$187:$CL$205,BL$1) -> 19 | BM70: =VLOOKUP(DropDownList!$B$24,CntyQryCensus!$A$187:$CL$205,BM$1) -> 40 | BN70: =VLOOKUP(DropDownList!$B$24,CntyQryCensus!$A$187:$CL$205,BN$1) -> 21 | BO70: =VLOOKUP(DropDownList!$B$24,CntyQryCensus!$A$187:$CL$205,BO$1) -> 7 | BP70: =VLOOKUP(DropDownList!$B$24,CntyQryCensus!$A$187:$CL$205,BP$1) -> 0 | BQ70: =VLOOKUP(DropDownList!$B$24,CntyQryCensus!$A$187:$CL$205,BQ$1) -> 0 | BR70: =VLOOKUP(DropDownList!$B$24,CntyQryCensus!$A$187:$CL$205,BR$1) -> 92 | BS70: =VLOOKUP(DropDownList!$B$24,CntyQryCensus!$A$187:$CL$205,BS$1) -> 44 | BT70: =VLOOKUP(DropDownList!$B$24,CntyQryCensus!$A$187:$CL$205,BT$1) -> 28 | BU70: =VLOOKUP(DropDownList!$B$24,CntyQryCensus!$A$187:$CL$205,BU$1) -> 0 | BV70: =VLOOKUP(DropDownList!$B$24,CntyQryCensus!$A$187:$CL$205,BV$1) -> 0 | BW70: =VLOOKUP(DropDownList!$B$24,CntyQryCensus!$A$187:$CL$205,BW$1) -> 0 | BX70: =VLOOKUP(DropDownList!$B$24,CntyQryCensus!$A$187:$CL$205,BX$1) -> 20 | BY70: =VLOOKUP(DropDownList!$B$24,CntyQryCensus!$A$187:$CL$205,BY$1) -> 39 | BZ70: =VLOOKUP(DropDownList!$B$24,CntyQryCensus!$A$187:$CL$205,BZ$1) -> 22 | CA70: =VLOOKUP(DropDownList!$B$24,CntyQryCensus!$A$187:$CL$205,CA$1) -> 0 | CB70: =VLOOKUP(DropDownList!$B$24,CntyQryCensus!$A$187:$CL$205,CB$1) -> 0 | CC70: =VLOOKUP(DropDownList!$B$24,CntyQryCensus!$A$187:$CL$205,CC$1) -> 9 | CD70: =VLOOKUP(DropDownList!$B$24,CntyQryCensus!$A$187:$CL$205,CD$1) -> 0 | CE70: =VLOOKUP(DropDownList!$B$24,CntyQryCensus!$A$187:$CL$205,CE$1) -> 8 | CF70: =VLOOKUP(DropDownList!$B$24,CntyQryCensus!$A$187:$CL$205,CF$1) -> 0 | CG70: =VLOOKUP(DropDownList!$B$24,CntyQryCensus!$A$187:$CL$205,CG$1) -> 0 | CH70: =VLOOKUP(DropDownList!$B$24,CntyQryCensus!$A$187:$CL$205,CH$1) -> 0 | CI70: =VLOOKUP(DropDownList!$B$24,CntyQryCensus!$A$187:$CL$205,CI$1) -> 0 | CJ70: =VLOOKUP(DropDownList!$B$24,CntyQryCensus!$A$187:$CL$205,CJ$1) -> 0 | CK70: =VLOOKUP(DropDownList!$B$24,CntyQryCensus!$A$187:$CL$205,CK$1) -> 0 | CL70: =VLOOKUP(DropDownList!$B$24,CntyQryCensus!$A$187:$CL$205,CL$1) -> 0
A73: Census 2000 SummaryFile3 Sample Data - SF3TownQry8HousingCostB
A74: NAME | B74: LOGRECNO | C74: COUNTY | D74: TotalPop | E74: H74SpecOwnerOccHU | F74: H74OOHU<10k | G74: H74OOHU10to15k | H74: H74OOHU15to20k | I74: H74OOHU20to25k | J74: H74OOHU25to30k | K74: H74OOHU30to35k | L74: H74OOHU35to40k | M74: H74OOHU40to50k | N74: H74OOHU50to60k | O74: H74OOHU60to70k | P74: H74OOHU70to80k | Q74: H74OOHU80to90k | R74: H74OOHU90to100k | S74: H74OOHU100to125k | T74: H74OOHU125to150k | U74: H74OOHU150to175k | V74: H74OOHU175to200k | W74: H74OOHU200to250k | X74: H74OOHU250to300k | Y74: H74OOHU300to400k | Z74: H74OOHU400to500k | AA74: H74OOHU500to750k | AB74: H74OOHU750to1000k | AC74: H74OOHU1000kmore | AD74: H76OOHUMedianVal | AE74: H84OwnerOccHU | AF74: H84AllOOHU<10k | AG74: H84AllOOHU10to15k | AH74: H84AllOOHU15to20k | AI74: H84AllOOHU20to25k | AJ74: H84AllOOHU25to30k | AK74: H84AllOOHU30to35k | AL74: H84AllOOHU35to40k | AM74: H84AllOOHU40to50k | AN74: H84AllOOHU50to60k | AO74: H84AllOOHU60to70k | AP74: H84AllOOHU70to80k | AQ74: H84AllOOHU80to90k | AR74: H84AllOOHU90to100k | AS74: H84AllOOHU100to125k | AT74: H84AllOOHU125to150k | AU74: H84AllOOHU150to175k | AV74: H84AllOOHU175to200k | AW74: H84AllOOHU200to250k | AX74: H84AllOOHU250to300k | AY74: H84AllOOHU300to400k | AZ74: H84AllOOHU400to500k | BA74: H84AllOOHU500to750k | BB74: H84AllOOHU750to1000k | BC74: H84AllOOHU1000kmore | BD74: H85OOHUMedVal | BE74: H90SOOHU | BF74: H90HUwMorgt | BG74: H90HUwMtgHC<200 | BH74: H90HUwMtgHC200to300 | BI74: H90HUwMtgHC300to400 | BJ74: H90HUwMtgHC400to500 | BK74: H90HUwMtgHC500to600 | BL74: H90HUwMtgHC600to700 | BM74: H90HUwMtgHC700to800 | BN74: H90HUwMtgHC800to900 | BO74: H90HUwMtgHC900to1000 | BP74: H90HUwMtgHC1000to1250 | BQ74: H90HUwMtgHC1250to1500 | BR74: H90HUwMtgHC1500to2000 | BS74: H90HUwMtgHC2000to2500 | BT74: H90HUwMtgHC2500to3000 | BU74: H90HUwMtgHC3000orMore | BV74: H90HUwOutMorgt | BW74: H90HUwOutMtgHC<100 | BX74: H90HUwOutMtgHC100to150 | BY74: H90HUwOutMtgHC150to200 | BZ74: H90HUwOutMtgHC200to250 | CA74: H90HUwOutMtgHC250to300 | CB74: H90HUwOutMtgHC300to350 | CC74: H90HUwOutMtgHC350to400 | CD74: H90HUwOutMtgHC400to500 | CE74: H90HUwOutMtgHC500to600 | CF74: H90HUwOutMtgHC600to700 | CG74: H90HUwOutMtgHC700to800 | CH74: H90HUwOutMtgHC800to900 | CI74: H90HUwOutMtgHC900to1000 | CJ74: H90HUwOutMtgHC1000orMore | CK74: H91MedianOCHUwMtg | CL74: H91MedianOCHUwOutMtg | CM74: H94SpecOOHU | CN74: H94HUwMortg | CO74: H94HUwMtgHC<10pct | CP74: H94HUwMtgHC10to15pct | CQ74: H94HUwMtgHC15to20pct | CR74: H94HUwMtgHC20to25pct | CS74: H94HUwMtgHC25to30pct | CT74: H94HUwMtgHC30to35pct | CU74: H94HUwMtgHC35to40pct | CV74: H94HUwMtgHC40to50pct | CW74: H94HUwMtgHC50pctOrMore | CX74: H94HUwMtgHCpctNotComp | CY74: H94HUWOutMortg | CZ74: H94HUWOutMortgHC<10pct | DA74: H94HUWOutMortgHC10to15pct | DB74: H94HUWOutMortgHC15to20pct | DC74: H94HUWOutMortgHC20to25pct | DD74: H94HUWOutMortgHC25to30pct | DE74: H94HUWOutMortgHC30to35pct | DF74: H94HUWOutMortgHC35to40pct | DG74: H94HUWOutMortgHC40to50pct | DH74: H94HUWOutMortgHC50pctOrMore | DI74: H94HUWOutMortgHCpctNotComp | DJ74: H97SpecifOwnOccHU | DK74: H97SOOHUInc<10k | DL74: H97SOOHUInc<10kHC<20pct | DM74: H97SOOHUInc<10kHC20to25pct | DN74: H97SOOHUInc<10kHC25to30pct | DO74: H97SOOHUInc<10kHC30to35pct | DP74: H97SOOHUInc<10kHC>35pct | DQ74: H97SOOHUInc<10kHCpctNotComput | DR74: H97SOOHUInc10to20k | DS74: H97SOOHUInc10to20kHC<20pct | DT74: H97SOOHUInc10to20kHC20to25pct | DU74: H97SOOHUInc10to20kHC25to30pct | DV74: H97SOOHUInc10to20kHC30to35pct | DW74: H97SOOHUInc10to20kHC>35pct | DX74: H97SOOHUInc10to20kHCpctNotComput | DY74: H97SOOHUInc20to35k | DZ74: H97SOOHUInc20to35kRC<20pct | EA74: H97SOOHUInc20to35kRC20to25pct | EB74: H97SOOHUInc20to35kRC25to30pct | EC74: H97SOOHUInc20to35kRC30to35pct | ED74: H97SOOHUInc20to35kRC>35pct | EE74: H97SOOHUInc20to35kRCpctNotComput | EF74: H97SOOHUInc35to50k | EG74: H97SOOHUInc35to50kRC<20pct | EH74: H97SOOHUInc35to50kRC20to25pct | EI74: H97SOOHUInc35to50kRC25to30pct | EJ74: H97SOOHUInc35to50kRC30to35pct | EK74: H97SOOHUInc35to50kRC>35pct | EL74: H97SOOHUInc35to50kRCpctNotCompute | EM74: H97SOOHUInc50to75k | EN74: H97SOOHUInc50to75kRC<20pct | EO74: H97SOOHUInc50to75kRC20to25pct | EP74: H97SOOHUInc50to75kRC25to30pct | EQ74: H97SOOHUInc50to75kRC30to35pct | ER74: H97SOOHUInc50to75kRC>35pct | ES74: H97SOOHUInc50to75kRCpctNotComput | ET74: H97SOOHUInc75to100k | EU74: H97SOOHUInc75to100kRC<20pct | EV74: H97SOOHUInc75to100kRC20to25pct | EW74: H97SOOHUInc75to100kRC25to30pct | EX74: H97SOOHUInc75to100kRC30to35pct | EY74: H97SOOHUInc75to100kRC>35pct | EZ74: H97SOOHUInc75to100kRCpctNotCompute | FA74: H97SOOHUInc100to150k | FB74: H97SOOHUInc100to150kRC<20pct | FC74: H97SOOHUInc100to150kRC20to25pct | FD74: H97SOOHUInc100to150kRC25to30pct | FE74: H97SOOHUInc100to150kRC30to35pct | FF74: H97SOOHUInc100to150kRC>35pct | FG74: H97SOOHUInc100to150kRCpctNotCompute | FH74: H97SOOHUInc>150k | FI74: H97SOOHUInc>150kRC<20pct | FJ74: H97SOOHUInc>150kRC20to25pct | FK74: H97SOOHUInc>150kRC25to30pct | FL74: H97SOOHUInc>150kRC30to35pct | FM74: H97SOOHUInc>150kRC>35pct | FN74: H97SOOHUInc>150kRCpctNotCompute
A75: =VLOOKUP(DropDownList!$B$24,CntyQryCensus!$A$213:$FN$231,A$1) -> Wolfeboro | B75: =VLOOKUP(DropDownList!$B$24,CntyQryCensus!$A$213:$FN$231,B$1) -> 0000440 | C75: =VLOOKUP(DropDownList!$B$24,CntyQryCensus!$A$213:$FN$231,C$1) -> 86420 | D75: =VLOOKUP(DropDownList!$B$24,CntyQryCensus!$A$213:$FN$231,D$1) -> 6083 | E75: =VLOOKUP(DropDownList!$B$24,CntyQryCensus!$A$213:$FN$231,E$1) -> 1552 | F75: =VLOOKUP(DropDownList!$B$24,CntyQryCensus!$A$213:$FN$231,F$1) -> 0 | G75: =VLOOKUP(DropDownList!$B$24,CntyQryCensus!$A$213:$FN$231,G$1) -> 0 | H75: =VLOOKUP(DropDownList!$B$24,CntyQryCensus!$A$213:$FN$231,H$1) -> 0 | I75: =VLOOKUP(DropDownList!$B$24,CntyQryCensus!$A$213:$FN$231,I$1) -> 0 | J75: =VLOOKUP(DropDownList!$B$24,CntyQryCensus!$A$213:$FN$231,J$1) -> 0 | K75: =VLOOKUP(DropDownList!$B$24,CntyQryCensus!$A$213:$FN$231,K$1) -> 0 | L75: =VLOOKUP(DropDownList!$B$24,CntyQryCensus!$A$213:$FN$231,L$1) -> 0 | M75: =VLOOKUP(DropDownList!$B$24,CntyQryCensus!$A$213:$FN$231,M$1) -> 0 | N75: =VLOOKUP(DropDownList!$B$24,CntyQryCensus!$A$213:$FN$231,N$1) -> 15 | O75: =VLOOKUP(DropDownList!$B$24,CntyQryCensus!$A$213:$FN$231,O$1) -> 9 | P75: =VLOOKUP(DropDownList!$B$24,CntyQryCensus!$A$213:$FN$231,P$1) -> 92 | Q75: =VLOOKUP(DropDownList!$B$24,CntyQryCensus!$A$213:$FN$231,Q$1) -> 86 | R75: =VLOOKUP(DropDownList!$B$24,CntyQryCensus!$A$213:$FN$231,R$1) -> 149 | S75: =VLOOKUP(DropDownList!$B$24,CntyQryCensus!$A$213:$FN$231,S$1) -> 204 | T75: =VLOOKUP(DropDownList!$B$24,CntyQryCensus!$A$213:$FN$231,T$1) -> 223 | U75: =VLOOKUP(DropDownList!$B$24,CntyQryCensus!$A$213:$FN$231,U$1) -> 183 | V75: =VLOOKUP(DropDownList!$B$24,CntyQryCensus!$A$213:$FN$231,V$1) -> 101 | W75: =VLOOKUP(DropDownList!$B$24,CntyQryCensus!$A$213:$FN$231,W$1) -> 189 | X75: =VLOOKUP(DropDownList!$B$24,CntyQryCensus!$A$213:$FN$231,X$1) -> 116 | Y75: =VLOOKUP(DropDownList!$B$24,CntyQryCensus!$A$213:$FN$231,Y$1) -> 53 | Z75: =VLOOKUP(DropDownList!$B$24,CntyQryCensus!$A$213:$FN$231,Z$1) -> 44 | AA75: =VLOOKUP(DropDownList!$B$24,CntyQryCensus!$A$213:$FN$231,AA$1) -> 61 | AB75: =VLOOKUP(DropDownList!$B$24,CntyQryCensus!$A$213:$FN$231,AB$1) -> 14 | AC75: =VLOOKUP(DropDownList!$B$24,CntyQryCensus!$A$213:$FN$231,AC$1) -> 13 | AD75: =VLOOKUP(DropDownList!$B$24,CntyQryCensus!$A$213:$FN$231,AD$1) -> 149800 | AE75: =VLOOKUP(DropDownList!$B$24,CntyQryCensus!$A$213:$FN$231,AE$1) -> 1985 | AF75: =VLOOKUP(DropDownList!$B$24,CntyQryCensus!$A$213:$FN$231,AF$1) -> 0 | AG75: =VLOOKUP(DropDownList!$B$24,CntyQryCensus!$A$213:$FN$231,AG$1) -> 7 | AH75: =VLOOKUP(DropDownList!$B$24,CntyQryCensus!$A$213:$FN$231,AH$1) -> 0 | AI75: =VLOOKUP(DropDownList!$B$24,CntyQryCensus!$A$213:$FN$231,AI$1) -> 8 | AJ75: =VLOOKUP(DropDownList!$B$24,CntyQryCensus!$A$213:$FN$231,AJ$1) -> 0 | AK75: =VLOOKUP(DropDownList!$B$24,CntyQryCensus!$A$213:$FN$231,AK$1) -> 0 | AL75: =VLOOKUP(DropDownList!$B$24,CntyQryCensus!$A$213:$FN$231,AL$1) -> 8 | AM75: =VLOOKUP(DropDownList!$B$24,CntyQryCensus!$A$213:$FN$231,AM$1) -> 0 | AN75: =VLOOKUP(DropDownList!$B$24,CntyQryCensus!$A$213:$FN$231,AN$1) -> 31 | AO75: =VLOOKUP(DropDownList!$B$24,CntyQryCensus!$A$213:$FN$231,AO$1) -> 34 | AP75: =VLOOKUP(DropDownList!$B$24,CntyQryCensus!$A$213:$FN$231,AP$1) -> 114 | AQ75: =VLOOKUP(DropDownList!$B$24,CntyQryCensus!$A$213:$FN$231,AQ$1) -> 99 | AR75: =VLOOKUP(DropDownList!$B$24,CntyQryCensus!$A$213:$FN$231,AR$1) -> 157 | AS75: =VLOOKUP(DropDownList!$B$24,CntyQryCensus!$A$213:$FN$231,AS$1) -> 240 | AT75: =VLOOKUP(DropDownList!$B$24,CntyQryCensus!$A$213:$FN$231,AT$1) -> 324 | AU75: =VLOOKUP(DropDownList!$B$24,CntyQryCensus!$A$213:$FN$231,AU$1) -> 190 | AV75: =VLOOKUP(DropDownList!$B$24,CntyQryCensus!$A$213:$FN$231,AV$1) -> 116 | AW75: =VLOOKUP(DropDownList!$B$24,CntyQryCensus!$A$213:$FN$231,AW$1) -> 243 | AX75: =VLOOKUP(DropDownList!$B$24,CntyQryCensus!$A$213:$FN$231,AX$1) -> 188 | AY75: =VLOOKUP(DropDownList!$B$24,CntyQryCensus!$A$213:$FN$231,AY$1) -> 60 | AZ75: =VLOOKUP(DropDownList!$B$24,CntyQryCensus!$A$213:$FN$231,AZ$1) -> 53 | BA75: =VLOOKUP(DropDownList!$B$24,CntyQryCensus!$A$213:$FN$231,BA$1) -> 61 | BB75: =VLOOKUP(DropDownList!$B$24,CntyQryCensus!$A$213:$FN$231,BB$1) -> 31 | BC75: =VLOOKUP(DropDownList!$B$24,CntyQryCensus!$A$213:$FN$231,BC$1) -> 21 | BD75: =VLOOKUP(DropDownList!$B$24,CntyQryCensus!$A$213:$FN$231,BD$1) -> 147700 | BE75: =VLOOKUP(DropDownList!$B$24,CntyQryCensus!$A$213:$FN$231,BE$1) -> 1552 | BF75: =VLOOKUP(DropDownList!$B$24,CntyQryCensus!$A$213:$FN$231,BF$1) -> 913 | BG75: =VLOOKUP(DropDownList!$B$24,CntyQryCensus!$A$213:$FN$231,BG$1) -> 0 | BH75: =VLOOKUP(DropDownList!$B$24,CntyQryCensus!$A$213:$FN$231,BH$1) -> 0 | BI75: =VLOOKUP(DropDownList!$B$24,CntyQryCensus!$A$213:$FN$231,BI$1) -> 0 | BJ75: =VLOOKUP(DropDownList!$B$24,CntyQryCensus!$A$213:$FN$231,BJ$1) -> 29 | BK75: =VLOOKUP(DropDownList!$B$24,CntyQryCensus!$A$213:$FN$231,BK$1) -> 37 | BL75: =VLOOKUP(DropDownList!$B$24,CntyQryCensus!$A$213:$FN$231,BL$1) -> 35 | BM75: =VLOOKUP(DropDownList!$B$24,CntyQryCensus!$A$213:$FN$231,BM$1) -> 98 | BN75: =VLOOKUP(DropDownList!$B$24,CntyQryCensus!$A$213:$FN$231,BN$1) -> 76 | BO75: =VLOOKUP(DropDownList!$B$24,CntyQryCensus!$A$213:$FN$231,BO$1) -> 102 | BP75: =VLOOKUP(DropDownList!$B$24,CntyQryCensus!$A$213:$FN$231,BP$1) -> 203 | BQ75: =VLOOKUP(DropDownList!$B$24,CntyQryCensus!$A$213:$FN$231,BQ$1) -> 111 | BR75: =VLOOKUP(DropDownList!$B$24,CntyQryCensus!$A$213:$FN$231,BR$1) -> 131 | BS75: =VLOOKUP(DropDownList!$B$24,CntyQryCensus!$A$213:$FN$231,BS$1) -> 51 | BT75: =VLOOKUP(DropDownList!$B$24,CntyQryCensus!$A$213:$FN$231,BT$1) -> 27 | BU75: =VLOOKUP(DropDownList!$B$24,CntyQryCensus!$A$213:$FN$231,BU$1) -> 13 | BV75: =VLOOKUP(DropDownList!$B$24,CntyQryCensus!$A$213:$FN$231,BV$1) -> 639 | BW75: =VLOOKUP(DropDownList!$B$24,CntyQryCensus!$A$213:$FN$231,BW$1) -> 0 | BX75: =VLOOKUP(DropDownList!$B$24,CntyQryCensus!$A$213:$FN$231,BX$1) -> 0 | BY75: =VLOOKUP(DropDownList!$B$24,CntyQryCensus!$A$213:$FN$231,BY$1) -> 8 | BZ75: =VLOOKUP(DropDownList!$B$24,CntyQryCensus!$A$213:$FN$231,BZ$1) -> 74 | CA75: =VLOOKUP(DropDownList!$B$24,CntyQryCensus!$A$213:$FN$231,CA$1) -> 48 | CB75: =VLOOKUP(DropDownList!$B$24,CntyQryCensus!$A$213:$FN$231,CB$1) -> 65 | CC75: =VLOOKUP(DropDownList!$B$24,CntyQryCensus!$A$213:$FN$231,CC$1) -> 62 | CD75: =VLOOKUP(DropDownList!$B$24,CntyQryCensus!$A$213:$FN$231,CD$1) -> 152 | CE75: =VLOOKUP(DropDownList!$B$24,CntyQryCensus!$A$213:$FN$231,CE$1) -> 107 | CF75: =VLOOKUP(DropDownList!$B$24,CntyQryCensus!$A$213:$FN$231,CF$1) -> 31 | CG75: =VLOOKUP(DropDownList!$B$24,CntyQryCensus!$A$213:$FN$231,CG$1) -> 30 | CH75: =VLOOKUP(DropDownList!$B$24,CntyQryCensus!$A$213:$FN$231,CH$1) -> 15 | CI75: =VLOOKUP(DropDownList!$B$24,CntyQryCensus!$A$213:$FN$231,CI$1) -> 6 | CJ75: =VLOOKUP(DropDownList!$B$24,CntyQryCensus!$A$213:$FN$231,CJ$1) -> 41 | CK75: =VLOOKUP(DropDownList!$B$24,CntyQryCensus!$A$213:$FN$231,CK$1) -> 1098 | CL75: =VLOOKUP(DropDownList!$B$24,CntyQryCensus!$A$213:$FN$231,CL$1) -> 441 | CM75: =VLOOKUP(DropDownList!$B$24,CntyQryCensus!$A$213:$FN$231,CM$1) -> 1552 | CN75: =VLOOKUP(DropDownList!$B$24,CntyQryCensus!$A$213:$FN$231,CN$1) -> 913 | CO75: =VLOOKUP(DropDownList!$B$24,CntyQryCensus!$A$213:$FN$231,CO$1) -> 61 | CP75: =VLOOKUP(DropDownList!$B$24,CntyQryCensus!$A$213:$FN$231,CP$1) -> 113 | CQ75: =VLOOKUP(DropDownList!$B$24,CntyQryCensus!$A$213:$FN$231,CQ$1) -> 102 | CR75: =VLOOKUP(DropDownList!$B$24,CntyQryCensus!$A$213:$FN$231,CR$1) -> 184 | CS75: =VLOOKUP(DropDownList!$B$24,CntyQryCensus!$A$213:$FN$231,CS$1) -> 127 | CT75: =VLOOKUP(DropDownList!$B$24,CntyQryCensus!$A$213:$FN$231,CT$1) -> 82 | CU75: =VLOOKUP(DropDownList!$B$24,CntyQryCensus!$A$213:$FN$231,CU$1) -> 29 | CV75: =VLOOKUP(DropDownList!$B$24,CntyQryCensus!$A$213:$FN$231,CV$1) -> 35 | CW75: =VLOOKUP(DropDownList!$B$24,CntyQryCensus!$A$213:$FN$231,CW$1) -> 165 | CX75: =VLOOKUP(DropDownList!$B$24,CntyQryCensus!$A$213:$FN$231,CX$1) -> 15 | CY75: =VLOOKUP(DropDownList!$B$24,CntyQryCensus!$A$213:$FN$231,CY$1) -> 639 | CZ75: =VLOOKUP(DropDownList!$B$24,CntyQryCensus!$A$213:$FN$231,CZ$1) -> 211 | DA75: =VLOOKUP(DropDownList!$B$24,CntyQryCensus!$A$213:$FN$231,DA$1) -> 132 | DB75: =VLOOKUP(DropDownList!$B$24,CntyQryCensus!$A$213:$FN$231,DB$1) -> 80 | DC75: =VLOOKUP(DropDownList!$B$24,CntyQryCensus!$A$213:$FN$231,DC$1) -> 69 | DD75: =VLOOKUP(DropDownList!$B$24,CntyQryCensus!$A$213:$FN$231,DD$1) -> 40 | DE75: =VLOOKUP(DropDownList!$B$24,CntyQryCensus!$A$213:$FN$231,DE$1) -> 37 | DF75: =VLOOKUP(DropDownList!$B$24,CntyQryCensus!$A$213:$FN$231,DF$1) -> 24 | DG75: =VLOOKUP(DropDownList!$B$24,CntyQryCensus!$A$213:$FN$231,DG$1) -> 8 | DH75: =VLOOKUP(DropDownList!$B$24,CntyQryCensus!$A$213:$FN$231,DH$1) -> 38 | DI75: =VLOOKUP(DropDownList!$B$24,CntyQryCensus!$A$213:$FN$231,DI$1) -> 0 | DJ75: =VLOOKUP(DropDownList!$B$24,CntyQryCensus!$A$213:$FN$231,DJ$1) -> 1552 | DK75: =VLOOKUP(DropDownList!$B$24,CntyQryCensus!$A$213:$FN$231,DK$1) -> 46 | DL75: =VLOOKUP(DropDownList!$B$24,CntyQryCensus!$A$213:$FN$231,DL$1) -> 0 | DM75: =VLOOKUP(DropDownList!$B$24,CntyQryCensus!$A$213:$FN$231,DM$1) -> 0 | DN75: =VLOOKUP(DropDownList!$B$24,CntyQryCensus!$A$213:$FN$231,DN$1) -> 0 | DO75: =VLOOKUP(DropDownList!$B$24,CntyQryCensus!$A$213:$FN$231,DO$1) -> 7 | DP75: =VLOOKUP(DropDownList!$B$24,CntyQryCensus!$A$213:$FN$231,DP$1) -> 24 | DQ75: =VLOOKUP(DropDownList!$B$24,CntyQryCensus!$A$213:$FN$231,DQ$1) -> 15 | DR75: =VLOOKUP(DropDownList!$B$24,CntyQryCensus!$A$213:$FN$231,DR$1) -> 256 | DS75: =VLOOKUP(DropDownList!$B$24,CntyQryCensus!$A$213:$FN$231,DS$1) -> 34 | DT75: =VLOOKUP(DropDownList!$B$24,CntyQryCensus!$A$213:$FN$231,DT$1) -> 24 | DU75: =VLOOKUP(DropDownList!$B$24,CntyQryCensus!$A$213:$FN$231,DU$1) -> 8 | DV75: =VLOOKUP(DropDownList!$B$24,CntyQryCensus!$A$213:$FN$231,DV$1) -> 37 | DW75: =VLOOKUP(DropDownList!$B$24,CntyQryCensus!$A$213:$FN$231,DW$1) -> 153 | DX75: =VLOOKUP(DropDownList!$B$24,CntyQryCensus!$A$213:$FN$231,DX$1) -> 0 | DY75: =VLOOKUP(DropDownList!$B$24,CntyQryCensus!$A$213:$FN$231,DY$1) -> 267 | DZ75: =VLOOKUP(DropDownList!$B$24,CntyQryCensus!$A$213:$FN$231,DZ$1) -> 93 | EA75: =VLOOKUP(DropDownList!$B$24,CntyQryCensus!$A$213:$FN$231,EA$1) -> 47 | EB75: =VLOOKUP(DropDownList!$B$24,CntyQryCensus!$A$213:$FN$231,EB$1) -> 32 | EC75: =VLOOKUP(DropDownList!$B$24,CntyQryCensus!$A$213:$FN$231,EC$1) -> 8 | ED75: =VLOOKUP(DropDownList!$B$24,CntyQryCensus!$A$213:$FN$231,ED$1) -> 87 | EE75: =VLOOKUP(DropDownList!$B$24,CntyQryCensus!$A$213:$FN$231,EE$1) -> 0 | EF75: =VLOOKUP(DropDownList!$B$24,CntyQryCensus!$A$213:$FN$231,EF$1) -> 230 | EG75: =VLOOKUP(DropDownList!$B$24,CntyQryCensus!$A$213:$FN$231,EG$1) -> 47 | EH75: =VLOOKUP(DropDownList!$B$24,CntyQryCensus!$A$213:$FN$231,EH$1) -> 45 | EI75: =VLOOKUP(DropDownList!$B$24,CntyQryCensus!$A$213:$FN$231,EI$1) -> 65 | EJ75: =VLOOKUP(DropDownList!$B$24,CntyQryCensus!$A$213:$FN$231,EJ$1) -> 38 | EK75: =VLOOKUP(DropDownList!$B$24,CntyQryCensus!$A$213:$FN$231,EK$1) -> 35 | EL75: =VLOOKUP(DropDownList!$B$24,CntyQryCensus!$A$213:$FN$231,EL$1) -> 0 | EM75: =VLOOKUP(DropDownList!$B$24,CntyQryCensus!$A$213:$FN$231,EM$1) -> 376 | EN75: =VLOOKUP(DropDownList!$B$24,CntyQryCensus!$A$213:$FN$231,EN$1) -> 207 | EO75: =VLOOKUP(DropDownList!$B$24,CntyQryCensus!$A$213:$FN$231,EO$1) -> 104 | EP75: =VLOOKUP(DropDownList!$B$24,CntyQryCensus!$A$213:$FN$231,EP$1) -> 49 | EQ75: =VLOOKUP(DropDownList!$B$24,CntyQryCensus!$A$213:$FN$231,EQ$1) -> 16 | ER75: =VLOOKUP(DropDownList!$B$24,CntyQryCensus!$A$213:$FN$231,ER$1) -> 0 | ES75: =VLOOKUP(DropDownList!$B$24,CntyQryCensus!$A$213:$FN$231,ES$1) -> 0 | ET75: =VLOOKUP(DropDownList!$B$24,CntyQryCensus!$A$213:$FN$231,ET$1) -> 111 | EU75: =VLOOKUP(DropDownList!$B$24,CntyQryCensus!$A$213:$FN$231,EU$1) -> 78 | EV75: =VLOOKUP(DropDownList!$B$24,CntyQryCensus!$A$213:$FN$231,EV$1) -> 20 | EW75: =VLOOKUP(DropDownList!$B$24,CntyQryCensus!$A$213:$FN$231,EW$1) -> 7 | EX75: =VLOOKUP(DropDownList!$B$24,CntyQryCensus!$A$213:$FN$231,EX$1) -> 6 | EY75: =VLOOKUP(DropDownList!$B$24,CntyQryCensus!$A$213:$FN$231,EY$1) -> 0 | EZ75: =VLOOKUP(DropDownList!$B$24,CntyQryCensus!$A$213:$FN$231,EZ$1) -> 0 | FA75: =VLOOKUP(DropDownList!$B$24,CntyQryCensus!$A$213:$FN$231,FA$1) -> 151 | FB75: =VLOOKUP(DropDownList!$B$24,CntyQryCensus!$A$213:$FN$231,FB$1) -> 125 | FC75: =VLOOKUP(DropDownList!$B$24,CntyQryCensus!$A$213:$FN$231,FC$1) -> 13 | FD75: =VLOOKUP(DropDownList!$B$24,CntyQryCensus!$A$213:$FN$231,FD$1) -> 6 | FE75: =VLOOKUP(DropDownList!$B$24,CntyQryCensus!$A$213:$FN$231,FE$1) -> 7 | FF75: =VLOOKUP(DropDownList!$B$24,CntyQryCensus!$A$213:$FN$231,FF$1) -> 0 | FG75: =VLOOKUP(DropDownList!$B$24,CntyQryCensus!$A$213:$FN$231,FG$1) -> 0 | FH75: =VLOOKUP(DropDownList!$B$24,CntyQryCensus!$A$213:$FN$231,FH$1) -> 115 | FI75: =VLOOKUP(DropDownList!$B$24,CntyQryCensus!$A$213:$FN$231,FI$1) -> 115 | FJ75: =VLOOKUP(DropDownList!$B$24,CntyQryCensus!$A$213:$FN$231,FJ$1) -> 0 | FK75: =VLOOKUP(DropDownList!$B$24,CntyQryCensus!$A$213:$FN$231,FK$1) -> 0 | FL75: =VLOOKUP(DropDownList!$B$24,CntyQryCensus!$A$213:$FN$231,FL$1) -> 0 | FM75: =VLOOKUP(DropDownList!$B$24,CntyQryCensus!$A$213:$FN$231,FM$1) -> 0 | FN75: =VLOOKUP(DropDownList!$B$24,CntyQryCensus!$A$213:$FN$231,FN$1) -> 0
A78: Census 2000 SummaryFile3 Sample Data - SF3TownQry9HHIncomeByTenure
A79: NAME | B79: LOGRECNO | C79: COUNTY | D79: TotalPop | E79: HCT11OccHU | F79: HCT11OwnOccHU | G79: HCT11OOHUInc<5K | H79: HCT11OOHUInc5to10K | I79: HCT11OOHUInc10to15K | J79: HCT11OOHUInc15to20K | K79: HCT11OOHUInc20to25K | L79: HCT11OOHUInc25to35K | M79: HCT11OOHUInc35to50K | N79: HCT11OOHUInc50to75K | O79: HCT11OOHUInc75to100K | P79: HCT11OOHUInc100to150K | Q79: HCT11OOHUInc>150K | R79: HCT11RentOccHU | S79: HCT11ROHUInc<5K | T79: HCT11ROHUInc5to10K | U79: HCT11ROHUInc10to15K | V79: HCT11ROHUInc15to20K | W79: HCT11ROHUInc20to25K | X79: HCT11ROHUInc25to35K | Y79: HCT11ROHUInc35to50K | Z79: HCT11ROHUInc50to75K | AA79: HCT11ROHUInc75to100K | AB79: HCT11ROHUInc100to150K | AC79: HCT11ROHUInc>150K | AD79: HCT12MedHHInc | AE79: HCT12MedOwnOccHHInc | AF79: HCT12MedRentOccHHInc
A80: =VLOOKUP(DropDownList!$B$24,CntyQryCensus!$A$239:$AX$257,A$1) -> Wolfeboro | B80: =VLOOKUP(DropDownList!$B$24,CntyQryCensus!$A$239:$AX$257,B$1) -> 0000440 | C80: =VLOOKUP(DropDownList!$B$24,CntyQryCensus!$A$239:$AX$257,C$1) -> 86420 | D80: =VLOOKUP(DropDownList!$B$24,CntyQryCensus!$A$239:$AX$257,D$1) -> 6083 | E80: =VLOOKUP(DropDownList!$B$24,CntyQryCensus!$A$239:$AX$257,E$1) -> 2574 | F80: =VLOOKUP(DropDownList!$B$24,CntyQryCensus!$A$239:$AX$257,F$1) -> 1985 | G80: =VLOOKUP(DropDownList!$B$24,CntyQryCensus!$A$239:$AX$257,G$1) -> 39 | H80: =VLOOKUP(DropDownList!$B$24,CntyQryCensus!$A$239:$AX$257,H$1) -> 15 | I80: =VLOOKUP(DropDownList!$B$24,CntyQryCensus!$A$239:$AX$257,I$1) -> 137 | J80: =VLOOKUP(DropDownList!$B$24,CntyQryCensus!$A$239:$AX$257,J$1) -> 142 | K80: =VLOOKUP(DropDownList!$B$24,CntyQryCensus!$A$239:$AX$257,K$1) -> 156 | L80: =VLOOKUP(DropDownList!$B$24,CntyQryCensus!$A$239:$AX$257,L$1) -> 196 | M80: =VLOOKUP(DropDownList!$B$24,CntyQryCensus!$A$239:$AX$257,M$1) -> 326 | N80: =VLOOKUP(DropDownList!$B$24,CntyQryCensus!$A$239:$AX$257,N$1) -> 455 | O80: =VLOOKUP(DropDownList!$B$24,CntyQryCensus!$A$239:$AX$257,O$1) -> 179 | P80: =VLOOKUP(DropDownList!$B$24,CntyQryCensus!$A$239:$AX$257,P$1) -> 187 | Q80: =VLOOKUP(DropDownList!$B$24,CntyQryCensus!$A$239:$AX$257,Q$1) -> 153 | R80: =VLOOKUP(DropDownList!$B$24,CntyQryCensus!$A$239:$AX$257,R$1) -> 589 | S80: =VLOOKUP(DropDownList!$B$24,CntyQryCensus!$A$239:$AX$257,S$1) -> 48 | T80: =VLOOKUP(DropDownList!$B$24,CntyQryCensus!$A$239:$AX$257,T$1) -> 68 | U80: =VLOOKUP(DropDownList!$B$24,CntyQryCensus!$A$239:$AX$257,U$1) -> 40 | V80: =VLOOKUP(DropDownList!$B$24,CntyQryCensus!$A$239:$AX$257,V$1) -> 41 | W80: =VLOOKUP(DropDownList!$B$24,CntyQryCensus!$A$239:$AX$257,W$1) -> 72 | X80: =VLOOKUP(DropDownList!$B$24,CntyQryCensus!$A$239:$AX$257,X$1) -> 102 | Y80: =VLOOKUP(DropDownList!$B$24,CntyQryCensus!$A$239:$AX$257,Y$1) -> 87 | Z80: =VLOOKUP(DropDownList!$B$24,CntyQryCensus!$A$239:$AX$257,Z$1) -> 92 | AA80: =VLOOKUP(DropDownList!$B$24,CntyQryCensus!$A$239:$AX$257,AA$1) -> 39 | AB80: =VLOOKUP(DropDownList!$B$24,CntyQryCensus!$A$239:$AX$257,AB$1) -> 0 | AC80: =VLOOKUP(DropDownList!$B$24,CntyQryCensus!$A$239:$AX$257,AC$1) -> 0 | AD80: =VLOOKUP(DropDownList!$B$24,CntyQryCensus!$A$239:$AX$257,AD$1) -> 43360 | AE80: =VLOOKUP(DropDownList!$B$24,CntyQryCensus!$A$239:$AX$257,AE$1) -> 49111 | AF80: =VLOOKUP(DropDownList!$B$24,CntyQryCensus!$A$239:$AX$257,AF$1) -> 27781
A86: =A96 -> Wolfeboro
A94: Census 2000 SummaryFile3 Sample Data - SF3TownQry10Disabil
A95: NAME | B95: LOGRECNO | C95: COUNTY | D95: TotalPop | E95: PCT026001-NonInstPop5yrs+ | F95: PCT026002-MaleNonInstPop5yrs+ | G95: PCT026003 | H95: PCT026004 | I95: PCT026005 | J95: PCT026006 | K95: PCT026007 | L95: PCT026008 | M95: PCT026009 | N95: PCT026010 | O95: PCT026011 | P95: PCT026012 | Q95: PCT026013 | R95: PCT026014 | S95: PCT026015 | T95: PCT026016 | U95: PCT026017 | V95: PCT026018 | W95: PCT026019 | X95: PCT026020 | Y95: PCT026021 | Z95: PCT026022 | AA95: PCT026023 | AB95: PCT026024 | AC95: PCT026025 | AD95: PCT026026 | AE95: PCT026027 | AF95: PCT026028 | AG95: PCT026029 | AH95: PCT026030 | AI95: PCT026031 | AJ95: PCT026032 | AK95: PCT026033 | AL95: PCT026034 | AM95: PCT026035 | AN95: PCT026036 | AO95: PCT026037 | AP95: PCT026038 | AQ95: PCT026039 | AR95: PCT026040 | AS95: PCT026041 | AT95: PCT026042 | AU95: PCT026043 | AV95: PCT026044 | AW95: PCT026045 | AX95: PCT026046 | AY95: PCT026047 | AZ95: PCT026048 | BA95: PCT026049 | BB95: PCT026050 | BC95: PCT026051 | BD95: PCT026052 | BE95: PCT026053 | BF95: PCT026054 | BG95: PCT026055 | BH95: PCT026056 | BI95: PCT026057 | BJ95: PCT026058 | BK95: PCT026059 | BL95: PCT026060 | BM95: PCT026061 | BN95: PCT026062 | BO95: PCT026063 | BP95: PCT026064 | BQ95: PCT026065 | BR95: PCT026066 | BS95: PCT026067 | BT95: PCT026068 | BU95: PCT026069 | BV95: PCT026070 | BW95: PCT026071 | BX95: PCT026072 | BY95: PCT026073 | BZ95: PCT026074 | CA95: PCT026075 | CB95: PCT026076 | CC95: PCT026077 | CD95: PCT026078 | CE95: PCT026079 | CF95: PCT026080 | CG95: PCT026081 | CH95: PCT026082 | CI95: PCT026083 | CJ95: PCT026084 | CK95: PCT026085 | CL95: PCT026086 | CM95: PCT026087 | CN95: PCT026088 | CO95: PCT026089 | CP95: PCT026090 | CQ95: PCT026091 | CR95: PCT026092 | CS95: PCT026093 | CT95: PCT026094 | CU95: PCT026095 | CV95: PCT026096 | CW95: PCT026097 | CX95: PCT026098 | CY95: PCT026099 | CZ95: PCT026100 | DA95: PCT026101
A96: =VLOOKUP(DropDownList!$B$24,CntyQuery!$A$70:$CF$88,A$1) -> Wolfeboro | B96: =VLOOKUP(DropDownList!$B$24,CntyQryCensus!$A$266:$DA$284,B$1) -> 0000440 | C96: =VLOOKUP(DropDownList!$B$24,CntyQryCensus!$A$266:$DA$284,C$1) -> 86420 | D96: =VLOOKUP(DropDownList!$B$24,CntyQryCensus!$A$266:$DA$284,D$1) -> 6083 | E96: =VLOOKUP(DropDownList!$B$24,CntyQryCensus!$A$266:$DA$284,E$1) -> 5719 | F96: =VLOOKUP(DropDownList!$B$24,CntyQryCensus!$A$266:$DA$284,F$1) -> 2700 | G96: =VLOOKUP(DropDownList!$B$24,CntyQryCensus!$A$266:$DA$284,G$1) -> 424 | H96: =VLOOKUP(DropDownList!$B$24,CntyQryCensus!$A$266:$DA$284,H$1) -> 29 | I96: =VLOOKUP(DropDownList!$B$24,CntyQryCensus!$A$266:$DA$284,I$1) -> 0 | J96: =VLOOKUP(DropDownList!$B$24,CntyQryCensus!$A$266:$DA$284,J$1) -> 9 | K96: =VLOOKUP(DropDownList!$B$24,CntyQryCensus!$A$266:$DA$284,K$1) -> 20 | L96: =VLOOKUP(DropDownList!$B$24,CntyQryCensus!$A$266:$DA$284,L$1) -> 0 | M96: =VLOOKUP(DropDownList!$B$24,CntyQryCensus!$A$266:$DA$284,M$1) -> 7 | N96: =VLOOKUP(DropDownList!$B$24,CntyQryCensus!$A$266:$DA$284,N$1) -> 7 | O96: =VLOOKUP(DropDownList!$B$24,CntyQryCensus!$A$266:$DA$284,O$1) -> 0 | P96: =VLOOKUP(DropDownList!$B$24,CntyQryCensus!$A$266:$DA$284,P$1) -> 388 | Q96: =VLOOKUP(DropDownList!$B$24,CntyQryCensus!$A$266:$DA$284,Q$1) -> 165 | R96: =VLOOKUP(DropDownList!$B$24,CntyQryCensus!$A$266:$DA$284,R$1) -> 11 | S96: =VLOOKUP(DropDownList!$B$24,CntyQryCensus!$A$266:$DA$284,S$1) -> 6 | T96: =VLOOKUP(DropDownList!$B$24,CntyQryCensus!$A$266:$DA$284,T$1) -> 0 | U96: =VLOOKUP(DropDownList!$B$24,CntyQryCensus!$A$266:$DA$284,U$1) -> 0 | V96: =VLOOKUP(DropDownList!$B$24,CntyQryCensus!$A$266:$DA$284,V$1) -> 0 | W96: =VLOOKUP(DropDownList!$B$24,CntyQryCensus!$A$266:$DA$284,W$1) -> 0 | X96: =VLOOKUP(DropDownList!$B$24,CntyQryCensus!$A$266:$DA$284,X$1) -> 5 | Y96: =VLOOKUP(DropDownList!$B$24,CntyQryCensus!$A$266:$DA$284,Y$1) -> 10 | Z96: =VLOOKUP(DropDownList!$B$24,CntyQryCensus!$A$266:$DA$284,Z$1) -> 6 | AA96: =VLOOKUP(DropDownList!$B$24,CntyQryCensus!$A$266:$DA$284,AA$1) -> 4 | AB96: =VLOOKUP(DropDownList!$B$24,CntyQryCensus!$A$266:$DA$284,AB$1) -> 4 | AC96: =VLOOKUP(DropDownList!$B$24,CntyQryCensus!$A$266:$DA$284,AC$1) -> 0 | AD96: =VLOOKUP(DropDownList!$B$24,CntyQryCensus!$A$266:$DA$284,AD$1) -> 144 | AE96: =VLOOKUP(DropDownList!$B$24,CntyQryCensus!$A$266:$DA$284,AE$1) -> 1516 | AF96: =VLOOKUP(DropDownList!$B$24,CntyQryCensus!$A$266:$DA$284,AF$1) -> 185 | AG96: =VLOOKUP(DropDownList!$B$24,CntyQryCensus!$A$266:$DA$284,AG$1) -> 49 | AH96: =VLOOKUP(DropDownList!$B$24,CntyQryCensus!$A$266:$DA$284,AH$1) -> 18 | AI96: =VLOOKUP(DropDownList!$B$24,CntyQryCensus!$A$266:$DA$284,AI$1) -> 9 | AJ96: =VLOOKUP(DropDownList!$B$24,CntyQryCensus!$A$266:$DA$284,AJ$1) -> 0 | AK96: =VLOOKUP(DropDownList!$B$24,CntyQryCensus!$A$266:$DA$284,AK$1) -> 0 | AL96: =VLOOKUP(DropDownList!$B$24,CntyQryCensus!$A$266:$DA$284,AL$1) -> 109 | AM96: =VLOOKUP(DropDownList!$B$24,CntyQryCensus!$A$266:$DA$284,AM$1) -> 91 | AN96: =VLOOKUP(DropDownList!$B$24,CntyQryCensus!$A$266:$DA$284,AN$1) -> 9 | AO96: =VLOOKUP(DropDownList!$B$24,CntyQryCensus!$A$266:$DA$284,AO$1) -> 82 | AP96: =VLOOKUP(DropDownList!$B$24,CntyQryCensus!$A$266:$DA$284,AP$1) -> 31 | AQ96: =VLOOKUP(DropDownList!$B$24,CntyQryCensus!$A$266:$DA$284,AQ$1) -> 51 | AR96: =VLOOKUP(DropDownList!$B$24,CntyQryCensus!$A$266:$DA$284,AR$1) -> 1240 | AS96: =VLOOKUP(DropDownList!$B$24,CntyQryCensus!$A$266:$DA$284,AS$1) -> 595 | AT96: =VLOOKUP(DropDownList!$B$24,CntyQryCensus!$A$266:$DA$284,AT$1) -> 101 | AU96: =VLOOKUP(DropDownList!$B$24,CntyQryCensus!$A$266:$DA$284,AU$1) -> 23 | AV96: =VLOOKUP(DropDownList!$B$24,CntyQryCensus!$A$266:$DA$284,AV$1) -> 53 | AW96: =VLOOKUP(DropDownList!$B$24,CntyQryCensus!$A$266:$DA$284,AW$1) -> 0 | AX96: =VLOOKUP(DropDownList!$B$24,CntyQryCensus!$A$266:$DA$284,AX$1) -> 0 | AY96: =VLOOKUP(DropDownList!$B$24,CntyQryCensus!$A$266:$DA$284,AY$1) -> 25 | AZ96: =VLOOKUP(DropDownList!$B$24,CntyQryCensus!$A$266:$DA$284,AZ$1) -> 92 | BA96: =VLOOKUP(DropDownList!$B$24,CntyQryCensus!$A$266:$DA$284,BA$1) -> 41 | BB96: =VLOOKUP(DropDownList!$B$24,CntyQryCensus!$A$266:$DA$284,BB$1) -> 51 | BC96: =VLOOKUP(DropDownList!$B$24,CntyQryCensus!$A$266:$DA$284,BC$1) -> 402 | BD96: =VLOOKUP(DropDownList!$B$24,CntyQryCensus!$A$266:$DA$284,BD$1) -> 3019 | BE96: =VLOOKUP(DropDownList!$B$24,CntyQryCensus!$A$266:$DA$284,BE$1) -> 462 | BF96: =VLOOKUP(DropDownList!$B$24,CntyQryCensus!$A$266:$DA$284,BF$1) -> 25 | BG96: =VLOOKUP(DropDownList!$B$24,CntyQryCensus!$A$266:$DA$284,BG$1) -> 0 | BH96: =VLOOKUP(DropDownList!$B$24,CntyQryCensus!$A$266:$DA$284,BH$1) -> 0 | BI96: =VLOOKUP(DropDownList!$B$24,CntyQryCensus!$A$266:$DA$284,BI$1) -> 25 | BJ96: =VLOOKUP(DropDownList!$B$24,CntyQryCensus!$A$266:$DA$284,BJ$1) -> 0 | BK96: =VLOOKUP(DropDownList!$B$24,CntyQryCensus!$A$266:$DA$284,BK$1) -> 0 | BL96: =VLOOKUP(DropDownList!$B$24,CntyQryCensus!$A$266:$DA$284,BL$1) -> 0 | BM96: =VLOOKUP(DropDownList!$B$24,CntyQryCensus!$A$266:$DA$284,BM$1) -> 0 | BN96: =VLOOKUP(DropDownList!$B$24,CntyQryCensus!$A$266:$DA$284,BN$1) -> 437 | BO96: =VLOOKUP(DropDownList!$B$24,CntyQryCensus!$A$266:$DA$284,BO$1) -> 168 | BP96: =VLOOKUP(DropDownList!$B$24,CntyQryCensus!$A$266:$DA$284,BP$1) -> 37 | BQ96: =VLOOKUP(DropDownList!$B$24,CntyQryCensus!$A$266:$DA$284,BQ$1) -> 0 | BR96: =VLOOKUP(DropDownList!$B$24,CntyQryCensus!$A$266:$DA$284,BR$1) -> 0 | BS96: =VLOOKUP(DropDownList!$B$24,CntyQryCensus!$A$266:$DA$284,BS$1) -> 0 | BT96: =VLOOKUP(DropDownList!$B$24,CntyQryCensus!$A$266:$DA$284,BT$1) -> 0 | BU96: =VLOOKUP(DropDownList!$B$24,CntyQryCensus!$A$266:$DA$284,BU$1) -> 10 | BV96: =VLOOKUP(DropDownList!$B$24,CntyQryCensus!$A$266:$DA$284,BV$1) -> 27 | BW96: =VLOOKUP(DropDownList!$B$24,CntyQryCensus!$A$266:$DA$284,BW$1) -> 0 | BX96: =VLOOKUP(DropDownList!$B$24,CntyQryCensus!$A$266:$DA$284,BX$1) -> 0 | BY96: =VLOOKUP(DropDownList!$B$24,CntyQryCensus!$A$266:$DA$284,BY$1) -> 0 | BZ96: =VLOOKUP(DropDownList!$B$24,CntyQryCensus!$A$266:$DA$284,BZ$1) -> 0 | CA96: =VLOOKUP(DropDownList!$B$24,CntyQryCensus!$A$266:$DA$284,CA$1) -> 0 | CB96: =VLOOKUP(DropDownList!$B$24,CntyQryCensus!$A$266:$DA$284,CB$1) -> 131 | CC96: =VLOOKUP(DropDownList!$B$24,CntyQryCensus!$A$266:$DA$284,CC$1) -> 1581 | CD96: =VLOOKUP(DropDownList!$B$24,CntyQryCensus!$A$266:$DA$284,CD$1) -> 85 | CE96: =VLOOKUP(DropDownList!$B$24,CntyQryCensus!$A$266:$DA$284,CE$1) -> 6 | CF96: =VLOOKUP(DropDownList!$B$24,CntyQryCensus!$A$266:$DA$284,CF$1) -> 24 | CG96: =VLOOKUP(DropDownList!$B$24,CntyQryCensus!$A$266:$DA$284,CG$1) -> 0 | CH96: =VLOOKUP(DropDownList!$B$24,CntyQryCensus!$A$266:$DA$284,CH$1) -> 0 | CI96: =VLOOKUP(DropDownList!$B$24,CntyQryCensus!$A$266:$DA$284,CI$1) -> 0 | CJ96: =VLOOKUP(DropDownList!$B$24,CntyQryCensus!$A$266:$DA$284,CJ$1) -> 55 | CK96: =VLOOKUP(DropDownList!$B$24,CntyQryCensus!$A$266:$DA$284,CK$1) -> 90 | CL96: =VLOOKUP(DropDownList!$B$24,CntyQryCensus!$A$266:$DA$284,CL$1) -> 6 | CM96: =VLOOKUP(DropDownList!$B$24,CntyQryCensus!$A$266:$DA$284,CM$1) -> 84 | CN96: =VLOOKUP(DropDownList!$B$24,CntyQryCensus!$A$266:$DA$284,CN$1) -> 27 | CO96: =VLOOKUP(DropDownList!$B$24,CntyQryCensus!$A$266:$DA$284,CO$1) -> 57 | CP96: =VLOOKUP(DropDownList!$B$24,CntyQryCensus!$A$266:$DA$284,CP$1) -> 1406 | CQ96: =VLOOKUP(DropDownList!$B$24,CntyQryCensus!$A$266:$DA$284,CQ$1) -> 808 | CR96: =VLOOKUP(DropDownList!$B$24,CntyQryCensus!$A$266:$DA$284,CR$1) -> 199 | CS96: =VLOOKUP(DropDownList!$B$24,CntyQryCensus!$A$266:$DA$284,CS$1) -> 44 | CT96: =VLOOKUP(DropDownList!$B$24,CntyQryCensus!$A$266:$DA$284,CT$1) -> 121 | CU96: =VLOOKUP(DropDownList!$B$24,CntyQryCensus!$A$266:$DA$284,CU$1) -> 8 | CV96: =VLOOKUP(DropDownList!$B$24,CntyQryCensus!$A$266:$DA$284,CV$1) -> 0 | CW96: =VLOOKUP(DropDownList!$B$24,CntyQryCensus!$A$266:$DA$284,CW$1) -> 26 | CX96: =VLOOKUP(DropDownList!$B$24,CntyQryCensus!$A$266:$DA$284,CX$1) -> 130 | CY96: =VLOOKUP(DropDownList!$B$24,CntyQryCensus!$A$266:$DA$284,CY$1) -> 52 | CZ96: =VLOOKUP(DropDownList!$B$24,CntyQryCensus!$A$266:$DA$284,CZ$1) -> 78 | DA96: =VLOOKUP(DropDownList!$B$24,CntyQryCensus!$A$266:$DA$284,DA$1) -> 479
A105: ACS | B105: 2 | C105: =B105+1 -> 3 | D105: =C105+1 -> 4 | E105: 5 | F105: 6 | G105: 7 | H105: 8 | I105: 9 | J105: 10 | K105: 11 | L105: =K105+1 -> 12 | M105: 13 | N105: 14 | O105: 15 | P105: =O105+1 -> 16 | Q105: 17 | R105: 18 | S105: 19 | T105: 20 | U105: 21 | V105: 22 | W105: 23 | X105: 24 | Y105: 25 | Z105: 26 | AA105: 27 | AB105: 28 | AC105: 29 | AD105: 30 | AE105: 31 | AF105: 32 | AG105: 33 | AH105: 34 | AI105: 35 | AJ105: 36 | AK105: 37 | AL105: 38 | AM105: 39 | AN105: 40 | AO105: 41 | AP105: 42 | AQ105: 43 | AR105: 44 | AS105: 45 | AT105: 46 | AU105: 47 | AV105: 48 | AW105: 49 | AX105: 50 | AY105: 51 | AZ105: 52 | BA105: 53 | BB105: 54 | BC105: 55 | BD105: 56 | BE105: 57 | BF105: 58 | BG105: 59 | BH105: 60 | BI105: 61 | BJ105: 62 | BK105: 63 | BL105: 64 | BM105: 65 | BN105: 66 | BO105: 67 | BP105: =BO105+1 -> 68 | BQ105: 69 | BR105: 70 | BS105: 71 | BT105: 72 | BU105: 73 | BV105: 74 | BW105: 75 | BX105: 76 | BY105: 77 | BZ105: 78 | CA105: 79 | CB105: 80 | CC105: 81 | CD105: 82 | CE105: 83 | CF105: 84 | CG105: 85 | CH105: 86 | CI105: 87 | CJ105: 88 | CK105: 89 | CL105: 90 | CM105: 91 | CN105: 92 | CO105: 93 | CP105: 94 | CQ105: 95 | CR105: 96 | CS105: 97 | CT105: 98 | CU105: 99 | CV105: 100 | CW105: 101 | CX105: 102 | CY105: 103 | CZ105: 104 | DA105: 105 | DB105: 106 | DC105: 107 | DD105: 108 | DE105: 109 | DF105: 110 | DG105: 111 | DH105: 112 | DI105: 113 | DJ105: 114 | DK105: 115 | DL105: 116 | DM105: 117 | DN105: 118 | DO105: 119 | DP105: 120 | DQ105: 121 | DR105: 122 | DS105: 123 | DT105: 124 | DU105: 125
A106: Househould Data (Housing Unit Type)
A107: NAME | B107: TotalHU | C107: ="MOE "&B107 -> MOE TotalHU | D107: TotalOccHU | E107: ="MOE "&D107 -> MOE TotalOccHU | F107: TotalOwnerOccUn | G107: ="MOE "&F107 -> MOE TotalOwnerOccUn | H107: TotalRenterOccn | I107: ="MOE "&H107 -> MOE TotalRenterOccn | J107: TotalVacantUntis | K107: ="MOE "&J107 -> MOE TotalVacantUntis | L107: VacantUnitsForRent | M107: ="MOE "&L107 -> MOE VacantUnitsForRent | N107: VacantUnitRentedNotOcc | O107: ="MOE "&N107 -> MOE VacantUnitRentedNotOcc | P107: VacantUnitForSale | Q107: ="MOE "&P107 -> MOE VacantUnitForSale | R107: VacantUnitSoldNotOcc | S107: ="MOE "&R107 -> MOE VacantUnitSoldNotOcc | T107: VacantUnitSeasonalRec | U107: ="MOE "&T107 -> MOE VacantUnitSeasonalRec | V107: TotalPopInHousingUnits | W107: ="MOE "&V107 -> MOE TotalPopInHousingUnits | X107: OwnerOccPopHousingUnits | Y107: ="MOE "&X107 -> MOE OwnerOccPopHousingUnits | Z107: RenterOccPopHousingUnits | AA107: ="MOE "&Z107 -> MOE RenterOccPopHousingUnits | AB107: TotalUntis | AC107: ="MOE "&AB107 -> MOE TotalUntis | AD107: TotalOwnerOccUnits | AE107: ="MOE "&AD107 -> MOE TotalOwnerOccUnits | AF107: SigFamOwnerOcc | AG107: ="MOE "&AF107 -> MOE SigFamOwnerOcc | AH107: MultiFamOwnerOcc | AI107: ="MOE "&AH107 -> MOE MultiFamOwnerOcc | AJ107: MobileOwnerOcc | AK107: ="MOE "&AJ107 -> MOE MobileOwnerOcc | AL107: TotalRenterOccUnits | AM107: ="MOE "&AL107 -> MOE TotalRenterOccUnits | AN107: SigFamRenterOcc | AO107: ="MOE "&AN107 -> MOE SigFamRenterOcc | AP107: MultiFamRenterOcc | AQ107: ="MOE "&AP107 -> MOE MultiFamRenterOcc | AR107: MobileRenterOcc | AS107: ="MOE "&AR107 -> MOE MobileRenterOcc | AT107: TotalSigFamilyUnits | AU107: ="MOE "&AT107 -> MOE TotalSigFamilyUnits | AV107: TotalMultiFamilyUnits | AW107: ="MOE "&AV107 -> MOE TotalMultiFamilyUnits | AX107: TotalMobileUnits | AY107: ="MOE "&AX107 -> MOE TotalMobileUnits | AZ107: YrHouseBuilt2014Later | BA107: ="MOE "&AZ107 -> MOE YrHouseBuilt2014Later | BB107: YrHouseBuilt2010-2013 | BC107: ="MOE "&BB107 -> MOE YrHouseBuilt2010-2013 | BD107: YrHouseBuilt2000-2009 | BE107: ="MOE "&BD107 -> MOE YrHouseBuilt2000-2009 | BF107: YrHouseBuilt1990-1999 | BG107: ="MOE "&BF107 -> MOE YrHouseBuilt1990-1999 | BH107: YrHouseBuilt1980-1989 | BI107: ="MOE "&BH107 -> MOE YrHouseBuilt1980-1989 | BJ107: YrHouseBuilt1970-1979 | BK107: ="MOE "&BJ107 -> MOE YrHouseBuilt1970-1979 | BL107: YrHouseBuilt1960-1969 | BM107: ="MOE "&BL107 -> MOE YrHouseBuilt1960-1969 | BN107: YrHouseBuilt1950-1959 | BO107: ="MOE "&BN107 -> MOE YrHouseBuilt1950-1959 | BP107: YrHouseBuilt1940-1949 | BQ107: ="MOE "&BP107 -> MOE YrHouseBuilt1940-1949 | BR107: YrHouseBuilt1939orEarlier | BS107: ="MOE "&BR107 -> MOE YrHouseBuilt1939orEarlier | BT107: NoBedrooms | BU107: ="MOE "&BT107 -> MOE NoBedrooms | BV107: 1Bedroom | BW107: ="MOE "&BV107 -> MOE 1Bedroom | BX107: 2Bedroom | BY107: ="MOE "&BX107 -> MOE 2Bedroom | BZ107: 3Bedroom | CA107: ="MOE "&BZ107 -> MOE 3Bedroom | CB107: 4+Bedroom | CC107: ="MOE "&CB107 -> MOE 4+Bedroom
A108: =VLOOKUP(DropDownList!$B$24,CntyQuery!$A$70:$CF$88,A$1) -> Wolfeboro | B108: 4285 | C108: 287 | D108: 2787 | E108: 260 | F108: 2165 | G108: 270 | H108: 622 | I108: 231 | J108: 1498 | K108: 272 | L108: 0 | M108: 17 | N108: 0 | O108: 17 | P108: 54 | Q108: 86 | R108: 54 | S108: 87 | T108: 1375 | U108: 251 | V108: 6332 | W108: 19 | X108: 5299 | Y108: 400 | Z108: 1033 | AA108: 401 | AB108: 2787 | AC108: 260 | AD108: 2165 | AE108: 270 | AF108: 1801 | AG108: 283 | AH108: 203 | AI108: 109.4531863 | AJ108: 161 | AK108: 135.0740538 | AL108: 622 | AM108: 231 | AN108: 257 | AO108: 130 | AP108: 344 | AQ108: 200.7187086 | AR108: 21 | AS108: 36.23534186 | AT108: 3434 | AU108: 374 | AV108: 634 | AW108: 254.5996858 | AX108: 217 | AY108: 144.0069443 | AZ108: 0 | BA108: 17 | BB108: 138 | BC108: 84 | BD108: 526 | BE108: 192 | BF108: 681 | BG108: 234 | BH108: 1013 | BI108: 263 | BJ108: 458 | BK108: 218 | BL108: 312 | BM108: 138 | BN108: 112 | BO108: 96 | BP108: 218 | BQ108: 135 | BR108: 827 | BS108: 276 | BT108: 122 | BU108: 88 | BV108: 287 | BW108: 147 | BX108: 1073 | BY108: 267 | BZ108: 1883 | CA108: 289 | CB108: 920 | CC108: 281.4409352
A110: Disability Data
A111: NAME | B111: TotalPop | C111: ="MOE "&B111 -> MOE TotalPop | D111: PopUnder 5 years: | E111: ="MOE "&D111 -> MOE PopUnder 5 years: | F111: =D$111&"-WithDisability" -> PopUnder 5 years:-WithDisability | G111: ="MOE "&F111 -> MOE PopUnder 5 years:-WithDisability | H111: =D111&"-NoDisability" -> PopUnder 5 years:-NoDisability | I111: ="MOE "&H111 -> MOE PopUnder 5 years:-NoDisability | J111: PopUnder 5 to 17years: | K111: ="MOE "&J111 -> MOE PopUnder 5 to 17years: | L111: =J$111&"-WithDisability" -> PopUnder 5 to 17years:-WithDisability | M111: ="MOE "&L111 -> MOE PopUnder 5 to 17years:-WithDisability | N111: =J111&"-NoDisability" -> PopUnder 5 to 17years:-NoDisability | O111: ="MOE "&N111 -> MOE PopUnder 5 to 17years:-NoDisability | P111: PopUnder 18 to 34 years: | Q111: ="MOE "&P111 -> MOE PopUnder 18 to 34 years: | R111: =P$111&"-WithDisability" -> PopUnder 18 to 34 years:-WithDisability | S111: ="MOE "&R111 -> MOE PopUnder 18 to 34 years:-WithDisability | T111: =P111&"-NoDisability" -> PopUnder 18 to 34 years:-NoDisability | U111: ="MOE "&T111 -> MOE PopUnder 18 to 34 years:-NoDisability | V111: Pop 35 years to 64: | W111: ="MOE "&V111 -> MOE Pop 35 years to 64: | X111: =$V$111&"-WithDisability" -> Pop 35 years to 64:-WithDisability | Y111: ="MOE "&X111 -> MOE Pop 35 years to 64:-WithDisability | Z111: =$V$111&"-NoDisability" -> Pop 35 years to 64:-NoDisability | AA111: ="MOE "&Z111 -> MOE Pop 35 years to 64:-NoDisability | AB111: Pop 65 years to 74: | AC111: ="MOE "&AB111 -> MOE Pop 65 years to 74: | AD111: =$AB$111&"-WithDisability" -> Pop 65 years to 74:-WithDisability | AE111: ="MOE "&AD111 -> MOE Pop 65 years to 74:-WithDisability | AF111: =$AB$111&"-NoDisability" -> Pop 65 years to 74:-NoDisability | AG111: ="MOE "&AF111 -> MOE Pop 65 years to 74:-NoDisability | AH111: Pop 75 and older: | AI111: ="MOE "&AH111 -> MOE Pop 75 and older: | AJ111: =$AH$111&"-WithDisability" -> Pop 75 and older:-WithDisability | AK111: ="MOE "&AJ111 -> MOE Pop 75 and older:-WithDisability | AL111: =$AH$111&"-NoDisability" -> Pop 75 and older:-NoDisability | AM111: ="MOE "&AL111 -> MOE Pop 75 and older:-NoDisability | AN111: TotalPopUnder5_HearingDisability | AO111: ="MOE "&AN111 -> MOE TotalPopUnder5_HearingDisability | AP111: TotalUnder5_HearingDisability | AQ111: ="MOE "&AP111 -> MOE TotalUnder5_HearingDisability | AR111: TotalPop18To34_HearingDisability | AS111: ="MOE "&AR111 -> MOE TotalPop18To34_HearingDisability | AT111: TotalPop35To64_HearingDisability | AU111: ="MOE "&AT111 -> MOE TotalPop35To64_HearingDisability | AV111: TotalPop65To74_HearingDisability | AW111: ="MOE "&AV111 -> MOE TotalPop65To74_HearingDisability | AX111: TotalPop75andOlder_HearingDisability | AY111: ="MOE "&AX111 -> MOE TotalPop75andOlder_HearingDisability | AZ111: TotalUnder5_VisionDisability | BA111: ="MOE "&AZ111 -> MOE TotalUnder5_VisionDisability | BB111: Total5To17_VisionDisability | BC111: ="MOE "&BB111 -> MOE Total5To17_VisionDisability | BD111: Total18To34_VisionDisability | BE111: ="MOE "&BD111 -> MOE Total18To34_VisionDisability | BF111: Total35To64_VisionDisability | BG111: ="MOE "&BF111 -> MOE Total35To64_VisionDisability | BH111: Total65To74_VisionDisability | BI111: ="MOE "&BH111 -> MOE Total65To74_VisionDisability | BJ111: Total75andOlder_VisionDisability | BK111: ="MOE "&BJ111 -> MOE Total75andOlder_VisionDisability | BL111: Total5To17_CongnitiveDisability | BM111: ="MOE "&BL111 -> MOE Total5To17_CongnitiveDisability | BN111: Total18To34_CongnitiveDisability | BO111: ="MOE "&BN111 -> MOE Total18To34_CongnitiveDisability | BP111: Total35To64_CongnitiveDisability | BQ111: ="MOE "&BP111 -> MOE Total35To64_CongnitiveDisability | BR111: Total65To74_CongnitiveDisability | BS111: ="MOE "&BR111 -> MOE Total65To74_CongnitiveDisability | BT111: Total75andOlder_CongnitiveDisability | BU111: ="MOE "&BT111 -> MOE Total75andOlder_CongnitiveDisability | BV111: Total5To17_AmbulatoryDisability | BW111: ="MOE "&BV111 -> MOE Total5To17_AmbulatoryDisability | BX111: Total18To34_AmbulatoryDisability | BY111: ="MOE "&BX111 -> MOE Total18To34_AmbulatoryDisability | BZ111: Total35To64_AmbulatoryDisability | CA111: ="MOE "&BZ111 -> MOE Total35To64_AmbulatoryDisability | CB111: Total65To74_AmbulatoryDisability | CC111: ="MOE "&CB111 -> MOE Total65To74_AmbulatoryDisability | CD111: Total75andOlder_AmbulatoryDisability | CE111: ="MOE "&CD111 -> MOE Total75andOlder_AmbulatoryDisability | CF111: Total5To17_SelfCareDisability | CG111: ="MOE "&CF111 -> MOE Total5To17_SelfCareDisability | CH111: Total18To34_SelfCareDisability | CI111: ="MOE "&CH111 -> MOE Total18To34_SelfCareDisability | CJ111: Total35To64_SelfCareDisability | CK111: ="MOE "&CJ111 -> MOE Total35To64_SelfCareDisability | CL111: Total65To74_SelfCareDisability | CM111: ="MOE "&CL111 -> MOE Total65To74_SelfCareDisability | CN111: Total75andOlder_SelfCareDisability | CO111: ="MOE "&CN111 -> MOE Total75andOlder_SelfCareDisability | CP111: Total18To34_IndependantLivingDisability | CQ111: ="MOE "&CP111 -> MOE Total18To34_IndependantLivingDisability | CR111: Total35To64_IndependantLivingDisability | CS111: ="MOE "&CR111 -> MOE Total35To64_IndependantLivingDisability | CT111: Total65To74_IndependantLivingDisability | CU111: ="MOE "&CT111 -> MOE Total65To74_IndependantLivingDisability | CV111: Total75andOlder_IndependantLivingDisability | CW111: ="MOE "&CV111 -> MOE Total75andOlder_IndependantLivingDisability | CX111: TotalUnder18_OneDisability | CY111: ="MOE "&CX111 -> MOE TotalUnder18_OneDisability | CZ111: TotalUnder18_TwoDisability | DA111: ="MOE "&CZ111 -> MOE TotalUnder18_TwoDisability | DB111: 18to6YearWIthOneDisability | DC111: ="MOE "&DB111 -> MOE 18to6YearWIthOneDisability | DD111: 18to64YearWIthTwoOrMoreDisability | DE111: ="MOE "&DD111 -> MOE 18to64YearWIthTwoOrMoreDisability | DF111: Over64YearsWIthOneDisability | DG111: ="MOE "&DF111 -> MOE Over64YearsWIthOneDisability | DH111: Over64YearsWIthTwoOrMoreDisability | DI111: ="MOE "&DH111 -> MOE Over64YearsWIthTwoOrMoreDisability
A112: =VLOOKUP(DropDownList!$B$24,CntyQuery!$A$70:$CF$88,A$1) -> Wolfeboro | B112: 6383 | C112: 16 | D112: 26 | E112: 38.01315562 | F112: 0 | G112: 24.04163056 | H112: 26 | I112: 38.01315562 | J112: 817 | K112: 195.6450868 | L112: 72 | M112: 72.47068373 | N112: 745 | O112: 208.85641 | P112: 657 | Q112: 280.2320467 | R112: 29 | S112: 56.61271942 | T112: 628 | U112: 277.7138815 | V112: 2721 | W112: 359.3104507 | X112: 316 | Y112: 174.6224499 | Z112: 2405 | AA112: 355.0281679 | AB112: 983 | AC112: 239.0083681 | AD112: 151 | AE112: 116.2755348 | AF112: 832 | AG112: 225.2221126 | AH112: 1179 | AI112: 215.2324325 | AJ112: 532 | AK112: 212.1367483 | AL112: 647 | AM112: 163.9329131 | AN112: 0 | AO112: 24.04163056 | AP112: 0 | AQ112: 24.04163056 | AR112: 0 | AS112: 24.04163056 | AT112: 20 | AU112: 36.23534186 | AV112: 101 | AW112: 109.1100362 | AX112: 338 | AY112: 155.4670383 | AZ112: 0 | BA112: 24.04163056 | BB112: 0 | BC112: 24.04163056 | BD112: 0 | BE112: 24.04163056 | BF112: 59 | BG112: 94.5409964 | BH112: 20 | BI112: 31.06444913 | BJ112: 206 | BK112: 137.7679208 | BL112: 72 | BM112: 72.47068373 | BN112: 29 | BO112: 56.61271942 | BP112: 285 | BQ112: 168.8342382 | BR112: 0 | BS112: 24.04163056 | BT112: 206 | BU112: 129.8499134 | BV112: 0 | BW112: 22.627417 | BX112: 30 | BY112: 41.23105626 | BZ112: 67 | CA112: 56.79788728 | CB112: 138 | CC112: 91.21403401 | CD112: 87 | CE112: 54.40588203 | CF112: 13 | CG112: 24.04163056 | CH112: 18 | CI112: 51.86520992 | CJ112: 213 | CK112: 164.7573974 | CL112: 0 | CM112: 24.04163056 | CN112: 165 | CO112: 103.9422917 | CP112: 11 | CQ112: 25.49509757 | CR112: 154 | CS112: 137.0583817 | CT112: 4 | CU112: 18.38477631 | CV112: 209 | CW112: 124.4829306 | CX112: 59 | CY112: 59 | CZ112: 13 | DA112: 17 | DB112: 103 | DC112: 79 | DD112: 242 | DE112: 156 | DF112: 275 | DG112: 149 | DH112: 408 | DI112: 184
A114: Househould Income By Age
A115: NAME | B115: TotalHouseholds | C115: ="MOE "&B115 -> MOE TotalHouseholds | D115: HHInc<10K | E115: ="MOE "&D115 -> MOE HHInc<10K | F115: HHInc10to15K | G115: ="MOE "&F115 -> MOE HHInc10to15K | H115: HHInc15to20K | I115: ="MOE "&H115 -> MOE HHInc15to20K | J115: HHInc20to25K | K115: ="MOE "&J115 -> MOE HHInc20to25K | L115: HHInc25to30K | M115: ="MOE "&L115 -> MOE HHInc25to30K | N115: HHInc30to35K | O115: ="MOE "&N115 -> MOE HHInc30to35K | P115: HHInc35to40K | Q115: ="MOE "&P115 -> MOE HHInc35to40K | R115: HHInc40to45K | S115: ="MOE "&R115 -> MOE HHInc40to45K | T115: HHInc45to50K | U115: ="MOE "&T115 -> MOE HHInc45to50K | V115: HHInc50to60K | W115: ="MOE "&V115 -> MOE HHInc50to60K | X115: HHInc60to75K | Y115: ="MOE "&X115 -> MOE HHInc60to75K | Z115: HHInc75to100K | AA115: ="MOE "&Z115 -> MOE HHInc75to100K | AB115: HHInc100to125K | AC115: ="MOE "&AB115 -> MOE HHInc100to125K | AD115: HHInc125to150K | AE115: ="MOE "&AD115 -> MOE HHInc125to150K | AF115: HHInc150to200K | AG115: ="MOE "&AF115 -> MOE HHInc150to200K | AH115: HHInc>200K | AI115: ="MOE "&AH115 -> MOE HHInc>200K | AJ115: TotalHH | AK115: ="MOE "&AJ115 -> MOE TotalHH | AL115: HHAgeHHUnder25yrs | AM115: ="MOE "&AL115 -> MOE HHAgeHHUnder25yrs | AN115: HHAgeHH<25HHInc<10K | AO115: ="MOE "&AN115 -> MOE HHAgeHH<25HHInc<10K | AP115: HHAgeHH<25HHInc10to15K | AQ115: ="MOE "&AP115 -> MOE HHAgeHH<25HHInc10to15K | AR115: HHAgeHH<25HHInc15to20K | AS115: ="MOE "&AR115 -> MOE HHAgeHH<25HHInc15to20K | AT115: HHAgeHH<25HHInc20to25K | AU115: ="MOE "&AT115 -> MOE HHAgeHH<25HHInc20to25K | AV115: HHAgeHH<25HHInc25to30K | AW115: ="MOE "&AV115 -> MOE HHAgeHH<25HHInc25to30K | AX115: HHAgeHH<25HHInc30to35K | AY115: ="MOE "&AX115 -> MOE HHAgeHH<25HHInc30to35K | AZ115: HHAgeHH<25HHInc35to40K | BA115: ="MOE "&AZ115 -> MOE HHAgeHH<25HHInc35to40K | BB115: HHAgeHH<25HHInc40to45K | BC115: ="MOE "&BB115 -> MOE HHAgeHH<25HHInc40to45K | BD115: HHAgeHH<25HHInc45to50K | BE115: ="MOE "&BD115 -> MOE HHAgeHH<25HHInc45to50K | BF115: HHAgeHH<25HHInc50to60K | BG115: ="MOE "&BF115 -> MOE HHAgeHH<25HHInc50to60K | BH115: HHAgeHH<25HHInc60to75K | BI115: ="MOE "&BH115 -> MOE HHAgeHH<25HHInc60to75K | BJ115: HHAgeHH<25HHInc75to100K | BK115: ="MOE "&BJ115 -> MOE HHAgeHH<25HHInc75to100K | BL115: HHAgeHH<25HHInc100to125K | BM115: ="MOE "&BL115 -> MOE HHAgeHH<25HHInc100to125K | BN115: HHAgeHH<25HHInc125to150K | BO115: ="MOE "&BN115 -> MOE HHAgeHH<25HHInc125to150K | BP115: HHAgeHH<25HHInc150to200K | BQ115: ="MOE "&BP115 -> MOE HHAgeHH<25HHInc150to200K | BR115: HHAge<25HHInc>200K | BS115: ="MOE "&BR115 -> MOE HHAge<25HHInc>200K | BT115: HHAgeHH25to44yrs | BU115: ="MOE "&BT115 -> MOE HHAgeHH25to44yrs | BV115: HHAgeHH25To44yrsHHInc<10K | BW115: ="MOE "&BV115 -> MOE HHAgeHH25To44yrsHHInc<10K | BX115: HHAgeHH25To44yrsHHInc10to15K | BY115: ="MOE "&BX115 -> MOE HHAgeHH25To44yrsHHInc10to15K | BZ115: HHAgeHH25To44yrsHHInc15to20K | CA115: ="MOE "&BZ115 -> MOE HHAgeHH25To44yrsHHInc15to20K | CB115: HHAgeHH25To44yrsHHInc20to25K | CC115: ="MOE "&CB115 -> MOE HHAgeHH25To44yrsHHInc20to25K | CD115: HHAgeHH25To44yrsHHInc25to30K | CE115: ="MOE "&CD115 -> MOE HHAgeHH25To44yrsHHInc25to30K | CF115: HHAgeHH25To44yrsHHInc30to35K | CG115: ="MOE "&CF115 -> MOE HHAgeHH25To44yrsHHInc30to35K | CH115: HHAgeHH25To44yrsHHInc35to40K | CI115: ="MOE "&CH115 -> MOE HHAgeHH25To44yrsHHInc35to40K | CJ115: HHAgeHH25To44yrsHHInc40to45K | CK115: ="MOE "&CJ115 -> MOE HHAgeHH25To44yrsHHInc40to45K | CL115: HHAgeHH25To44yrsHHInc45to50K | CM115: ="MOE "&CL115 -> MOE HHAgeHH25To44yrsHHInc45to50K | CN115: HHAgeHH25To44yrsHHInc50to60K | CO115: ="MOE "&CN115 -> MOE HHAgeHH25To44yrsHHInc50to60K | CP115: HHAgeHH25To44yrsHHInc60to75K | CQ115: ="MOE "&CP115 -> MOE HHAgeHH25To44yrsHHInc60to75K | CR115: HHAgeHH25To44yrsHHInc75to100K | CS115: ="MOE "&CR115 -> MOE HHAgeHH25To44yrsHHInc75to100K | CT115: HHAgeHH25To44yrsHHInc100to125K | CU115: ="MOE "&CT115 -> MOE HHAgeHH25To44yrsHHInc100to125K | CV115: HHAgeHH25To44yrsHHInc125to150K | CW115: ="MOE "&CV115 -> MOE HHAgeHH25To44yrsHHInc125to150K | CX115: HHAgeHH25To44yrsHHInc150to200K | CY115: ="MOE "&CX115 -> MOE HHAgeHH25To44yrsHHInc150to200K | CZ115: HHAge25To44yrsHHInc>200K | DA115: ="MOE "&CZ115 -> MOE HHAge25To44yrsHHInc>200K | DB115: HHAgeHH45To64yrs | DC115: ="MOE "&DB115 -> MOE HHAgeHH45To64yrs | DD115: HHAgeHH45To64yrsHHInc<10K | DE115: ="MOE "&DD115 -> MOE HHAgeHH45To64yrsHHInc<10K | DF115: HHAgeHH45To64yrsHHInc10to15K | DG115: ="MOE "&DF115 -> MOE HHAgeHH45To64yrsHHInc10to15K | DH115: HHAgeHH45To64yrsHHInc15to20K | DI115: ="MOE "&DH115 -> MOE HHAgeHH45To64yrsHHInc15to20K | DJ115: HHAgeHH45To64yrsHHInc20to25K | DK115: ="MOE "&DJ115 -> MOE HHAgeHH45To64yrsHHInc20to25K | DL115: HHAgeHH45To64yrsHHInc25to30K | DM115: ="MOE "&DL115 -> MOE HHAgeHH45To64yrsHHInc25to30K | DN115: HHAgeHH45To64yrsHHInc30to35K | DO115: ="MOE "&DN115 -> MOE HHAgeHH45To64yrsHHInc30to35K | DP115: HHAgeHH45To64yrsHHInc35to40K | DQ115: ="MOE "&DP115 -> MOE HHAgeHH45To64yrsHHInc35to40K | DR115: HHAgeHH45To64yrsHHInc40to45K | DS115: ="MOE "&DR115 -> MOE HHAgeHH45To64yrsHHInc40to45K | DT115: HHAgeHH45To64yrsHHInc45to50K | DU115: ="MOE "&DT115 -> MOE HHAgeHH45To64yrsHHInc45to50K | DV115: HHAgeHH45To64yrsHHInc50to60K | DW115: ="MOE "&DV115 -> MOE HHAgeHH45To64yrsHHInc50to60K | DX115: HHAgeHH45To64yrsHHInc60to75K | DY115: ="MOE "&DX115 -> MOE HHAgeHH45To64yrsHHInc60to75K | DZ115: HHAgeHH45To64yrsHHInc75to100K | EA115: ="MOE "&DZ115 -> MOE HHAgeHH45To64yrsHHInc75to100K | EB115: HHAgeHH45To64yrsHHInc100to125K | EC115: ="MOE "&EB115 -> MOE HHAgeHH45To64yrsHHInc100to125K | ED115: HHAgeHH45To64yrsHHInc125to150K | EE115: ="MOE "&ED115 -> MOE HHAgeHH45To64yrsHHInc125to150K | EF115: HHAgeHH45To64yrsHHInc150to200K | EG115: ="MOE "&EF115 -> MOE HHAgeHH45To64yrsHHInc150to200K | EH115: HHAge45To64yrsHHInc>200K | EI115: ="MOE "&EH115 -> MOE HHAge45To64yrsHHInc>200K | EJ115: HHAgeHH65yrsorOlder | EK115: ="MOE "&EJ115 -> MOE HHAgeHH65yrsorOlder | EL115: HHAgeHH65yrsorOlderHHInc<10K | EM115: ="MOE "&EL115 -> MOE HHAgeHH65yrsorOlderHHInc<10K | EN115: HHAgeHH65yrsorOlderHHInc10to15K | EO115: ="MOE "&EN115 -> MOE HHAgeHH65yrsorOlderHHInc10to15K | EP115: HHAgeHH65yrsorOlderHHInc15to20K | EQ115: ="MOE "&EP115 -> MOE HHAgeHH65yrsorOlderHHInc15to20K | ER115: HHAgeHH65yrsorOlderHHInc20to25K | ES115: ="MOE "&ER115 -> MOE HHAgeHH65yrsorOlderHHInc20to25K | ET115: HHAgeHH65yrsorOlderHHInc25to30K | EU115: ="MOE "&ET115 -> MOE HHAgeHH65yrsorOlderHHInc25to30K | EV115: HHAgeHH65yrsorOlderHHInc30to35K | EW115: ="MOE "&EV115 -> MOE HHAgeHH65yrsorOlderHHInc30to35K | EX115: HHAgeHH65yrsorOlderHHInc35to40K | EY115: ="MOE "&EX115 -> MOE HHAgeHH65yrsorOlderHHInc35to40K | EZ115: HHAgeHH65yrsorOlderHHInc40to45K | FA115: ="MOE "&EZ115 -> MOE HHAgeHH65yrsorOlderHHInc40to45K | FB115: HHAgeHH65yrsorOlderHHInc45to50K | FC115: ="MOE "&FB115 -> MOE HHAgeHH65yrsorOlderHHInc45to50K | FD115: HHAgeHH65yrsorOlderHHInc50to60K | FE115: ="MOE "&FD115 -> MOE HHAgeHH65yrsorOlderHHInc50to60K | FF115: HHAgeHH65yrsorOlderHHInc60to75K | FG115: ="MOE "&FF115 -> MOE HHAgeHH65yrsorOlderHHInc60to75K | FH115: HHAgeHH65yrsorOlderHHInc75to100K | FI115: ="MOE "&FH115 -> MOE HHAgeHH65yrsorOlderHHInc75to100K | FJ115: HHAgeHH65yrsorOlderHHInc100to125K | FK115: ="MOE "&FJ115 -> MOE HHAgeHH65yrsorOlderHHInc100to125K | FL115: HHAgeHH65yrsorOlderHHInc125to150K | FM115: ="MOE "&FL115 -> MOE HHAgeHH65yrsorOlderHHInc125to150K | FN115: HHAgeHH65yrsorOlderHHInc150to200K | FO115: ="MOE "&FN115 -> MOE HHAgeHH65yrsorOlderHHInc150to200K | FP115: HHAge65yrsorOlderHHInc>200K | FQ115: ="MOE "&FP115 -> MOE HHAge65yrsorOlderHHInc>200K | FR115: MedianHHInc | FS115: ="MOE "&FR115 -> MOE MedianHHInc | FT115: HH under 25 years | FU115: ="MOE "&FT115 -> MOE HH under 25 years | FV115: Householder 25 to 44 years | FW115: ="MOE "&FV115 -> MOE Householder 25 to 44 years | FX115: Householder 45 to 64 years | FY115: ="MOE "&FX115 -> MOE Householder 45 to 64 years | FZ115: Householder 65 years and over | GA115: ="MOE "&FZ115 -> MOE Householder 65 years and over
A116: =VLOOKUP(DropDownList!$B$24,CntyQuery!$A$70:$CF$88,A$1) -> Wolfeboro | B116: 2787 | C116: 260 | D116: 144 | E116: 122 | F116: 173 | G116: 138 | H116: 59 | I116: 74 | J116: 84 | K116: 59 | L116: 87 | M116: 57 | N116: 214 | O116: 150 | P116: 118 | Q116: 110 | R116: 51 | S116: 46 | T116: 158 | U116: 132 | V116: 35 | W116: 40 | X116: 232 | Y116: 115 | Z116: 339 | AA116: 124 | AB116: 352 | AC116: 190 | AD116: 318 | AE116: 171 | AF116: 154 | AG116: 78 | AH116: 269 | AI116: 135 | AJ116: 2787 | AK116: 260 | AL116: 0 | AM116: 17 | AN116: 0 | AO116: 17 | AP116: 0 | AQ116: 17 | AR116: 0 | AS116: 17 | AT116: 0 | AU116: 17 | AV116: 0 | AW116: 17 | AX116: 0 | AY116: 17 | AZ116: 0 | BA116: 17 | BB116: 0 | BC116: 17 | BD116: 0 | BE116: 17 | BF116: 0 | BG116: 17 | BH116: 0 | BI116: 17 | BJ116: 0 | BK116: 17 | BL116: 0 | BM116: 17 | BN116: 0 | BO116: 17 | BP116: 0 | BQ116: 17 | BR116: 0 | BS116: 17 | BT116: 486 | BU116: 187 | BV116: 0 | BW116: 17 | BX116: 11 | BY116: 19 | BZ116: 0 | CA116: 17 | CB116: 8 | CC116: 13 | CD116: 0 | CE116: 17 | CF116: 0 | CG116: 17 | CH116: 27 | CI116: 39 | CJ116: 0 | CK116: 17 | CL116: 40 | CM116: 58 | CN116: 0 | CO116: 17 | CP116: 24 | CQ116: 34 | CR116: 71 | CS116: 67 | CT116: 111 | CU116: 150 | CV116: 133 | CW116: 117 | CX116: 16 | CY116: 26 | CZ116: 45 | DA116: 43 | DB116: 1006 | DC116: 220 | DD116: 63 | DE116: 72 | DF116: 70 | DG116: 102 | DH116: 0 | DI116: 17 | DJ116: 15 | DK116: 23 | DL116: 54 | DM116: 43 | DN116: 98 | DO116: 103 | DP116: 59 | DQ116: 93 | DR116: 19 | DS116: 31 | DT116: 0 | DU116: 17 | DV116: 0 | DW116: 17 | DX116: 99 | DY116: 65 | DZ116: 126 | EA116: 80 | EB116: 132 | EC116: 110 | ED116: 110 | EE116: 96 | EF116: 43 | EG116: 47 | EH116: 118 | EI116: 87 | EJ116: 1295 | EK116: 225 | EL116: 81 | EM116: 99 | EN116: 92 | EO116: 100 | EP116: 59 | EQ116: 74 | ER116: 61 | ES116: 51 | ET116: 33 | EU116: 36 | EV116: 116 | EW116: 105 | EX116: 32 | EY116: 47 | EZ116: 32 | FA116: 33 | FB116: 118 | FC116: 121 | FD116: 35 | FE116: 40 | FF116: 109 | FG116: 88 | FH116: 142 | FI116: 78 | FJ116: 109 | FK116: 63 | FL116: 75 | FM116: 71 | FN116: 95 | FO116: 62 | FP116: 106 | FQ116: 70 | FR116: 75783 | FS116: 15064 | FT116: - | FU116: ** | FV116: 121396 | FW116: 26902 | FX116: 76161 | FY116: 21951 | FZ116: 55288 | GA116: 15645
A118: Number of Households by Income
A119: NAME | B119: HHIncLessThn10k | C119: ="MOE "&B119 -> MOE HHIncLessThn10k | D119: HHInc10to15K | E119: ="MOE "&D119 -> MOE HHInc10to15K | F119: HHInc15to25K | G119: ="MOE "&F119 -> MOE HHInc15to25K | H119: HHInc25to35K | I119: ="MOE "&H119 -> MOE HHInc25to35K | J119: HHInc35to50K | K119: ="MOE "&J119 -> MOE HHInc35to50K | L119: HHInc50to75K | M119: ="MOE "&L119 -> MOE HHInc50to75K | N119: HHInc75to100K | O119: ="MOE "&N119 -> MOE HHInc75to100K | P119: HHInc100to150K | Q119: ="MOE "&P119 -> MOE HHInc100to150K | R119: HHInc150to200K | S119: ="MOE "&R119 -> MOE HHInc150to200K | T119: HHIncOver200K | U119: ="MOE "&T119 -> MOE HHIncOver200K
A120: =VLOOKUP(DropDownList!$B$24,CntyQuery!$A$70:$CF$88,A$1) -> Wolfeboro | B120: 144 | C120: 122 | D120: 173 | E120: 138 | F120: 143 | G120: 94.64142856 | H120: 301 | I120: 160.4649494 | J120: 327 | K120: 177.8763616 | L120: 267 | M120: 121.7579566 | N120: 339 | O120: 124 | P120: 670 | Q120: 255.6188569 | R120: 154 | S120: 78 | T120: 269 | U120: 135 | V120: 30 | W120: 19 | X120: 39 | Y120: 22 | Z120: 12 | AA120: 9 | AB120: 27 | AC120: 22 | AD120: 0 | AE120: 114 | AF120: 30 | AG120: 19 | CH120: Ossipee | CJ120: Estimate | CK120: Margin of Error | CL120: 1842 | CM120: 183 | CP120: 153 | CQ120: 99 | CR120: 80 | CS120: 46 | CT120: 84 | CU120: 79 | CV120: 86 | CW120: 59 | CX120: 155 | CY120: 88 | CZ120: 118 | DA120: 80 | DB120: 127 | DC120: 78 | DD120: 74 | DE120: 51 | DF120: 65 | DG120: 55 | DH120: 295 | DI120: 111 | DJ120: 196 | DK120: 108 | DL120: 263 | DM120: 113 | DN120: 55 | DO120: 34 | DP120: 41 | DQ120: 33 | DR120: 0 | DS120: 114 | DT120: 50 | DU120: 50 | EJ120: Ossipee | EL120: Estimate | EM120: Margin of Error | EN120: 1842 | EO120: 183 | ER120: 153 | ES120: 99 | ET120: 80 | EU120: 46 | EV120: 170 | EW120: 98.60020284 | EX120: 273 | EY120: 118.92855 | EZ120: 266 | FA120: 108.2127534 | FB120: 491 | FC120: 154.870914 | FD120: 263 | FE120: 113 | FF120: 96 | FG120: 47.38143096 | FH120: 0 | FI120: 114 | FJ120: 50 | FK120: 50
